Workbook

Sheet Cover
C6: Economic Decision Making Model
C7: =Assumptions!D5 -> Project
C24: Author:

Sheet Scenario
B3: SCENARIO MANAGER
I5: 1 | L5: =MAX($K5:K5)+1 -> 1 | M5: =MAX($K5:L5)+1 -> 2 | N5: =MAX($K5:M5)+1 -> 3 | O5: =MAX($K5:N5)+1 -> 4 | P5: =MAX($K5:O5)+1 -> 5 | Q5: =MAX($K5:P5)+1 -> 6 | R5: =MAX($K5:Q5)+1 -> 7 | S5: =MAX($K5:R5)+1 -> 8 | T5: =MAX($K5:S5)+1 -> 9 | U5: =MAX($K5:T5)+1 -> 10 | V5: =MAX($K5:U5)+1 -> 11 | W5: =MAX($K5:V5)+1 -> 12 | X5: =MAX($K5:W5)+1 -> 13 | Y5: =MAX($K5:X5)+1 -> 14 | Z5: =MAX($K5:Y5)+1 -> 15 | AA5: =MAX($K5:Z5)+1 -> 16 | AB5: =MAX($K5:AA5)+1 -> 17 | AC5: =MAX($K5:AB5)+1 -> 18 | AD5: =MAX($K5:AC5)+1 -> 19 | AE5: =MAX($K5:AD5)+1 -> 20
I6: ACTIVE
C7: Scenario | I7: =INDEX($L7:$AE7,1,I$5) -> Scenario 1 | L7: Scenario 1 | M7: Scenario 2 | N7: Scenario 3 | O7: Scenario 4 | P7: Scenario 5 | Q7: Scenario 6 | R7: Scenario 7 | S7: Scenario 8 | T7: Scenario 9 | U7: Scenario 10 | V7: Scenario 11 | W7: Scenario 12 | X7: Scenario 13 | Y7: Scenario 14 | Z7: Scenario 15 | AA7: Scenario 16 | AB7: Scenario 17 | AC7: Scenario 18 | AD7: Scenario 19 | AE7: Scenario 20
C8: Update with Macro | L8: TRUE | M8: TRUE | N8: TRUE | O8: FALSE | P8: FALSE | Q8: FALSE | R8: FALSE | S8: FALSE | T8: FALSE | U8: FALSE | V8: FALSE | W8: FALSE | X8: FALSE | Y8: FALSE | Z8: FALSE | AA8: FALSE | AB8: FALSE | AC8: FALSE | AD8: FALSE | AE8: FALSE
B10: INPUTS
C12: Input 1 | I12: =INDEX($L12:$AE12,1,vba_scenario) -> 0 | L12: 0 | M12: 0 | N12: 0 | O12: 0 | P12: 0 | Q12: 0 | R12: 0 | S12: 0 | T12: 0 | U12: 0 | V12: 0 | W12: 0 | X12: 0 | Y12: 0 | Z12: 0 | AA12: 0 | AB12: 0 | AC12: 0 | AD12: 0 | AE12: 0
C13: Input 2 | I13: =INDEX($L13:$AE13,1,vba_scenario) -> 0
C15: Input 3 | I15: =INDEX($L15:$AE15,1,vba_scenario) -> 0
C16: Input 4 | I16: =INDEX($L16:$AE16,1,vba_scenario) -> 0
C17: Input 5 | I17: =INDEX($L17:$AE17,1,vba_scenario) -> 0
B20: OUTPUTS
C23: CPVRR | I23: =RevReq!$K$37 -> 1119185.661

Sheet Assumptions
A3: GENERAL ASSUMPTIONS
B5: PROJECT TITLE: | D5: Project
H6: =Input!F5 -> $ thousands
G7: CPVRR: | H7: =RevReq!$K$37 -> 1119185.661 | I7: unfavorable / (favorable)
G8: NPV: | H8: =NPV!$K$37 -> -645734.07 | I8: favorable / (unfavorable)
B10: DATES
B11: Model Start Year | D11: 2017
B12: Discount Date | D12: 2017-07-01
B13: Inflation Base Year | D13: 2017
A16: I) | B16: TAX RATES
B17: State Income Tax Rate | E17: 0.055
B18: Federal Income Tax Rate | E18: 0.35
B19: Blended Income Tax Rate | E19: =((1-E17)*E18)+E17 -> 0.38575
A21: II) | B21: COST OF CAPITAL
D24: ASSETS | E24: WTD COST | F24: UNWTD AFTER | G24: WTD AFTER | H24: WTD PRE
B25: SOURCE | C25: WEIGHT | D25: COST | E25: RATE | F25: TAX RATE | G25: TAX RATE | H25: TAX RATE
B26: DEBT | C26: =1-C27 -> 0.404 | D26: 0.0517 | E26: =C26*D26 -> 0.0208868 | F26: =D26*(1-$E$19) -> 0.031756725 | G26: =E26*(1-$E$19) -> 0.0128297169 | H26: =+E26 -> 0.0208868
B27: COMMON | C27: 0.596 | D27: 0.1055 | E27: =C27*D27 -> 0.062878 | F27: =D27 -> 0.1055 | G27: =E27 -> 0.062878 | H27: =+E27/(1-Tax_Rate) -> 0.1023654864
B28: TOTAL | C28: =SUM(C26:C27) -> 1 | G28: =SUM(G26:G27) -> 0.0757077169 | H28: =SUM(H26:H27) -> 0.1232522864
B30: DISCOUNT RATE ("WACC"): | E30: =G28 -> 0.0757077169
A34: III) | B34: PROPERTY TAXES | E34: 0.0181
B35: PROPERTY INSURANCE | E35: 0.00053
A38: III) | B38: AFUDC
C40: =2016 -> 2016 | D40: =+C40+1 -> 2017 | E40: =+D40+1 -> 2018 | F40: 2019 | G40: 2020 | I40: Allocation | J40: Monthly | M40: Annual
B41: Debt | C41: =$M41 -> 0.01480674443 | D41: =$M41 -> 0.01480674443 | E41: 0.01480674443 | F41: 0.01480674443 | G41: 0.01480674443 | I41: 0.233544 | J41: 0.0012256 | M41: =(1+J41)^12-1 -> 0.01480674443
B42: Equity | C42: =$M42 -> 0.04859333524 | D42: 0.04859333524 | E42: 0.04859333524 | F42: 0.04859333524 | G42: 0.04859333524 | I42: 0.766456 | J42: 0.00396196 | M42: =(1+J42)^12-1 -> 0.04859333524
B43: Total | C43: =C41+C42 -> 0.06340007966 | D43: =D41+D42 -> 0.06340007966 | E43: =E41+E42 -> 0.06340007966 | F43: =F41+F42 -> 0.06340007966 | G43: =G41+G42 -> 0.06340007966 | I43: =SUM(I41:I42) -> 1 | J43: 0.00513575 | M43: =SUM(M41:M42) -> 0.06340007966
A48: IV) | B48: FEDERAL TAX INCENTIVES
C50: 2016 | D50: =C50+1 -> 2017 | E50: =D50+1 -> 2018 | F50: 2019 | G50: 2020 | H50: 2021 | I50: 2022 | J50: 2023 | K50: 2024
B51: ITC | C51: 0.3 | D51: 0.3 | E51: 0.3 | F51: 0.3 | G51: 0.3 | H51: 0.3 | I51: 0.26 | J51: 0.22 | K51: 0.1
B52: Bonus | C52: 0.5 | D52: 0.5 | E52: 0.4 | F52: 0.3 | G52: 0 | H52: 0 | I52: 0 | J52: 0 | K52: 0

Sheet Input
D3: INPUTS | F3: CPVRR: | G3: =G62 -> 1119185.661
D4: Period | S4: 0 | T4: =S4+1 -> 1 | U4: =T4+1 -> 2 | V4: 3 | W4: 4 | X4: 5 | Y4: 6 | Z4: 7 | AA4: 8 | AB4: 9 | AC4: 10 | AD4: 11 | AE4: 12 | AF4: 13 | AG4: 14 | AH4: 15 | AI4: 16 | AJ4: 17 | AK4: =AJ4+1 -> 18 | AL4: 19 | AM4: 20 | AN4: 21 | AO4: 22 | AP4: 23 | AQ4: 24 | AR4: 25 | AS4: 26 | AT4: 27 | AU4: 28 | AV4: 29 | AW4: 30 | AX4: 31 | AY4: 32 | AZ4: 33 | BA4: =AZ4+1 -> 34 | BB4: 35 | BC4: 36 | BD4: 37 | BE4: 38 | BF4: 39 | BG4: 40 | BH4: 41 | BI4: 42 | BJ4: 43 | BK4: 44 | BL4: 45 | BM4: 46 | BN4: 47 | BO4: 48 | BP4: 49 | BQ4: =BP4+1 -> 50
D5: Year | E5: Data Entry: | F5: $ thousands | S5: =Assumptions!$D$11 -> 2017 | T5: =S5+1 -> 2018 | U5: 2019 | V5: 2020 | W5: 2021 | X5: 2022 | Y5: 2023 | Z5: 2024 | AA5: 2025 | AB5: 2026 | AC5: 2027 | AD5: 2028 | AE5: 2029 | AF5: 2030 | AG5: 2031 | AH5: 2032 | AI5: 2033 | AJ5: 2034 | AK5: 2035 | AL5: 2036 | AM5: 2037 | AN5: 2038 | AO5: 2039 | AP5: 2040 | AQ5: 2041 | AR5: 2042 | AS5: 2043 | AT5: 2044 | AU5: 2045 | AV5: 2046 | AW5: 2047 | AX5: 2048 | AY5: 2049 | AZ5: 2050 | BA5: 2051 | BB5: 2052 | BC5: 2053 | BD5: 2054 | BE5: 2055 | BF5: 2056 | BG5: 2057 | BH5: 2058 | BI5: 2059 | BJ5: 2060 | BK5: 2061 | BL5: 2062 | BM5: 2063 | BN5: 2064 | BO5: 2065 | BP5: 2066 | BQ5: 2067
D7: Item Title | E7: Cash Flow Type | F7: Construction Start Date | G7: Commercial Operations Date (COD) | H7: Asset Type | I7: Base/ Clause | J7: Book Life | K7: Tax Life | L7: Inflation | M7: Bonus Depreciation | N7: Investment Tax Credit (Solar) | O7: Percent Subject ot Property Tax | Q7: Sum | S7: Cash Flows
C8: =C7+1 -> 1 | D8: item 1 | E8: Capital | F8: 2017-01-01 | G8: 2018-01-01 | H8: user 1 | I8: Base | J8: 10 | K8: 5 | L8: 0 | M8: TRUE | N8: =IF(AND(H8="Solar",$E8<>"Land"),TRUE,FALSE) -> FALSE | O8: =IF(AND(H8="Solar",$E8<>"Land"),20%,1) -> 1 | Q8: =SUM(S8:BQ8) -> 1000000 | S8: 0 | T8: 1000000 | U8: 0 | V8: 0 | W8: 0 | X8: 0 | Y8: 0 | Z8: 0 | AA8: 0 | AB8: 0 | AC8: 0 | AD8: 0 | AE8: 0 | AF8: 0 | AG8: 0 | AH8: 0 | AI8: 0 | AJ8: 0 | AK8: 0 | AL8: 0 | AM8: 0 | AN8: 0 | AO8: 0 | AP8: 0 | AQ8: 0 | AR8: 0 | AS8: 0 | AT8: 0 | AU8: 0 | AV8: 0 | AW8: 0 | AX8: 0 | AY8: 0 | AZ8: 0 | BA8: 0 | BB8: 0 | BC8: 0 | BD8: 0 | BE8: 0 | BF8: 0 | BG8: 0 | BH8: 0 | BI8: 0 | BJ8: 0 | BK8: 0 | BL8: 0 | BM8: 0 | BN8: 0 | BO8: 0 | BP8: 0 | BQ8: 0
C9: =C8+1 -> 2 | D9: item 2 | E9: Capital | F9: 2018-01-01 | G9: 2019-01-01 | H9: user 1 | I9: Base | J9: 10 | K9: 5 | L9: 0 | M9: TRUE | N9: FALSE | O9: 1 | Q9: =SUM(S9:BQ9) -> 0 | S9: 0 | T9: 0 | U9: 0 | V9: 0 | W9: 0 | X9: 0 | Y9: 0 | Z9: 0 | AA9: 0 | AB9: 0 | AC9: 0 | AD9: 0 | AE9: 0 | AF9: 0 | AG9: 0 | AH9: 0 | AI9: 0 | AJ9: 0 | AK9: 0 | AL9: 0 | AM9: 0 | AN9: 0 | AO9: 0 | AP9: 0 | AQ9: 0 | AR9: 0 | AS9: 0 | AT9: 0 | AU9: 0 | AV9: 0 | AW9: 0 | AX9: 0 | AY9: 0 | AZ9: 0 | BA9: 0 | BB9: 0 | BC9: 0 | BD9: 0 | BE9: 0 | BF9: 0 | BG9: 0 | BH9: 0 | BI9: 0 | BJ9: 0 | BK9: 0 | BL9: 0 | BM9: 0 | BN9: 0 | BO9: 0 | BP9: 0 | BQ9: 0
C10: 3 | D10: item 3 | E10: Capital | F10: 2019-01-01 | G10: 2020-01-01 | H10: user 1 | I10: Base | J10: 10 | K10: 5 | L10: 0 | M10: TRUE | N10: FALSE | O10: 1 | Q10: =SUM(S10:BQ10) -> 0 | S10: 0 | T10: 0 | U10: 0 | V10: 0 | W10: 0 | X10: 0 | Y10: 0 | Z10: 0 | AA10: 0 | AB10: 0 | AC10: 0 | AD10: 0 | AE10: 0 | AF10: 0 | AG10: 0 | AH10: 0 | AI10: 0 | AJ10: 0 | AK10: 0 | AL10: 0 | AM10: 0 | AN10: 0 | AO10: 0 | AP10: 0 | AQ10: 0 | AR10: 0 | AS10: 0 | AT10: 0 | AU10: 0 | AV10: 0 | AW10: 0 | AX10: 0 | AY10: 0 | AZ10: 0 | BA10: 0 | BB10: 0 | BC10: 0 | BD10: 0 | BE10: 0 | BF10: 0 | BG10: 0 | BH10: 0 | BI10: 0 | BJ10: 0 | BK10: 0 | BL10: 0 | BM10: 0 | BN10: 0 | BO10: 0 | BP10: 0 | BQ10: 0
C11: 4 | D11: item 4 | E11: Capital | F11: 2020-01-01 | G11: 2021-01-01 | H11: user 1 | I11: Base | J11: 10 | K11: 5 | L11: 0 | M11: TRUE | N11: FALSE | O11: 1 | Q11: 0 | S11: 0 | T11: 0 | U11: 0 | V11: 0 | W11: 0 | X11: 0 | Y11: 0 | Z11: 0 | AA11: 0 | AB11: 0 | AC11: 0 | AD11: 0 | AE11: 0 | AF11: 0 | AG11: 0 | AH11: 0 | AI11: 0 | AJ11: 0 | AK11: 0 | AL11: 0 | AM11: 0 | AN11: 0 | AO11: 0 | AP11: 0 | AQ11: 0 | AR11: 0 | AS11: 0 | AT11: 0 | AU11: 0 | AV11: 0 | AW11: 0 | AX11: 0 | AY11: 0 | AZ11: 0 | BA11: 0 | BB11: 0 | BC11: 0 | BD11: 0 | BE11: 0 | BF11: 0 | BG11: 0 | BH11: 0 | BI11: 0 | BJ11: 0 | BK11: 0 | BL11: 0 | BM11: 0 | BN11: 0 | BO11: 0 | BP11: 0 | BQ11: 0
C12: 5 | D12: item 5 | E12: Capital | F12: 2021-01-01 | G12: 2022-01-01 | H12: user 1 | I12: Base | J12: 10 | K12: 5 | L12: 0 | M12: TRUE | N12: FALSE | O12: 1 | Q12: 0 | S12: 0 | T12: 0 | U12: 0 | V12: 0 | W12: 0 | X12: 0 | Y12: 0 | Z12: 0 | AA12: 0 | AB12: 0 | AC12: 0 | AD12: 0 | AE12: 0 | AF12: 0 | AG12: 0 | AH12: 0 | AI12: 0 | AJ12: 0 | AK12: 0 | AL12: 0 | AM12: 0 | AN12: 0 | AO12: 0 | AP12: 0 | AQ12: 0 | AR12: 0 | AS12: 0 | AT12: 0 | AU12: 0 | AV12: 0 | AW12: 0 | AX12: 0 | AY12: 0 | AZ12: 0 | BA12: 0 | BB12: 0 | BC12: 0 | BD12: 0 | BE12: 0 | BF12: 0 | BG12: 0 | BH12: 0 | BI12: 0 | BJ12: 0 | BK12: 0 | BL12: 0 | BM12: 0 | BN12: 0 | BO12: 0 | BP12: 0 | BQ12: 0
C13: 6 | D13: item 6 | E13: Capital | F13: 2017-01-01 | G13: 2018-01-01 | H13: Transmission, Substation | I13: Base | J13: 40 | K13: =INDEX(lookups!$E$8:$E$39,MATCH($H13,lookups!$C$8:$C$39,0),1) -> 15 | L13: 0 | M13: TRUE | N13: FALSE | O13: 1 | Q13: 0 | S13: 0 | T13: 0 | U13: 0 | V13: 0 | W13: 0 | X13: 0 | Y13: 0 | Z13: 0 | AA13: 0 | AB13: 0 | AC13: 0 | AD13: 0 | AE13: 0 | AF13: 0 | AG13: 0 | AH13: 0 | AI13: 0 | AJ13: 0 | AK13: 0 | AL13: 0 | AM13: 0 | AN13: 0 | AO13: 0 | AP13: 0 | AQ13: 0 | AR13: 0 | AS13: 0 | AT13: 0 | AU13: 0 | AV13: 0 | AW13: 0 | AX13: 0 | AY13: 0 | AZ13: 0 | BA13: 0 | BB13: 0 | BC13: 0 | BD13: 0 | BE13: 0 | BF13: 0 | BG13: 0 | BH13: 0 | BI13: 0 | BJ13: 0 | BK13: 0 | BL13: 0 | BM13: 0 | BN13: 0 | BO13: 0 | BP13: 0 | BQ13: 0
C14: 7 | D14: item 7 | E14: Capital | F14: 2018-01-01 | G14: 2019-01-01 | H14: Transmission, Substation | I14: Base | J14: 40 | K14: =INDEX(lookups!$E$8:$E$39,MATCH($H14,lookups!$C$8:$C$39,0),1) -> 15 | L14: 0 | M14: TRUE | N14: FALSE | O14: 1 | Q14: 0 | S14: 0 | T14: 0 | U14: 0 | V14: 0 | W14: 0 | X14: 0 | Y14: 0 | Z14: 0 | AA14: 0 | AB14: 0 | AC14: 0 | AD14: 0 | AE14: 0 | AF14: 0 | AG14: 0 | AH14: 0 | AI14: 0 | AJ14: 0 | AK14: 0 | AL14: 0 | AM14: 0 | AN14: 0 | AO14: 0 | AP14: 0 | AQ14: 0 | AR14: 0 | AS14: 0 | AT14: 0 | AU14: 0 | AV14: 0 | AW14: 0 | AX14: 0 | AY14: 0 | AZ14: 0 | BA14: 0 | BB14: 0 | BC14: 0 | BD14: 0 | BE14: 0 | BF14: 0 | BG14: 0 | BH14: 0 | BI14: 0 | BJ14: 0 | BK14: 0 | BL14: 0 | BM14: 0 | BN14: 0 | BO14: 0 | BP14: 0 | BQ14: 0
C15: 8 | D15: item 8 | E15: Capital | F15: 2019-01-01 | G15: 2020-01-01 | H15: Transmission, Substation | I15: Base | J15: 40 | K15: =INDEX(lookups!$E$8:$E$39,MATCH($H15,lookups!$C$8:$C$39,0),1) -> 15 | L15: 0 | M15: TRUE | N15: FALSE | O15: 1 | Q15: 0 | S15: 0 | T15: 0 | U15: 0 | V15: 0 | W15: 0 | X15: 0 | Y15: 0 | Z15: 0 | AA15: 0 | AB15: 0 | AC15: 0 | AD15: 0 | AE15: 0 | AF15: 0 | AG15: 0 | AH15: 0 | AI15: 0 | AJ15: 0 | AK15: 0 | AL15: 0 | AM15: 0 | AN15: 0 | AO15: 0 | AP15: 0 | AQ15: 0 | AR15: 0 | AS15: 0 | AT15: 0 | AU15: 0 | AV15: 0 | AW15: 0 | AX15: 0 | AY15: 0 | AZ15: 0 | BA15: 0 | BB15: 0 | BC15: 0 | BD15: 0 | BE15: 0 | BF15: 0 | BG15: 0 | BH15: 0 | BI15: 0 | BJ15: 0 | BK15: 0 | BL15: 0 | BM15: 0 | BN15: 0 | BO15: 0 | BP15: 0 | BQ15: 0
C16: 9 | D16: item 9 | E16: Capital | F16: 2020-01-01 | G16: 2021-01-01 | H16: Transmission, Substation | I16: Base | J16: 40 | K16: =INDEX(lookups!$E$8:$E$39,MATCH($H16,lookups!$C$8:$C$39,0),1) -> 15 | L16: 0 | M16: TRUE | N16: FALSE | O16: 1 | Q16: 0 | S16: 0 | T16: 0 | U16: 0 | V16: 0 | W16: 0 | X16: 0 | Y16: 0 | Z16: 0 | AA16: 0 | AB16: 0 | AC16: 0 | AD16: 0 | AE16: 0 | AF16: 0 | AG16: 0 | AH16: 0 | AI16: 0 | AJ16: 0 | AK16: 0 | AL16: 0 | AM16: 0 | AN16: 0 | AO16: 0 | AP16: 0 | AQ16: 0 | AR16: 0 | AS16: 0 | AT16: 0 | AU16: 0 | AV16: 0 | AW16: 0 | AX16: 0 | AY16: 0 | AZ16: 0 | BA16: 0 | BB16: 0 | BC16: 0 | BD16: 0 | BE16: 0 | BF16: 0 | BG16: 0 | BH16: 0 | BI16: 0 | BJ16: 0 | BK16: 0 | BL16: 0 | BM16: 0 | BN16: 0 | BO16: 0 | BP16: 0 | BQ16: 0
C17: 10 | D17: item 10 | E17: Capital | F17: 2021-01-01 | G17: 2022-01-01 | H17: Transmission, Substation | I17: Base | J17: 40 | K17: =INDEX(lookups!$E$8:$E$39,MATCH($H17,lookups!$C$8:$C$39,0),1) -> 15 | L17: 0 | M17: TRUE | N17: FALSE | O17: 1 | Q17: 0 | S17: 0 | T17: 0 | U17: 0 | V17: 0 | W17: 0 | X17: 0 | Y17: 0 | Z17: 0 | AA17: 0 | AB17: 0 | AC17: 0 | AD17: 0 | AE17: 0 | AF17: 0 | AG17: 0 | AH17: 0 | AI17: 0 | AJ17: 0 | AK17: 0 | AL17: 0 | AM17: 0 | AN17: 0 | AO17: 0 | AP17: 0 | AQ17: 0 | AR17: 0 | AS17: 0 | AT17: 0 | AU17: 0 | AV17: 0 | AW17: 0 | AX17: 0 | AY17: 0 | AZ17: 0 | BA17: 0 | BB17: 0 | BC17: 0 | BD17: 0 | BE17: 0 | BF17: 0 | BG17: 0 | BH17: 0 | BI17: 0 | BJ17: 0 | BK17: 0 | BL17: 0 | BM17: 0 | BN17: 0 | BO17: 0 | BP17: 0 | BQ17: 0
C18: 11 | D18: item 11 | E18: Operating Expense | F18: 2016-12-01 | G18: 2016-12-31 | H18: user 1 | I18: Base | J18: =INDEX(lookups!$D$8:$D$39,MATCH($H18,lookups!$C$8:$C$39,0),1) -> 30 | K18: =INDEX(lookups!$E$8:$E$39,MATCH($H18,lookups!$C$8:$C$39,0),1) -> 20 | L18: 0 | M18: TRUE | N18: FALSE | O18: 1 | Q18: 0 | S18: 0 | T18: 0 | U18: 0 | V18: 0 | W18: 0 | X18: 0 | Y18: 0 | Z18: 0 | AA18: 0 | AB18: 0 | AC18: 0 | AD18: 0 | AE18: 0 | AF18: 0 | AG18: 0 | AH18: 0 | AI18: 0 | AJ18: 0 | AK18: 0 | AL18: 0 | AM18: 0 | AN18: 0 | AO18: 0 | AP18: 0 | AQ18: 0 | AR18: 0 | AS18: 0 | AT18: 0 | AU18: 0 | AV18: 0 | AW18: 0 | AX18: 0 | AY18: 0 | AZ18: 0 | BA18: 0 | BB18: 0 | BC18: 0 | BD18: 0 | BE18: 0 | BF18: 0 | BG18: 0 | BH18: 0 | BI18: 0 | BJ18: 0 | BK18: 0 | BL18: 0 | BM18: 0 | BN18: 0 | BO18: 0 | BP18: 0 | BQ18: 0
C19: 12 | D19: item 12 | E19: Operating Expense | F19: 2016-12-01 | G19: 2016-12-31 | H19: user 1 | I19: Base | J19: =INDEX(lookups!$D$8:$D$39,MATCH($H19,lookups!$C$8:$C$39,0),1) -> 30 | K19: =INDEX(lookups!$E$8:$E$39,MATCH($H19,lookups!$C$8:$C$39,0),1) -> 20 | L19: 0 | M19: TRUE | N19: FALSE | O19: 1 | Q19: 0 | S19: 0 | T19: 0 | U19: 0 | V19: 0 | W19: 0 | X19: 0 | Y19: 0 | Z19: 0 | AA19: 0 | AB19: 0 | AC19: 0 | AD19: 0 | AE19: 0 | AF19: 0 | AG19: 0 | AH19: 0 | AI19: 0 | AJ19: 0 | AK19: 0 | AL19: 0 | AM19: 0 | AN19: 0 | AO19: 0 | AP19: 0 | AQ19: 0 | AR19: 0 | AS19: 0 | AT19: 0 | AU19: 0 | AV19: 0 | AW19: 0 | AX19: 0 | AY19: 0 | AZ19: 0 | BA19: 0 | BB19: 0 | BC19: 0 | BD19: 0 | BE19: 0 | BF19: 0 | BG19: 0 | BH19: 0 | BI19: 0 | BJ19: 0 | BK19: 0 | BL19: 0 | BM19: 0 | BN19: 0 | BO19: 0 | BP19: 0 | BQ19: 0
C20: 13 | D20: item 13 | E20: Operating Expense | F20: 2016-12-01 | G20: 2016-12-31 | H20: user 1 | I20: Base | J20: =INDEX(lookups!$D$8:$D$39,MATCH($H20,lookups!$C$8:$C$39,0),1) -> 30 | K20: =INDEX(lookups!$E$8:$E$39,MATCH($H20,lookups!$C$8:$C$39,0),1) -> 20 | L20: 0 | M20: TRUE | N20: FALSE | O20: 1 | Q20: 0 | S20: 0 | T20: 0 | U20: 0 | V20: 0 | W20: 0 | X20: 0 | Y20: 0 | Z20: 0 | AA20: 0 | AB20: 0 | AC20: 0 | AD20: 0 | AE20: 0 | AF20: 0 | AG20: 0 | AH20: 0 | AI20: 0 | AJ20: 0 | AK20: 0 | AL20: 0 | AM20: 0 | AN20: 0 | AO20: 0 | AP20: 0 | AQ20: 0 | AR20: 0 | AS20: 0 | AT20: 0 | AU20: 0 | AV20: 0 | AW20: 0 | AX20: 0 | AY20: 0 | AZ20: 0 | BA20: 0 | BB20: 0 | BC20: 0 | BD20: 0 | BE20: 0 | BF20: 0 | BG20: 0 | BH20: 0 | BI20: 0 | BJ20: 0 | BK20: 0 | BL20: 0 | BM20: 0 | BN20: 0 | BO20: 0 | BP20: 0 | BQ20: 0
C21: 14 | D21: item 14 | E21: Operating Expense | F21: 2016-12-01 | G21: 2016-12-31 | H21: user 1 | I21: Base | J21: =INDEX(lookups!$D$8:$D$39,MATCH($H21,lookups!$C$8:$C$39,0),1) -> 30 | K21: =INDEX(lookups!$E$8:$E$39,MATCH($H21,lookups!$C$8:$C$39,0),1) -> 20 | L21: 0 | M21: TRUE | N21: FALSE | O21: 1 | Q21: 0 | S21: 0 | T21: 0 | U21: 0 | V21: 0 | W21: 0 | X21: 0 | Y21: 0 | Z21: 0 | AA21: 0 | AB21: 0 | AC21: 0 | AD21: 0 | AE21: 0 | AF21: 0 | AG21: 0 | AH21: 0 | AI21: 0 | AJ21: 0 | AK21: 0 | AL21: 0 | AM21: 0 | AN21: 0 | AO21: 0 | AP21: 0 | AQ21: 0 | AR21: 0 | AS21: 0 | AT21: 0 | AU21: 0 | AV21: 0 | AW21: 0 | AX21: 0 | AY21: 0 | AZ21: 0 | BA21: 0 | BB21: 0 | BC21: 0 | BD21: 0 | BE21: 0 | BF21: 0 | BG21: 0 | BH21: 0 | BI21: 0 | BJ21: 0 | BK21: 0 | BL21: 0 | BM21: 0 | BN21: 0 | BO21: 0 | BP21: 0 | BQ21: 0
C22: 15 | D22: item 15 | E22: Operating Expense | F22: 2016-12-01 | G22: 2016-12-31 | H22: user 1 | I22: Base | J22: =INDEX(lookups!$D$8:$D$39,MATCH($H22,lookups!$C$8:$C$39,0),1) -> 30 | K22: =INDEX(lookups!$E$8:$E$39,MATCH($H22,lookups!$C$8:$C$39,0),1) -> 20 | L22: 0 | M22: TRUE | N22: FALSE | O22: 1 | Q22: 0 | S22: 0 | T22: 0 | U22: 0 | V22: 0 | W22: 0 | X22: 0 | Y22: 0 | Z22: 0 | AA22: 0 | AB22: 0 | AC22: 0 | AD22: 0 | AE22: 0 | AF22: 0 | AG22: 0 | AH22: 0 | AI22: 0 | AJ22: 0 | AK22: 0 | AL22: 0 | AM22: 0 | AN22: 0 | AO22: 0 | AP22: 0 | AQ22: 0 | AR22: 0 | AS22: 0 | AT22: 0 | AU22: 0 | AV22: 0 | AW22: 0 | AX22: 0 | AY22: 0 | AZ22: 0 | BA22: 0 | BB22: 0 | BC22: 0 | BD22: 0 | BE22: 0 | BF22: 0 | BG22: 0 | BH22: 0 | BI22: 0 | BJ22: 0 | BK22: 0 | BL22: 0 | BM22: 0 | BN22: 0 | BO22: 0 | BP22: 0 | BQ22: 0
C23: 16 | D23: item 16 | E23: Operating Expense | F23: 2016-12-01 | G23: 2016-12-31 | H23: user 1 | I23: Base | J23: =INDEX(lookups!$D$8:$D$39,MATCH($H23,lookups!$C$8:$C$39,0),1) -> 30 | K23: =INDEX(lookups!$E$8:$E$39,MATCH($H23,lookups!$C$8:$C$39,0),1) -> 20 | L23: 0 | M23: TRUE | N23: FALSE | O23: 1 | Q23: 0 | S23: 0 | T23: 0 | U23: 0 | V23: 0 | W23: 0 | X23: 0 | Y23: 0 | Z23: 0 | AA23: 0 | AB23: 0 | AC23: 0 | AD23: 0 | AE23: 0 | AF23: 0 | AG23: 0 | AH23: 0 | AI23: 0 | AJ23: 0 | AK23: 0 | AL23: 0 | AM23: 0 | AN23: 0 | AO23: 0 | AP23: 0 | AQ23: 0 | AR23: 0 | AS23: 0 | AT23: 0 | AU23: 0 | AV23: 0 | AW23: 0 | AX23: 0 | AY23: 0 | AZ23: 0 | BA23: 0 | BB23: 0 | BC23: 0 | BD23: 0 | BE23: 0 | BF23: 0 | BG23: 0 | BH23: 0 | BI23: 0 | BJ23: 0 | BK23: 0 | BL23: 0 | BM23: 0 | BN23: 0 | BO23: 0 | BP23: 0 | BQ23: 0
C24: 17 | D24: item 17 | E24: Operating Expense | F24: 2016-12-01 | G24: 2016-12-31 | H24: user 1 | I24: Base | J24: =INDEX(lookups!$D$8:$D$39,MATCH($H24,lookups!$C$8:$C$39,0),1) -> 30 | K24: =INDEX(lookups!$E$8:$E$39,MATCH($H24,lookups!$C$8:$C$39,0),1) -> 20 | L24: 0 | M24: TRUE | N24: FALSE | O24: 1 | Q24: 0 | S24: 0 | T24: 0 | U24: 0 | V24: 0 | W24: 0 | X24: 0 | Y24: 0 | Z24: 0 | AA24: 0 | AB24: 0 | AC24: 0 | AD24: 0 | AE24: 0 | AF24: 0 | AG24: 0 | AH24: 0 | AI24: 0 | AJ24: 0 | AK24: 0 | AL24: 0 | AM24: 0 | AN24: 0 | AO24: 0 | AP24: 0 | AQ24: 0 | AR24: 0 | AS24: 0 | AT24: 0 | AU24: 0 | AV24: 0 | AW24: 0 | AX24: 0 | AY24: 0 | AZ24: 0 | BA24: 0 | BB24: 0 | BC24: 0 | BD24: 0 | BE24: 0 | BF24: 0 | BG24: 0 | BH24: 0 | BI24: 0 | BJ24: 0 | BK24: 0 | BL24: 0 | BM24: 0 | BN24: 0 | BO24: 0 | BP24: 0 | BQ24: 0
C25: 18 | D25: item 18 | E25: Operating Expense | F25: 2016-12-01 | G25: 2016-12-31 | H25: user 1 | I25: Base | J25: =INDEX(lookups!$D$8:$D$39,MATCH($H25,lookups!$C$8:$C$39,0),1) -> 30 | K25: =INDEX(lookups!$E$8:$E$39,MATCH($H25,lookups!$C$8:$C$39,0),1) -> 20 | L25: 0 | M25: TRUE | N25: FALSE | O25: 1 | Q25: 0 | S25: 0 | T25: 0 | U25: 0 | V25: 0 | W25: 0 | X25: 0 | Y25: 0 | Z25: 0 | AA25: 0 | AB25: 0 | AC25: 0 | AD25: 0 | AE25: 0 | AF25: 0 | AG25: 0 | AH25: 0 | AI25: 0 | AJ25: 0 | AK25: 0 | AL25: 0 | AM25: 0 | AN25: 0 | AO25: 0 | AP25: 0 | AQ25: 0 | AR25: 0 | AS25: 0 | AT25: 0 | AU25: 0 | AV25: 0 | AW25: 0 | AX25: 0 | AY25: 0 | AZ25: 0 | BA25: 0 | BB25: 0 | BC25: 0 | BD25: 0 | BE25: 0 | BF25: 0 | BG25: 0 | BH25: 0 | BI25: 0 | BJ25: 0 | BK25: 0 | BL25: 0 | BM25: 0 | BN25: 0 | BO25: 0 | BP25: 0 | BQ25: 0
C26: 19 | D26: item 19 | E26: Operating Expense | F26: 2016-12-01 | G26: 2016-12-31 | H26: user 1 | I26: Base | J26: =INDEX(lookups!$D$8:$D$39,MATCH($H26,lookups!$C$8:$C$39,0),1) -> 30 | K26: =INDEX(lookups!$E$8:$E$39,MATCH($H26,lookups!$C$8:$C$39,0),1) -> 20 | L26: 0 | M26: TRUE | N26: FALSE | O26: 1 | Q26: 0 | S26: 0 | T26: 0 | U26: 0 | V26: 0 | W26: 0 | X26: 0 | Y26: 0 | Z26: 0 | AA26: 0 | AB26: 0 | AC26: 0 | AD26: 0 | AE26: 0 | AF26: 0 | AG26: 0 | AH26: 0 | AI26: 0 | AJ26: 0 | AK26: 0 | AL26: 0 | AM26: 0 | AN26: 0 | AO26: 0 | AP26: 0 | AQ26: 0 | AR26: 0 | AS26: 0 | AT26: 0 | AU26: 0 | AV26: 0 | AW26: 0 | AX26: 0 | AY26: 0 | AZ26: 0 | BA26: 0 | BB26: 0 | BC26: 0 | BD26: 0 | BE26: 0 | BF26: 0 | BG26: 0 | BH26: 0 | BI26: 0 | BJ26: 0 | BK26: 0 | BL26: 0 | BM26: 0 | BN26: 0 | BO26: 0 | BP26: 0 | BQ26: 0
C27: 20 | D27: item 20 | E27: Operating Expense | F27: 2016-12-01 | G27: 2016-12-31 | H27: user 1 | I27: Base | J27: =INDEX(lookups!$D$8:$D$39,MATCH($H27,lookups!$C$8:$C$39,0),1) -> 30 | K27: =INDEX(lookups!$E$8:$E$39,MATCH($H27,lookups!$C$8:$C$39,0),1) -> 20 | L27: 0 | M27: TRUE | N27: FALSE | O27: 1 | Q27: 0 | S27: 0 | T27: 0 | U27: 0 | V27: 0 | W27: 0 | X27: 0 | Y27: 0 | Z27: 0 | AA27: 0 | AB27: 0 | AC27: 0 | AD27: 0 | AE27: 0 | AF27: 0 | AG27: 0 | AH27: 0 | AI27: 0 | AJ27: 0 | AK27: 0 | AL27: 0 | AM27: 0 | AN27: 0 | AO27: 0 | AP27: 0 | AQ27: 0 | AR27: 0 | AS27: 0 | AT27: 0 | AU27: 0 | AV27: 0 | AW27: 0 | AX27: 0 | AY27: 0 | AZ27: 0 | BA27: 0 | BB27: 0 | BC27: 0 | BD27: 0 | BE27: 0 | BF27: 0 | BG27: 0 | BH27: 0 | BI27: 0 | BJ27: 0 | BK27: 0 | BL27: 0 | BM27: 0 | BN27: 0 | BO27: 0 | BP27: 0 | BQ27: 0
C28: 21 | D28: item 21 | E28: Operating Expense | F28: 2016-12-01 | G28: 2016-12-31 | H28: user 1 | I28: Base | J28: =INDEX(lookups!$D$8:$D$39,MATCH($H28,lookups!$C$8:$C$39,0),1) -> 30 | K28: =INDEX(lookups!$E$8:$E$39,MATCH($H28,lookups!$C$8:$C$39,0),1) -> 20 | L28: 0 | M28: TRUE | N28: FALSE | O28: 1 | Q28: 0 | S28: 0 | T28: 0 | U28: 0 | V28: 0 | W28: 0 | X28: 0 | Y28: 0 | Z28: 0 | AA28: 0 | AB28: 0 | AC28: 0 | AD28: 0 | AE28: 0 | AF28: 0 | AG28: 0 | AH28: 0 | AI28: 0 | AJ28: 0 | AK28: 0 | AL28: 0 | AM28: 0 | AN28: 0 | AO28: 0 | AP28: 0 | AQ28: 0 | AR28: 0 | AS28: 0 | AT28: 0 | AU28: 0 | AV28: 0 | AW28: 0 | AX28: 0 | AY28: 0 | AZ28: 0 | BA28: 0 | BB28: 0 | BC28: 0 | BD28: 0 | BE28: 0 | BF28: 0 | BG28: 0 | BH28: 0 | BI28: 0 | BJ28: 0 | BK28: 0 | BL28: 0 | BM28: 0 | BN28: 0 | BO28: 0 | BP28: 0 | BQ28: 0
C29: 22 | D29: item 22 | E29: Operating Expense | F29: 2016-12-01 | G29: 2016-12-31 | H29: user 1 | I29: Base | J29: =INDEX(lookups!$D$8:$D$39,MATCH($H29,lookups!$C$8:$C$39,0),1) -> 30 | K29: =INDEX(lookups!$E$8:$E$39,MATCH($H29,lookups!$C$8:$C$39,0),1) -> 20 | L29: 0 | M29: TRUE | N29: FALSE | O29: 1 | Q29: 0 | S29: 0 | T29: 0 | U29: 0 | V29: 0 | W29: 0 | X29: 0 | Y29: 0 | Z29: 0 | AA29: 0 | AB29: 0 | AC29: 0 | AD29: 0 | AE29: 0 | AF29: 0 | AG29: 0 | AH29: 0 | AI29: 0 | AJ29: 0 | AK29: 0 | AL29: 0 | AM29: 0 | AN29: 0 | AO29: 0 | AP29: 0 | AQ29: 0 | AR29: 0 | AS29: 0 | AT29: 0 | AU29: 0 | AV29: 0 | AW29: 0 | AX29: 0 | AY29: 0 | AZ29: 0 | BA29: 0 | BB29: 0 | BC29: 0 | BD29: 0 | BE29: 0 | BF29: 0 | BG29: 0 | BH29: 0 | BI29: 0 | BJ29: 0 | BK29: 0 | BL29: 0 | BM29: 0 | BN29: 0 | BO29: 0 | BP29: 0 | BQ29: 0
C30: 23 | D30: item 23 | E30: Operating Expense | F30: 2016-12-01 | G30: 2016-12-31 | H30: user 1 | I30: Base | J30: =INDEX(lookups!$D$8:$D$39,MATCH($H30,lookups!$C$8:$C$39,0),1) -> 30 | K30: =INDEX(lookups!$E$8:$E$39,MATCH($H30,lookups!$C$8:$C$39,0),1) -> 20 | L30: 0 | M30: TRUE | N30: FALSE | O30: 1 | Q30: 0 | S30: 0 | T30: 0 | U30: 0 | V30: 0 | W30: 0 | X30: 0 | Y30: 0 | Z30: 0 | AA30: 0 | AB30: 0 | AC30: 0 | AD30: 0 | AE30: 0 | AF30: 0 | AG30: 0 | AH30: 0 | AI30: 0 | AJ30: 0 | AK30: 0 | AL30: 0 | AM30: 0 | AN30: 0 | AO30: 0 | AP30: 0 | AQ30: 0 | AR30: 0 | AS30: 0 | AT30: 0 | AU30: 0 | AV30: 0 | AW30: 0 | AX30: 0 | AY30: 0 | AZ30: 0 | BA30: 0 | BB30: 0 | BC30: 0 | BD30: 0 | BE30: 0 | BF30: 0 | BG30: 0 | BH30: 0 | BI30: 0 | BJ30: 0 | BK30: 0 | BL30: 0 | BM30: 0 | BN30: 0 | BO30: 0 | BP30: 0 | BQ30: 0
C31: 24 | D31: item 24 | E31: Operating Expense | F31: 2016-12-01 | G31: 2016-12-31 | H31: user 1 | I31: Base | J31: =INDEX(lookups!$D$8:$D$39,MATCH($H31,lookups!$C$8:$C$39,0),1) -> 30 | K31: =INDEX(lookups!$E$8:$E$39,MATCH($H31,lookups!$C$8:$C$39,0),1) -> 20 | L31: 0 | M31: TRUE | N31: FALSE | O31: 1 | Q31: 0 | S31: 0 | T31: 0 | U31: 0 | V31: 0 | W31: 0 | X31: 0 | Y31: 0 | Z31: 0 | AA31: 0 | AB31: 0 | AC31: 0 | AD31: 0 | AE31: 0 | AF31: 0 | AG31: 0 | AH31: 0 | AI31: 0 | AJ31: 0 | AK31: 0 | AL31: 0 | AM31: 0 | AN31: 0 | AO31: 0 | AP31: 0 | AQ31: 0 | AR31: 0 | AS31: 0 | AT31: 0 | AU31: 0 | AV31: 0 | AW31: 0 | AX31: 0 | AY31: 0 | AZ31: 0 | BA31: 0 | BB31: 0 | BC31: 0 | BD31: 0 | BE31: 0 | BF31: 0 | BG31: 0 | BH31: 0 | BI31: 0 | BJ31: 0 | BK31: 0 | BL31: 0 | BM31: 0 | BN31: 0 | BO31: 0 | BP31: 0 | BQ31: 0
C32: 25 | D32: item 25 | E32: Operating Expense | F32: 2016-12-01 | G32: 2016-12-31 | H32: user 1 | I32: Base | J32: =INDEX(lookups!$D$8:$D$39,MATCH($H32,lookups!$C$8:$C$39,0),1) -> 30 | K32: =INDEX(lookups!$E$8:$E$39,MATCH($H32,lookups!$C$8:$C$39,0),1) -> 20 | L32: 0 | M32: TRUE | N32: FALSE | O32: 1 | Q32: 0 | S32: 0 | T32: 0 | U32: 0 | V32: 0 | W32: 0 | X32: 0 | Y32: 0 | Z32: 0 | AA32: 0 | AB32: 0 | AC32: 0 | AD32: 0 | AE32: 0 | AF32: 0 | AG32: 0 | AH32: 0 | AI32: 0 | AJ32: 0 | AK32: 0 | AL32: 0 | AM32: 0 | AN32: 0 | AO32: 0 | AP32: 0 | AQ32: 0 | AR32: 0 | AS32: 0 | AT32: 0 | AU32: 0 | AV32: 0 | AW32: 0 | AX32: 0 | AY32: 0 | AZ32: 0 | BA32: 0 | BB32: 0 | BC32: 0 | BD32: 0 | BE32: 0 | BF32: 0 | BG32: 0 | BH32: 0 | BI32: 0 | BJ32: 0 | BK32: 0 | BL32: 0 | BM32: 0 | BN32: 0 | BO32: 0 | BP32: 0 | BQ32: 0
D33: ="Total "&D7 -> Total Item Title | N33: Exemption Exp: | O33: =2018+20 -> 2038 | P33: =SUM(P8:P32) -> 0 | Q33: 1000000 | S33: =SUM(S8:S32) -> 0 | T33: =SUM(T8:T32) -> 1000000 | U33: =SUM(U8:U32) -> 0 | V33: 0 | W33: 0 | X33: 0 | Y33: 0 | Z33: 0 | AA33: 0 | AB33: 0 | AC33: 0 | AD33: 0 | AE33: 0 | AF33: 0 | AG33: 0 | AH33: 0 | AI33: 0 | AJ33: 0 | AK33: 0 | AL33: 0 | AM33: 0 | AN33: 0 | AO33: 0 | AP33: 0 | AQ33: 0 | AR33: 0 | AS33: 0 | AT33: 0 | AU33: 0 | AV33: 0 | AW33: 0 | AX33: 0 | AY33: 0 | AZ33: 0 | BA33: 0 | BB33: 0 | BC33: 0 | BD33: 0 | BE33: 0 | BF33: 0 | BG33: 0 | BH33: 0 | BI33: 0 | BJ33: 0 | BK33: 0 | BL33: 0 | BM33: 0 | BN33: 0 | BO33: 0 | BP33: 0 | BQ33: 0
D36: Item Title | E36: Cash Flow Type | G36: CPVRR | S36: Revenue Requirement
C37: =C36+1 -> 1 | D37: =D8 -> item 1 | E37: =E8 -> Capital | G37: =RevReq!K12 -> 1119185.661 | S37: =RevReq!O12 -> 0 | T37: =RevReq!P12 -> 225735.3125 | U37: =RevReq!Q12 -> 199375.674 | V37: =RevReq!R12 -> 182639.0565 | W37: =RevReq!S12 -> 168823.5773 | X37: =RevReq!T12 -> 156103.5249 | Y37: =RevReq!U12 -> 144205.0428 | Z37: =RevReq!V12 -> 133949.7009 | AA37: =RevReq!W12 -> 124515.9292 | AB37: =RevReq!X12 -> 115082.1575 | AC37: =RevReq!Y12 -> 107511.3858 | AD37: =RevReq!Z12 -> 3726 | AE37: =RevReq!AA12 -> -1.265706066e-11 | AF37: =RevReq!AB12 -> -1.265706066e-11 | AG37: =RevReq!AC12 -> -1.265706066e-11 | AH37: =RevReq!AD12 -> -1.265706066e-11 | AI37: =RevReq!AE12 -> -1.265706066e-11 | AJ37: =RevReq!AF12 -> -1.265706066e-11 | AK37: =RevReq!AG12 -> -1.265706066e-11 | AL37: =RevReq!AH12 -> -1.265706066e-11 | AM37: =RevReq!AI12 -> -1.265706066e-11 | AN37: =RevReq!AJ12 -> -1.265706066e-11 | AO37: =RevReq!AK12 -> -1.265706066e-11 | AP37: =RevReq!AL12 -> -1.265706066e-11 | AQ37: =RevReq!AM12 -> -1.265706066e-11 | AR37: =RevReq!AN12 -> -1.265706066e-11 | AS37: =RevReq!AO12 -> -1.265706066e-11 | AT37: =RevReq!AP12 -> -1.265706066e-11 | AU37: =RevReq!AQ12 -> -1.265706066e-11 | AV37: =RevReq!AR12 -> -1.265706066e-11 | AW37: =RevReq!AS12 -> -1.265706066e-11 | AX37: =RevReq!AT12 -> -1.265706066e-11 | AY37: =RevReq!AU12 -> -1.265706066e-11 | AZ37: =RevReq!AV12 -> -1.265706066e-11 | BA37: =RevReq!AW12 -> -1.265706066e-11 | BB37: =RevReq!AX12 -> -1.265706066e-11 | BC37: =RevReq!AY12 -> -1.265706066e-11 | BD37: =RevReq!AZ12 -> -1.265706066e-11 | BE37: =RevReq!BA12 -> -1.265706066e-11 | BF37: =RevReq!BB12 -> -1.265706066e-11 | BG37: =RevReq!BC12 -> -1.265706066e-11 | BH37: =RevReq!BD12 -> -1.265706066e-11 | BI37: =RevReq!BE12 -> -1.265706066e-11 | BJ37: =RevReq!BF12 -> -1.265706066e-11 | BK37: =RevReq!BG12 -> -1.265706066e-11 | BL37: =RevReq!BH12 -> -1.265706066e-11 | BM37: =RevReq!BI12 -> -1.265706066e-11 | BN37: =RevReq!BJ12 -> -1.265706066e-11 | BO37: =RevReq!BK12 -> -1.265706066e-11 | BP37: =RevReq!BL12 -> -1.265706066e-11 | BQ37: =RevReq!BM12 -> -1.265706066e-11
C38: =C37+1 -> 2 | D38: =D9 -> item 2 | E38: Capital | G38: =RevReq!K13 -> 0 | S38: =RevReq!O13 -> 0 | T38: =RevReq!P13 -> 0 | U38: =RevReq!Q13 -> 0 | V38: =RevReq!R13 -> 0 | W38: =RevReq!S13 -> 0 | X38: =RevReq!T13 -> 0 | Y38: =RevReq!U13 -> 0 | Z38: =RevReq!V13 -> 0 | AA38: =RevReq!W13 -> 0 | AB38: =RevReq!X13 -> 0 | AC38: =RevReq!Y13 -> 0 | AD38: =RevReq!Z13 -> 0 | AE38: =RevReq!AA13 -> 0 | AF38: =RevReq!AB13 -> 0 | AG38: =RevReq!AC13 -> 0 | AH38: =RevReq!AD13 -> 0 | AI38: =RevReq!AE13 -> 0 | AJ38: =RevReq!AF13 -> 0 | AK38: =RevReq!AG13 -> 0 | AL38: =RevReq!AH13 -> 0 | AM38: =RevReq!AI13 -> 0 | AN38: =RevReq!AJ13 -> 0 | AO38: =RevReq!AK13 -> 0 | AP38: =RevReq!AL13 -> 0 | AQ38: =RevReq!AM13 -> 0 | AR38: =RevReq!AN13 -> 0 | AS38: =RevReq!AO13 -> 0 | AT38: =RevReq!AP13 -> 0 | AU38: =RevReq!AQ13 -> 0 | AV38: =RevReq!AR13 -> 0 | AW38: =RevReq!AS13 -> 0 | AX38: =RevReq!AT13 -> 0 | AY38: =RevReq!AU13 -> 0 | AZ38: =RevReq!AV13 -> 0 | BA38: =RevReq!AW13 -> 0 | BB38: =RevReq!AX13 -> 0 | BC38: =RevReq!AY13 -> 0 | BD38: =RevReq!AZ13 -> 0 | BE38: =RevReq!BA13 -> 0 | BF38: =RevReq!BB13 -> 0 | BG38: =RevReq!BC13 -> 0 | BH38: =RevReq!BD13 -> 0 | BI38: =RevReq!BE13 -> 0 | BJ38: =RevReq!BF13 -> 0 | BK38: =RevReq!BG13 -> 0 | BL38: =RevReq!BH13 -> 0 | BM38: =RevReq!BI13 -> 0 | BN38: =RevReq!BJ13 -> 0 | BO38: =RevReq!BK13 -> 0 | BP38: =RevReq!BL13 -> 0 | BQ38: =RevReq!BM13 -> 0
C39: 3 | D39: item 3 | E39: Capital | G39: =RevReq!K14 -> 0 | S39: =RevReq!O14 -> 0 | T39: =RevReq!P14 -> 0 | U39: =RevReq!Q14 -> 0 | V39: =RevReq!R14 -> 0 | W39: =RevReq!S14 -> 0 | X39: =RevReq!T14 -> 0 | Y39: =RevReq!U14 -> 0 | Z39: =RevReq!V14 -> 0 | AA39: =RevReq!W14 -> 0 | AB39: =RevReq!X14 -> 0 | AC39: =RevReq!Y14 -> 0 | AD39: =RevReq!Z14 -> 0 | AE39: =RevReq!AA14 -> 0 | AF39: =RevReq!AB14 -> 0 | AG39: =RevReq!AC14 -> 0 | AH39: =RevReq!AD14 -> 0 | AI39: =RevReq!AE14 -> 0 | AJ39: =RevReq!AF14 -> 0 | AK39: =RevReq!AG14 -> 0 | AL39: =RevReq!AH14 -> 0 | AM39: =RevReq!AI14 -> 0 | AN39: =RevReq!AJ14 -> 0 | AO39: =RevReq!AK14 -> 0 | AP39: =RevReq!AL14 -> 0 | AQ39: =RevReq!AM14 -> 0 | AR39: =RevReq!AN14 -> 0 | AS39: =RevReq!AO14 -> 0 | AT39: =RevReq!AP14 -> 0 | AU39: =RevReq!AQ14 -> 0 | AV39: =RevReq!AR14 -> 0 | AW39: =RevReq!AS14 -> 0 | AX39: =RevReq!AT14 -> 0 | AY39: =RevReq!AU14 -> 0 | AZ39: =RevReq!AV14 -> 0 | BA39: =RevReq!AW14 -> 0 | BB39: =RevReq!AX14 -> 0 | BC39: =RevReq!AY14 -> 0 | BD39: =RevReq!AZ14 -> 0 | BE39: =RevReq!BA14 -> 0 | BF39: =RevReq!BB14 -> 0 | BG39: =RevReq!BC14 -> 0 | BH39: =RevReq!BD14 -> 0 | BI39: =RevReq!BE14 -> 0 | BJ39: =RevReq!BF14 -> 0 | BK39: =RevReq!BG14 -> 0 | BL39: =RevReq!BH14 -> 0 | BM39: =RevReq!BI14 -> 0 | BN39: =RevReq!BJ14 -> 0 | BO39: =RevReq!BK14 -> 0 | BP39: =RevReq!BL14 -> 0 | BQ39: =RevReq!BM14 -> 0
C40: 4 | D40: item 4 | E40: Capital | G40: =RevReq!K15 -> 0 | S40: =RevReq!O15 -> 0 | T40: =RevReq!P15 -> 0 | U40: =RevReq!Q15 -> 0 | V40: =RevReq!R15 -> 0 | W40: =RevReq!S15 -> 0 | X40: =RevReq!T15 -> 0 | Y40: =RevReq!U15 -> 0 | Z40: =RevReq!V15 -> 0 | AA40: =RevReq!W15 -> 0 | AB40: =RevReq!X15 -> 0 | AC40: =RevReq!Y15 -> 0 | AD40: =RevReq!Z15 -> 0 | AE40: =RevReq!AA15 -> 0 | AF40: =RevReq!AB15 -> 0 | AG40: =RevReq!AC15 -> 0 | AH40: =RevReq!AD15 -> 0 | AI40: =RevReq!AE15 -> 0 | AJ40: =RevReq!AF15 -> 0 | AK40: =RevReq!AG15 -> 0 | AL40: =RevReq!AH15 -> 0 | AM40: =RevReq!AI15 -> 0 | AN40: =RevReq!AJ15 -> 0 | AO40: =RevReq!AK15 -> 0 | AP40: =RevReq!AL15 -> 0 | AQ40: =RevReq!AM15 -> 0 | AR40: =RevReq!AN15 -> 0 | AS40: =RevReq!AO15 -> 0 | AT40: =RevReq!AP15 -> 0 | AU40: =RevReq!AQ15 -> 0 | AV40: =RevReq!AR15 -> 0 | AW40: =RevReq!AS15 -> 0 | AX40: =RevReq!AT15 -> 0 | AY40: =RevReq!AU15 -> 0 | AZ40: =RevReq!AV15 -> 0 | BA40: =RevReq!AW15 -> 0 | BB40: =RevReq!AX15 -> 0 | BC40: =RevReq!AY15 -> 0 | BD40: =RevReq!AZ15 -> 0 | BE40: =RevReq!BA15 -> 0 | BF40: =RevReq!BB15 -> 0 | BG40: =RevReq!BC15 -> 0 | BH40: =RevReq!BD15 -> 0 | BI40: =RevReq!BE15 -> 0 | BJ40: =RevReq!BF15 -> 0 | BK40: =RevReq!BG15 -> 0 | BL40: =RevReq!BH15 -> 0 | BM40: =RevReq!BI15 -> 0 | BN40: =RevReq!BJ15 -> 0 | BO40: =RevReq!BK15 -> 0 | BP40: =RevReq!BL15 -> 0 | BQ40: =RevReq!BM15 -> 0
C41: 5 | D41: item 5 | E41: Capital | G41: =RevReq!K16 -> 0 | S41: =RevReq!O16 -> 0 | T41: =RevReq!P16 -> 0 | U41: =RevReq!Q16 -> 0 | V41: =RevReq!R16 -> 0 | W41: =RevReq!S16 -> 0 | X41: =RevReq!T16 -> 0 | Y41: =RevReq!U16 -> 0 | Z41: =RevReq!V16 -> 0 | AA41: =RevReq!W16 -> 0 | AB41: =RevReq!X16 -> 0 | AC41: =RevReq!Y16 -> 0 | AD41: =RevReq!Z16 -> 0 | AE41: =RevReq!AA16 -> 0 | AF41: =RevReq!AB16 -> 0 | AG41: =RevReq!AC16 -> 0 | AH41: =RevReq!AD16 -> 0 | AI41: =RevReq!AE16 -> 0 | AJ41: =RevReq!AF16 -> 0 | AK41: =RevReq!AG16 -> 0 | AL41: =RevReq!AH16 -> 0 | AM41: =RevReq!AI16 -> 0 | AN41: =RevReq!AJ16 -> 0 | AO41: =RevReq!AK16 -> 0 | AP41: =RevReq!AL16 -> 0 | AQ41: =RevReq!AM16 -> 0 | AR41: =RevReq!AN16 -> 0 | AS41: =RevReq!AO16 -> 0 | AT41: =RevReq!AP16 -> 0 | AU41: =RevReq!AQ16 -> 0 | AV41: =RevReq!AR16 -> 0 | AW41: =RevReq!AS16 -> 0 | AX41: =RevReq!AT16 -> 0 | AY41: =RevReq!AU16 -> 0 | AZ41: =RevReq!AV16 -> 0 | BA41: =RevReq!AW16 -> 0 | BB41: =RevReq!AX16 -> 0 | BC41: =RevReq!AY16 -> 0 | BD41: =RevReq!AZ16 -> 0 | BE41: =RevReq!BA16 -> 0 | BF41: =RevReq!BB16 -> 0 | BG41: =RevReq!BC16 -> 0 | BH41: =RevReq!BD16 -> 0 | BI41: =RevReq!BE16 -> 0 | BJ41: =RevReq!BF16 -> 0 | BK41: =RevReq!BG16 -> 0 | BL41: =RevReq!BH16 -> 0 | BM41: =RevReq!BI16 -> 0 | BN41: =RevReq!BJ16 -> 0 | BO41: =RevReq!BK16 -> 0 | BP41: =RevReq!BL16 -> 0 | BQ41: =RevReq!BM16 -> 0
C42: 6 | D42: item 6 | E42: Capital | G42: =RevReq!K17 -> 0 | S42: =RevReq!O17 -> 0 | T42: =RevReq!P17 -> 0 | U42: =RevReq!Q17 -> 0 | V42: =RevReq!R17 -> 0 | W42: =RevReq!S17 -> 0 | X42: =RevReq!T17 -> 0 | Y42: =RevReq!U17 -> 0 | Z42: =RevReq!V17 -> 0 | AA42: =RevReq!W17 -> 0 | AB42: =RevReq!X17 -> 0 | AC42: =RevReq!Y17 -> 0 | AD42: =RevReq!Z17 -> 0 | AE42: =RevReq!AA17 -> 0 | AF42: =RevReq!AB17 -> 0 | AG42: =RevReq!AC17 -> 0 | AH42: =RevReq!AD17 -> 0 | AI42: =RevReq!AE17 -> 0 | AJ42: =RevReq!AF17 -> 0 | AK42: =RevReq!AG17 -> 0 | AL42: =RevReq!AH17 -> 0 | AM42: =RevReq!AI17 -> 0 | AN42: =RevReq!AJ17 -> 0 | AO42: =RevReq!AK17 -> 0 | AP42: =RevReq!AL17 -> 0 | AQ42: =RevReq!AM17 -> 0 | AR42: =RevReq!AN17 -> 0 | AS42: =RevReq!AO17 -> 0 | AT42: =RevReq!AP17 -> 0 | AU42: =RevReq!AQ17 -> 0 | AV42: =RevReq!AR17 -> 0 | AW42: =RevReq!AS17 -> 0 | AX42: =RevReq!AT17 -> 0 | AY42: =RevReq!AU17 -> 0 | AZ42: =RevReq!AV17 -> 0 | BA42: =RevReq!AW17 -> 0 | BB42: =RevReq!AX17 -> 0 | BC42: =RevReq!AY17 -> 0 | BD42: =RevReq!AZ17 -> 0 | BE42: =RevReq!BA17 -> 0 | BF42: =RevReq!BB17 -> 0 | BG42: =RevReq!BC17 -> 0 | BH42: =RevReq!BD17 -> 0 | BI42: =RevReq!BE17 -> 0 | BJ42: =RevReq!BF17 -> 0 | BK42: =RevReq!BG17 -> 0 | BL42: =RevReq!BH17 -> 0 | BM42: =RevReq!BI17 -> 0 | BN42: =RevReq!BJ17 -> 0 | BO42: =RevReq!BK17 -> 0 | BP42: =RevReq!BL17 -> 0 | BQ42: =RevReq!BM17 -> 0
C43: 7 | D43: item 7 | E43: Capital | G43: =RevReq!K18 -> 0 | S43: =RevReq!O18 -> 0 | T43: =RevReq!P18 -> 0 | U43: =RevReq!Q18 -> 0 | V43: =RevReq!R18 -> 0 | W43: =RevReq!S18 -> 0 | X43: =RevReq!T18 -> 0 | Y43: =RevReq!U18 -> 0 | Z43: =RevReq!V18 -> 0 | AA43: =RevReq!W18 -> 0 | AB43: =RevReq!X18 -> 0 | AC43: =RevReq!Y18 -> 0 | AD43: =RevReq!Z18 -> 0 | AE43: =RevReq!AA18 -> 0 | AF43: =RevReq!AB18 -> 0 | AG43: =RevReq!AC18 -> 0 | AH43: =RevReq!AD18 -> 0 | AI43: =RevReq!AE18 -> 0 | AJ43: =RevReq!AF18 -> 0 | AK43: =RevReq!AG18 -> 0 | AL43: =RevReq!AH18 -> 0 | AM43: =RevReq!AI18 -> 0 | AN43: =RevReq!AJ18 -> 0 | AO43: =RevReq!AK18 -> 0 | AP43: =RevReq!AL18 -> 0 | AQ43: =RevReq!AM18 -> 0 | AR43: =RevReq!AN18 -> 0 | AS43: =RevReq!AO18 -> 0 | AT43: =RevReq!AP18 -> 0 | AU43: =RevReq!AQ18 -> 0 | AV43: =RevReq!AR18 -> 0 | AW43: =RevReq!AS18 -> 0 | AX43: =RevReq!AT18 -> 0 | AY43: =RevReq!AU18 -> 0 | AZ43: =RevReq!AV18 -> 0 | BA43: =RevReq!AW18 -> 0 | BB43: =RevReq!AX18 -> 0 | BC43: =RevReq!AY18 -> 0 | BD43: =RevReq!AZ18 -> 0 | BE43: =RevReq!BA18 -> 0 | BF43: =RevReq!BB18 -> 0 | BG43: =RevReq!BC18 -> 0 | BH43: =RevReq!BD18 -> 0 | BI43: =RevReq!BE18 -> 0 | BJ43: =RevReq!BF18 -> 0 | BK43: =RevReq!BG18 -> 0 | BL43: =RevReq!BH18 -> 0 | BM43: =RevReq!BI18 -> 0 | BN43: =RevReq!BJ18 -> 0 | BO43: =RevReq!BK18 -> 0 | BP43: =RevReq!BL18 -> 0 | BQ43: =RevReq!BM18 -> 0
C44: 8 | D44: item 8 | E44: Capital | G44: =RevReq!K19 -> 0 | S44: =RevReq!O19 -> 0 | T44: =RevReq!P19 -> 0 | U44: =RevReq!Q19 -> 0 | V44: =RevReq!R19 -> 0 | W44: =RevReq!S19 -> 0 | X44: =RevReq!T19 -> 0 | Y44: =RevReq!U19 -> 0 | Z44: =RevReq!V19 -> 0 | AA44: =RevReq!W19 -> 0 | AB44: =RevReq!X19 -> 0 | AC44: =RevReq!Y19 -> 0 | AD44: =RevReq!Z19 -> 0 | AE44: =RevReq!AA19 -> 0 | AF44: =RevReq!AB19 -> 0 | AG44: =RevReq!AC19 -> 0 | AH44: =RevReq!AD19 -> 0 | AI44: =RevReq!AE19 -> 0 | AJ44: =RevReq!AF19 -> 0 | AK44: =RevReq!AG19 -> 0 | AL44: =RevReq!AH19 -> 0 | AM44: =RevReq!AI19 -> 0 | AN44: =RevReq!AJ19 -> 0 | AO44: =RevReq!AK19 -> 0 | AP44: =RevReq!AL19 -> 0 | AQ44: =RevReq!AM19 -> 0 | AR44: =RevReq!AN19 -> 0 | AS44: =RevReq!AO19 -> 0 | AT44: =RevReq!AP19 -> 0 | AU44: =RevReq!AQ19 -> 0 | AV44: =RevReq!AR19 -> 0 | AW44: =RevReq!AS19 -> 0 | AX44: =RevReq!AT19 -> 0 | AY44: =RevReq!AU19 -> 0 | AZ44: =RevReq!AV19 -> 0 | BA44: =RevReq!AW19 -> 0 | BB44: =RevReq!AX19 -> 0 | BC44: =RevReq!AY19 -> 0 | BD44: =RevReq!AZ19 -> 0 | BE44: =RevReq!BA19 -> 0 | BF44: =RevReq!BB19 -> 0 | BG44: =RevReq!BC19 -> 0 | BH44: =RevReq!BD19 -> 0 | BI44: =RevReq!BE19 -> 0 | BJ44: =RevReq!BF19 -> 0 | BK44: =RevReq!BG19 -> 0 | BL44: =RevReq!BH19 -> 0 | BM44: =RevReq!BI19 -> 0 | BN44: =RevReq!BJ19 -> 0 | BO44: =RevReq!BK19 -> 0 | BP44: =RevReq!BL19 -> 0 | BQ44: =RevReq!BM19 -> 0
C45: 9 | D45: item 9 | E45: Capital | G45: =RevReq!K20 -> 0 | S45: =RevReq!O20 -> 0 | T45: =RevReq!P20 -> 0 | U45: =RevReq!Q20 -> 0 | V45: =RevReq!R20 -> 0 | W45: =RevReq!S20 -> 0 | X45: =RevReq!T20 -> 0 | Y45: =RevReq!U20 -> 0 | Z45: =RevReq!V20 -> 0 | AA45: =RevReq!W20 -> 0 | AB45: =RevReq!X20 -> 0 | AC45: =RevReq!Y20 -> 0 | AD45: =RevReq!Z20 -> 0 | AE45: =RevReq!AA20 -> 0 | AF45: =RevReq!AB20 -> 0 | AG45: =RevReq!AC20 -> 0 | AH45: =RevReq!AD20 -> 0 | AI45: =RevReq!AE20 -> 0 | AJ45: =RevReq!AF20 -> 0 | AK45: =RevReq!AG20 -> 0 | AL45: =RevReq!AH20 -> 0 | AM45: =RevReq!AI20 -> 0 | AN45: =RevReq!AJ20 -> 0 | AO45: =RevReq!AK20 -> 0 | AP45: =RevReq!AL20 -> 0 | AQ45: =RevReq!AM20 -> 0 | AR45: =RevReq!AN20 -> 0 | AS45: =RevReq!AO20 -> 0 | AT45: =RevReq!AP20 -> 0 | AU45: =RevReq!AQ20 -> 0 | AV45: =RevReq!AR20 -> 0 | AW45: =RevReq!AS20 -> 0 | AX45: =RevReq!AT20 -> 0 | AY45: =RevReq!AU20 -> 0 | AZ45: =RevReq!AV20 -> 0 | BA45: =RevReq!AW20 -> 0 | BB45: =RevReq!AX20 -> 0 | BC45: =RevReq!AY20 -> 0 | BD45: =RevReq!AZ20 -> 0 | BE45: =RevReq!BA20 -> 0 | BF45: =RevReq!BB20 -> 0 | BG45: =RevReq!BC20 -> 0 | BH45: =RevReq!BD20 -> 0 | BI45: =RevReq!BE20 -> 0 | BJ45: =RevReq!BF20 -> 0 | BK45: =RevReq!BG20 -> 0 | BL45: =RevReq!BH20 -> 0 | BM45: =RevReq!BI20 -> 0 | BN45: =RevReq!BJ20 -> 0 | BO45: =RevReq!BK20 -> 0 | BP45: =RevReq!BL20 -> 0 | BQ45: =RevReq!BM20 -> 0
C46: 10 | D46: item 10 | E46: Capital | G46: =RevReq!K21 -> 0 | S46: =RevReq!O21 -> 0 | T46: =RevReq!P21 -> 0 | U46: =RevReq!Q21 -> 0 | V46: =RevReq!R21 -> 0 | W46: =RevReq!S21 -> 0 | X46: =RevReq!T21 -> 0 | Y46: =RevReq!U21 -> 0 | Z46: =RevReq!V21 -> 0 | AA46: =RevReq!W21 -> 0 | AB46: =RevReq!X21 -> 0 | AC46: =RevReq!Y21 -> 0 | AD46: =RevReq!Z21 -> 0 | AE46: =RevReq!AA21 -> 0 | AF46: =RevReq!AB21 -> 0 | AG46: =RevReq!AC21 -> 0 | AH46: =RevReq!AD21 -> 0 | AI46: =RevReq!AE21 -> 0 | AJ46: =RevReq!AF21 -> 0 | AK46: =RevReq!AG21 -> 0 | AL46: =RevReq!AH21 -> 0 | AM46: =RevReq!AI21 -> 0 | AN46: =RevReq!AJ21 -> 0 | AO46: =RevReq!AK21 -> 0 | AP46: =RevReq!AL21 -> 0 | AQ46: =RevReq!AM21 -> 0 | AR46: =RevReq!AN21 -> 0 | AS46: =RevReq!AO21 -> 0 | AT46: =RevReq!AP21 -> 0 | AU46: =RevReq!AQ21 -> 0 | AV46: =RevReq!AR21 -> 0 | AW46: =RevReq!AS21 -> 0 | AX46: =RevReq!AT21 -> 0 | AY46: =RevReq!AU21 -> 0 | AZ46: =RevReq!AV21 -> 0 | BA46: =RevReq!AW21 -> 0 | BB46: =RevReq!AX21 -> 0 | BC46: =RevReq!AY21 -> 0 | BD46: =RevReq!AZ21 -> 0 | BE46: =RevReq!BA21 -> 0 | BF46: =RevReq!BB21 -> 0 | BG46: =RevReq!BC21 -> 0 | BH46: =RevReq!BD21 -> 0 | BI46: =RevReq!BE21 -> 0 | BJ46: =RevReq!BF21 -> 0 | BK46: =RevReq!BG21 -> 0 | BL46: =RevReq!BH21 -> 0 | BM46: =RevReq!BI21 -> 0 | BN46: =RevReq!BJ21 -> 0 | BO46: =RevReq!BK21 -> 0 | BP46: =RevReq!BL21 -> 0 | BQ46: =RevReq!BM21 -> 0
C47: 11 | D47: item 11 | E47: Operating Expense | G47: =RevReq!K22 -> 0 | S47: =RevReq!O22 -> 0 | T47: =RevReq!P22 -> 0 | U47: =RevReq!Q22 -> 0 | V47: =RevReq!R22 -> 0 | W47: =RevReq!S22 -> 0 | X47: =RevReq!T22 -> 0 | Y47: =RevReq!U22 -> 0 | Z47: =RevReq!V22 -> 0 | AA47: =RevReq!W22 -> 0 | AB47: =RevReq!X22 -> 0 | AC47: =RevReq!Y22 -> 0 | AD47: =RevReq!Z22 -> 0 | AE47: =RevReq!AA22 -> 0 | AF47: =RevReq!AB22 -> 0 | AG47: =RevReq!AC22 -> 0 | AH47: =RevReq!AD22 -> 0 | AI47: =RevReq!AE22 -> 0 | AJ47: =RevReq!AF22 -> 0 | AK47: =RevReq!AG22 -> 0 | AL47: =RevReq!AH22 -> 0 | AM47: =RevReq!AI22 -> 0 | AN47: =RevReq!AJ22 -> 0 | AO47: =RevReq!AK22 -> 0 | AP47: =RevReq!AL22 -> 0 | AQ47: =RevReq!AM22 -> 0 | AR47: =RevReq!AN22 -> 0 | AS47: =RevReq!AO22 -> 0 | AT47: =RevReq!AP22 -> 0 | AU47: =RevReq!AQ22 -> 0 | AV47: =RevReq!AR22 -> 0 | AW47: =RevReq!AS22 -> 0 | AX47: =RevReq!AT22 -> 0 | AY47: =RevReq!AU22 -> 0 | AZ47: =RevReq!AV22 -> 0 | BA47: =RevReq!AW22 -> 0 | BB47: =RevReq!AX22 -> 0 | BC47: =RevReq!AY22 -> 0 | BD47: =RevReq!AZ22 -> 0 | BE47: =RevReq!BA22 -> 0 | BF47: =RevReq!BB22 -> 0 | BG47: =RevReq!BC22 -> 0 | BH47: =RevReq!BD22 -> 0 | BI47: =RevReq!BE22 -> 0 | BJ47: =RevReq!BF22 -> 0 | BK47: =RevReq!BG22 -> 0 | BL47: =RevReq!BH22 -> 0 | BM47: =RevReq!BI22 -> 0 | BN47: =RevReq!BJ22 -> 0 | BO47: =RevReq!BK22 -> 0 | BP47: =RevReq!BL22 -> 0 | BQ47: =RevReq!BM22 -> 0
C48: 12 | D48: item 12 | E48: Operating Expense | G48: =RevReq!K23 -> 0 | S48: =RevReq!O23 -> 0 | T48: =RevReq!P23 -> 0 | U48: =RevReq!Q23 -> 0 | V48: =RevReq!R23 -> 0 | W48: =RevReq!S23 -> 0 | X48: =RevReq!T23 -> 0 | Y48: =RevReq!U23 -> 0 | Z48: =RevReq!V23 -> 0 | AA48: =RevReq!W23 -> 0 | AB48: =RevReq!X23 -> 0 | AC48: =RevReq!Y23 -> 0 | AD48: =RevReq!Z23 -> 0 | AE48: =RevReq!AA23 -> 0 | AF48: =RevReq!AB23 -> 0 | AG48: =RevReq!AC23 -> 0 | AH48: =RevReq!AD23 -> 0 | AI48: =RevReq!AE23 -> 0 | AJ48: =RevReq!AF23 -> 0 | AK48: =RevReq!AG23 -> 0 | AL48: =RevReq!AH23 -> 0 | AM48: =RevReq!AI23 -> 0 | AN48: =RevReq!AJ23 -> 0 | AO48: =RevReq!AK23 -> 0 | AP48: =RevReq!AL23 -> 0 | AQ48: =RevReq!AM23 -> 0 | AR48: =RevReq!AN23 -> 0 | AS48: =RevReq!AO23 -> 0 | AT48: =RevReq!AP23 -> 0 | AU48: =RevReq!AQ23 -> 0 | AV48: =RevReq!AR23 -> 0 | AW48: =RevReq!AS23 -> 0 | AX48: =RevReq!AT23 -> 0 | AY48: =RevReq!AU23 -> 0 | AZ48: =RevReq!AV23 -> 0 | BA48: =RevReq!AW23 -> 0 | BB48: =RevReq!AX23 -> 0 | BC48: =RevReq!AY23 -> 0 | BD48: =RevReq!AZ23 -> 0 | BE48: =RevReq!BA23 -> 0 | BF48: =RevReq!BB23 -> 0 | BG48: =RevReq!BC23 -> 0 | BH48: =RevReq!BD23 -> 0 | BI48: =RevReq!BE23 -> 0 | BJ48: =RevReq!BF23 -> 0 | BK48: =RevReq!BG23 -> 0 | BL48: =RevReq!BH23 -> 0 | BM48: =RevReq!BI23 -> 0 | BN48: =RevReq!BJ23 -> 0 | BO48: =RevReq!BK23 -> 0 | BP48: =RevReq!BL23 -> 0 | BQ48: =RevReq!BM23 -> 0
C49: 13 | D49: item 13 | E49: Operating Expense | G49: =RevReq!K24 -> 0 | S49: =RevReq!O24 -> 0 | T49: =RevReq!P24 -> 0 | U49: =RevReq!Q24 -> 0 | V49: =RevReq!R24 -> 0 | W49: =RevReq!S24 -> 0 | X49: =RevReq!T24 -> 0 | Y49: =RevReq!U24 -> 0 | Z49: =RevReq!V24 -> 0 | AA49: =RevReq!W24 -> 0 | AB49: =RevReq!X24 -> 0 | AC49: =RevReq!Y24 -> 0 | AD49: =RevReq!Z24 -> 0 | AE49: =RevReq!AA24 -> 0 | AF49: =RevReq!AB24 -> 0 | AG49: =RevReq!AC24 -> 0 | AH49: =RevReq!AD24 -> 0 | AI49: =RevReq!AE24 -> 0 | AJ49: =RevReq!AF24 -> 0 | AK49: =RevReq!AG24 -> 0 | AL49: =RevReq!AH24 -> 0 | AM49: =RevReq!AI24 -> 0 | AN49: =RevReq!AJ24 -> 0 | AO49: =RevReq!AK24 -> 0 | AP49: =RevReq!AL24 -> 0 | AQ49: =RevReq!AM24 -> 0 | AR49: =RevReq!AN24 -> 0 | AS49: =RevReq!AO24 -> 0 | AT49: =RevReq!AP24 -> 0 | AU49: =RevReq!AQ24 -> 0 | AV49: =RevReq!AR24 -> 0 | AW49: =RevReq!AS24 -> 0 | AX49: =RevReq!AT24 -> 0 | AY49: =RevReq!AU24 -> 0 | AZ49: =RevReq!AV24 -> 0 | BA49: =RevReq!AW24 -> 0 | BB49: =RevReq!AX24 -> 0 | BC49: =RevReq!AY24 -> 0 | BD49: =RevReq!AZ24 -> 0 | BE49: =RevReq!BA24 -> 0 | BF49: =RevReq!BB24 -> 0 | BG49: =RevReq!BC24 -> 0 | BH49: =RevReq!BD24 -> 0 | BI49: =RevReq!BE24 -> 0 | BJ49: =RevReq!BF24 -> 0 | BK49: =RevReq!BG24 -> 0 | BL49: =RevReq!BH24 -> 0 | BM49: =RevReq!BI24 -> 0 | BN49: =RevReq!BJ24 -> 0 | BO49: =RevReq!BK24 -> 0 | BP49: =RevReq!BL24 -> 0 | BQ49: =RevReq!BM24 -> 0
C50: 14 | D50: item 14 | E50: Operating Expense | G50: =RevReq!K25 -> 0 | S50: =RevReq!O25 -> 0 | T50: =RevReq!P25 -> 0 | U50: =RevReq!Q25 -> 0 | V50: =RevReq!R25 -> 0 | W50: =RevReq!S25 -> 0 | X50: =RevReq!T25 -> 0 | Y50: =RevReq!U25 -> 0 | Z50: =RevReq!V25 -> 0 | AA50: =RevReq!W25 -> 0 | AB50: =RevReq!X25 -> 0 | AC50: =RevReq!Y25 -> 0 | AD50: =RevReq!Z25 -> 0 | AE50: =RevReq!AA25 -> 0 | AF50: =RevReq!AB25 -> 0 | AG50: =RevReq!AC25 -> 0 | AH50: =RevReq!AD25 -> 0 | AI50: =RevReq!AE25 -> 0 | AJ50: =RevReq!AF25 -> 0 | AK50: =RevReq!AG25 -> 0 | AL50: =RevReq!AH25 -> 0 | AM50: =RevReq!AI25 -> 0 | AN50: =RevReq!AJ25 -> 0 | AO50: =RevReq!AK25 -> 0 | AP50: =RevReq!AL25 -> 0 | AQ50: =RevReq!AM25 -> 0 | AR50: =RevReq!AN25 -> 0 | AS50: =RevReq!AO25 -> 0 | AT50: =RevReq!AP25 -> 0 | AU50: =RevReq!AQ25 -> 0 | AV50: =RevReq!AR25 -> 0 | AW50: =RevReq!AS25 -> 0 | AX50: =RevReq!AT25 -> 0 | AY50: =RevReq!AU25 -> 0 | AZ50: =RevReq!AV25 -> 0 | BA50: =RevReq!AW25 -> 0 | BB50: =RevReq!AX25 -> 0 | BC50: =RevReq!AY25 -> 0 | BD50: =RevReq!AZ25 -> 0 | BE50: =RevReq!BA25 -> 0 | BF50: =RevReq!BB25 -> 0 | BG50: =RevReq!BC25 -> 0 | BH50: =RevReq!BD25 -> 0 | BI50: =RevReq!BE25 -> 0 | BJ50: =RevReq!BF25 -> 0 | BK50: =RevReq!BG25 -> 0 | BL50: =RevReq!BH25 -> 0 | BM50: =RevReq!BI25 -> 0 | BN50: =RevReq!BJ25 -> 0 | BO50: =RevReq!BK25 -> 0 | BP50: =RevReq!BL25 -> 0 | BQ50: =RevReq!BM25 -> 0
C51: 15 | D51: item 15 | E51: Operating Expense | G51: =RevReq!K26 -> 0 | S51: =RevReq!O26 -> 0 | T51: =RevReq!P26 -> 0 | U51: =RevReq!Q26 -> 0 | V51: =RevReq!R26 -> 0 | W51: =RevReq!S26 -> 0 | X51: =RevReq!T26 -> 0 | Y51: =RevReq!U26 -> 0 | Z51: =RevReq!V26 -> 0 | AA51: =RevReq!W26 -> 0 | AB51: =RevReq!X26 -> 0 | AC51: =RevReq!Y26 -> 0 | AD51: =RevReq!Z26 -> 0 | AE51: =RevReq!AA26 -> 0 | AF51: =RevReq!AB26 -> 0 | AG51: =RevReq!AC26 -> 0 | AH51: =RevReq!AD26 -> 0 | AI51: =RevReq!AE26 -> 0 | AJ51: =RevReq!AF26 -> 0 | AK51: =RevReq!AG26 -> 0 | AL51: =RevReq!AH26 -> 0 | AM51: =RevReq!AI26 -> 0 | AN51: =RevReq!AJ26 -> 0 | AO51: =RevReq!AK26 -> 0 | AP51: =RevReq!AL26 -> 0 | AQ51: =RevReq!AM26 -> 0 | AR51: =RevReq!AN26 -> 0 | AS51: =RevReq!AO26 -> 0 | AT51: =RevReq!AP26 -> 0 | AU51: =RevReq!AQ26 -> 0 | AV51: =RevReq!AR26 -> 0 | AW51: =RevReq!AS26 -> 0 | AX51: =RevReq!AT26 -> 0 | AY51: =RevReq!AU26 -> 0 | AZ51: =RevReq!AV26 -> 0 | BA51: =RevReq!AW26 -> 0 | BB51: =RevReq!AX26 -> 0 | BC51: =RevReq!AY26 -> 0 | BD51: =RevReq!AZ26 -> 0 | BE51: =RevReq!BA26 -> 0 | BF51: =RevReq!BB26 -> 0 | BG51: =RevReq!BC26 -> 0 | BH51: =RevReq!BD26 -> 0 | BI51: =RevReq!BE26 -> 0 | BJ51: =RevReq!BF26 -> 0 | BK51: =RevReq!BG26 -> 0 | BL51: =RevReq!BH26 -> 0 | BM51: =RevReq!BI26 -> 0 | BN51: =RevReq!BJ26 -> 0 | BO51: =RevReq!BK26 -> 0 | BP51: =RevReq!BL26 -> 0 | BQ51: =RevReq!BM26 -> 0
C52: 16 | D52: item 16 | E52: Operating Expense | G52: =RevReq!K27 -> 0 | S52: =RevReq!O27 -> 0 | T52: =RevReq!P27 -> 0 | U52: =RevReq!Q27 -> 0 | V52: =RevReq!R27 -> 0 | W52: =RevReq!S27 -> 0 | X52: =RevReq!T27 -> 0 | Y52: =RevReq!U27 -> 0 | Z52: =RevReq!V27 -> 0 | AA52: =RevReq!W27 -> 0 | AB52: =RevReq!X27 -> 0 | AC52: =RevReq!Y27 -> 0 | AD52: =RevReq!Z27 -> 0 | AE52: =RevReq!AA27 -> 0 | AF52: =RevReq!AB27 -> 0 | AG52: =RevReq!AC27 -> 0 | AH52: =RevReq!AD27 -> 0 | AI52: =RevReq!AE27 -> 0 | AJ52: =RevReq!AF27 -> 0 | AK52: =RevReq!AG27 -> 0 | AL52: =RevReq!AH27 -> 0 | AM52: =RevReq!AI27 -> 0 | AN52: =RevReq!AJ27 -> 0 | AO52: =RevReq!AK27 -> 0 | AP52: =RevReq!AL27 -> 0 | AQ52: =RevReq!AM27 -> 0 | AR52: =RevReq!AN27 -> 0 | AS52: =RevReq!AO27 -> 0 | AT52: =RevReq!AP27 -> 0 | AU52: =RevReq!AQ27 -> 0 | AV52: =RevReq!AR27 -> 0 | AW52: =RevReq!AS27 -> 0 | AX52: =RevReq!AT27 -> 0 | AY52: =RevReq!AU27 -> 0 | AZ52: =RevReq!AV27 -> 0 | BA52: =RevReq!AW27 -> 0 | BB52: =RevReq!AX27 -> 0 | BC52: =RevReq!AY27 -> 0 | BD52: =RevReq!AZ27 -> 0 | BE52: =RevReq!BA27 -> 0 | BF52: =RevReq!BB27 -> 0 | BG52: =RevReq!BC27 -> 0 | BH52: =RevReq!BD27 -> 0 | BI52: =RevReq!BE27 -> 0 | BJ52: =RevReq!BF27 -> 0 | BK52: =RevReq!BG27 -> 0 | BL52: =RevReq!BH27 -> 0 | BM52: =RevReq!BI27 -> 0 | BN52: =RevReq!BJ27 -> 0 | BO52: =RevReq!BK27 -> 0 | BP52: =RevReq!BL27 -> 0 | BQ52: =RevReq!BM27 -> 0
C53: 17 | D53: item 17 | E53: Operating Expense | G53: =RevReq!K28 -> 0 | S53: =RevReq!O28 -> 0 | T53: =RevReq!P28 -> 0 | U53: =RevReq!Q28 -> 0 | V53: =RevReq!R28 -> 0 | W53: =RevReq!S28 -> 0 | X53: =RevReq!T28 -> 0 | Y53: =RevReq!U28 -> 0 | Z53: =RevReq!V28 -> 0 | AA53: =RevReq!W28 -> 0 | AB53: =RevReq!X28 -> 0 | AC53: =RevReq!Y28 -> 0 | AD53: =RevReq!Z28 -> 0 | AE53: =RevReq!AA28 -> 0 | AF53: =RevReq!AB28 -> 0 | AG53: =RevReq!AC28 -> 0 | AH53: =RevReq!AD28 -> 0 | AI53: =RevReq!AE28 -> 0 | AJ53: =RevReq!AF28 -> 0 | AK53: =RevReq!AG28 -> 0 | AL53: =RevReq!AH28 -> 0 | AM53: =RevReq!AI28 -> 0 | AN53: =RevReq!AJ28 -> 0 | AO53: =RevReq!AK28 -> 0 | AP53: =RevReq!AL28 -> 0 | AQ53: =RevReq!AM28 -> 0 | AR53: =RevReq!AN28 -> 0 | AS53: =RevReq!AO28 -> 0 | AT53: =RevReq!AP28 -> 0 | AU53: =RevReq!AQ28 -> 0 | AV53: =RevReq!AR28 -> 0 | AW53: =RevReq!AS28 -> 0 | AX53: =RevReq!AT28 -> 0 | AY53: =RevReq!AU28 -> 0 | AZ53: =RevReq!AV28 -> 0 | BA53: =RevReq!AW28 -> 0 | BB53: =RevReq!AX28 -> 0 | BC53: =RevReq!AY28 -> 0 | BD53: =RevReq!AZ28 -> 0 | BE53: =RevReq!BA28 -> 0 | BF53: =RevReq!BB28 -> 0 | BG53: =RevReq!BC28 -> 0 | BH53: =RevReq!BD28 -> 0 | BI53: =RevReq!BE28 -> 0 | BJ53: =RevReq!BF28 -> 0 | BK53: =RevReq!BG28 -> 0 | BL53: =RevReq!BH28 -> 0 | BM53: =RevReq!BI28 -> 0 | BN53: =RevReq!BJ28 -> 0 | BO53: =RevReq!BK28 -> 0 | BP53: =RevReq!BL28 -> 0 | BQ53: =RevReq!BM28 -> 0
C54: 18 | D54: item 18 | E54: Operating Expense | G54: =RevReq!K29 -> 0 | S54: =RevReq!O29 -> 0 | T54: =RevReq!P29 -> 0 | U54: =RevReq!Q29 -> 0 | V54: =RevReq!R29 -> 0 | W54: =RevReq!S29 -> 0 | X54: =RevReq!T29 -> 0 | Y54: =RevReq!U29 -> 0 | Z54: =RevReq!V29 -> 0 | AA54: =RevReq!W29 -> 0 | AB54: =RevReq!X29 -> 0 | AC54: =RevReq!Y29 -> 0 | AD54: =RevReq!Z29 -> 0 | AE54: =RevReq!AA29 -> 0 | AF54: =RevReq!AB29 -> 0 | AG54: =RevReq!AC29 -> 0 | AH54: =RevReq!AD29 -> 0 | AI54: =RevReq!AE29 -> 0 | AJ54: =RevReq!AF29 -> 0 | AK54: =RevReq!AG29 -> 0 | AL54: =RevReq!AH29 -> 0 | AM54: =RevReq!AI29 -> 0 | AN54: =RevReq!AJ29 -> 0 | AO54: =RevReq!AK29 -> 0 | AP54: =RevReq!AL29 -> 0 | AQ54: =RevReq!AM29 -> 0 | AR54: =RevReq!AN29 -> 0 | AS54: =RevReq!AO29 -> 0 | AT54: =RevReq!AP29 -> 0 | AU54: =RevReq!AQ29 -> 0 | AV54: =RevReq!AR29 -> 0 | AW54: =RevReq!AS29 -> 0 | AX54: =RevReq!AT29 -> 0 | AY54: =RevReq!AU29 -> 0 | AZ54: =RevReq!AV29 -> 0 | BA54: =RevReq!AW29 -> 0 | BB54: =RevReq!AX29 -> 0 | BC54: =RevReq!AY29 -> 0 | BD54: =RevReq!AZ29 -> 0 | BE54: =RevReq!BA29 -> 0 | BF54: =RevReq!BB29 -> 0 | BG54: =RevReq!BC29 -> 0 | BH54: =RevReq!BD29 -> 0 | BI54: =RevReq!BE29 -> 0 | BJ54: =RevReq!BF29 -> 0 | BK54: =RevReq!BG29 -> 0 | BL54: =RevReq!BH29 -> 0 | BM54: =RevReq!BI29 -> 0 | BN54: =RevReq!BJ29 -> 0 | BO54: =RevReq!BK29 -> 0 | BP54: =RevReq!BL29 -> 0 | BQ54: =RevReq!BM29 -> 0
C55: 19 | D55: item 19 | E55: Operating Expense | G55: =RevReq!K30 -> 0 | S55: =RevReq!O30 -> 0 | T55: =RevReq!P30 -> 0 | U55: =RevReq!Q30 -> 0 | V55: =RevReq!R30 -> 0 | W55: =RevReq!S30 -> 0 | X55: =RevReq!T30 -> 0 | Y55: =RevReq!U30 -> 0 | Z55: =RevReq!V30 -> 0 | AA55: =RevReq!W30 -> 0 | AB55: =RevReq!X30 -> 0 | AC55: =RevReq!Y30 -> 0 | AD55: =RevReq!Z30 -> 0 | AE55: =RevReq!AA30 -> 0 | AF55: =RevReq!AB30 -> 0 | AG55: =RevReq!AC30 -> 0 | AH55: =RevReq!AD30 -> 0 | AI55: =RevReq!AE30 -> 0 | AJ55: =RevReq!AF30 -> 0 | AK55: =RevReq!AG30 -> 0 | AL55: =RevReq!AH30 -> 0 | AM55: =RevReq!AI30 -> 0 | AN55: =RevReq!AJ30 -> 0 | AO55: =RevReq!AK30 -> 0 | AP55: =RevReq!AL30 -> 0 | AQ55: =RevReq!AM30 -> 0 | AR55: =RevReq!AN30 -> 0 | AS55: =RevReq!AO30 -> 0 | AT55: =RevReq!AP30 -> 0 | AU55: =RevReq!AQ30 -> 0 | AV55: =RevReq!AR30 -> 0 | AW55: =RevReq!AS30 -> 0 | AX55: =RevReq!AT30 -> 0 | AY55: =RevReq!AU30 -> 0 | AZ55: =RevReq!AV30 -> 0 | BA55: =RevReq!AW30 -> 0 | BB55: =RevReq!AX30 -> 0 | BC55: =RevReq!AY30 -> 0 | BD55: =RevReq!AZ30 -> 0 | BE55: =RevReq!BA30 -> 0 | BF55: =RevReq!BB30 -> 0 | BG55: =RevReq!BC30 -> 0 | BH55: =RevReq!BD30 -> 0 | BI55: =RevReq!BE30 -> 0 | BJ55: =RevReq!BF30 -> 0 | BK55: =RevReq!BG30 -> 0 | BL55: =RevReq!BH30 -> 0 | BM55: =RevReq!BI30 -> 0 | BN55: =RevReq!BJ30 -> 0 | BO55: =RevReq!BK30 -> 0 | BP55: =RevReq!BL30 -> 0 | BQ55: =RevReq!BM30 -> 0
C56: 20 | D56: item 20 | E56: Operating Expense | G56: =RevReq!K31 -> 0 | S56: =RevReq!O31 -> 0 | T56: =RevReq!P31 -> 0 | U56: =RevReq!Q31 -> 0 | V56: =RevReq!R31 -> 0 | W56: =RevReq!S31 -> 0 | X56: =RevReq!T31 -> 0 | Y56: =RevReq!U31 -> 0 | Z56: =RevReq!V31 -> 0 | AA56: =RevReq!W31 -> 0 | AB56: =RevReq!X31 -> 0 | AC56: =RevReq!Y31 -> 0 | AD56: =RevReq!Z31 -> 0 | AE56: =RevReq!AA31 -> 0 | AF56: =RevReq!AB31 -> 0 | AG56: =RevReq!AC31 -> 0 | AH56: =RevReq!AD31 -> 0 | AI56: =RevReq!AE31 -> 0 | AJ56: =RevReq!AF31 -> 0 | AK56: =RevReq!AG31 -> 0 | AL56: =RevReq!AH31 -> 0 | AM56: =RevReq!AI31 -> 0 | AN56: =RevReq!AJ31 -> 0 | AO56: =RevReq!AK31 -> 0 | AP56: =RevReq!AL31 -> 0 | AQ56: =RevReq!AM31 -> 0 | AR56: =RevReq!AN31 -> 0 | AS56: =RevReq!AO31 -> 0 | AT56: =RevReq!AP31 -> 0 | AU56: =RevReq!AQ31 -> 0 | AV56: =RevReq!AR31 -> 0 | AW56: =RevReq!AS31 -> 0 | AX56: =RevReq!AT31 -> 0 | AY56: =RevReq!AU31 -> 0 | AZ56: =RevReq!AV31 -> 0 | BA56: =RevReq!AW31 -> 0 | BB56: =RevReq!AX31 -> 0 | BC56: =RevReq!AY31 -> 0 | BD56: =RevReq!AZ31 -> 0 | BE56: =RevReq!BA31 -> 0 | BF56: =RevReq!BB31 -> 0 | BG56: =RevReq!BC31 -> 0 | BH56: =RevReq!BD31 -> 0 | BI56: =RevReq!BE31 -> 0 | BJ56: =RevReq!BF31 -> 0 | BK56: =RevReq!BG31 -> 0 | BL56: =RevReq!BH31 -> 0 | BM56: =RevReq!BI31 -> 0 | BN56: =RevReq!BJ31 -> 0 | BO56: =RevReq!BK31 -> 0 | BP56: =RevReq!BL31 -> 0 | BQ56: =RevReq!BM31 -> 0
C57: 21 | D57: item 21 | E57: Operating Expense | G57: =RevReq!K32 -> 0 | S57: =RevReq!O32 -> 0 | T57: =RevReq!P32 -> 0 | U57: =RevReq!Q32 -> 0 | V57: =RevReq!R32 -> 0 | W57: =RevReq!S32 -> 0 | X57: =RevReq!T32 -> 0 | Y57: =RevReq!U32 -> 0 | Z57: =RevReq!V32 -> 0 | AA57: =RevReq!W32 -> 0 | AB57: =RevReq!X32 -> 0 | AC57: =RevReq!Y32 -> 0 | AD57: =RevReq!Z32 -> 0 | AE57: =RevReq!AA32 -> 0 | AF57: =RevReq!AB32 -> 0 | AG57: =RevReq!AC32 -> 0 | AH57: =RevReq!AD32 -> 0 | AI57: =RevReq!AE32 -> 0 | AJ57: =RevReq!AF32 -> 0 | AK57: =RevReq!AG32 -> 0 | AL57: =RevReq!AH32 -> 0 | AM57: =RevReq!AI32 -> 0 | AN57: =RevReq!AJ32 -> 0 | AO57: =RevReq!AK32 -> 0 | AP57: =RevReq!AL32 -> 0 | AQ57: =RevReq!AM32 -> 0 | AR57: =RevReq!AN32 -> 0 | AS57: =RevReq!AO32 -> 0 | AT57: =RevReq!AP32 -> 0 | AU57: =RevReq!AQ32 -> 0 | AV57: =RevReq!AR32 -> 0 | AW57: =RevReq!AS32 -> 0 | AX57: =RevReq!AT32 -> 0 | AY57: =RevReq!AU32 -> 0 | AZ57: =RevReq!AV32 -> 0 | BA57: =RevReq!AW32 -> 0 | BB57: =RevReq!AX32 -> 0 | BC57: =RevReq!AY32 -> 0 | BD57: =RevReq!AZ32 -> 0 | BE57: =RevReq!BA32 -> 0 | BF57: =RevReq!BB32 -> 0 | BG57: =RevReq!BC32 -> 0 | BH57: =RevReq!BD32 -> 0 | BI57: =RevReq!BE32 -> 0 | BJ57: =RevReq!BF32 -> 0 | BK57: =RevReq!BG32 -> 0 | BL57: =RevReq!BH32 -> 0 | BM57: =RevReq!BI32 -> 0 | BN57: =RevReq!BJ32 -> 0 | BO57: =RevReq!BK32 -> 0 | BP57: =RevReq!BL32 -> 0 | BQ57: =RevReq!BM32 -> 0
C58: 22 | D58: item 22 | E58: Operating Expense | G58: =RevReq!K33 -> 0 | S58: =RevReq!O33 -> 0 | T58: =RevReq!P33 -> 0 | U58: =RevReq!Q33 -> 0 | V58: =RevReq!R33 -> 0 | W58: =RevReq!S33 -> 0 | X58: =RevReq!T33 -> 0 | Y58: =RevReq!U33 -> 0 | Z58: =RevReq!V33 -> 0 | AA58: =RevReq!W33 -> 0 | AB58: =RevReq!X33 -> 0 | AC58: =RevReq!Y33 -> 0 | AD58: =RevReq!Z33 -> 0 | AE58: =RevReq!AA33 -> 0 | AF58: =RevReq!AB33 -> 0 | AG58: =RevReq!AC33 -> 0 | AH58: =RevReq!AD33 -> 0 | AI58: =RevReq!AE33 -> 0 | AJ58: =RevReq!AF33 -> 0 | AK58: =RevReq!AG33 -> 0 | AL58: =RevReq!AH33 -> 0 | AM58: =RevReq!AI33 -> 0 | AN58: =RevReq!AJ33 -> 0 | AO58: =RevReq!AK33 -> 0 | AP58: =RevReq!AL33 -> 0 | AQ58: =RevReq!AM33 -> 0 | AR58: =RevReq!AN33 -> 0 | AS58: =RevReq!AO33 -> 0 | AT58: =RevReq!AP33 -> 0 | AU58: =RevReq!AQ33 -> 0 | AV58: =RevReq!AR33 -> 0 | AW58: =RevReq!AS33 -> 0 | AX58: =RevReq!AT33 -> 0 | AY58: =RevReq!AU33 -> 0 | AZ58: =RevReq!AV33 -> 0 | BA58: =RevReq!AW33 -> 0 | BB58: =RevReq!AX33 -> 0 | BC58: =RevReq!AY33 -> 0 | BD58: =RevReq!AZ33 -> 0 | BE58: =RevReq!BA33 -> 0 | BF58: =RevReq!BB33 -> 0 | BG58: =RevReq!BC33 -> 0 | BH58: =RevReq!BD33 -> 0 | BI58: =RevReq!BE33 -> 0 | BJ58: =RevReq!BF33 -> 0 | BK58: =RevReq!BG33 -> 0 | BL58: =RevReq!BH33 -> 0 | BM58: =RevReq!BI33 -> 0 | BN58: =RevReq!BJ33 -> 0 | BO58: =RevReq!BK33 -> 0 | BP58: =RevReq!BL33 -> 0 | BQ58: =RevReq!BM33 -> 0
C59: 23 | D59: item 23 | E59: Operating Expense | G59: =RevReq!K34 -> 0 | S59: =RevReq!O34 -> 0 | T59: =RevReq!P34 -> 0 | U59: =RevReq!Q34 -> 0 | V59: =RevReq!R34 -> 0 | W59: =RevReq!S34 -> 0 | X59: =RevReq!T34 -> 0 | Y59: =RevReq!U34 -> 0 | Z59: =RevReq!V34 -> 0 | AA59: =RevReq!W34 -> 0 | AB59: =RevReq!X34 -> 0 | AC59: =RevReq!Y34 -> 0 | AD59: =RevReq!Z34 -> 0 | AE59: =RevReq!AA34 -> 0 | AF59: =RevReq!AB34 -> 0 | AG59: =RevReq!AC34 -> 0 | AH59: =RevReq!AD34 -> 0 | AI59: =RevReq!AE34 -> 0 | AJ59: =RevReq!AF34 -> 0 | AK59: =RevReq!AG34 -> 0 | AL59: =RevReq!AH34 -> 0 | AM59: =RevReq!AI34 -> 0 | AN59: =RevReq!AJ34 -> 0 | AO59: =RevReq!AK34 -> 0 | AP59: =RevReq!AL34 -> 0 | AQ59: =RevReq!AM34 -> 0 | AR59: =RevReq!AN34 -> 0 | AS59: =RevReq!AO34 -> 0 | AT59: =RevReq!AP34 -> 0 | AU59: =RevReq!AQ34 -> 0 | AV59: =RevReq!AR34 -> 0 | AW59: =RevReq!AS34 -> 0 | AX59: =RevReq!AT34 -> 0 | AY59: =RevReq!AU34 -> 0 | AZ59: =RevReq!AV34 -> 0 | BA59: =RevReq!AW34 -> 0 | BB59: =RevReq!AX34 -> 0 | BC59: =RevReq!AY34 -> 0 | BD59: =RevReq!AZ34 -> 0 | BE59: =RevReq!BA34 -> 0 | BF59: =RevReq!BB34 -> 0 | BG59: =RevReq!BC34 -> 0 | BH59: =RevReq!BD34 -> 0 | BI59: =RevReq!BE34 -> 0 | BJ59: =RevReq!BF34 -> 0 | BK59: =RevReq!BG34 -> 0 | BL59: =RevReq!BH34 -> 0 | BM59: =RevReq!BI34 -> 0 | BN59: =RevReq!BJ34 -> 0 | BO59: =RevReq!BK34 -> 0 | BP59: =RevReq!BL34 -> 0 | BQ59: =RevReq!BM34 -> 0
C60: 24 | D60: item 24 | E60: Operating Expense | G60: =RevReq!K35 -> 0 | S60: =RevReq!O35 -> 0 | T60: =RevReq!P35 -> 0 | U60: =RevReq!Q35 -> 0 | V60: =RevReq!R35 -> 0 | W60: =RevReq!S35 -> 0 | X60: =RevReq!T35 -> 0 | Y60: =RevReq!U35 -> 0 | Z60: =RevReq!V35 -> 0 | AA60: =RevReq!W35 -> 0 | AB60: =RevReq!X35 -> 0 | AC60: =RevReq!Y35 -> 0 | AD60: =RevReq!Z35 -> 0 | AE60: =RevReq!AA35 -> 0 | AF60: =RevReq!AB35 -> 0 | AG60: =RevReq!AC35 -> 0 | AH60: =RevReq!AD35 -> 0 | AI60: =RevReq!AE35 -> 0 | AJ60: =RevReq!AF35 -> 0 | AK60: =RevReq!AG35 -> 0 | AL60: =RevReq!AH35 -> 0 | AM60: =RevReq!AI35 -> 0 | AN60: =RevReq!AJ35 -> 0 | AO60: =RevReq!AK35 -> 0 | AP60: =RevReq!AL35 -> 0 | AQ60: =RevReq!AM35 -> 0 | AR60: =RevReq!AN35 -> 0 | AS60: =RevReq!AO35 -> 0 | AT60: =RevReq!AP35 -> 0 | AU60: =RevReq!AQ35 -> 0 | AV60: =RevReq!AR35 -> 0 | AW60: =RevReq!AS35 -> 0 | AX60: =RevReq!AT35 -> 0 | AY60: =RevReq!AU35 -> 0 | AZ60: =RevReq!AV35 -> 0 | BA60: =RevReq!AW35 -> 0 | BB60: =RevReq!AX35 -> 0 | BC60: =RevReq!AY35 -> 0 | BD60: =RevReq!AZ35 -> 0 | BE60: =RevReq!BA35 -> 0 | BF60: =RevReq!BB35 -> 0 | BG60: =RevReq!BC35 -> 0 | BH60: =RevReq!BD35 -> 0 | BI60: =RevReq!BE35 -> 0 | BJ60: =RevReq!BF35 -> 0 | BK60: =RevReq!BG35 -> 0 | BL60: =RevReq!BH35 -> 0 | BM60: =RevReq!BI35 -> 0 | BN60: =RevReq!BJ35 -> 0 | BO60: =RevReq!BK35 -> 0 | BP60: =RevReq!BL35 -> 0 | BQ60: =RevReq!BM35 -> 0
C61: 25 | D61: item 25 | E61: Operating Expense | G61: =RevReq!K36 -> 0 | S61: =RevReq!O36 -> 0 | T61: =RevReq!P36 -> 0 | U61: =RevReq!Q36 -> 0 | V61: =RevReq!R36 -> 0 | W61: =RevReq!S36 -> 0 | X61: =RevReq!T36 -> 0 | Y61: =RevReq!U36 -> 0 | Z61: =RevReq!V36 -> 0 | AA61: =RevReq!W36 -> 0 | AB61: =RevReq!X36 -> 0 | AC61: =RevReq!Y36 -> 0 | AD61: =RevReq!Z36 -> 0 | AE61: =RevReq!AA36 -> 0 | AF61: =RevReq!AB36 -> 0 | AG61: =RevReq!AC36 -> 0 | AH61: =RevReq!AD36 -> 0 | AI61: =RevReq!AE36 -> 0 | AJ61: =RevReq!AF36 -> 0 | AK61: =RevReq!AG36 -> 0 | AL61: =RevReq!AH36 -> 0 | AM61: =RevReq!AI36 -> 0 | AN61: =RevReq!AJ36 -> 0 | AO61: =RevReq!AK36 -> 0 | AP61: =RevReq!AL36 -> 0 | AQ61: =RevReq!AM36 -> 0 | AR61: =RevReq!AN36 -> 0 | AS61: =RevReq!AO36 -> 0 | AT61: =RevReq!AP36 -> 0 | AU61: =RevReq!AQ36 -> 0 | AV61: =RevReq!AR36 -> 0 | AW61: =RevReq!AS36 -> 0 | AX61: =RevReq!AT36 -> 0 | AY61: =RevReq!AU36 -> 0 | AZ61: =RevReq!AV36 -> 0 | BA61: =RevReq!AW36 -> 0 | BB61: =RevReq!AX36 -> 0 | BC61: =RevReq!AY36 -> 0 | BD61: =RevReq!AZ36 -> 0 | BE61: =RevReq!BA36 -> 0 | BF61: =RevReq!BB36 -> 0 | BG61: =RevReq!BC36 -> 0 | BH61: =RevReq!BD36 -> 0 | BI61: =RevReq!BE36 -> 0 | BJ61: =RevReq!BF36 -> 0 | BK61: =RevReq!BG36 -> 0 | BL61: =RevReq!BH36 -> 0 | BM61: =RevReq!BI36 -> 0 | BN61: =RevReq!BJ36 -> 0 | BO61: =RevReq!BK36 -> 0 | BP61: =RevReq!BL36 -> 0 | BQ61: =RevReq!BM36 -> 0
D62: Total | G62: =SUM(G37:G61) -> 1119185.661 | S62: =SUM(S37:S61) -> 0 | T62: =SUM(T37:T61) -> 225735.3125 | U62: 199375.674 | V62: 182639.0565 | W62: 168823.5773 | X62: 156103.5249 | Y62: 144205.0428 | Z62: 133949.7009 | AA62: 124515.9292 | AB62: 115082.1575 | AC62: 107511.3858 | AD62: 3726 | AE62: -1.265706066e-11 | AF62: -1.265706066e-11 | AG62: -1.265706066e-11 | AH62: -1.265706066e-11 | AI62: -1.265706066e-11 | AJ62: -1.265706066e-11 | AK62: -1.265706066e-11 | AL62: -1.265706066e-11 | AM62: -1.265706066e-11 | AN62: -1.265706066e-11 | AO62: -1.265706066e-11 | AP62: -1.265706066e-11 | AQ62: -1.265706066e-11 | AR62: -1.265706066e-11 | AS62: -1.265706066e-11 | AT62: -1.265706066e-11 | AU62: -1.265706066e-11 | AV62: -1.265706066e-11 | AW62: -1.265706066e-11 | AX62: -1.265706066e-11 | AY62: -1.265706066e-11 | AZ62: -1.265706066e-11 | BA62: -1.265706066e-11 | BB62: -1.265706066e-11 | BC62: -1.265706066e-11 | BD62: -1.265706066e-11 | BE62: -1.265706066e-11 | BF62: -1.265706066e-11 | BG62: -1.265706066e-11 | BH62: -1.265706066e-11 | BI62: -1.265706066e-11 | BJ62: -1.265706066e-11 | BK62: -1.265706066e-11 | BL62: -1.265706066e-11 | BM62: -1.265706066e-11 | BN62: -1.265706066e-11 | BO62: -1.265706066e-11 | BP62: -1.265706066e-11 | BQ62: -1.265706066e-11
D69: WORK SPACE

Sheet RevReq
D3: REVENUE REQUIREMENT | E3: =Input!$F$5 -> $ thousands | K3: =K37 -> 1119185.661
D4: Period | E4: Type | H4: Input | I4: Input | K4: PV | L4: SUM | O4: 0 | P4: =O4+1 -> 1 | Q4: =P4+1 -> 2 | R4: 3 | S4: 4 | T4: 5 | U4: 6 | V4: 7 | W4: 8 | X4: 9 | Y4: 10 | Z4: 11 | AA4: 12 | AB4: 13 | AC4: 14 | AD4: 15 | AE4: 16 | AF4: 17 | AG4: =AF4+1 -> 18 | AH4: 19 | AI4: 20 | AJ4: 21 | AK4: 22 | AL4: 23 | AM4: 24 | AN4: 25 | AO4: 26 | AP4: 27 | AQ4: 28 | AR4: 29 | AS4: 30 | AT4: 31 | AU4: 32 | AV4: 33 | AW4: =AV4+1 -> 34 | AX4: 35 | AY4: 36 | AZ4: 37 | BA4: 38 | BB4: 39 | BC4: 40 | BD4: 41 | BE4: 42 | BF4: 43 | BG4: 44 | BH4: 45 | BI4: 46 | BJ4: 47 | BK4: 48 | BL4: 49 | BM4: =BL4+1 -> 50
D5: Year | O5: =Input!S5 -> 2017 | P5: =O5+1 -> 2018 | Q5: 2019 | R5: 2020 | S5: 2021 | T5: 2022 | U5: 2023 | V5: 2024 | W5: 2025 | X5: 2026 | Y5: 2027 | Z5: 2028 | AA5: 2029 | AB5: 2030 | AC5: 2031 | AD5: 2032 | AE5: 2033 | AF5: 2034 | AG5: 2035 | AH5: 2036 | AI5: 2037 | AJ5: 2038 | AK5: 2039 | AL5: 2040 | AM5: 2041 | AN5: 2042 | AO5: 2043 | AP5: 2044 | AQ5: 2045 | AR5: 2046 | AS5: 2047 | AT5: 2048 | AU5: 2049 | AV5: 2050 | AW5: 2051 | AX5: 2052 | AY5: 2053 | AZ5: 2054 | BA5: 2055 | BB5: 2056 | BC5: 2057 | BD5: 2058 | BE5: 2059 | BF5: 2060 | BG5: 2061 | BH5: 2062 | BI5: 2063 | BJ5: 2064 | BK5: 2065 | BL5: 2066 | BM5: 2067
D6: Discount Date | H6: =Assumptions!$D$12 -> 2017-07-01 | O6: =IF(O$5<=YEAR($H6),AVERAGE(DATE(O$5,MONTH($H6),DAY($H6)),DATE(O$5,12,31)),DATE(O$5,7,1)) -> 2017-09-30T12:00:00 | P6: =IF(P$5<=YEAR($H6),AVERAGE(DATE(P$5,MONTH($H6),DAY($H6)),DATE(P$5,12,31)),DATE(P$5,7,1)) -> 2018-07-01 | Q6: 2019-07-01 | R6: 2020-07-01 | S6: 2021-07-01 | T6: 2022-07-01 | U6: 2023-07-01 | V6: 2024-07-01 | W6: 2025-07-01 | X6: 2026-07-01 | Y6: 2027-07-01 | Z6: 2028-07-01 | AA6: 2029-07-01 | AB6: 2030-07-01 | AC6: 2031-07-01 | AD6: 2032-07-01 | AE6: 2033-07-01 | AF6: 2034-07-01 | AG6: 2035-07-01 | AH6: 2036-07-01 | AI6: 2037-07-01 | AJ6: 2038-07-01 | AK6: 2039-07-01 | AL6: 2040-07-01 | AM6: 2041-07-01 | AN6: 2042-07-01 | AO6: 2043-07-01 | AP6: 2044-07-01 | AQ6: 2045-07-01 | AR6: 2046-07-01 | AS6: 2047-07-01 | AT6: 2048-07-01 | AU6: 2049-07-01 | AV6: 2050-07-01 | AW6: 2051-07-01 | AX6: 2052-07-01 | AY6: 2053-07-01 | AZ6: 2054-07-01 | BA6: 2055-07-01 | BB6: 2056-07-01 | BC6: 2057-07-01 | BD6: 2058-07-01 | BE6: 2059-07-01 | BF6: 2060-07-01 | BG6: 2061-07-01 | BH6: 2062-07-01 | BI6: 2063-07-01 | BJ6: 2064-07-01 | BK6: 2065-07-01 | BL6: 2066-07-01 | BM6: 2067-07-01
D7: Discount Factor | F7: code | H7: =Assumptions!$E$30 -> 0.0757077169 | O7: =(1+$H7)^(($H$6-O$6)/365) -> 0.9818716498 | P7: =(1+$H7)^(($H$6-P$6)/365) -> 0.9296205505 | Q7: 0.864194368 | R7: 0.8032122323 | S7: 0.7466825976 | T7: 0.6941314875 | U7: 0.6452788955 | V7: 0.599744596 | W7: 0.5575349016 | X7: 0.5182959021 | Y7: 0.4818185219 | Z7: 0.4478188529 | AA7: 0.4163016085 | AB7: 0.3870025305 | AC7: 0.3597655055 | AD7: 0.3343785443 | AE7: 0.3108451665 | AF7: 0.2889680548 | AG7: 0.2686306422 | AH7: 0.24967464 | AI7: 0.2321026763 | AJ7: 0.2157674178 | AK7: 0.2005818257 | AL7: 0.1864277088 | AM7: 0.1733070293 | AN7: 0.161109776 | AO7: 0.1497709586 | AP7: 0.1392023259 | AQ7: 0.1294053428 | AR7: 0.120297866 | AS7: 0.1118313684 | AT7: 0.1039399543 | AU7: 0.09662471751 | AV7: 0.08982432308 | AW7: 0.08350253668 | AX7: 0.07761015504 | AY7: 0.07214799506 | AZ7: 0.06707025889 | BA7: 0.06234989099 | BB7: 0.05795015217 | BC7: 0.05387165236 | BD7: 0.05008019513 | BE7: 0.04655557857 | BF7: 0.04327037015 | BG7: 0.04022502532 | BH7: 0.03739401019 | BI7: 0.03476224034 | BJ7: 0.03230923238 | BK7: 0.0300353264 | BL7: 0.02792145666 | BM7: 0.02595635991
D9: REVENUE REQUIREMENT - UNFAVORABLE/(FAVORABLE)
D11: Revenue Requirement - unfavorable/(favorable) | K11: CPVRR | L11: SUM
C12: =C11+1 -> 1 | D12: =INDEX(D$59:D$83,$C12,1) -> item 1 | E12: Capital | F12: =MATCH(E12,lookups!$C$90:$C$95,0) -> 4 | H12: =Input!I8 -> Base | K12: =SUMPRODUCT(O12:BM12,$O$7:$BM$7) -> 1119185.661 | L12: =SUM(O12:BM12) -> 1561667.361 | O12: =O147+O236+O529+O1349+O916+O1170 -> 0 | P12: =P147+P236+P529+P1349+P916+P1170 -> 225735.3125 | Q12: 199375.674 | R12: 182639.0565 | S12: 168823.5773 | T12: 156103.5249 | U12: 144205.0428 | V12: 133949.7009 | W12: 124515.9292 | X12: 115082.1575 | Y12: 107511.3858 | Z12: 3726 | AA12: -1.265706066e-11 | AB12: -1.265706066e-11 | AC12: -1.265706066e-11 | AD12: -1.265706066e-11 | AE12: -1.265706066e-11 | AF12: -1.265706066e-11 | AG12: -1.265706066e-11 | AH12: -1.265706066e-11 | AI12: -1.265706066e-11 | AJ12: -1.265706066e-11 | AK12: -1.265706066e-11 | AL12: -1.265706066e-11 | AM12: -1.265706066e-11 | AN12: -1.265706066e-11 | AO12: -1.265706066e-11 | AP12: -1.265706066e-11 | AQ12: -1.265706066e-11 | AR12: -1.265706066e-11 | AS12: -1.265706066e-11 | AT12: -1.265706066e-11 | AU12: -1.265706066e-11 | AV12: -1.265706066e-11 | AW12: -1.265706066e-11 | AX12: -1.265706066e-11 | AY12: -1.265706066e-11 | AZ12: -1.265706066e-11 | BA12: -1.265706066e-11 | BB12: -1.265706066e-11 | BC12: -1.265706066e-11 | BD12: -1.265706066e-11 | BE12: -1.265706066e-11 | BF12: -1.265706066e-11 | BG12: -1.265706066e-11 | BH12: -1.265706066e-11 | BI12: -1.265706066e-11 | BJ12: -1.265706066e-11 | BK12: -1.265706066e-11 | BL12: -1.265706066e-11 | BM12: -1.265706066e-11
C13: =C12+1 -> 2 | D13: item 2 | E13: Capital | F13: =MATCH(E13,lookups!$C$90:$C$95,0) -> 4 | H13: =Input!I9 -> Base | K13: =SUMPRODUCT(O13:BM13,$O$7:$BM$7) -> 0 | L13: =SUM(O13:BM13) -> 0 | O13: =O148+O237+O530+O1350+O917+O1171 -> 0 | P13: 0 | Q13: 0 | R13: 0 | S13: 0 | T13: 0 | U13: 0 | V13: 0 | W13: 0 | X13: 0 | Y13: 0 | Z13: 0 | AA13: 0 | AB13: 0 | AC13: 0 | AD13: 0 | AE13: 0 | AF13: 0 | AG13: 0 | AH13: 0 | AI13: 0 | AJ13: 0 | AK13: 0 | AL13: 0 | AM13: 0 | AN13: 0 | AO13: 0 | AP13: 0 | AQ13: 0 | AR13: 0 | AS13: 0 | AT13: 0 | AU13: 0 | AV13: 0 | AW13: 0 | AX13: 0 | AY13: 0 | AZ13: 0 | BA13: 0 | BB13: 0 | BC13: 0 | BD13: 0 | BE13: 0 | BF13: 0 | BG13: 0 | BH13: 0 | BI13: 0 | BJ13: 0 | BK13: 0 | BL13: 0 | BM13: 0
C14: 3 | D14: item 3 | E14: Capital | F14: =MATCH(E14,lookups!$C$90:$C$95,0) -> 4 | H14: =Input!I10 -> Base | K14: 0 | L14: 0 | O14: =O149+O238+O531+O1351+O918+O1172 -> 0 | P14: =P149+P238+P531+P1351+P918+P1172 -> 0 | Q14: 0 | R14: 0 | S14: 0 | T14: 0 | U14: 0 | V14: 0 | W14: 0 | X14: 0 | Y14: 0 | Z14: 0 | AA14: 0 | AB14: 0 | AC14: 0 | AD14: 0 | AE14: 0 | AF14: 0 | AG14: 0 | AH14: 0 | AI14: 0 | AJ14: 0 | AK14: 0 | AL14: 0 | AM14: 0 | AN14: 0 | AO14: 0 | AP14: 0 | AQ14: 0 | AR14: 0 | AS14: 0 | AT14: 0 | AU14: 0 | AV14: 0 | AW14: 0 | AX14: 0 | AY14: 0 | AZ14: 0 | BA14: 0 | BB14: 0 | BC14: 0 | BD14: 0 | BE14: 0 | BF14: 0 | BG14: 0 | BH14: 0 | BI14: 0 | BJ14: 0 | BK14: 0 | BL14: 0 | BM14: 0
C15: 4 | D15: item 4 | E15: Capital | F15: =MATCH(E15,lookups!$C$90:$C$95,0) -> 4 | H15: =Input!I11 -> Base | K15: 0 | L15: 0 | O15: =O150+O239+O532+O1352+O919+O1173 -> 0 | P15: 0 | Q15: 0 | R15: 0 | S15: 0 | T15: 0 | U15: 0 | V15: 0 | W15: 0 | X15: 0 | Y15: 0 | Z15: 0 | AA15: 0 | AB15: 0 | AC15: 0 | AD15: 0 | AE15: 0 | AF15: 0 | AG15: 0 | AH15: 0 | AI15: 0 | AJ15: 0 | AK15: 0 | AL15: 0 | AM15: 0 | AN15: 0 | AO15: 0 | AP15: 0 | AQ15: 0 | AR15: 0 | AS15: 0 | AT15: 0 | AU15: 0 | AV15: 0 | AW15: 0 | AX15: 0 | AY15: 0 | AZ15: 0 | BA15: 0 | BB15: 0 | BC15: 0 | BD15: 0 | BE15: 0 | BF15: 0 | BG15: 0 | BH15: 0 | BI15: 0 | BJ15: 0 | BK15: 0 | BL15: 0 | BM15: 0
C16: 5 | D16: item 5 | E16: Capital | F16: =MATCH(E16,lookups!$C$90:$C$95,0) -> 4 | H16: =Input!I12 -> Base | K16: 0 | L16: 0 | O16: =O151+O240+O533+O1353+O920+O1174 -> 0 | P16: 0 | Q16: 0 | R16: 0 | S16: 0 | T16: 0 | U16: 0 | V16: 0 | W16: 0 | X16: 0 | Y16: 0 | Z16: 0 | AA16: 0 | AB16: 0 | AC16: 0 | AD16: 0 | AE16: 0 | AF16: 0 | AG16: 0 | AH16: 0 | AI16: 0 | AJ16: 0 | AK16: 0 | AL16: 0 | AM16: 0 | AN16: 0 | AO16: 0 | AP16: 0 | AQ16: 0 | AR16: 0 | AS16: 0 | AT16: 0 | AU16: 0 | AV16: 0 | AW16: 0 | AX16: 0 | AY16: 0 | AZ16: 0 | BA16: 0 | BB16: 0 | BC16: 0 | BD16: 0 | BE16: 0 | BF16: 0 | BG16: 0 | BH16: 0 | BI16: 0 | BJ16: 0 | BK16: 0 | BL16: 0 | BM16: 0
C17: 6 | D17: item 6 | E17: Capital | F17: =MATCH(E17,lookups!$C$90:$C$95,0) -> 4 | H17: =Input!I13 -> Base | K17: 0 | L17: 0 | O17: =O152+O241+O534+O1354+O921+O1175 -> 0 | P17: 0 | Q17: 0 | R17: 0 | S17: 0 | T17: 0 | U17: 0 | V17: 0 | W17: 0 | X17: 0 | Y17: 0 | Z17: 0 | AA17: 0 | AB17: 0 | AC17: 0 | AD17: 0 | AE17: 0 | AF17: 0 | AG17: 0 | AH17: 0 | AI17: 0 | AJ17: 0 | AK17: 0 | AL17: 0 | AM17: 0 | AN17: 0 | AO17: 0 | AP17: 0 | AQ17: 0 | AR17: 0 | AS17: 0 | AT17: 0 | AU17: 0 | AV17: 0 | AW17: 0 | AX17: 0 | AY17: 0 | AZ17: 0 | BA17: 0 | BB17: 0 | BC17: 0 | BD17: 0 | BE17: 0 | BF17: 0 | BG17: 0 | BH17: 0 | BI17: 0 | BJ17: 0 | BK17: 0 | BL17: 0 | BM17: 0
C18: 7 | D18: item 7 | E18: Capital | F18: =MATCH(E18,lookups!$C$90:$C$95,0) -> 4 | H18: =Input!I14 -> Base | K18: 0 | L18: 0 | O18: =O153+O242+O535+O1355+O922+O1176 -> 0 | P18: 0 | Q18: 0 | R18: 0 | S18: 0 | T18: 0 | U18: 0 | V18: 0 | W18: 0 | X18: 0 | Y18: 0 | Z18: 0 | AA18: 0 | AB18: 0 | AC18: 0 | AD18: 0 | AE18: 0 | AF18: 0 | AG18: 0 | AH18: 0 | AI18: 0 | AJ18: 0 | AK18: 0 | AL18: 0 | AM18: 0 | AN18: 0 | AO18: 0 | AP18: 0 | AQ18: 0 | AR18: 0 | AS18: 0 | AT18: 0 | AU18: 0 | AV18: 0 | AW18: 0 | AX18: 0 | AY18: 0 | AZ18: 0 | BA18: 0 | BB18: 0 | BC18: 0 | BD18: 0 | BE18: 0 | BF18: 0 | BG18: 0 | BH18: 0 | BI18: 0 | BJ18: 0 | BK18: 0 | BL18: 0 | BM18: 0
C19: 8 | D19: item 8 | E19: Capital | F19: =MATCH(E19,lookups!$C$90:$C$95,0) -> 4 | H19: =Input!I15 -> Base | K19: 0 | L19: 0 | O19: =O154+O243+O536+O1356+O923+O1177 -> 0 | P19: 0 | Q19: 0 | R19: 0 | S19: 0 | T19: 0 | U19: 0 | V19: 0 | W19: 0 | X19: 0 | Y19: 0 | Z19: 0 | AA19: 0 | AB19: 0 | AC19: 0 | AD19: 0 | AE19: 0 | AF19: 0 | AG19: 0 | AH19: 0 | AI19: 0 | AJ19: 0 | AK19: 0 | AL19: 0 | AM19: 0 | AN19: 0 | AO19: 0 | AP19: 0 | AQ19: 0 | AR19: 0 | AS19: 0 | AT19: 0 | AU19: 0 | AV19: 0 | AW19: 0 | AX19: 0 | AY19: 0 | AZ19: 0 | BA19: 0 | BB19: 0 | BC19: 0 | BD19: 0 | BE19: 0 | BF19: 0 | BG19: 0 | BH19: 0 | BI19: 0 | BJ19: 0 | BK19: 0 | BL19: 0 | BM19: 0
C20: 9 | D20: item 9 | E20: Capital | F20: =MATCH(E20,lookups!$C$90:$C$95,0) -> 4 | H20: =Input!I16 -> Base | K20: 0 | L20: 0 | O20: =O155+O244+O537+O1357+O924+O1178 -> 0 | P20: 0 | Q20: 0 | R20: 0 | S20: 0 | T20: 0 | U20: 0 | V20: 0 | W20: 0 | X20: 0 | Y20: 0 | Z20: 0 | AA20: 0 | AB20: 0 | AC20: 0 | AD20: 0 | AE20: 0 | AF20: 0 | AG20: 0 | AH20: 0 | AI20: 0 | AJ20: 0 | AK20: 0 | AL20: 0 | AM20: 0 | AN20: 0 | AO20: 0 | AP20: 0 | AQ20: 0 | AR20: 0 | AS20: 0 | AT20: 0 | AU20: 0 | AV20: 0 | AW20: 0 | AX20: 0 | AY20: 0 | AZ20: 0 | BA20: 0 | BB20: 0 | BC20: 0 | BD20: 0 | BE20: 0 | BF20: 0 | BG20: 0 | BH20: 0 | BI20: 0 | BJ20: 0 | BK20: 0 | BL20: 0 | BM20: 0
C21: 10 | D21: item 10 | E21: Capital | F21: =MATCH(E21,lookups!$C$90:$C$95,0) -> 4 | H21: =Input!I17 -> Base | K21: 0 | L21: 0 | O21: =O156+O245+O538+O1358+O925+O1179 -> 0 | P21: 0 | Q21: 0 | R21: 0 | S21: 0 | T21: 0 | U21: 0 | V21: 0 | W21: 0 | X21: 0 | Y21: 0 | Z21: 0 | AA21: 0 | AB21: 0 | AC21: 0 | AD21: 0 | AE21: 0 | AF21: 0 | AG21: 0 | AH21: 0 | AI21: 0 | AJ21: 0 | AK21: 0 | AL21: 0 | AM21: 0 | AN21: 0 | AO21: 0 | AP21: 0 | AQ21: 0 | AR21: 0 | AS21: 0 | AT21: 0 | AU21: 0 | AV21: 0 | AW21: 0 | AX21: 0 | AY21: 0 | AZ21: 0 | BA21: 0 | BB21: 0 | BC21: 0 | BD21: 0 | BE21: 0 | BF21: 0 | BG21: 0 | BH21: 0 | BI21: 0 | BJ21: 0 | BK21: 0 | BL21: 0 | BM21: 0
C22: 11 | D22: item 11 | E22: Operating Expense | F22: =MATCH(E22,lookups!$C$90:$C$95,0) -> 2 | H22: =Input!I18 -> Base | K22: 0 | L22: 0 | O22: =O157+O246+O539+O1359+O926+O1180 -> 0 | P22: 0 | Q22: 0 | R22: 0 | S22: 0 | T22: 0 | U22: 0 | V22: 0 | W22: 0 | X22: 0 | Y22: 0 | Z22: 0 | AA22: 0 | AB22: 0 | AC22: 0 | AD22: 0 | AE22: 0 | AF22: 0 | AG22: 0 | AH22: 0 | AI22: 0 | AJ22: 0 | AK22: 0 | AL22: 0 | AM22: 0 | AN22: 0 | AO22: 0 | AP22: 0 | AQ22: 0 | AR22: 0 | AS22: 0 | AT22: 0 | AU22: 0 | AV22: 0 | AW22: 0 | AX22: 0 | AY22: 0 | AZ22: 0 | BA22: 0 | BB22: 0 | BC22: 0 | BD22: 0 | BE22: 0 | BF22: 0 | BG22: 0 | BH22: 0 | BI22: 0 | BJ22: 0 | BK22: 0 | BL22: 0 | BM22: 0
C23: 12 | D23: item 12 | E23: Operating Expense | F23: =MATCH(E23,lookups!$C$90:$C$95,0) -> 2 | H23: =Input!I19 -> Base | K23: 0 | L23: 0 | O23: =O158+O247+O540+O1360+O927+O1181 -> 0 | P23: 0 | Q23: 0 | R23: 0 | S23: 0 | T23: 0 | U23: 0 | V23: 0 | W23: 0 | X23: 0 | Y23: 0 | Z23: 0 | AA23: 0 | AB23: 0 | AC23: 0 | AD23: 0 | AE23: 0 | AF23: 0 | AG23: 0 | AH23: 0 | AI23: 0 | AJ23: 0 | AK23: 0 | AL23: 0 | AM23: 0 | AN23: 0 | AO23: 0 | AP23: 0 | AQ23: 0 | AR23: 0 | AS23: 0 | AT23: 0 | AU23: 0 | AV23: 0 | AW23: 0 | AX23: 0 | AY23: 0 | AZ23: 0 | BA23: 0 | BB23: 0 | BC23: 0 | BD23: 0 | BE23: 0 | BF23: 0 | BG23: 0 | BH23: 0 | BI23: 0 | BJ23: 0 | BK23: 0 | BL23: 0 | BM23: 0
C24: 13 | D24: item 13 | E24: Operating Expense | F24: =MATCH(E24,lookups!$C$90:$C$95,0) -> 2 | H24: =Input!I20 -> Base | K24: 0 | L24: 0 | O24: =O159+O248+O541+O1361+O928+O1182 -> 0 | P24: 0 | Q24: 0 | R24: 0 | S24: 0 | T24: 0 | U24: 0 | V24: 0 | W24: 0 | X24: 0 | Y24: 0 | Z24: 0 | AA24: 0 | AB24: 0 | AC24: 0 | AD24: 0 | AE24: 0 | AF24: 0 | AG24: 0 | AH24: 0 | AI24: 0 | AJ24: 0 | AK24: 0 | AL24: 0 | AM24: 0 | AN24: 0 | AO24: 0 | AP24: 0 | AQ24: 0 | AR24: 0 | AS24: 0 | AT24: 0 | AU24: 0 | AV24: 0 | AW24: 0 | AX24: 0 | AY24: 0 | AZ24: 0 | BA24: 0 | BB24: 0 | BC24: 0 | BD24: 0 | BE24: 0 | BF24: 0 | BG24: 0 | BH24: 0 | BI24: 0 | BJ24: 0 | BK24: 0 | BL24: 0 | BM24: 0
C25: 14 | D25: item 14 | E25: Operating Expense | F25: =MATCH(E25,lookups!$C$90:$C$95,0) -> 2 | H25: =Input!I21 -> Base | K25: 0 | L25: 0 | O25: =O160+O249+O542+O1362+O929+O1183 -> 0 | P25: 0 | Q25: 0 | R25: 0 | S25: 0 | T25: 0 | U25: 0 | V25: 0 | W25: 0 | X25: 0 | Y25: 0 | Z25: 0 | AA25: 0 | AB25: 0 | AC25: 0 | AD25: 0 | AE25: 0 | AF25: 0 | AG25: 0 | AH25: 0 | AI25: 0 | AJ25: 0 | AK25: 0 | AL25: 0 | AM25: 0 | AN25: 0 | AO25: 0 | AP25: 0 | AQ25: 0 | AR25: 0 | AS25: 0 | AT25: 0 | AU25: 0 | AV25: 0 | AW25: 0 | AX25: 0 | AY25: 0 | AZ25: 0 | BA25: 0 | BB25: 0 | BC25: 0 | BD25: 0 | BE25: 0 | BF25: 0 | BG25: 0 | BH25: 0 | BI25: 0 | BJ25: 0 | BK25: 0 | BL25: 0 | BM25: 0
C26: 15 | D26: item 15 | E26: Operating Expense | F26: =MATCH(E26,lookups!$C$90:$C$95,0) -> 2 | H26: =Input!I22 -> Base | K26: 0 | L26: 0 | O26: =O161+O250+O543+O1363+O930+O1184 -> 0 | P26: 0 | Q26: 0 | R26: 0 | S26: 0 | T26: 0 | U26: 0 | V26: 0 | W26: 0 | X26: 0 | Y26: 0 | Z26: 0 | AA26: 0 | AB26: 0 | AC26: 0 | AD26: 0 | AE26: 0 | AF26: 0 | AG26: 0 | AH26: 0 | AI26: 0 | AJ26: 0 | AK26: 0 | AL26: 0 | AM26: 0 | AN26: 0 | AO26: 0 | AP26: 0 | AQ26: 0 | AR26: 0 | AS26: 0 | AT26: 0 | AU26: 0 | AV26: 0 | AW26: 0 | AX26: 0 | AY26: 0 | AZ26: 0 | BA26: 0 | BB26: 0 | BC26: 0 | BD26: 0 | BE26: 0 | BF26: 0 | BG26: 0 | BH26: 0 | BI26: 0 | BJ26: 0 | BK26: 0 | BL26: 0 | BM26: 0
C27: 16 | D27: item 16 | E27: Operating Expense | F27: =MATCH(E27,lookups!$C$90:$C$95,0) -> 2 | H27: =Input!I23 -> Base | K27: 0 | L27: 0 | O27: =O162+O251+O544+O1364+O931+O1185 -> 0 | P27: 0 | Q27: 0 | R27: 0 | S27: 0 | T27: 0 | U27: 0 | V27: 0 | W27: 0 | X27: 0 | Y27: 0 | Z27: 0 | AA27: 0 | AB27: 0 | AC27: 0 | AD27: 0 | AE27: 0 | AF27: 0 | AG27: 0 | AH27: 0 | AI27: 0 | AJ27: 0 | AK27: 0 | AL27: 0 | AM27: 0 | AN27: 0 | AO27: 0 | AP27: 0 | AQ27: 0 | AR27: 0 | AS27: 0 | AT27: 0 | AU27: 0 | AV27: 0 | AW27: 0 | AX27: 0 | AY27: 0 | AZ27: 0 | BA27: 0 | BB27: 0 | BC27: 0 | BD27: 0 | BE27: 0 | BF27: 0 | BG27: 0 | BH27: 0 | BI27: 0 | BJ27: 0 | BK27: 0 | BL27: 0 | BM27: 0
C28: 17 | D28: item 17 | E28: Operating Expense | F28: =MATCH(E28,lookups!$C$90:$C$95,0) -> 2 | H28: =Input!I24 -> Base | K28: 0 | L28: 0 | O28: =O163+O252+O545+O1365+O932+O1186 -> 0 | P28: 0 | Q28: 0 | R28: 0 | S28: 0 | T28: 0 | U28: 0 | V28: 0 | W28: 0 | X28: 0 | Y28: 0 | Z28: 0 | AA28: 0 | AB28: 0 | AC28: 0 | AD28: 0 | AE28: 0 | AF28: 0 | AG28: 0 | AH28: 0 | AI28: 0 | AJ28: 0 | AK28: 0 | AL28: 0 | AM28: 0 | AN28: 0 | AO28: 0 | AP28: 0 | AQ28: 0 | AR28: 0 | AS28: 0 | AT28: 0 | AU28: 0 | AV28: 0 | AW28: 0 | AX28: 0 | AY28: 0 | AZ28: 0 | BA28: 0 | BB28: 0 | BC28: 0 | BD28: 0 | BE28: 0 | BF28: 0 | BG28: 0 | BH28: 0 | BI28: 0 | BJ28: 0 | BK28: 0 | BL28: 0 | BM28: 0
C29: 18 | D29: item 18 | E29: Operating Expense | F29: =MATCH(E29,lookups!$C$90:$C$95,0) -> 2 | H29: =Input!I25 -> Base | K29: 0 | L29: 0 | O29: =O164+O253+O546+O1366+O933+O1187 -> 0 | P29: 0 | Q29: 0 | R29: 0 | S29: 0 | T29: 0 | U29: 0 | V29: 0 | W29: 0 | X29: 0 | Y29: 0 | Z29: 0 | AA29: 0 | AB29: 0 | AC29: 0 | AD29: 0 | AE29: 0 | AF29: 0 | AG29: 0 | AH29: 0 | AI29: 0 | AJ29: 0 | AK29: 0 | AL29: 0 | AM29: 0 | AN29: 0 | AO29: 0 | AP29: 0 | AQ29: 0 | AR29: 0 | AS29: 0 | AT29: 0 | AU29: 0 | AV29: 0 | AW29: 0 | AX29: 0 | AY29: 0 | AZ29: 0 | BA29: 0 | BB29: 0 | BC29: 0 | BD29: 0 | BE29: 0 | BF29: 0 | BG29: 0 | BH29: 0 | BI29: 0 | BJ29: 0 | BK29: 0 | BL29: 0 | BM29: 0
C30: 19 | D30: item 19 | E30: Operating Expense | F30: =MATCH(E30,lookups!$C$90:$C$95,0) -> 2 | H30: =Input!I26 -> Base | K30: 0 | L30: 0 | O30: =O165+O254+O547+O1367+O934+O1188 -> 0 | P30: 0 | Q30: 0 | R30: 0 | S30: 0 | T30: 0 | U30: 0 | V30: 0 | W30: 0 | X30: 0 | Y30: 0 | Z30: 0 | AA30: 0 | AB30: 0 | AC30: 0 | AD30: 0 | AE30: 0 | AF30: 0 | AG30: 0 | AH30: 0 | AI30: 0 | AJ30: 0 | AK30: 0 | AL30: 0 | AM30: 0 | AN30: 0 | AO30: 0 | AP30: 0 | AQ30: 0 | AR30: 0 | AS30: 0 | AT30: 0 | AU30: 0 | AV30: 0 | AW30: 0 | AX30: 0 | AY30: 0 | AZ30: 0 | BA30: 0 | BB30: 0 | BC30: 0 | BD30: 0 | BE30: 0 | BF30: 0 | BG30: 0 | BH30: 0 | BI30: 0 | BJ30: 0 | BK30: 0 | BL30: 0 | BM30: 0
C31: 20 | D31: item 20 | E31: Operating Expense | F31: =MATCH(E31,lookups!$C$90:$C$95,0) -> 2 | H31: =Input!I27 -> Base | K31: 0 | L31: 0 | O31: =O166+O255+O548+O1368+O935+O1189 -> 0 | P31: 0 | Q31: 0 | R31: 0 | S31: 0 | T31: 0 | U31: 0 | V31: 0 | W31: 0 | X31: 0 | Y31: 0 | Z31: 0 | AA31: 0 | AB31: 0 | AC31: 0 | AD31: 0 | AE31: 0 | AF31: 0 | AG31: 0 | AH31: 0 | AI31: 0 | AJ31: 0 | AK31: 0 | AL31: 0 | AM31: 0 | AN31: 0 | AO31: 0 | AP31: 0 | AQ31: 0 | AR31: 0 | AS31: 0 | AT31: 0 | AU31: 0 | AV31: 0 | AW31: 0 | AX31: 0 | AY31: 0 | AZ31: 0 | BA31: 0 | BB31: 0 | BC31: 0 | BD31: 0 | BE31: 0 | BF31: 0 | BG31: 0 | BH31: 0 | BI31: 0 | BJ31: 0 | BK31: 0 | BL31: 0 | BM31: 0
C32: 21 | D32: item 21 | E32: Operating Expense | F32: =MATCH(E32,lookups!$C$90:$C$95,0) -> 2 | H32: =Input!I28 -> Base | K32: 0 | L32: 0 | O32: =O167+O256+O549+O1369+O936+O1190 -> 0 | P32: 0 | Q32: 0 | R32: 0 | S32: 0 | T32: 0 | U32: 0 | V32: 0 | W32: 0 | X32: 0 | Y32: 0 | Z32: 0 | AA32: 0 | AB32: 0 | AC32: 0 | AD32: 0 | AE32: 0 | AF32: 0 | AG32: 0 | AH32: 0 | AI32: 0 | AJ32: 0 | AK32: 0 | AL32: 0 | AM32: 0 | AN32: 0 | AO32: 0 | AP32: 0 | AQ32: 0 | AR32: 0 | AS32: 0 | AT32: 0 | AU32: 0 | AV32: 0 | AW32: 0 | AX32: 0 | AY32: 0 | AZ32: 0 | BA32: 0 | BB32: 0 | BC32: 0 | BD32: 0 | BE32: 0 | BF32: 0 | BG32: 0 | BH32: 0 | BI32: 0 | BJ32: 0 | BK32: 0 | BL32: 0 | BM32: 0
C33: 22 | D33: item 22 | E33: Operating Expense | F33: =MATCH(E33,lookups!$C$90:$C$95,0) -> 2 | H33: =Input!I29 -> Base | K33: 0 | L33: 0 | O33: =O168+O257+O550+O1370+O937+O1191 -> 0 | P33: 0 | Q33: 0 | R33: 0 | S33: 0 | T33: 0 | U33: 0 | V33: 0 | W33: 0 | X33: 0 | Y33: 0 | Z33: 0 | AA33: 0 | AB33: 0 | AC33: 0 | AD33: 0 | AE33: 0 | AF33: 0 | AG33: 0 | AH33: 0 | AI33: 0 | AJ33: 0 | AK33: 0 | AL33: 0 | AM33: 0 | AN33: 0 | AO33: 0 | AP33: 0 | AQ33: 0 | AR33: 0 | AS33: 0 | AT33: 0 | AU33: 0 | AV33: 0 | AW33: 0 | AX33: 0 | AY33: 0 | AZ33: 0 | BA33: 0 | BB33: 0 | BC33: 0 | BD33: 0 | BE33: 0 | BF33: 0 | BG33: 0 | BH33: 0 | BI33: 0 | BJ33: 0 | BK33: 0 | BL33: 0 | BM33: 0
C34: 23 | D34: item 23 | E34: Operating Expense | F34: =MATCH(E34,lookups!$C$90:$C$95,0) -> 2 | H34: =Input!I30 -> Base | K34: 0 | L34: 0 | O34: =O169+O258+O551+O1371+O938+O1192 -> 0 | P34: 0 | Q34: 0 | R34: 0 | S34: 0 | T34: 0 | U34: 0 | V34: 0 | W34: 0 | X34: 0 | Y34: 0 | Z34: 0 | AA34: 0 | AB34: 0 | AC34: 0 | AD34: 0 | AE34: 0 | AF34: 0 | AG34: 0 | AH34: 0 | AI34: 0 | AJ34: 0 | AK34: 0 | AL34: 0 | AM34: 0 | AN34: 0 | AO34: 0 | AP34: 0 | AQ34: 0 | AR34: 0 | AS34: 0 | AT34: 0 | AU34: 0 | AV34: 0 | AW34: 0 | AX34: 0 | AY34: 0 | AZ34: 0 | BA34: 0 | BB34: 0 | BC34: 0 | BD34: 0 | BE34: 0 | BF34: 0 | BG34: 0 | BH34: 0 | BI34: 0 | BJ34: 0 | BK34: 0 | BL34: 0 | BM34: 0
C35: 24 | D35: item 24 | E35: Operating Expense | F35: =MATCH(E35,lookups!$C$90:$C$95,0) -> 2 | H35: =Input!I31 -> Base | K35: 0 | L35: 0 | O35: =O170+O259+O552+O1372+O939+O1193 -> 0 | P35: 0 | Q35: 0 | R35: 0 | S35: 0 | T35: 0 | U35: 0 | V35: 0 | W35: 0 | X35: 0 | Y35: 0 | Z35: 0 | AA35: 0 | AB35: 0 | AC35: 0 | AD35: 0 | AE35: 0 | AF35: 0 | AG35: 0 | AH35: 0 | AI35: 0 | AJ35: 0 | AK35: 0 | AL35: 0 | AM35: 0 | AN35: 0 | AO35: 0 | AP35: 0 | AQ35: 0 | AR35: 0 | AS35: 0 | AT35: 0 | AU35: 0 | AV35: 0 | AW35: 0 | AX35: 0 | AY35: 0 | AZ35: 0 | BA35: 0 | BB35: 0 | BC35: 0 | BD35: 0 | BE35: 0 | BF35: 0 | BG35: 0 | BH35: 0 | BI35: 0 | BJ35: 0 | BK35: 0 | BL35: 0 | BM35: 0
C36: 25 | D36: item 25 | E36: Operating Expense | F36: =MATCH(E36,lookups!$C$90:$C$95,0) -> 2 | H36: =Input!I32 -> Base | K36: 0 | L36: 0 | O36: =O171+O260+O553+O1373+O940+O1194 -> 0 | P36: 0 | Q36: 0 | R36: 0 | S36: 0 | T36: 0 | U36: 0 | V36: 0 | W36: 0 | X36: 0 | Y36: 0 | Z36: 0 | AA36: 0 | AB36: 0 | AC36: 0 | AD36: 0 | AE36: 0 | AF36: 0 | AG36: 0 | AH36: 0 | AI36: 0 | AJ36: 0 | AK36: 0 | AL36: 0 | AM36: 0 | AN36: 0 | AO36: 0 | AP36: 0 | AQ36: 0 | AR36: 0 | AS36: 0 | AT36: 0 | AU36: 0 | AV36: 0 | AW36: 0 | AX36: 0 | AY36: 0 | AZ36: 0 | BA36: 0 | BB36: 0 | BC36: 0 | BD36: 0 | BE36: 0 | BF36: 0 | BG36: 0 | BH36: 0 | BI36: 0 | BJ36: 0 | BK36: 0 | BL36: 0 | BM36: 0
D37: ="Total "&D11 -> Total Revenue Requirement - unfavorable/(favorable) | K37: 1119185.661 | L37: 1561667.361 | O37: =SUM(O12:O36) -> 0 | P37: =SUM(P12:P36) -> 225735.3125 | Q37: =SUM(Q12:Q36) -> 199375.674 | R37: =SUM(R12:R36) -> 182639.0565 | S37: =SUM(S12:S36) -> 168823.5773 | T37: =SUM(T12:T36) -> 156103.5249 | U37: =SUM(U12:U36) -> 144205.0428 | V37: =SUM(V12:V36) -> 133949.7009 | W37: =SUM(W12:W36) -> 124515.9292 | X37: =SUM(X12:X36) -> 115082.1575 | Y37: =SUM(Y12:Y36) -> 107511.3858 | Z37: =SUM(Z12:Z36) -> 3726 | AA37: =SUM(AA12:AA36) -> -1.265706066e-11 | AB37: =SUM(AB12:AB36) -> -1.265706066e-11 | AC37: =SUM(AC12:AC36) -> -1.265706066e-11 | AD37: =SUM(AD12:AD36) -> -1.265706066e-11 | AE37: =SUM(AE12:AE36) -> -1.265706066e-11 | AF37: =SUM(AF12:AF36) -> -1.265706066e-11 | AG37: =SUM(AG12:AG36) -> -1.265706066e-11 | AH37: =SUM(AH12:AH36) -> -1.265706066e-11 | AI37: =SUM(AI12:AI36) -> -1.265706066e-11 | AJ37: =SUM(AJ12:AJ36) -> -1.265706066e-11 | AK37: =SUM(AK12:AK36) -> -1.265706066e-11 | AL37: =SUM(AL12:AL36) -> -1.265706066e-11 | AM37: =SUM(AM12:AM36) -> -1.265706066e-11 | AN37: =SUM(AN12:AN36) -> -1.265706066e-11 | AO37: =SUM(AO12:AO36) -> -1.265706066e-11 | AP37: =SUM(AP12:AP36) -> -1.265706066e-11 | AQ37: =SUM(AQ12:AQ36) -> -1.265706066e-11 | AR37: =SUM(AR12:AR36) -> -1.265706066e-11 | AS37: =SUM(AS12:AS36) -> -1.265706066e-11 | AT37: =SUM(AT12:AT36) -> -1.265706066e-11 | AU37: =SUM(AU12:AU36) -> -1.265706066e-11 | AV37: =SUM(AV12:AV36) -> -1.265706066e-11 | AW37: =SUM(AW12:AW36) -> -1.265706066e-11 | AX37: =SUM(AX12:AX36) -> -1.265706066e-11 | AY37: =SUM(AY12:AY36) -> -1.265706066e-11 | AZ37: =SUM(AZ12:AZ36) -> -1.265706066e-11 | BA37: =SUM(BA12:BA36) -> -1.265706066e-11 | BB37: =SUM(BB12:BB36) -> -1.265706066e-11 | BC37: =SUM(BC12:BC36) -> -1.265706066e-11 | BD37: =SUM(BD12:BD36) -> -1.265706066e-11 | BE37: =SUM(BE12:BE36) -> -1.265706066e-11 | BF37: =SUM(BF12:BF36) -> -1.265706066e-11 | BG37: =SUM(BG12:BG36) -> -1.265706066e-11 | BH37: =SUM(BH12:BH36) -> -1.265706066e-11 | BI37: =SUM(BI12:BI36) -> -1.265706066e-11 | BJ37: =SUM(BJ12:BJ36) -> -1.265706066e-11 | BK37: =SUM(BK12:BK36) -> -1.265706066e-11 | BL37: =SUM(BL12:BL36) -> -1.265706066e-11 | BM37: =SUM(BM12:BM36) -> -1.265706066e-11
D41: Revenue Requirement - unfavorable/(favorable) | K41: CPVRR | L41: SUM
D42: Operating Savings | F42: =MATCH(D42,lookups!$C$90:$C$95,0) -> 1 | K42: =SUMPRODUCT(O42:BM42,$O$7:$BM$7) -> 0 | L42: =SUM(O42:BM42) -> 0 | O42: =SUMIF($F$147:$F$171,$F42,O$147:O$171) -> 0 | P42: 0 | Q42: 0 | R42: 0 | S42: 0 | T42: 0 | U42: 0 | V42: 0 | W42: 0 | X42: 0 | Y42: =SUMIF($F$147:$F$171,$F42,Y$147:Y$171) -> 0 | Z42: 0 | AA42: 0 | AB42: 0 | AC42: 0 | AD42: 0 | AE42: 0 | AF42: 0 | AG42: 0 | AH42: 0 | AI42: =SUMIF($F$147:$F$171,$F42,AI$147:AI$171) -> 0 | AJ42: 0 | AK42: 0 | AL42: 0 | AM42: 0 | AN42: 0 | AO42: 0 | AP42: 0 | AQ42: 0 | AR42: 0 | AS42: =SUMIF($F$147:$F$171,$F42,AS$147:AS$171) -> 0 | AT42: 0 | AU42: 0 | AV42: 0 | AW42: 0 | AX42: 0 | AY42: 0 | AZ42: 0 | BA42: 0 | BB42: 0 | BC42: =SUMIF($F$147:$F$171,$F42,BC$147:BC$171) -> 0 | BD42: 0 | BE42: 0 | BF42: 0 | BG42: 0 | BH42: 0 | BI42: 0 | BJ42: 0 | BK42: 0 | BL42: 0 | BM42: 0
D43: Operating Expense | F43: =MATCH(D43,lookups!$C$90:$C$95,0) -> 2 | K43: =SUMPRODUCT(O43:BM43,$O$7:$BM$7) -> 0 | L43: =SUM(O43:BM43) -> 0 | O43: 0 | P43: 0 | Q43: 0 | R43: 0 | S43: 0 | T43: 0 | U43: 0 | V43: 0 | W43: 0 | X43: 0 | Y43: 0 | Z43: 0 | AA43: 0 | AB43: 0 | AC43: 0 | AD43: 0 | AE43: 0 | AF43: 0 | AG43: 0 | AH43: 0 | AI43: 0 | AJ43: 0 | AK43: 0 | AL43: 0 | AM43: 0 | AN43: 0 | AO43: 0 | AP43: 0 | AQ43: 0 | AR43: 0 | AS43: 0 | AT43: 0 | AU43: 0 | AV43: 0 | AW43: 0 | AX43: 0 | AY43: 0 | AZ43: 0 | BA43: 0 | BB43: 0 | BC43: 0 | BD43: 0 | BE43: 0 | BF43: 0 | BG43: 0 | BH43: 0 | BI43: 0 | BJ43: 0 | BK43: 0 | BL43: 0 | BM43: 0
D44: Property Tax and Insurance | K44: 80267.47405 | L44: 108054 | O44: =O941 -> 0 | P44: =P941 -> 18630 | Q44: 16767 | R44: 14904 | S44: 13041 | T44: 11178 | U44: 9315 | V44: 7452 | W44: 5589 | X44: 3726 | Y44: 3726 | Z44: 3726 | AA44: 0 | AB44: 0 | AC44: 0 | AD44: 0 | AE44: 0 | AF44: 0 | AG44: 0 | AH44: 0 | AI44: 0 | AJ44: 0 | AK44: 0 | AL44: 0 | AM44: 0 | AN44: 0 | AO44: 0 | AP44: 0 | AQ44: 0 | AR44: 0 | AS44: 0 | AT44: =AT941 -> 0 | AU44: 0 | AV44: 0 | AW44: 0 | AX44: 0 | AY44: 0 | AZ44: 0 | BA44: 0 | BB44: 0 | BC44: 0 | BD44: 0 | BE44: 0 | BF44: 0 | BG44: 0 | BH44: 0 | BI44: 0 | BJ44: 0 | BK44: 0 | BL44: 0 | BM44: 0
D45: Depreciation | K45: 684051.4053 | L45: 1000000 | O45: =O261 -> 0 | P45: =P261 -> 100000 | Q45: 100000 | R45: 100000 | S45: 100000 | T45: 100000 | U45: 100000 | V45: 100000 | W45: 100000 | X45: 100000 | Y45: 100000 | Z45: 1.110223025e-10 | AA45: 0 | AB45: 0 | AC45: 0 | AD45: 0 | AE45: 0 | AF45: 0 | AG45: 0 | AH45: 0 | AI45: 0 | AJ45: 0 | AK45: 0 | AL45: 0 | AM45: 0 | AN45: 0 | AO45: 0 | AP45: 0 | AQ45: 0 | AR45: 0 | AS45: 0 | AT45: 0 | AU45: 0 | AV45: 0 | AW45: 0 | AX45: 0 | AY45: 0 | AZ45: 0 | BA45: 0 | BB45: 0 | BC45: 0 | BD45: 0 | BE45: 0 | BF45: 0 | BG45: 0 | BH45: 0 | BI45: 0 | BJ45: 0 | BK45: 0 | BL45: 0 | BM45: 0
D46: Interest Expense | K46: 60137.07091 | L46: 76871.041 | O46: =O467 -> 0 | P46: =P467 -> 18150.47255 | Q46: =Q467 -> 13999.17928 | R46: 11478.63962 | S46: 9453.127153 | T46: 7613.249879 | U46: 5912.599001 | V46: 4490.400915 | W46: 3207.429225 | X46: 1924.457535 | Y46: 641.485845 | Z46: -1.320078241e-12 | AA46: -2.144913513e-12 | AB46: -2.144913513e-12 | AC46: -2.144913513e-12 | AD46: -2.144913513e-12 | AE46: -2.144913513e-12 | AF46: -2.144913513e-12 | AG46: -2.144913513e-12 | AH46: -2.144913513e-12 | AI46: -2.144913513e-12 | AJ46: -2.144913513e-12 | AK46: -2.144913513e-12 | AL46: -2.144913513e-12 | AM46: -2.144913513e-12 | AN46: -2.144913513e-12 | AO46: -2.144913513e-12 | AP46: -2.144913513e-12 | AQ46: -2.144913513e-12 | AR46: -2.144913513e-12 | AS46: -2.144913513e-12 | AT46: -2.144913513e-12 | AU46: -2.144913513e-12 | AV46: -2.144913513e-12 | AW46: -2.144913513e-12 | AX46: -2.144913513e-12 | AY46: -2.144913513e-12 | AZ46: -2.144913513e-12 | BA46: -2.144913513e-12 | BB46: -2.144913513e-12 | BC46: -2.144913513e-12 | BD46: -2.144913513e-12 | BE46: -2.144913513e-12 | BF46: -2.144913513e-12 | BG46: -2.144913513e-12 | BH46: -2.144913513e-12 | BI46: -2.144913513e-12 | BJ46: -2.144913513e-12 | BK46: -2.144913513e-12 | BL46: -2.144913513e-12 | BM46: -2.144913513e-12
D47: Return on Equity | K47: =SUMPRODUCT(O47:BM47,$O$7:$BM$7) -> 181037.7245 | L47: =SUM(O47:BM47) -> 231413.9703 | O47: =O496 -> 0 | P47: =P496 -> 54640.51041 | Q47: 42143.38216 | R47: 34555.50406 | S47: 28457.86473 | T47: 22919.06495 | U47: 17799.39483 | V47: 13517.98402 | W47: 9655.702875 | X47: 5793.421725 | Y47: 1931.140575 | Z47: -3.973987382e-12 | AA47: -6.457086383e-12 | AB47: -6.457086383e-12 | AC47: -6.457086383e-12 | AD47: -6.457086383e-12 | AE47: -6.457086383e-12 | AF47: -6.457086383e-12 | AG47: -6.457086383e-12 | AH47: -6.457086383e-12 | AI47: -6.457086383e-12 | AJ47: -6.457086383e-12 | AK47: -6.457086383e-12 | AL47: -6.457086383e-12 | AM47: -6.457086383e-12 | AN47: -6.457086383e-12 | AO47: -6.457086383e-12 | AP47: -6.457086383e-12 | AQ47: -6.457086383e-12 | AR47: -6.457086383e-12 | AS47: -6.457086383e-12 | AT47: -6.457086383e-12 | AU47: -6.457086383e-12 | AV47: -6.457086383e-12 | AW47: -6.457086383e-12 | AX47: -6.457086383e-12 | AY47: -6.457086383e-12 | AZ47: -6.457086383e-12 | BA47: -6.457086383e-12 | BB47: -6.457086383e-12 | BC47: -6.457086383e-12 | BD47: -6.457086383e-12 | BE47: -6.457086383e-12 | BF47: -6.457086383e-12 | BG47: -6.457086383e-12 | BH47: -6.457086383e-12 | BI47: -6.457086383e-12 | BJ47: -6.457086383e-12 | BK47: -6.457086383e-12 | BL47: -6.457086383e-12 | BM47: -6.457086383e-12
D48: Income Tax | K48: 113691.9857 | L48: 145328.3501 | O48: =O525 -> 0 | P48: =P525 -> 34314.3295 | Q48: 26466.11261 | R48: 21700.9128 | S48: 17871.58538 | T48: 14393.2101 | U48: 11178.04893 | V48: 8489.315975 | W48: 6063.797125 | X48: 3638.278275 | Y48: 1212.759425 | Z48: -2.495670545e-12 | AA48: -4.055060761e-12 | AB48: -4.055060761e-12 | AC48: -4.055060761e-12 | AD48: -4.055060761e-12 | AE48: -4.055060761e-12 | AF48: -4.055060761e-12 | AG48: -4.055060761e-12 | AH48: -4.055060761e-12 | AI48: -4.055060761e-12 | AJ48: -4.055060761e-12 | AK48: -4.055060761e-12 | AL48: -4.055060761e-12 | AM48: -4.055060761e-12 | AN48: -4.055060761e-12 | AO48: -4.055060761e-12 | AP48: -4.055060761e-12 | AQ48: -4.055060761e-12 | AR48: -4.055060761e-12 | AS48: -4.055060761e-12 | AT48: -4.055060761e-12 | AU48: -4.055060761e-12 | AV48: -4.055060761e-12 | AW48: -4.055060761e-12 | AX48: -4.055060761e-12 | AY48: -4.055060761e-12 | AZ48: -4.055060761e-12 | BA48: -4.055060761e-12 | BB48: -4.055060761e-12 | BC48: -4.055060761e-12 | BD48: -4.055060761e-12 | BE48: -4.055060761e-12 | BF48: -4.055060761e-12 | BG48: -4.055060761e-12 | BH48: -4.055060761e-12 | BI48: -4.055060761e-12 | BJ48: -4.055060761e-12 | BK48: -4.055060761e-12 | BL48: -4.055060761e-12 | BM48: -4.055060761e-12
D49: AFUDC Perm Tax Difference | K49: =SUMPRODUCT(O49:BM49,$O$7:$BM$7) -> 0 | L49: =SUM(O49:BM49) -> 0 | O49: =O1195 -> 0 | P49: =P1195 -> 0 | Q49: 0 | R49: 0 | S49: 0 | T49: 0 | U49: 0 | V49: 0 | W49: 0 | X49: 0 | Y49: 0 | Z49: 0 | AA49: 0 | AB49: 0 | AC49: 0 | AD49: 0 | AE49: 0 | AF49: 0 | AG49: 0 | AH49: 0 | AI49: 0 | AJ49: 0 | AK49: 0 | AL49: 0 | AM49: 0 | AN49: 0 | AO49: 0 | AP49: 0 | AQ49: 0 | AR49: 0 | AS49: 0 | AT49: 0 | AU49: 0 | AV49: 0 | AW49: 0 | AX49: 0 | AY49: 0 | AZ49: 0 | BA49: 0 | BB49: 0 | BC49: 0 | BD49: 0 | BE49: 0 | BF49: 0 | BG49: 0 | BH49: 0 | BI49: 0 | BJ49: 0 | BK49: 0 | BL49: 0 | BM49: 0
D50: ITC Normalization | K50: 0 | L50: 0 | O50: =O1374 -> 0 | P50: =P1374 -> 0 | Q50: 0 | R50: 0 | S50: 0 | T50: 0 | U50: 0 | V50: 0 | W50: 0 | X50: 0 | Y50: 0 | Z50: 0 | AA50: 0 | AB50: 0 | AC50: 0 | AD50: 0 | AE50: 0 | AF50: 0 | AG50: 0 | AH50: 0 | AI50: 0 | AJ50: 0 | AK50: 0 | AL50: 0 | AM50: 0 | AN50: 0 | AO50: 0 | AP50: 0 | AQ50: 0 | AR50: 0 | AS50: 0 | AT50: 0 | AU50: =AU1374 -> 0 | AV50: 0 | AW50: 0 | AX50: 0 | AY50: 0 | AZ50: 0 | BA50: 0 | BB50: 0 | BC50: 0 | BD50: 0 | BE50: 0 | BF50: 0 | BG50: 0 | BH50: 0 | BI50: 0 | BJ50: 0 | BK50: 0 | BL50: 0 | BM50: 0
D51: ="Total "&D41 -> Total Revenue Requirement - unfavorable/(favorable) | K51: 1119185.661 | L51: 1561667.361 | O51: =SUM(O42:O50) -> 0 | P51: 225735.3125 | Q51: 199375.674 | R51: 182639.0565 | S51: 168823.5773 | T51: 156103.5249 | U51: 144205.0428 | V51: 133949.7009 | W51: 124515.9292 | X51: 115082.1575 | Y51: 107511.3858 | Z51: 3726 | AA51: -1.265706066e-11 | AB51: -1.265706066e-11 | AC51: -1.265706066e-11 | AD51: -1.265706066e-11 | AE51: -1.265706066e-11 | AF51: -1.265706066e-11 | AG51: -1.265706066e-11 | AH51: -1.265706066e-11 | AI51: -1.265706066e-11 | AJ51: -1.265706066e-11 | AK51: -1.265706066e-11 | AL51: -1.265706066e-11 | AM51: -1.265706066e-11 | AN51: -1.265706066e-11 | AO51: -1.265706066e-11 | AP51: -1.265706066e-11 | AQ51: -1.265706066e-11 | AR51: -1.265706066e-11 | AS51: -1.265706066e-11 | AT51: -1.265706066e-11 | AU51: =SUM(AU42:AU50) -> -1.265706066e-11 | AV51: -1.265706066e-11 | AW51: -1.265706066e-11 | AX51: -1.265706066e-11 | AY51: -1.265706066e-11 | AZ51: -1.265706066e-11 | BA51: -1.265706066e-11 | BB51: -1.265706066e-11 | BC51: -1.265706066e-11 | BD51: -1.265706066e-11 | BE51: -1.265706066e-11 | BF51: -1.265706066e-11 | BG51: -1.265706066e-11 | BH51: -1.265706066e-11 | BI51: -1.265706066e-11 | BJ51: -1.265706066e-11 | BK51: -1.265706066e-11 | BL51: -1.265706066e-11 | BM51: -1.265706066e-11
D52: check | K52: =K51-K37 -> 0 | L52: =L51-L37 -> 0 | O52: =O51-O37 -> 0 | P52: 0 | Q52: 0 | R52: 0 | S52: 0 | T52: 0 | U52: 0 | V52: 0 | W52: 0 | X52: 0 | Y52: 0 | Z52: 0 | AA52: 0 | AB52: 0 | AC52: 0 | AD52: 0 | AE52: 0 | AF52: 0 | AG52: 0 | AH52: 0 | AI52: 0 | AJ52: 0 | AK52: 0 | AL52: 0 | AM52: 0 | AN52: 0 | AO52: 0 | AP52: 0 | AQ52: 0 | AR52: 0 | AS52: 0 | AT52: 0 | AU52: =AU51-AU37 -> 0 | AV52: 0 | AW52: 0 | AX52: 0 | AY52: 0 | AZ52: 0 | BA52: 0 | BB52: 0 | BC52: 0 | BD52: 0 | BE52: 0 | BF52: 0 | BG52: 0 | BH52: 0 | BI52: 0 | BJ52: 0 | BK52: 0 | BL52: 0 | BM52: 0
D54: Cumulative CPVRR | K54: =BM54 -> 1119185.661 | O54: =SUMPRODUCT($O37:O37,$O$7:O$7) -> 0 | P54: =SUMPRODUCT($O37:P37,$O$7:P$7) -> 209848.1854 | Q54: =SUMPRODUCT($O37:Q37,$O$7:Q$7) -> 382147.5201 | R54: =SUMPRODUCT($O37:R37,$O$7:R$7) -> 528845.4443 | S54: =SUMPRODUCT($O37:S37,$O$7:S$7) -> 654903.0715 | T54: =SUMPRODUCT($O37:T37,$O$7:T$7) -> 763259.4435 | U54: =SUMPRODUCT($O37:U37,$O$7:U$7) -> 856311.9142 | V54: =SUMPRODUCT($O37:V37,$O$7:V$7) -> 936647.5235 | W54: =SUMPRODUCT($O37:W37,$O$7:W$7) -> 1006069.5 | X54: =SUMPRODUCT($O37:X37,$O$7:X$7) -> 1065716.11 | Y54: =SUMPRODUCT($O37:Y37,$O$7:Y$7) -> 1117517.087 | Z54: =SUMPRODUCT($O37:Z37,$O$7:Z$7) -> 1119185.661 | AA54: =SUMPRODUCT($O37:AA37,$O$7:AA$7) -> 1119185.661 | AB54: =SUMPRODUCT($O37:AB37,$O$7:AB$7) -> 1119185.661 | AC54: =SUMPRODUCT($O37:AC37,$O$7:AC$7) -> 1119185.661 | AD54: =SUMPRODUCT($O37:AD37,$O$7:AD$7) -> 1119185.661 | AE54: =SUMPRODUCT($O37:AE37,$O$7:AE$7) -> 1119185.661 | AF54: =SUMPRODUCT($O37:AF37,$O$7:AF$7) -> 1119185.661 | AG54: =SUMPRODUCT($O37:AG37,$O$7:AG$7) -> 1119185.661 | AH54: =SUMPRODUCT($O37:AH37,$O$7:AH$7) -> 1119185.661 | AI54: =SUMPRODUCT($O37:AI37,$O$7:AI$7) -> 1119185.661 | AJ54: =SUMPRODUCT($O37:AJ37,$O$7:AJ$7) -> 1119185.661 | AK54: =SUMPRODUCT($O37:AK37,$O$7:AK$7) -> 1119185.661 | AL54: =SUMPRODUCT($O37:AL37,$O$7:AL$7) -> 1119185.661 | AM54: =SUMPRODUCT($O37:AM37,$O$7:AM$7) -> 1119185.661 | AN54: =SUMPRODUCT($O37:AN37,$O$7:AN$7) -> 1119185.661 | AO54: =SUMPRODUCT($O37:AO37,$O$7:AO$7) -> 1119185.661 | AP54: =SUMPRODUCT($O37:AP37,$O$7:AP$7) -> 1119185.661 | AQ54: =SUMPRODUCT($O37:AQ37,$O$7:AQ$7) -> 1119185.661 | AR54: =SUMPRODUCT($O37:AR37,$O$7:AR$7) -> 1119185.661 | AS54: =SUMPRODUCT($O37:AS37,$O$7:AS$7) -> 1119185.661 | AT54: =SUMPRODUCT($O37:AT37,$O$7:AT$7) -> 1119185.661 | AU54: =SUMPRODUCT($O37:AU37,$O$7:AU$7) -> 1119185.661 | AV54: =SUMPRODUCT($O37:AV37,$O$7:AV$7) -> 1119185.661 | AW54: =SUMPRODUCT($O37:AW37,$O$7:AW$7) -> 1119185.661 | AX54: =SUMPRODUCT($O37:AX37,$O$7:AX$7) -> 1119185.661 | AY54: =SUMPRODUCT($O37:AY37,$O$7:AY$7) -> 1119185.661 | AZ54: =SUMPRODUCT($O37:AZ37,$O$7:AZ$7) -> 1119185.661 | BA54: =SUMPRODUCT($O37:BA37,$O$7:BA$7) -> 1119185.661 | BB54: =SUMPRODUCT($O37:BB37,$O$7:BB$7) -> 1119185.661 | BC54: =SUMPRODUCT($O37:BC37,$O$7:BC$7) -> 1119185.661 | BD54: =SUMPRODUCT($O37:BD37,$O$7:BD$7) -> 1119185.661 | BE54: =SUMPRODUCT($O37:BE37,$O$7:BE$7) -> 1119185.661 | BF54: =SUMPRODUCT($O37:BF37,$O$7:BF$7) -> 1119185.661 | BG54: =SUMPRODUCT($O37:BG37,$O$7:BG$7) -> 1119185.661 | BH54: =SUMPRODUCT($O37:BH37,$O$7:BH$7) -> 1119185.661 | BI54: =SUMPRODUCT($O37:BI37,$O$7:BI$7) -> 1119185.661 | BJ54: =SUMPRODUCT($O37:BJ37,$O$7:BJ$7) -> 1119185.661 | BK54: =SUMPRODUCT($O37:BK37,$O$7:BK$7) -> 1119185.661 | BL54: =SUMPRODUCT($O37:BL37,$O$7:BL$7) -> 1119185.661 | BM54: =SUMPRODUCT($O37:BM37,$O$7:BM$7) -> 1119185.661
D56: CASH FLOWS
D58: Cash Flow, Unescalated | I58: Sign Flip
C59: =C58+1 -> 1 | D59: =Input!D8 -> item 1 | E59: =Input!E8 -> Capital | F59: =MATCH(E59,lookups!$C$90:$C$95,0) -> 4 | H59: =IF(Input!$E8=lookups!$C$90,"Sign Flip"," ... ") -> ... | I59: =IF(Input!$E8=lookups!$C$90,-1,1) -> 1 | K59: =SUMPRODUCT(O59:BM59,$O$7:$BM$7) -> 929620.5505 | L59: =SUM(O59:BM59) -> 1000000 | O59: =Input!S8*$I59 -> 0 | P59: =Input!T8*$I59 -> 1000000 | Q59: =Input!U8*$I59 -> 0 | R59: =Input!V8*$I59 -> 0 | S59: =Input!W8*$I59 -> 0 | T59: =Input!X8*$I59 -> 0 | U59: =Input!Y8*$I59 -> 0 | V59: =Input!Z8*$I59 -> 0 | W59: =Input!AA8*$I59 -> 0 | X59: =Input!AB8*$I59 -> 0 | Y59: =Input!AC8*$I59 -> 0 | Z59: =Input!AD8*$I59 -> 0 | AA59: =Input!AE8*$I59 -> 0 | AB59: =Input!AF8*$I59 -> 0 | AC59: =Input!AG8*$I59 -> 0 | AD59: =Input!AH8*$I59 -> 0 | AE59: =Input!AI8*$I59 -> 0 | AF59: =Input!AJ8*$I59 -> 0 | AG59: =Input!AK8*$I59 -> 0 | AH59: =Input!AL8*$I59 -> 0 | AI59: =Input!AM8*$I59 -> 0 | AJ59: =Input!AN8*$I59 -> 0 | AK59: =Input!AO8*$I59 -> 0 | AL59: =Input!AP8*$I59 -> 0 | AM59: =Input!AQ8*$I59 -> 0 | AN59: =Input!AR8*$I59 -> 0 | AO59: =Input!AS8*$I59 -> 0 | AP59: =Input!AT8*$I59 -> 0 | AQ59: =Input!AU8*$I59 -> 0 | AR59: =Input!AV8*$I59 -> 0 | AS59: =Input!AW8*$I59 -> 0 | AT59: =Input!AX8*$I59 -> 0 | AU59: =Input!AY8*$I59 -> 0 | AV59: =Input!AZ8*$I59 -> 0 | AW59: =Input!BA8*$I59 -> 0 | AX59: =Input!BB8*$I59 -> 0 | AY59: =Input!BC8*$I59 -> 0 | AZ59: =Input!BD8*$I59 -> 0 | BA59: =Input!BE8*$I59 -> 0 | BB59: =Input!BF8*$I59 -> 0 | BC59: =Input!BG8*$I59 -> 0 | BD59: =Input!BH8*$I59 -> 0 | BE59: =Input!BI8*$I59 -> 0 | BF59: =Input!BJ8*$I59 -> 0 | BG59: =Input!BK8*$I59 -> 0 | BH59: =Input!BL8*$I59 -> 0 | BI59: =Input!BM8*$I59 -> 0 | BJ59: =Input!BN8*$I59 -> 0 | BK59: =Input!BO8*$I59 -> 0 | BL59: =Input!BP8*$I59 -> 0 | BM59: =Input!BQ8*$I59 -> 0
C60: =C59+1 -> 2 | D60: =Input!D9 -> item 2 | E60: =Input!E9 -> Capital | F60: =MATCH(E60,lookups!$C$90:$C$95,0) -> 4 | H60: =IF(Input!$E9=lookups!$C$90,"Sign Flip"," ... ") -> ... | I60: =IF(Input!$E9=lookups!$C$90,-1,1) -> 1 | K60: =SUMPRODUCT(O60:BM60,$O$7:$BM$7) -> 0 | L60: =SUM(O60:BM60) -> 0 | O60: =Input!S9*$I60 -> 0 | P60: =Input!T9*$I60 -> 0 | Q60: =Input!U9*$I60 -> 0 | R60: =Input!V9*$I60 -> 0 | S60: =Input!W9*$I60 -> 0 | T60: =Input!X9*$I60 -> 0 | U60: =Input!Y9*$I60 -> 0 | V60: =Input!Z9*$I60 -> 0 | W60: =Input!AA9*$I60 -> 0 | X60: =Input!AB9*$I60 -> 0 | Y60: =Input!AC9*$I60 -> 0 | Z60: =Input!AD9*$I60 -> 0 | AA60: =Input!AE9*$I60 -> 0 | AB60: =Input!AF9*$I60 -> 0 | AC60: =Input!AG9*$I60 -> 0 | AD60: =Input!AH9*$I60 -> 0 | AE60: =Input!AI9*$I60 -> 0 | AF60: =Input!AJ9*$I60 -> 0 | AG60: =Input!AK9*$I60 -> 0 | AH60: =Input!AL9*$I60 -> 0 | AI60: =Input!AM9*$I60 -> 0 | AJ60: =Input!AN9*$I60 -> 0 | AK60: =Input!AO9*$I60 -> 0 | AL60: =Input!AP9*$I60 -> 0 | AM60: =Input!AQ9*$I60 -> 0 | AN60: =Input!AR9*$I60 -> 0 | AO60: =Input!AS9*$I60 -> 0 | AP60: =Input!AT9*$I60 -> 0 | AQ60: =Input!AU9*$I60 -> 0 | AR60: =Input!AV9*$I60 -> 0 | AS60: =Input!AW9*$I60 -> 0 | AT60: =Input!AX9*$I60 -> 0 | AU60: =Input!AY9*$I60 -> 0 | AV60: =Input!AZ9*$I60 -> 0 | AW60: =Input!BA9*$I60 -> 0 | AX60: =Input!BB9*$I60 -> 0 | AY60: =Input!BC9*$I60 -> 0 | AZ60: =Input!BD9*$I60 -> 0 | BA60: =Input!BE9*$I60 -> 0 | BB60: =Input!BF9*$I60 -> 0 | BC60: =Input!BG9*$I60 -> 0 | BD60: =Input!BH9*$I60 -> 0 | BE60: =Input!BI9*$I60 -> 0 | BF60: =Input!BJ9*$I60 -> 0 | BG60: =Input!BK9*$I60 -> 0 | BH60: =Input!BL9*$I60 -> 0 | BI60: =Input!BM9*$I60 -> 0 | BJ60: =Input!BN9*$I60 -> 0 | BK60: =Input!BO9*$I60 -> 0 | BL60: =Input!BP9*$I60 -> 0 | BM60: =Input!BQ9*$I60 -> 0
C61: 3 | D61: =Input!D10 -> item 3 | E61: =Input!E10 -> Capital | F61: =MATCH(E61,lookups!$C$90:$C$95,0) -> 4 | H61: =IF(Input!$E10=lookups!$C$90,"Sign Flip"," ... ") -> ... | I61: =IF(Input!$E10=lookups!$C$90,-1,1) -> 1 | K61: 0 | L61: 0 | O61: =Input!S10*$I61 -> 0 | P61: =Input!T10*$I61 -> 0 | Q61: =Input!U10*$I61 -> 0 | R61: =Input!V10*$I61 -> 0 | S61: =Input!W10*$I61 -> 0 | T61: =Input!X10*$I61 -> 0 | U61: =Input!Y10*$I61 -> 0 | V61: =Input!Z10*$I61 -> 0 | W61: =Input!AA10*$I61 -> 0 | X61: =Input!AB10*$I61 -> 0 | Y61: =Input!AC10*$I61 -> 0 | Z61: =Input!AD10*$I61 -> 0 | AA61: =Input!AE10*$I61 -> 0 | AB61: =Input!AF10*$I61 -> 0 | AC61: =Input!AG10*$I61 -> 0 | AD61: =Input!AH10*$I61 -> 0 | AE61: =Input!AI10*$I61 -> 0 | AF61: =Input!AJ10*$I61 -> 0 | AG61: =Input!AK10*$I61 -> 0 | AH61: =Input!AL10*$I61 -> 0 | AI61: =Input!AM10*$I61 -> 0 | AJ61: =Input!AN10*$I61 -> 0 | AK61: =Input!AO10*$I61 -> 0 | AL61: =Input!AP10*$I61 -> 0 | AM61: =Input!AQ10*$I61 -> 0 | AN61: =Input!AR10*$I61 -> 0 | AO61: =Input!AS10*$I61 -> 0 | AP61: =Input!AT10*$I61 -> 0 | AQ61: =Input!AU10*$I61 -> 0 | AR61: =Input!AV10*$I61 -> 0 | AS61: =Input!AW10*$I61 -> 0 | AT61: =Input!AX10*$I61 -> 0 | AU61: =Input!AY10*$I61 -> 0 | AV61: =Input!AZ10*$I61 -> 0 | AW61: =Input!BA10*$I61 -> 0 | AX61: =Input!BB10*$I61 -> 0 | AY61: =Input!BC10*$I61 -> 0 | AZ61: =Input!BD10*$I61 -> 0 | BA61: =Input!BE10*$I61 -> 0 | BB61: =Input!BF10*$I61 -> 0 | BC61: =Input!BG10*$I61 -> 0 | BD61: =Input!BH10*$I61 -> 0 | BE61: =Input!BI10*$I61 -> 0 | BF61: =Input!BJ10*$I61 -> 0 | BG61: =Input!BK10*$I61 -> 0 | BH61: =Input!BL10*$I61 -> 0 | BI61: =Input!BM10*$I61 -> 0 | BJ61: =Input!BN10*$I61 -> 0 | BK61: =Input!BO10*$I61 -> 0 | BL61: =Input!BP10*$I61 -> 0 | BM61: =Input!BQ10*$I61 -> 0
C62: 4 | D62: =Input!D11 -> item 4 | E62: =Input!E11 -> Capital | F62: =MATCH(E62,lookups!$C$90:$C$95,0) -> 4 | H62: =IF(Input!$E11=lookups!$C$90,"Sign Flip"," ... ") -> ... | I62: =IF(Input!$E11=lookups!$C$90,-1,1) -> 1 | K62: 0 | L62: 0 | O62: =Input!S11*$I62 -> 0 | P62: =Input!T11*$I62 -> 0 | Q62: =Input!U11*$I62 -> 0 | R62: =Input!V11*$I62 -> 0 | S62: =Input!W11*$I62 -> 0 | T62: =Input!X11*$I62 -> 0 | U62: =Input!Y11*$I62 -> 0 | V62: =Input!Z11*$I62 -> 0 | W62: =Input!AA11*$I62 -> 0 | X62: =Input!AB11*$I62 -> 0 | Y62: =Input!AC11*$I62 -> 0 | Z62: =Input!AD11*$I62 -> 0 | AA62: =Input!AE11*$I62 -> 0 | AB62: =Input!AF11*$I62 -> 0 | AC62: =Input!AG11*$I62 -> 0 | AD62: =Input!AH11*$I62 -> 0 | AE62: =Input!AI11*$I62 -> 0 | AF62: =Input!AJ11*$I62 -> 0 | AG62: =Input!AK11*$I62 -> 0 | AH62: =Input!AL11*$I62 -> 0 | AI62: =Input!AM11*$I62 -> 0 | AJ62: =Input!AN11*$I62 -> 0 | AK62: =Input!AO11*$I62 -> 0 | AL62: =Input!AP11*$I62 -> 0 | AM62: =Input!AQ11*$I62 -> 0 | AN62: =Input!AR11*$I62 -> 0 | AO62: =Input!AS11*$I62 -> 0 | AP62: =Input!AT11*$I62 -> 0 | AQ62: =Input!AU11*$I62 -> 0 | AR62: =Input!AV11*$I62 -> 0 | AS62: =Input!AW11*$I62 -> 0 | AT62: =Input!AX11*$I62 -> 0 | AU62: =Input!AY11*$I62 -> 0 | AV62: =Input!AZ11*$I62 -> 0 | AW62: =Input!BA11*$I62 -> 0 | AX62: =Input!BB11*$I62 -> 0 | AY62: =Input!BC11*$I62 -> 0 | AZ62: =Input!BD11*$I62 -> 0 | BA62: =Input!BE11*$I62 -> 0 | BB62: =Input!BF11*$I62 -> 0 | BC62: =Input!BG11*$I62 -> 0 | BD62: =Input!BH11*$I62 -> 0 | BE62: =Input!BI11*$I62 -> 0 | BF62: =Input!BJ11*$I62 -> 0 | BG62: =Input!BK11*$I62 -> 0 | BH62: =Input!BL11*$I62 -> 0 | BI62: =Input!BM11*$I62 -> 0 | BJ62: =Input!BN11*$I62 -> 0 | BK62: =Input!BO11*$I62 -> 0 | BL62: =Input!BP11*$I62 -> 0 | BM62: =Input!BQ11*$I62 -> 0
C63: 5 | D63: =Input!D12 -> item 5 | E63: =Input!E12 -> Capital | F63: =MATCH(E63,lookups!$C$90:$C$95,0) -> 4 | H63: =IF(Input!$E12=lookups!$C$90,"Sign Flip"," ... ") -> ... | I63: =IF(Input!$E12=lookups!$C$90,-1,1) -> 1 | K63: 0 | L63: 0 | O63: =Input!S12*$I63 -> 0 | P63: =Input!T12*$I63 -> 0 | Q63: =Input!U12*$I63 -> 0 | R63: =Input!V12*$I63 -> 0 | S63: =Input!W12*$I63 -> 0 | T63: =Input!X12*$I63 -> 0 | U63: =Input!Y12*$I63 -> 0 | V63: =Input!Z12*$I63 -> 0 | W63: =Input!AA12*$I63 -> 0 | X63: =Input!AB12*$I63 -> 0 | Y63: =Input!AC12*$I63 -> 0 | Z63: =Input!AD12*$I63 -> 0 | AA63: =Input!AE12*$I63 -> 0 | AB63: =Input!AF12*$I63 -> 0 | AC63: =Input!AG12*$I63 -> 0 | AD63: =Input!AH12*$I63 -> 0 | AE63: =Input!AI12*$I63 -> 0 | AF63: =Input!AJ12*$I63 -> 0 | AG63: =Input!AK12*$I63 -> 0 | AH63: =Input!AL12*$I63 -> 0 | AI63: =Input!AM12*$I63 -> 0 | AJ63: =Input!AN12*$I63 -> 0 | AK63: =Input!AO12*$I63 -> 0 | AL63: =Input!AP12*$I63 -> 0 | AM63: =Input!AQ12*$I63 -> 0 | AN63: =Input!AR12*$I63 -> 0 | AO63: =Input!AS12*$I63 -> 0 | AP63: =Input!AT12*$I63 -> 0 | AQ63: =Input!AU12*$I63 -> 0 | AR63: =Input!AV12*$I63 -> 0 | AS63: =Input!AW12*$I63 -> 0 | AT63: =Input!AX12*$I63 -> 0 | AU63: =Input!AY12*$I63 -> 0 | AV63: =Input!AZ12*$I63 -> 0 | AW63: =Input!BA12*$I63 -> 0 | AX63: =Input!BB12*$I63 -> 0 | AY63: =Input!BC12*$I63 -> 0 | AZ63: =Input!BD12*$I63 -> 0 | BA63: =Input!BE12*$I63 -> 0 | BB63: =Input!BF12*$I63 -> 0 | BC63: =Input!BG12*$I63 -> 0 | BD63: =Input!BH12*$I63 -> 0 | BE63: =Input!BI12*$I63 -> 0 | BF63: =Input!BJ12*$I63 -> 0 | BG63: =Input!BK12*$I63 -> 0 | BH63: =Input!BL12*$I63 -> 0 | BI63: =Input!BM12*$I63 -> 0 | BJ63: =Input!BN12*$I63 -> 0 | BK63: =Input!BO12*$I63 -> 0 | BL63: =Input!BP12*$I63 -> 0 | BM63: =Input!BQ12*$I63 -> 0
C64: 6 | D64: =Input!D13 -> item 6 | E64: =Input!E13 -> Capital | F64: =MATCH(E64,lookups!$C$90:$C$95,0) -> 4 | H64: =IF(Input!$E13=lookups!$C$90,"Sign Flip"," ... ") -> ... | I64: =IF(Input!$E13=lookups!$C$90,-1,1) -> 1 | K64: 0 | L64: 0 | O64: =Input!S13*$I64 -> 0 | P64: =Input!T13*$I64 -> 0 | Q64: =Input!U13*$I64 -> 0 | R64: =Input!V13*$I64 -> 0 | S64: =Input!W13*$I64 -> 0 | T64: =Input!X13*$I64 -> 0 | U64: =Input!Y13*$I64 -> 0 | V64: =Input!Z13*$I64 -> 0 | W64: =Input!AA13*$I64 -> 0 | X64: =Input!AB13*$I64 -> 0 | Y64: =Input!AC13*$I64 -> 0 | Z64: =Input!AD13*$I64 -> 0 | AA64: =Input!AE13*$I64 -> 0 | AB64: =Input!AF13*$I64 -> 0 | AC64: =Input!AG13*$I64 -> 0 | AD64: =Input!AH13*$I64 -> 0 | AE64: =Input!AI13*$I64 -> 0 | AF64: =Input!AJ13*$I64 -> 0 | AG64: =Input!AK13*$I64 -> 0 | AH64: =Input!AL13*$I64 -> 0 | AI64: =Input!AM13*$I64 -> 0 | AJ64: =Input!AN13*$I64 -> 0 | AK64: =Input!AO13*$I64 -> 0 | AL64: =Input!AP13*$I64 -> 0 | AM64: =Input!AQ13*$I64 -> 0 | AN64: =Input!AR13*$I64 -> 0 | AO64: =Input!AS13*$I64 -> 0 | AP64: =Input!AT13*$I64 -> 0 | AQ64: =Input!AU13*$I64 -> 0 | AR64: =Input!AV13*$I64 -> 0 | AS64: =Input!AW13*$I64 -> 0 | AT64: =Input!AX13*$I64 -> 0 | AU64: =Input!AY13*$I64 -> 0 | AV64: =Input!AZ13*$I64 -> 0 | AW64: =Input!BA13*$I64 -> 0 | AX64: =Input!BB13*$I64 -> 0 | AY64: =Input!BC13*$I64 -> 0 | AZ64: =Input!BD13*$I64 -> 0 | BA64: =Input!BE13*$I64 -> 0 | BB64: =Input!BF13*$I64 -> 0 | BC64: =Input!BG13*$I64 -> 0 | BD64: =Input!BH13*$I64 -> 0 | BE64: =Input!BI13*$I64 -> 0 | BF64: =Input!BJ13*$I64 -> 0 | BG64: =Input!BK13*$I64 -> 0 | BH64: =Input!BL13*$I64 -> 0 | BI64: =Input!BM13*$I64 -> 0 | BJ64: =Input!BN13*$I64 -> 0 | BK64: =Input!BO13*$I64 -> 0 | BL64: =Input!BP13*$I64 -> 0 | BM64: =Input!BQ13*$I64 -> 0
C65: 7 | D65: =Input!D14 -> item 7 | E65: =Input!E14 -> Capital | F65: =MATCH(E65,lookups!$C$90:$C$95,0) -> 4 | H65: =IF(Input!$E14=lookups!$C$90,"Sign Flip"," ... ") -> ... | I65: =IF(Input!$E14=lookups!$C$90,-1,1) -> 1 | K65: 0 | L65: 0 | O65: =Input!S14*$I65 -> 0 | P65: =Input!T14*$I65 -> 0 | Q65: =Input!U14*$I65 -> 0 | R65: =Input!V14*$I65 -> 0 | S65: =Input!W14*$I65 -> 0 | T65: =Input!X14*$I65 -> 0 | U65: =Input!Y14*$I65 -> 0 | V65: =Input!Z14*$I65 -> 0 | W65: =Input!AA14*$I65 -> 0 | X65: =Input!AB14*$I65 -> 0 | Y65: =Input!AC14*$I65 -> 0 | Z65: =Input!AD14*$I65 -> 0 | AA65: =Input!AE14*$I65 -> 0 | AB65: =Input!AF14*$I65 -> 0 | AC65: =Input!AG14*$I65 -> 0 | AD65: =Input!AH14*$I65 -> 0 | AE65: =Input!AI14*$I65 -> 0 | AF65: =Input!AJ14*$I65 -> 0 | AG65: =Input!AK14*$I65 -> 0 | AH65: =Input!AL14*$I65 -> 0 | AI65: =Input!AM14*$I65 -> 0 | AJ65: =Input!AN14*$I65 -> 0 | AK65: =Input!AO14*$I65 -> 0 | AL65: =Input!AP14*$I65 -> 0 | AM65: =Input!AQ14*$I65 -> 0 | AN65: =Input!AR14*$I65 -> 0 | AO65: =Input!AS14*$I65 -> 0 | AP65: =Input!AT14*$I65 -> 0 | AQ65: =Input!AU14*$I65 -> 0 | AR65: =Input!AV14*$I65 -> 0 | AS65: =Input!AW14*$I65 -> 0 | AT65: =Input!AX14*$I65 -> 0 | AU65: =Input!AY14*$I65 -> 0 | AV65: =Input!AZ14*$I65 -> 0 | AW65: =Input!BA14*$I65 -> 0 | AX65: =Input!BB14*$I65 -> 0 | AY65: =Input!BC14*$I65 -> 0 | AZ65: =Input!BD14*$I65 -> 0 | BA65: =Input!BE14*$I65 -> 0 | BB65: =Input!BF14*$I65 -> 0 | BC65: =Input!BG14*$I65 -> 0 | BD65: =Input!BH14*$I65 -> 0 | BE65: =Input!BI14*$I65 -> 0 | BF65: =Input!BJ14*$I65 -> 0 | BG65: =Input!BK14*$I65 -> 0 | BH65: =Input!BL14*$I65 -> 0 | BI65: =Input!BM14*$I65 -> 0 | BJ65: =Input!BN14*$I65 -> 0 | BK65: =Input!BO14*$I65 -> 0 | BL65: =Input!BP14*$I65 -> 0 | BM65: =Input!BQ14*$I65 -> 0
C66: 8 | D66: =Input!D15 -> item 8 | E66: =Input!E15 -> Capital | F66: =MATCH(E66,lookups!$C$90:$C$95,0) -> 4 | H66: =IF(Input!$E15=lookups!$C$90,"Sign Flip"," ... ") -> ... | I66: =IF(Input!$E15=lookups!$C$90,-1,1) -> 1 | K66: 0 | L66: 0 | O66: =Input!S15*$I66 -> 0 | P66: =Input!T15*$I66 -> 0 | Q66: =Input!U15*$I66 -> 0 | R66: =Input!V15*$I66 -> 0 | S66: =Input!W15*$I66 -> 0 | T66: =Input!X15*$I66 -> 0 | U66: =Input!Y15*$I66 -> 0 | V66: =Input!Z15*$I66 -> 0 | W66: =Input!AA15*$I66 -> 0 | X66: =Input!AB15*$I66 -> 0 | Y66: =Input!AC15*$I66 -> 0 | Z66: =Input!AD15*$I66 -> 0 | AA66: =Input!AE15*$I66 -> 0 | AB66: =Input!AF15*$I66 -> 0 | AC66: =Input!AG15*$I66 -> 0 | AD66: =Input!AH15*$I66 -> 0 | AE66: =Input!AI15*$I66 -> 0 | AF66: =Input!AJ15*$I66 -> 0 | AG66: =Input!AK15*$I66 -> 0 | AH66: =Input!AL15*$I66 -> 0 | AI66: =Input!AM15*$I66 -> 0 | AJ66: =Input!AN15*$I66 -> 0 | AK66: =Input!AO15*$I66 -> 0 | AL66: =Input!AP15*$I66 -> 0 | AM66: =Input!AQ15*$I66 -> 0 | AN66: =Input!AR15*$I66 -> 0 | AO66: =Input!AS15*$I66 -> 0 | AP66: =Input!AT15*$I66 -> 0 | AQ66: =Input!AU15*$I66 -> 0 | AR66: =Input!AV15*$I66 -> 0 | AS66: =Input!AW15*$I66 -> 0 | AT66: =Input!AX15*$I66 -> 0 | AU66: =Input!AY15*$I66 -> 0 | AV66: =Input!AZ15*$I66 -> 0 | AW66: =Input!BA15*$I66 -> 0 | AX66: =Input!BB15*$I66 -> 0 | AY66: =Input!BC15*$I66 -> 0 | AZ66: =Input!BD15*$I66 -> 0 | BA66: =Input!BE15*$I66 -> 0 | BB66: =Input!BF15*$I66 -> 0 | BC66: =Input!BG15*$I66 -> 0 | BD66: =Input!BH15*$I66 -> 0 | BE66: =Input!BI15*$I66 -> 0 | BF66: =Input!BJ15*$I66 -> 0 | BG66: =Input!BK15*$I66 -> 0 | BH66: =Input!BL15*$I66 -> 0 | BI66: =Input!BM15*$I66 -> 0 | BJ66: =Input!BN15*$I66 -> 0 | BK66: =Input!BO15*$I66 -> 0 | BL66: =Input!BP15*$I66 -> 0 | BM66: =Input!BQ15*$I66 -> 0
C67: 9 | D67: =Input!D16 -> item 9 | E67: =Input!E16 -> Capital | F67: =MATCH(E67,lookups!$C$90:$C$95,0) -> 4 | H67: =IF(Input!$E16=lookups!$C$90,"Sign Flip"," ... ") -> ... | I67: =IF(Input!$E16=lookups!$C$90,-1,1) -> 1 | K67: 0 | L67: 0 | O67: =Input!S16*$I67 -> 0 | P67: =Input!T16*$I67 -> 0 | Q67: =Input!U16*$I67 -> 0 | R67: =Input!V16*$I67 -> 0 | S67: =Input!W16*$I67 -> 0 | T67: =Input!X16*$I67 -> 0 | U67: =Input!Y16*$I67 -> 0 | V67: =Input!Z16*$I67 -> 0 | W67: =Input!AA16*$I67 -> 0 | X67: =Input!AB16*$I67 -> 0 | Y67: =Input!AC16*$I67 -> 0 | Z67: =Input!AD16*$I67 -> 0 | AA67: =Input!AE16*$I67 -> 0 | AB67: =Input!AF16*$I67 -> 0 | AC67: =Input!AG16*$I67 -> 0 | AD67: =Input!AH16*$I67 -> 0 | AE67: =Input!AI16*$I67 -> 0 | AF67: =Input!AJ16*$I67 -> 0 | AG67: =Input!AK16*$I67 -> 0 | AH67: =Input!AL16*$I67 -> 0 | AI67: =Input!AM16*$I67 -> 0 | AJ67: =Input!AN16*$I67 -> 0 | AK67: =Input!AO16*$I67 -> 0 | AL67: =Input!AP16*$I67 -> 0 | AM67: =Input!AQ16*$I67 -> 0 | AN67: =Input!AR16*$I67 -> 0 | AO67: =Input!AS16*$I67 -> 0 | AP67: =Input!AT16*$I67 -> 0 | AQ67: =Input!AU16*$I67 -> 0 | AR67: =Input!AV16*$I67 -> 0 | AS67: =Input!AW16*$I67 -> 0 | AT67: =Input!AX16*$I67 -> 0 | AU67: =Input!AY16*$I67 -> 0 | AV67: =Input!AZ16*$I67 -> 0 | AW67: =Input!BA16*$I67 -> 0 | AX67: =Input!BB16*$I67 -> 0 | AY67: =Input!BC16*$I67 -> 0 | AZ67: =Input!BD16*$I67 -> 0 | BA67: =Input!BE16*$I67 -> 0 | BB67: =Input!BF16*$I67 -> 0 | BC67: =Input!BG16*$I67 -> 0 | BD67: =Input!BH16*$I67 -> 0 | BE67: =Input!BI16*$I67 -> 0 | BF67: =Input!BJ16*$I67 -> 0 | BG67: =Input!BK16*$I67 -> 0 | BH67: =Input!BL16*$I67 -> 0 | BI67: =Input!BM16*$I67 -> 0 | BJ67: =Input!BN16*$I67 -> 0 | BK67: =Input!BO16*$I67 -> 0 | BL67: =Input!BP16*$I67 -> 0 | BM67: =Input!BQ16*$I67 -> 0
C68: 10 | D68: =Input!D17 -> item 10 | E68: =Input!E17 -> Capital | F68: =MATCH(E68,lookups!$C$90:$C$95,0) -> 4 | H68: =IF(Input!$E17=lookups!$C$90,"Sign Flip"," ... ") -> ... | I68: =IF(Input!$E17=lookups!$C$90,-1,1) -> 1 | K68: 0 | L68: 0 | O68: =Input!S17*$I68 -> 0 | P68: =Input!T17*$I68 -> 0 | Q68: =Input!U17*$I68 -> 0 | R68: =Input!V17*$I68 -> 0 | S68: =Input!W17*$I68 -> 0 | T68: =Input!X17*$I68 -> 0 | U68: =Input!Y17*$I68 -> 0 | V68: =Input!Z17*$I68 -> 0 | W68: =Input!AA17*$I68 -> 0 | X68: =Input!AB17*$I68 -> 0 | Y68: =Input!AC17*$I68 -> 0 | Z68: =Input!AD17*$I68 -> 0 | AA68: =Input!AE17*$I68 -> 0 | AB68: =Input!AF17*$I68 -> 0 | AC68: =Input!AG17*$I68 -> 0 | AD68: =Input!AH17*$I68 -> 0 | AE68: =Input!AI17*$I68 -> 0 | AF68: =Input!AJ17*$I68 -> 0 | AG68: =Input!AK17*$I68 -> 0 | AH68: =Input!AL17*$I68 -> 0 | AI68: =Input!AM17*$I68 -> 0 | AJ68: =Input!AN17*$I68 -> 0 | AK68: =Input!AO17*$I68 -> 0 | AL68: =Input!AP17*$I68 -> 0 | AM68: =Input!AQ17*$I68 -> 0 | AN68: =Input!AR17*$I68 -> 0 | AO68: =Input!AS17*$I68 -> 0 | AP68: =Input!AT17*$I68 -> 0 | AQ68: =Input!AU17*$I68 -> 0 | AR68: =Input!AV17*$I68 -> 0 | AS68: =Input!AW17*$I68 -> 0 | AT68: =Input!AX17*$I68 -> 0 | AU68: =Input!AY17*$I68 -> 0 | AV68: =Input!AZ17*$I68 -> 0 | AW68: =Input!BA17*$I68 -> 0 | AX68: =Input!BB17*$I68 -> 0 | AY68: =Input!BC17*$I68 -> 0 | AZ68: =Input!BD17*$I68 -> 0 | BA68: =Input!BE17*$I68 -> 0 | BB68: =Input!BF17*$I68 -> 0 | BC68: =Input!BG17*$I68 -> 0 | BD68: =Input!BH17*$I68 -> 0 | BE68: =Input!BI17*$I68 -> 0 | BF68: =Input!BJ17*$I68 -> 0 | BG68: =Input!BK17*$I68 -> 0 | BH68: =Input!BL17*$I68 -> 0 | BI68: =Input!BM17*$I68 -> 0 | BJ68: =Input!BN17*$I68 -> 0 | BK68: =Input!BO17*$I68 -> 0 | BL68: =Input!BP17*$I68 -> 0 | BM68: =Input!BQ17*$I68 -> 0
C69: 11 | D69: =Input!D18 -> item 11 | E69: =Input!E18 -> Operating Expense | F69: =MATCH(E69,lookups!$C$90:$C$95,0) -> 2 | H69: =IF(Input!$E18=lookups!$C$90,"Sign Flip"," ... ") -> ... | I69: =IF(Input!$E18=lookups!$C$90,-1,1) -> 1 | K69: 0 | L69: 0 | O69: =Input!S18*$I69 -> 0 | P69: =Input!T18*$I69 -> 0 | Q69: =Input!U18*$I69 -> 0 | R69: =Input!V18*$I69 -> 0 | S69: =Input!W18*$I69 -> 0 | T69: =Input!X18*$I69 -> 0 | U69: =Input!Y18*$I69 -> 0 | V69: =Input!Z18*$I69 -> 0 | W69: =Input!AA18*$I69 -> 0 | X69: =Input!AB18*$I69 -> 0 | Y69: =Input!AC18*$I69 -> 0 | Z69: =Input!AD18*$I69 -> 0 | AA69: =Input!AE18*$I69 -> 0 | AB69: =Input!AF18*$I69 -> 0 | AC69: =Input!AG18*$I69 -> 0 | AD69: =Input!AH18*$I69 -> 0 | AE69: =Input!AI18*$I69 -> 0 | AF69: =Input!AJ18*$I69 -> 0 | AG69: =Input!AK18*$I69 -> 0 | AH69: =Input!AL18*$I69 -> 0 | AI69: =Input!AM18*$I69 -> 0 | AJ69: =Input!AN18*$I69 -> 0 | AK69: =Input!AO18*$I69 -> 0 | AL69: =Input!AP18*$I69 -> 0 | AM69: =Input!AQ18*$I69 -> 0 | AN69: =Input!AR18*$I69 -> 0 | AO69: =Input!AS18*$I69 -> 0 | AP69: =Input!AT18*$I69 -> 0 | AQ69: =Input!AU18*$I69 -> 0 | AR69: =Input!AV18*$I69 -> 0 | AS69: =Input!AW18*$I69 -> 0 | AT69: =Input!AX18*$I69 -> 0 | AU69: =Input!AY18*$I69 -> 0 | AV69: =Input!AZ18*$I69 -> 0 | AW69: =Input!BA18*$I69 -> 0 | AX69: =Input!BB18*$I69 -> 0 | AY69: =Input!BC18*$I69 -> 0 | AZ69: =Input!BD18*$I69 -> 0 | BA69: =Input!BE18*$I69 -> 0 | BB69: =Input!BF18*$I69 -> 0 | BC69: =Input!BG18*$I69 -> 0 | BD69: =Input!BH18*$I69 -> 0 | BE69: =Input!BI18*$I69 -> 0 | BF69: =Input!BJ18*$I69 -> 0 | BG69: =Input!BK18*$I69 -> 0 | BH69: =Input!BL18*$I69 -> 0 | BI69: =Input!BM18*$I69 -> 0 | BJ69: =Input!BN18*$I69 -> 0 | BK69: =Input!BO18*$I69 -> 0 | BL69: =Input!BP18*$I69 -> 0 | BM69: =Input!BQ18*$I69 -> 0
C70: 12 | D70: =Input!D19 -> item 12 | E70: =Input!E19 -> Operating Expense | F70: =MATCH(E70,lookups!$C$90:$C$95,0) -> 2 | H70: =IF(Input!$E19=lookups!$C$90,"Sign Flip"," ... ") -> ... | I70: =IF(Input!$E19=lookups!$C$90,-1,1) -> 1 | K70: 0 | L70: 0 | O70: =Input!S19*$I70 -> 0 | P70: =Input!T19*$I70 -> 0 | Q70: =Input!U19*$I70 -> 0 | R70: =Input!V19*$I70 -> 0 | S70: =Input!W19*$I70 -> 0 | T70: =Input!X19*$I70 -> 0 | U70: =Input!Y19*$I70 -> 0 | V70: =Input!Z19*$I70 -> 0 | W70: =Input!AA19*$I70 -> 0 | X70: =Input!AB19*$I70 -> 0 | Y70: =Input!AC19*$I70 -> 0 | Z70: =Input!AD19*$I70 -> 0 | AA70: =Input!AE19*$I70 -> 0 | AB70: =Input!AF19*$I70 -> 0 | AC70: =Input!AG19*$I70 -> 0 | AD70: =Input!AH19*$I70 -> 0 | AE70: =Input!AI19*$I70 -> 0 | AF70: =Input!AJ19*$I70 -> 0 | AG70: =Input!AK19*$I70 -> 0 | AH70: =Input!AL19*$I70 -> 0 | AI70: =Input!AM19*$I70 -> 0 | AJ70: =Input!AN19*$I70 -> 0 | AK70: =Input!AO19*$I70 -> 0 | AL70: =Input!AP19*$I70 -> 0 | AM70: =Input!AQ19*$I70 -> 0 | AN70: =Input!AR19*$I70 -> 0 | AO70: =Input!AS19*$I70 -> 0 | AP70: =Input!AT19*$I70 -> 0 | AQ70: =Input!AU19*$I70 -> 0 | AR70: =Input!AV19*$I70 -> 0 | AS70: =Input!AW19*$I70 -> 0 | AT70: =Input!AX19*$I70 -> 0 | AU70: =Input!AY19*$I70 -> 0 | AV70: =Input!AZ19*$I70 -> 0 | AW70: =Input!BA19*$I70 -> 0 | AX70: =Input!BB19*$I70 -> 0 | AY70: =Input!BC19*$I70 -> 0 | AZ70: =Input!BD19*$I70 -> 0 | BA70: =Input!BE19*$I70 -> 0 | BB70: =Input!BF19*$I70 -> 0 | BC70: =Input!BG19*$I70 -> 0 | BD70: =Input!BH19*$I70 -> 0 | BE70: =Input!BI19*$I70 -> 0 | BF70: =Input!BJ19*$I70 -> 0 | BG70: =Input!BK19*$I70 -> 0 | BH70: =Input!BL19*$I70 -> 0 | BI70: =Input!BM19*$I70 -> 0 | BJ70: =Input!BN19*$I70 -> 0 | BK70: =Input!BO19*$I70 -> 0 | BL70: =Input!BP19*$I70 -> 0 | BM70: =Input!BQ19*$I70 -> 0
C71: 13 | D71: =Input!D20 -> item 13 | E71: =Input!E20 -> Operating Expense | F71: =MATCH(E71,lookups!$C$90:$C$95,0) -> 2 | H71: =IF(Input!$E20=lookups!$C$90,"Sign Flip"," ... ") -> ... | I71: =IF(Input!$E20=lookups!$C$90,-1,1) -> 1 | K71: 0 | L71: 0 | O71: =Input!S20*$I71 -> 0 | P71: =Input!T20*$I71 -> 0 | Q71: =Input!U20*$I71 -> 0 | R71: =Input!V20*$I71 -> 0 | S71: =Input!W20*$I71 -> 0 | T71: =Input!X20*$I71 -> 0 | U71: =Input!Y20*$I71 -> 0 | V71: =Input!Z20*$I71 -> 0 | W71: =Input!AA20*$I71 -> 0 | X71: =Input!AB20*$I71 -> 0 | Y71: =Input!AC20*$I71 -> 0 | Z71: =Input!AD20*$I71 -> 0 | AA71: =Input!AE20*$I71 -> 0 | AB71: =Input!AF20*$I71 -> 0 | AC71: =Input!AG20*$I71 -> 0 | AD71: =Input!AH20*$I71 -> 0 | AE71: =Input!AI20*$I71 -> 0 | AF71: =Input!AJ20*$I71 -> 0 | AG71: =Input!AK20*$I71 -> 0 | AH71: =Input!AL20*$I71 -> 0 | AI71: =Input!AM20*$I71 -> 0 | AJ71: =Input!AN20*$I71 -> 0 | AK71: =Input!AO20*$I71 -> 0 | AL71: =Input!AP20*$I71 -> 0 | AM71: =Input!AQ20*$I71 -> 0 | AN71: =Input!AR20*$I71 -> 0 | AO71: =Input!AS20*$I71 -> 0 | AP71: =Input!AT20*$I71 -> 0 | AQ71: =Input!AU20*$I71 -> 0 | AR71: =Input!AV20*$I71 -> 0 | AS71: =Input!AW20*$I71 -> 0 | AT71: =Input!AX20*$I71 -> 0 | AU71: =Input!AY20*$I71 -> 0 | AV71: =Input!AZ20*$I71 -> 0 | AW71: =Input!BA20*$I71 -> 0 | AX71: =Input!BB20*$I71 -> 0 | AY71: =Input!BC20*$I71 -> 0 | AZ71: =Input!BD20*$I71 -> 0 | BA71: =Input!BE20*$I71 -> 0 | BB71: =Input!BF20*$I71 -> 0 | BC71: =Input!BG20*$I71 -> 0 | BD71: =Input!BH20*$I71 -> 0 | BE71: =Input!BI20*$I71 -> 0 | BF71: =Input!BJ20*$I71 -> 0 | BG71: =Input!BK20*$I71 -> 0 | BH71: =Input!BL20*$I71 -> 0 | BI71: =Input!BM20*$I71 -> 0 | BJ71: =Input!BN20*$I71 -> 0 | BK71: =Input!BO20*$I71 -> 0 | BL71: =Input!BP20*$I71 -> 0 | BM71: =Input!BQ20*$I71 -> 0
C72: 14 | D72: =Input!D21 -> item 14 | E72: =Input!E21 -> Operating Expense | F72: =MATCH(E72,lookups!$C$90:$C$95,0) -> 2 | H72: =IF(Input!$E21=lookups!$C$90,"Sign Flip"," ... ") -> ... | I72: =IF(Input!$E21=lookups!$C$90,-1,1) -> 1 | K72: 0 | L72: 0 | O72: =Input!S21*$I72 -> 0 | P72: =Input!T21*$I72 -> 0 | Q72: =Input!U21*$I72 -> 0 | R72: =Input!V21*$I72 -> 0 | S72: =Input!W21*$I72 -> 0 | T72: =Input!X21*$I72 -> 0 | U72: =Input!Y21*$I72 -> 0 | V72: =Input!Z21*$I72 -> 0 | W72: =Input!AA21*$I72 -> 0 | X72: =Input!AB21*$I72 -> 0 | Y72: =Input!AC21*$I72 -> 0 | Z72: =Input!AD21*$I72 -> 0 | AA72: =Input!AE21*$I72 -> 0 | AB72: =Input!AF21*$I72 -> 0 | AC72: =Input!AG21*$I72 -> 0 | AD72: =Input!AH21*$I72 -> 0 | AE72: =Input!AI21*$I72 -> 0 | AF72: =Input!AJ21*$I72 -> 0 | AG72: =Input!AK21*$I72 -> 0 | AH72: =Input!AL21*$I72 -> 0 | AI72: =Input!AM21*$I72 -> 0 | AJ72: =Input!AN21*$I72 -> 0 | AK72: =Input!AO21*$I72 -> 0 | AL72: =Input!AP21*$I72 -> 0 | AM72: =Input!AQ21*$I72 -> 0 | AN72: =Input!AR21*$I72 -> 0 | AO72: =Input!AS21*$I72 -> 0 | AP72: =Input!AT21*$I72 -> 0 | AQ72: =Input!AU21*$I72 -> 0 | AR72: =Input!AV21*$I72 -> 0 | AS72: =Input!AW21*$I72 -> 0 | AT72: =Input!AX21*$I72 -> 0 | AU72: =Input!AY21*$I72 -> 0 | AV72: =Input!AZ21*$I72 -> 0 | AW72: =Input!BA21*$I72 -> 0 | AX72: =Input!BB21*$I72 -> 0 | AY72: =Input!BC21*$I72 -> 0 | AZ72: =Input!BD21*$I72 -> 0 | BA72: =Input!BE21*$I72 -> 0 | BB72: =Input!BF21*$I72 -> 0 | BC72: =Input!BG21*$I72 -> 0 | BD72: =Input!BH21*$I72 -> 0 | BE72: =Input!BI21*$I72 -> 0 | BF72: =Input!BJ21*$I72 -> 0 | BG72: =Input!BK21*$I72 -> 0 | BH72: =Input!BL21*$I72 -> 0 | BI72: =Input!BM21*$I72 -> 0 | BJ72: =Input!BN21*$I72 -> 0 | BK72: =Input!BO21*$I72 -> 0 | BL72: =Input!BP21*$I72 -> 0 | BM72: =Input!BQ21*$I72 -> 0
C73: 15 | D73: =Input!D22 -> item 15 | E73: =Input!E22 -> Operating Expense | F73: =MATCH(E73,lookups!$C$90:$C$95,0) -> 2 | H73: =IF(Input!$E22=lookups!$C$90,"Sign Flip"," ... ") -> ... | I73: =IF(Input!$E22=lookups!$C$90,-1,1) -> 1 | K73: 0 | L73: 0 | O73: =Input!S22*$I73 -> 0 | P73: =Input!T22*$I73 -> 0 | Q73: =Input!U22*$I73 -> 0 | R73: =Input!V22*$I73 -> 0 | S73: =Input!W22*$I73 -> 0 | T73: =Input!X22*$I73 -> 0 | U73: =Input!Y22*$I73 -> 0 | V73: =Input!Z22*$I73 -> 0 | W73: =Input!AA22*$I73 -> 0 | X73: =Input!AB22*$I73 -> 0 | Y73: =Input!AC22*$I73 -> 0 | Z73: =Input!AD22*$I73 -> 0 | AA73: =Input!AE22*$I73 -> 0 | AB73: =Input!AF22*$I73 -> 0 | AC73: =Input!AG22*$I73 -> 0 | AD73: =Input!AH22*$I73 -> 0 | AE73: =Input!AI22*$I73 -> 0 | AF73: =Input!AJ22*$I73 -> 0 | AG73: =Input!AK22*$I73 -> 0 | AH73: =Input!AL22*$I73 -> 0 | AI73: =Input!AM22*$I73 -> 0 | AJ73: =Input!AN22*$I73 -> 0 | AK73: =Input!AO22*$I73 -> 0 | AL73: =Input!AP22*$I73 -> 0 | AM73: =Input!AQ22*$I73 -> 0 | AN73: =Input!AR22*$I73 -> 0 | AO73: =Input!AS22*$I73 -> 0 | AP73: =Input!AT22*$I73 -> 0 | AQ73: =Input!AU22*$I73 -> 0 | AR73: =Input!AV22*$I73 -> 0 | AS73: =Input!AW22*$I73 -> 0 | AT73: =Input!AX22*$I73 -> 0 | AU73: =Input!AY22*$I73 -> 0 | AV73: =Input!AZ22*$I73 -> 0 | AW73: =Input!BA22*$I73 -> 0 | AX73: =Input!BB22*$I73 -> 0 | AY73: =Input!BC22*$I73 -> 0 | AZ73: =Input!BD22*$I73 -> 0 | BA73: =Input!BE22*$I73 -> 0 | BB73: =Input!BF22*$I73 -> 0 | BC73: =Input!BG22*$I73 -> 0 | BD73: =Input!BH22*$I73 -> 0 | BE73: =Input!BI22*$I73 -> 0 | BF73: =Input!BJ22*$I73 -> 0 | BG73: =Input!BK22*$I73 -> 0 | BH73: =Input!BL22*$I73 -> 0 | BI73: =Input!BM22*$I73 -> 0 | BJ73: =Input!BN22*$I73 -> 0 | BK73: =Input!BO22*$I73 -> 0 | BL73: =Input!BP22*$I73 -> 0 | BM73: =Input!BQ22*$I73 -> 0
C74: 16 | D74: =Input!D23 -> item 16 | E74: =Input!E23 -> Operating Expense | F74: =MATCH(E74,lookups!$C$90:$C$95,0) -> 2 | H74: =IF(Input!$E23=lookups!$C$90,"Sign Flip"," ... ") -> ... | I74: =IF(Input!$E23=lookups!$C$90,-1,1) -> 1 | K74: 0 | L74: 0 | O74: =Input!S23*$I74 -> 0 | P74: =Input!T23*$I74 -> 0 | Q74: =Input!U23*$I74 -> 0 | R74: =Input!V23*$I74 -> 0 | S74: =Input!W23*$I74 -> 0 | T74: =Input!X23*$I74 -> 0 | U74: =Input!Y23*$I74 -> 0 | V74: =Input!Z23*$I74 -> 0 | W74: =Input!AA23*$I74 -> 0 | X74: =Input!AB23*$I74 -> 0 | Y74: =Input!AC23*$I74 -> 0 | Z74: =Input!AD23*$I74 -> 0 | AA74: =Input!AE23*$I74 -> 0 | AB74: =Input!AF23*$I74 -> 0 | AC74: =Input!AG23*$I74 -> 0 | AD74: =Input!AH23*$I74 -> 0 | AE74: =Input!AI23*$I74 -> 0 | AF74: =Input!AJ23*$I74 -> 0 | AG74: =Input!AK23*$I74 -> 0 | AH74: =Input!AL23*$I74 -> 0 | AI74: =Input!AM23*$I74 -> 0 | AJ74: =Input!AN23*$I74 -> 0 | AK74: =Input!AO23*$I74 -> 0 | AL74: =Input!AP23*$I74 -> 0 | AM74: =Input!AQ23*$I74 -> 0 | AN74: =Input!AR23*$I74 -> 0 | AO74: =Input!AS23*$I74 -> 0 | AP74: =Input!AT23*$I74 -> 0 | AQ74: =Input!AU23*$I74 -> 0 | AR74: =Input!AV23*$I74 -> 0 | AS74: =Input!AW23*$I74 -> 0 | AT74: =Input!AX23*$I74 -> 0 | AU74: =Input!AY23*$I74 -> 0 | AV74: =Input!AZ23*$I74 -> 0 | AW74: =Input!BA23*$I74 -> 0 | AX74: =Input!BB23*$I74 -> 0 | AY74: =Input!BC23*$I74 -> 0 | AZ74: =Input!BD23*$I74 -> 0 | BA74: =Input!BE23*$I74 -> 0 | BB74: =Input!BF23*$I74 -> 0 | BC74: =Input!BG23*$I74 -> 0 | BD74: =Input!BH23*$I74 -> 0 | BE74: =Input!BI23*$I74 -> 0 | BF74: =Input!BJ23*$I74 -> 0 | BG74: =Input!BK23*$I74 -> 0 | BH74: =Input!BL23*$I74 -> 0 | BI74: =Input!BM23*$I74 -> 0 | BJ74: =Input!BN23*$I74 -> 0 | BK74: =Input!BO23*$I74 -> 0 | BL74: =Input!BP23*$I74 -> 0 | BM74: =Input!BQ23*$I74 -> 0
C75: 17 | D75: =Input!D24 -> item 17 | E75: =Input!E24 -> Operating Expense | F75: =MATCH(E75,lookups!$C$90:$C$95,0) -> 2 | H75: =IF(Input!$E24=lookups!$C$90,"Sign Flip"," ... ") -> ... | I75: =IF(Input!$E24=lookups!$C$90,-1,1) -> 1 | K75: 0 | L75: 0 | O75: =Input!S24*$I75 -> 0 | P75: =Input!T24*$I75 -> 0 | Q75: =Input!U24*$I75 -> 0 | R75: =Input!V24*$I75 -> 0 | S75: =Input!W24*$I75 -> 0 | T75: =Input!X24*$I75 -> 0 | U75: =Input!Y24*$I75 -> 0 | V75: =Input!Z24*$I75 -> 0 | W75: =Input!AA24*$I75 -> 0 | X75: =Input!AB24*$I75 -> 0 | Y75: =Input!AC24*$I75 -> 0 | Z75: =Input!AD24*$I75 -> 0 | AA75: =Input!AE24*$I75 -> 0 | AB75: =Input!AF24*$I75 -> 0 | AC75: =Input!AG24*$I75 -> 0 | AD75: =Input!AH24*$I75 -> 0 | AE75: =Input!AI24*$I75 -> 0 | AF75: =Input!AJ24*$I75 -> 0 | AG75: =Input!AK24*$I75 -> 0 | AH75: =Input!AL24*$I75 -> 0 | AI75: =Input!AM24*$I75 -> 0 | AJ75: =Input!AN24*$I75 -> 0 | AK75: =Input!AO24*$I75 -> 0 | AL75: =Input!AP24*$I75 -> 0 | AM75: =Input!AQ24*$I75 -> 0 | AN75: =Input!AR24*$I75 -> 0 | AO75: =Input!AS24*$I75 -> 0 | AP75: =Input!AT24*$I75 -> 0 | AQ75: =Input!AU24*$I75 -> 0 | AR75: =Input!AV24*$I75 -> 0 | AS75: =Input!AW24*$I75 -> 0 | AT75: =Input!AX24*$I75 -> 0 | AU75: =Input!AY24*$I75 -> 0 | AV75: =Input!AZ24*$I75 -> 0 | AW75: =Input!BA24*$I75 -> 0 | AX75: =Input!BB24*$I75 -> 0 | AY75: =Input!BC24*$I75 -> 0 | AZ75: =Input!BD24*$I75 -> 0 | BA75: =Input!BE24*$I75 -> 0 | BB75: =Input!BF24*$I75 -> 0 | BC75: =Input!BG24*$I75 -> 0 | BD75: =Input!BH24*$I75 -> 0 | BE75: =Input!BI24*$I75 -> 0 | BF75: =Input!BJ24*$I75 -> 0 | BG75: =Input!BK24*$I75 -> 0 | BH75: =Input!BL24*$I75 -> 0 | BI75: =Input!BM24*$I75 -> 0 | BJ75: =Input!BN24*$I75 -> 0 | BK75: =Input!BO24*$I75 -> 0 | BL75: =Input!BP24*$I75 -> 0 | BM75: =Input!BQ24*$I75 -> 0
C76: 18 | D76: =Input!D25 -> item 18 | E76: =Input!E25 -> Operating Expense | F76: =MATCH(E76,lookups!$C$90:$C$95,0) -> 2 | H76: =IF(Input!$E25=lookups!$C$90,"Sign Flip"," ... ") -> ... | I76: =IF(Input!$E25=lookups!$C$90,-1,1) -> 1 | K76: 0 | L76: 0 | O76: =Input!S25*$I76 -> 0 | P76: =Input!T25*$I76 -> 0 | Q76: =Input!U25*$I76 -> 0 | R76: =Input!V25*$I76 -> 0 | S76: =Input!W25*$I76 -> 0 | T76: =Input!X25*$I76 -> 0 | U76: =Input!Y25*$I76 -> 0 | V76: =Input!Z25*$I76 -> 0 | W76: =Input!AA25*$I76 -> 0 | X76: =Input!AB25*$I76 -> 0 | Y76: =Input!AC25*$I76 -> 0 | Z76: =Input!AD25*$I76 -> 0 | AA76: =Input!AE25*$I76 -> 0 | AB76: =Input!AF25*$I76 -> 0 | AC76: =Input!AG25*$I76 -> 0 | AD76: =Input!AH25*$I76 -> 0 | AE76: =Input!AI25*$I76 -> 0 | AF76: =Input!AJ25*$I76 -> 0 | AG76: =Input!AK25*$I76 -> 0 | AH76: =Input!AL25*$I76 -> 0 | AI76: =Input!AM25*$I76 -> 0 | AJ76: =Input!AN25*$I76 -> 0 | AK76: =Input!AO25*$I76 -> 0 | AL76: =Input!AP25*$I76 -> 0 | AM76: =Input!AQ25*$I76 -> 0 | AN76: =Input!AR25*$I76 -> 0 | AO76: =Input!AS25*$I76 -> 0 | AP76: =Input!AT25*$I76 -> 0 | AQ76: =Input!AU25*$I76 -> 0 | AR76: =Input!AV25*$I76 -> 0 | AS76: =Input!AW25*$I76 -> 0 | AT76: =Input!AX25*$I76 -> 0 | AU76: =Input!AY25*$I76 -> 0 | AV76: =Input!AZ25*$I76 -> 0 | AW76: =Input!BA25*$I76 -> 0 | AX76: =Input!BB25*$I76 -> 0 | AY76: =Input!BC25*$I76 -> 0 | AZ76: =Input!BD25*$I76 -> 0 | BA76: =Input!BE25*$I76 -> 0 | BB76: =Input!BF25*$I76 -> 0 | BC76: =Input!BG25*$I76 -> 0 | BD76: =Input!BH25*$I76 -> 0 | BE76: =Input!BI25*$I76 -> 0 | BF76: =Input!BJ25*$I76 -> 0 | BG76: =Input!BK25*$I76 -> 0 | BH76: =Input!BL25*$I76 -> 0 | BI76: =Input!BM25*$I76 -> 0 | BJ76: =Input!BN25*$I76 -> 0 | BK76: =Input!BO25*$I76 -> 0 | BL76: =Input!BP25*$I76 -> 0 | BM76: =Input!BQ25*$I76 -> 0
C77: 19 | D77: =Input!D26 -> item 19 | E77: =Input!E26 -> Operating Expense | F77: =MATCH(E77,lookups!$C$90:$C$95,0) -> 2 | H77: =IF(Input!$E26=lookups!$C$90,"Sign Flip"," ... ") -> ... | I77: =IF(Input!$E26=lookups!$C$90,-1,1) -> 1 | K77: 0 | L77: 0 | O77: =Input!S26*$I77 -> 0 | P77: =Input!T26*$I77 -> 0 | Q77: =Input!U26*$I77 -> 0 | R77: =Input!V26*$I77 -> 0 | S77: =Input!W26*$I77 -> 0 | T77: =Input!X26*$I77 -> 0 | U77: =Input!Y26*$I77 -> 0 | V77: =Input!Z26*$I77 -> 0 | W77: =Input!AA26*$I77 -> 0 | X77: =Input!AB26*$I77 -> 0 | Y77: =Input!AC26*$I77 -> 0 | Z77: =Input!AD26*$I77 -> 0 | AA77: =Input!AE26*$I77 -> 0 | AB77: =Input!AF26*$I77 -> 0 | AC77: =Input!AG26*$I77 -> 0 | AD77: =Input!AH26*$I77 -> 0 | AE77: =Input!AI26*$I77 -> 0 | AF77: =Input!AJ26*$I77 -> 0 | AG77: =Input!AK26*$I77 -> 0 | AH77: =Input!AL26*$I77 -> 0 | AI77: =Input!AM26*$I77 -> 0 | AJ77: =Input!AN26*$I77 -> 0 | AK77: =Input!AO26*$I77 -> 0 | AL77: =Input!AP26*$I77 -> 0 | AM77: =Input!AQ26*$I77 -> 0 | AN77: =Input!AR26*$I77 -> 0 | AO77: =Input!AS26*$I77 -> 0 | AP77: =Input!AT26*$I77 -> 0 | AQ77: =Input!AU26*$I77 -> 0 | AR77: =Input!AV26*$I77 -> 0 | AS77: =Input!AW26*$I77 -> 0 | AT77: =Input!AX26*$I77 -> 0 | AU77: =Input!AY26*$I77 -> 0 | AV77: =Input!AZ26*$I77 -> 0 | AW77: =Input!BA26*$I77 -> 0 | AX77: =Input!BB26*$I77 -> 0 | AY77: =Input!BC26*$I77 -> 0 | AZ77: =Input!BD26*$I77 -> 0 | BA77: =Input!BE26*$I77 -> 0 | BB77: =Input!BF26*$I77 -> 0 | BC77: =Input!BG26*$I77 -> 0 | BD77: =Input!BH26*$I77 -> 0 | BE77: =Input!BI26*$I77 -> 0 | BF77: =Input!BJ26*$I77 -> 0 | BG77: =Input!BK26*$I77 -> 0 | BH77: =Input!BL26*$I77 -> 0 | BI77: =Input!BM26*$I77 -> 0 | BJ77: =Input!BN26*$I77 -> 0 | BK77: =Input!BO26*$I77 -> 0 | BL77: =Input!BP26*$I77 -> 0 | BM77: =Input!BQ26*$I77 -> 0
C78: 20 | D78: =Input!D27 -> item 20 | E78: =Input!E27 -> Operating Expense | F78: =MATCH(E78,lookups!$C$90:$C$95,0) -> 2 | H78: =IF(Input!$E27=lookups!$C$90,"Sign Flip"," ... ") -> ... | I78: =IF(Input!$E27=lookups!$C$90,-1,1) -> 1 | K78: 0 | L78: 0 | O78: =Input!S27*$I78 -> 0 | P78: =Input!T27*$I78 -> 0 | Q78: =Input!U27*$I78 -> 0 | R78: =Input!V27*$I78 -> 0 | S78: =Input!W27*$I78 -> 0 | T78: =Input!X27*$I78 -> 0 | U78: =Input!Y27*$I78 -> 0 | V78: =Input!Z27*$I78 -> 0 | W78: =Input!AA27*$I78 -> 0 | X78: =Input!AB27*$I78 -> 0 | Y78: =Input!AC27*$I78 -> 0 | Z78: =Input!AD27*$I78 -> 0 | AA78: =Input!AE27*$I78 -> 0 | AB78: =Input!AF27*$I78 -> 0 | AC78: =Input!AG27*$I78 -> 0 | AD78: =Input!AH27*$I78 -> 0 | AE78: =Input!AI27*$I78 -> 0 | AF78: =Input!AJ27*$I78 -> 0 | AG78: =Input!AK27*$I78 -> 0 | AH78: =Input!AL27*$I78 -> 0 | AI78: =Input!AM27*$I78 -> 0 | AJ78: =Input!AN27*$I78 -> 0 | AK78: =Input!AO27*$I78 -> 0 | AL78: =Input!AP27*$I78 -> 0 | AM78: =Input!AQ27*$I78 -> 0 | AN78: =Input!AR27*$I78 -> 0 | AO78: =Input!AS27*$I78 -> 0 | AP78: =Input!AT27*$I78 -> 0 | AQ78: =Input!AU27*$I78 -> 0 | AR78: =Input!AV27*$I78 -> 0 | AS78: =Input!AW27*$I78 -> 0 | AT78: =Input!AX27*$I78 -> 0 | AU78: =Input!AY27*$I78 -> 0 | AV78: =Input!AZ27*$I78 -> 0 | AW78: =Input!BA27*$I78 -> 0 | AX78: =Input!BB27*$I78 -> 0 | AY78: =Input!BC27*$I78 -> 0 | AZ78: =Input!BD27*$I78 -> 0 | BA78: =Input!BE27*$I78 -> 0 | BB78: =Input!BF27*$I78 -> 0 | BC78: =Input!BG27*$I78 -> 0 | BD78: =Input!BH27*$I78 -> 0 | BE78: =Input!BI27*$I78 -> 0 | BF78: =Input!BJ27*$I78 -> 0 | BG78: =Input!BK27*$I78 -> 0 | BH78: =Input!BL27*$I78 -> 0 | BI78: =Input!BM27*$I78 -> 0 | BJ78: =Input!BN27*$I78 -> 0 | BK78: =Input!BO27*$I78 -> 0 | BL78: =Input!BP27*$I78 -> 0 | BM78: =Input!BQ27*$I78 -> 0
C79: 21 | D79: =Input!D28 -> item 21 | E79: =Input!E28 -> Operating Expense | F79: =MATCH(E79,lookups!$C$90:$C$95,0) -> 2 | H79: =IF(Input!$E28=lookups!$C$90,"Sign Flip"," ... ") -> ... | I79: =IF(Input!$E28=lookups!$C$90,-1,1) -> 1 | K79: 0 | L79: 0 | O79: =Input!S28*$I79 -> 0 | P79: =Input!T28*$I79 -> 0 | Q79: =Input!U28*$I79 -> 0 | R79: =Input!V28*$I79 -> 0 | S79: =Input!W28*$I79 -> 0 | T79: =Input!X28*$I79 -> 0 | U79: =Input!Y28*$I79 -> 0 | V79: =Input!Z28*$I79 -> 0 | W79: =Input!AA28*$I79 -> 0 | X79: =Input!AB28*$I79 -> 0 | Y79: =Input!AC28*$I79 -> 0 | Z79: =Input!AD28*$I79 -> 0 | AA79: =Input!AE28*$I79 -> 0 | AB79: =Input!AF28*$I79 -> 0 | AC79: =Input!AG28*$I79 -> 0 | AD79: =Input!AH28*$I79 -> 0 | AE79: =Input!AI28*$I79 -> 0 | AF79: =Input!AJ28*$I79 -> 0 | AG79: =Input!AK28*$I79 -> 0 | AH79: =Input!AL28*$I79 -> 0 | AI79: =Input!AM28*$I79 -> 0 | AJ79: =Input!AN28*$I79 -> 0 | AK79: =Input!AO28*$I79 -> 0 | AL79: =Input!AP28*$I79 -> 0 | AM79: =Input!AQ28*$I79 -> 0 | AN79: =Input!AR28*$I79 -> 0 | AO79: =Input!AS28*$I79 -> 0 | AP79: =Input!AT28*$I79 -> 0 | AQ79: =Input!AU28*$I79 -> 0 | AR79: =Input!AV28*$I79 -> 0 | AS79: =Input!AW28*$I79 -> 0 | AT79: =Input!AX28*$I79 -> 0 | AU79: =Input!AY28*$I79 -> 0 | AV79: =Input!AZ28*$I79 -> 0 | AW79: =Input!BA28*$I79 -> 0 | AX79: =Input!BB28*$I79 -> 0 | AY79: =Input!BC28*$I79 -> 0 | AZ79: =Input!BD28*$I79 -> 0 | BA79: =Input!BE28*$I79 -> 0 | BB79: =Input!BF28*$I79 -> 0 | BC79: =Input!BG28*$I79 -> 0 | BD79: =Input!BH28*$I79 -> 0 | BE79: =Input!BI28*$I79 -> 0 | BF79: =Input!BJ28*$I79 -> 0 | BG79: =Input!BK28*$I79 -> 0 | BH79: =Input!BL28*$I79 -> 0 | BI79: =Input!BM28*$I79 -> 0 | BJ79: =Input!BN28*$I79 -> 0 | BK79: =Input!BO28*$I79 -> 0 | BL79: =Input!BP28*$I79 -> 0 | BM79: =Input!BQ28*$I79 -> 0
C80: 22 | D80: =Input!D29 -> item 22 | E80: =Input!E29 -> Operating Expense | F80: =MATCH(E80,lookups!$C$90:$C$95,0) -> 2 | H80: =IF(Input!$E29=lookups!$C$90,"Sign Flip"," ... ") -> ... | I80: =IF(Input!$E29=lookups!$C$90,-1,1) -> 1 | K80: 0 | L80: 0 | O80: =Input!S29*$I80 -> 0 | P80: =Input!T29*$I80 -> 0 | Q80: =Input!U29*$I80 -> 0 | R80: =Input!V29*$I80 -> 0 | S80: =Input!W29*$I80 -> 0 | T80: =Input!X29*$I80 -> 0 | U80: =Input!Y29*$I80 -> 0 | V80: =Input!Z29*$I80 -> 0 | W80: =Input!AA29*$I80 -> 0 | X80: =Input!AB29*$I80 -> 0 | Y80: =Input!AC29*$I80 -> 0 | Z80: =Input!AD29*$I80 -> 0 | AA80: =Input!AE29*$I80 -> 0 | AB80: =Input!AF29*$I80 -> 0 | AC80: =Input!AG29*$I80 -> 0 | AD80: =Input!AH29*$I80 -> 0 | AE80: =Input!AI29*$I80 -> 0 | AF80: =Input!AJ29*$I80 -> 0 | AG80: =Input!AK29*$I80 -> 0 | AH80: =Input!AL29*$I80 -> 0 | AI80: =Input!AM29*$I80 -> 0 | AJ80: =Input!AN29*$I80 -> 0 | AK80: =Input!AO29*$I80 -> 0 | AL80: =Input!AP29*$I80 -> 0 | AM80: =Input!AQ29*$I80 -> 0 | AN80: =Input!AR29*$I80 -> 0 | AO80: =Input!AS29*$I80 -> 0 | AP80: =Input!AT29*$I80 -> 0 | AQ80: =Input!AU29*$I80 -> 0 | AR80: =Input!AV29*$I80 -> 0 | AS80: =Input!AW29*$I80 -> 0 | AT80: =Input!AX29*$I80 -> 0 | AU80: =Input!AY29*$I80 -> 0 | AV80: =Input!AZ29*$I80 -> 0 | AW80: =Input!BA29*$I80 -> 0 | AX80: =Input!BB29*$I80 -> 0 | AY80: =Input!BC29*$I80 -> 0 | AZ80: =Input!BD29*$I80 -> 0 | BA80: =Input!BE29*$I80 -> 0 | BB80: =Input!BF29*$I80 -> 0 | BC80: =Input!BG29*$I80 -> 0 | BD80: =Input!BH29*$I80 -> 0 | BE80: =Input!BI29*$I80 -> 0 | BF80: =Input!BJ29*$I80 -> 0 | BG80: =Input!BK29*$I80 -> 0 | BH80: =Input!BL29*$I80 -> 0 | BI80: =Input!BM29*$I80 -> 0 | BJ80: =Input!BN29*$I80 -> 0 | BK80: =Input!BO29*$I80 -> 0 | BL80: =Input!BP29*$I80 -> 0 | BM80: =Input!BQ29*$I80 -> 0
C81: 23 | D81: =Input!D30 -> item 23 | E81: =Input!E30 -> Operating Expense | F81: =MATCH(E81,lookups!$C$90:$C$95,0) -> 2 | H81: =IF(Input!$E30=lookups!$C$90,"Sign Flip"," ... ") -> ... | I81: =IF(Input!$E30=lookups!$C$90,-1,1) -> 1 | K81: 0 | L81: 0 | O81: =Input!S30*$I81 -> 0 | P81: =Input!T30*$I81 -> 0 | Q81: =Input!U30*$I81 -> 0 | R81: =Input!V30*$I81 -> 0 | S81: =Input!W30*$I81 -> 0 | T81: =Input!X30*$I81 -> 0 | U81: =Input!Y30*$I81 -> 0 | V81: =Input!Z30*$I81 -> 0 | W81: =Input!AA30*$I81 -> 0 | X81: =Input!AB30*$I81 -> 0 | Y81: =Input!AC30*$I81 -> 0 | Z81: =Input!AD30*$I81 -> 0 | AA81: =Input!AE30*$I81 -> 0 | AB81: =Input!AF30*$I81 -> 0 | AC81: =Input!AG30*$I81 -> 0 | AD81: =Input!AH30*$I81 -> 0 | AE81: =Input!AI30*$I81 -> 0 | AF81: =Input!AJ30*$I81 -> 0 | AG81: =Input!AK30*$I81 -> 0 | AH81: =Input!AL30*$I81 -> 0 | AI81: =Input!AM30*$I81 -> 0 | AJ81: =Input!AN30*$I81 -> 0 | AK81: =Input!AO30*$I81 -> 0 | AL81: =Input!AP30*$I81 -> 0 | AM81: =Input!AQ30*$I81 -> 0 | AN81: =Input!AR30*$I81 -> 0 | AO81: =Input!AS30*$I81 -> 0 | AP81: =Input!AT30*$I81 -> 0 | AQ81: =Input!AU30*$I81 -> 0 | AR81: =Input!AV30*$I81 -> 0 | AS81: =Input!AW30*$I81 -> 0 | AT81: =Input!AX30*$I81 -> 0 | AU81: =Input!AY30*$I81 -> 0 | AV81: =Input!AZ30*$I81 -> 0 | AW81: =Input!BA30*$I81 -> 0 | AX81: =Input!BB30*$I81 -> 0 | AY81: =Input!BC30*$I81 -> 0 | AZ81: =Input!BD30*$I81 -> 0 | BA81: =Input!BE30*$I81 -> 0 | BB81: =Input!BF30*$I81 -> 0 | BC81: =Input!BG30*$I81 -> 0 | BD81: =Input!BH30*$I81 -> 0 | BE81: =Input!BI30*$I81 -> 0 | BF81: =Input!BJ30*$I81 -> 0 | BG81: =Input!BK30*$I81 -> 0 | BH81: =Input!BL30*$I81 -> 0 | BI81: =Input!BM30*$I81 -> 0 | BJ81: =Input!BN30*$I81 -> 0 | BK81: =Input!BO30*$I81 -> 0 | BL81: =Input!BP30*$I81 -> 0 | BM81: =Input!BQ30*$I81 -> 0
C82: 24 | D82: =Input!D31 -> item 24 | E82: =Input!E31 -> Operating Expense | F82: =MATCH(E82,lookups!$C$90:$C$95,0) -> 2 | H82: =IF(Input!$E31=lookups!$C$90,"Sign Flip"," ... ") -> ... | I82: =IF(Input!$E31=lookups!$C$90,-1,1) -> 1 | K82: 0 | L82: 0 | O82: =Input!S31*$I82 -> 0 | P82: =Input!T31*$I82 -> 0 | Q82: =Input!U31*$I82 -> 0 | R82: =Input!V31*$I82 -> 0 | S82: =Input!W31*$I82 -> 0 | T82: =Input!X31*$I82 -> 0 | U82: =Input!Y31*$I82 -> 0 | V82: =Input!Z31*$I82 -> 0 | W82: =Input!AA31*$I82 -> 0 | X82: =Input!AB31*$I82 -> 0 | Y82: =Input!AC31*$I82 -> 0 | Z82: =Input!AD31*$I82 -> 0 | AA82: =Input!AE31*$I82 -> 0 | AB82: =Input!AF31*$I82 -> 0 | AC82: =Input!AG31*$I82 -> 0 | AD82: =Input!AH31*$I82 -> 0 | AE82: =Input!AI31*$I82 -> 0 | AF82: =Input!AJ31*$I82 -> 0 | AG82: =Input!AK31*$I82 -> 0 | AH82: =Input!AL31*$I82 -> 0 | AI82: =Input!AM31*$I82 -> 0 | AJ82: =Input!AN31*$I82 -> 0 | AK82: =Input!AO31*$I82 -> 0 | AL82: =Input!AP31*$I82 -> 0 | AM82: =Input!AQ31*$I82 -> 0 | AN82: =Input!AR31*$I82 -> 0 | AO82: =Input!AS31*$I82 -> 0 | AP82: =Input!AT31*$I82 -> 0 | AQ82: =Input!AU31*$I82 -> 0 | AR82: =Input!AV31*$I82 -> 0 | AS82: =Input!AW31*$I82 -> 0 | AT82: =Input!AX31*$I82 -> 0 | AU82: =Input!AY31*$I82 -> 0 | AV82: =Input!AZ31*$I82 -> 0 | AW82: =Input!BA31*$I82 -> 0 | AX82: =Input!BB31*$I82 -> 0 | AY82: =Input!BC31*$I82 -> 0 | AZ82: =Input!BD31*$I82 -> 0 | BA82: =Input!BE31*$I82 -> 0 | BB82: =Input!BF31*$I82 -> 0 | BC82: =Input!BG31*$I82 -> 0 | BD82: =Input!BH31*$I82 -> 0 | BE82: =Input!BI31*$I82 -> 0 | BF82: =Input!BJ31*$I82 -> 0 | BG82: =Input!BK31*$I82 -> 0 | BH82: =Input!BL31*$I82 -> 0 | BI82: =Input!BM31*$I82 -> 0 | BJ82: =Input!BN31*$I82 -> 0 | BK82: =Input!BO31*$I82 -> 0 | BL82: =Input!BP31*$I82 -> 0 | BM82: =Input!BQ31*$I82 -> 0
C83: 25 | D83: =Input!D32 -> item 25 | E83: =Input!E32 -> Operating Expense | F83: =MATCH(E83,lookups!$C$90:$C$95,0) -> 2 | H83: =IF(Input!$E32=lookups!$C$90,"Sign Flip"," ... ") -> ... | I83: =IF(Input!$E32=lookups!$C$90,-1,1) -> 1 | K83: 0 | L83: 0 | O83: =Input!S32*$I83 -> 0 | P83: =Input!T32*$I83 -> 0 | Q83: =Input!U32*$I83 -> 0 | R83: =Input!V32*$I83 -> 0 | S83: =Input!W32*$I83 -> 0 | T83: =Input!X32*$I83 -> 0 | U83: =Input!Y32*$I83 -> 0 | V83: =Input!Z32*$I83 -> 0 | W83: =Input!AA32*$I83 -> 0 | X83: =Input!AB32*$I83 -> 0 | Y83: =Input!AC32*$I83 -> 0 | Z83: =Input!AD32*$I83 -> 0 | AA83: =Input!AE32*$I83 -> 0 | AB83: =Input!AF32*$I83 -> 0 | AC83: =Input!AG32*$I83 -> 0 | AD83: =Input!AH32*$I83 -> 0 | AE83: =Input!AI32*$I83 -> 0 | AF83: =Input!AJ32*$I83 -> 0 | AG83: =Input!AK32*$I83 -> 0 | AH83: =Input!AL32*$I83 -> 0 | AI83: =Input!AM32*$I83 -> 0 | AJ83: =Input!AN32*$I83 -> 0 | AK83: =Input!AO32*$I83 -> 0 | AL83: =Input!AP32*$I83 -> 0 | AM83: =Input!AQ32*$I83 -> 0 | AN83: =Input!AR32*$I83 -> 0 | AO83: =Input!AS32*$I83 -> 0 | AP83: =Input!AT32*$I83 -> 0 | AQ83: =Input!AU32*$I83 -> 0 | AR83: =Input!AV32*$I83 -> 0 | AS83: =Input!AW32*$I83 -> 0 | AT83: =Input!AX32*$I83 -> 0 | AU83: =Input!AY32*$I83 -> 0 | AV83: =Input!AZ32*$I83 -> 0 | AW83: =Input!BA32*$I83 -> 0 | AX83: =Input!BB32*$I83 -> 0 | AY83: =Input!BC32*$I83 -> 0 | AZ83: =Input!BD32*$I83 -> 0 | BA83: =Input!BE32*$I83 -> 0 | BB83: =Input!BF32*$I83 -> 0 | BC83: =Input!BG32*$I83 -> 0 | BD83: =Input!BH32*$I83 -> 0 | BE83: =Input!BI32*$I83 -> 0 | BF83: =Input!BJ32*$I83 -> 0 | BG83: =Input!BK32*$I83 -> 0 | BH83: =Input!BL32*$I83 -> 0 | BI83: =Input!BM32*$I83 -> 0 | BJ83: =Input!BN32*$I83 -> 0 | BK83: =Input!BO32*$I83 -> 0 | BL83: =Input!BP32*$I83 -> 0 | BM83: =Input!BQ32*$I83 -> 0
D84: ="Total "&D58 -> Total Cash Flow, Unescalated | K84: 929620.5505 | L84: 1000000 | O84: =SUM(O59:O83) -> 0 | P84: =SUM(P59:P83) -> 1000000 | Q84: =SUM(Q59:Q83) -> 0 | R84: 0 | S84: 0 | T84: 0 | U84: 0 | V84: 0 | W84: 0 | X84: 0 | Y84: 0 | Z84: 0 | AA84: 0 | AB84: 0 | AC84: 0 | AD84: 0 | AE84: 0 | AF84: 0 | AG84: 0 | AH84: 0 | AI84: 0 | AJ84: 0 | AK84: 0 | AL84: 0 | AM84: 0 | AN84: 0 | AO84: 0 | AP84: 0 | AQ84: 0 | AR84: 0 | AS84: 0 | AT84: 0 | AU84: 0 | AV84: 0 | AW84: 0 | AX84: 0 | AY84: 0 | AZ84: 0 | BA84: 0 | BB84: 0 | BC84: 0 | BD84: 0 | BE84: 0 | BF84: 0 | BG84: 0 | BH84: 0 | BI84: 0 | BJ84: 0 | BK84: 0 | BL84: 0 | BM84: 0
D87: Escalation Factors | H87: Inflation | I87: Base Year
C88: =C87+1 -> 1 | D88: =INDEX(D$59:D$83,$C88,1) -> item 1 | E88: =INDEX(E$59:E$83,$C88,1) -> Capital | F88: 4 | H88: =Input!L8 -> 0 | I88: =Assumptions!$D$13 -> 2017 | O88: =IF(ISNUMBER($H88),(1+$H88)^(O$5-$I88),INDEX(lookups!$F$69:$BU$80,MATCH($H88,lookups!$C$69:$C$80,0),MATCH(O$5,lookups!$F$68:$BU$68,0))/INDEX(lookups!$F$69:$BU$80,MATCH($H88,lookups!$C$69:$C$80,0),MATCH($I88,lookups!$F$68:$BU$68,0))) -> 1 | P88: =IF(ISNUMBER($H88),(1+$H88)^(P$5-$I88),INDEX(lookups!$F$69:$BU$80,MATCH($H88,lookups!$C$69:$C$80,0),MATCH(P$5,lookups!$F$68:$BU$68,0))/INDEX(lookups!$F$69:$BU$80,MATCH($H88,lookups!$C$69:$C$80,0),MATCH($I88,lookups!$F$68:$BU$68,0))) -> 1 | Q88: =IF(ISNUMBER($H88),(1+$H88)^(Q$5-$I88),INDEX(lookups!$F$69:$BU$80,MATCH($H88,lookups!$C$69:$C$80,0),MATCH(Q$5,lookups!$F$68:$BU$68,0))/INDEX(lookups!$F$69:$BU$80,MATCH($H88,lookups!$C$69:$C$80,0),MATCH($I88,lookups!$F$68:$BU$68,0))) -> 1 | R88: =IF(ISNUMBER($H88),(1+$H88)^(R$5-$I88),INDEX(lookups!$F$69:$BU$80,MATCH($H88,lookups!$C$69:$C$80,0),MATCH(R$5,lookups!$F$68:$BU$68,0))/INDEX(lookups!$F$69:$BU$80,MATCH($H88,lookups!$C$69:$C$80,0),MATCH($I88,lookups!$F$68:$BU$68,0))) -> 1 | S88: =IF(ISNUMBER($H88),(1+$H88)^(S$5-$I88),INDEX(lookups!$F$69:$BU$80,MATCH($H88,lookups!$C$69:$C$80,0),MATCH(S$5,lookups!$F$68:$BU$68,0))/INDEX(lookups!$F$69:$BU$80,MATCH($H88,lookups!$C$69:$C$80,0),MATCH($I88,lookups!$F$68:$BU$68,0))) -> 1 | T88: =IF(ISNUMBER($H88),(1+$H88)^(T$5-$I88),INDEX(lookups!$F$69:$BU$80,MATCH($H88,lookups!$C$69:$C$80,0),MATCH(T$5,lookups!$F$68:$BU$68,0))/INDEX(lookups!$F$69:$BU$80,MATCH($H88,lookups!$C$69:$C$80,0),MATCH($I88,lookups!$F$68:$BU$68,0))) -> 1 | U88: =IF(ISNUMBER($H88),(1+$H88)^(U$5-$I88),INDEX(lookups!$F$69:$BU$80,MATCH($H88,lookups!$C$69:$C$80,0),MATCH(U$5,lookups!$F$68:$BU$68,0))/INDEX(lookups!$F$69:$BU$80,MATCH($H88,lookups!$C$69:$C$80,0),MATCH($I88,lookups!$F$68:$BU$68,0))) -> 1 | V88: =IF(ISNUMBER($H88),(1+$H88)^(V$5-$I88),INDEX(lookups!$F$69:$BU$80,MATCH($H88,lookups!$C$69:$C$80,0),MATCH(V$5,lookups!$F$68:$BU$68,0))/INDEX(lookups!$F$69:$BU$80,MATCH($H88,lookups!$C$69:$C$80,0),MATCH($I88,lookups!$F$68:$BU$68,0))) -> 1 | W88: =IF(ISNUMBER($H88),(1+$H88)^(W$5-$I88),INDEX(lookups!$F$69:$BU$80,MATCH($H88,lookups!$C$69:$C$80,0),MATCH(W$5,lookups!$F$68:$BU$68,0))/INDEX(lookups!$F$69:$BU$80,MATCH($H88,lookups!$C$69:$C$80,0),MATCH($I88,lookups!$F$68:$BU$68,0))) -> 1 | X88: =IF(ISNUMBER($H88),(1+$H88)^(X$5-$I88),INDEX(lookups!$F$69:$BU$80,MATCH($H88,lookups!$C$69:$C$80,0),MATCH(X$5,lookups!$F$68:$BU$68,0))/INDEX(lookups!$F$69:$BU$80,MATCH($H88,lookups!$C$69:$C$80,0),MATCH($I88,lookups!$F$68:$BU$68,0))) -> 1 | Y88: =IF(ISNUMBER($H88),(1+$H88)^(Y$5-$I88),INDEX(lookups!$F$69:$BU$80,MATCH($H88,lookups!$C$69:$C$80,0),MATCH(Y$5,lookups!$F$68:$BU$68,0))/INDEX(lookups!$F$69:$BU$80,MATCH($H88,lookups!$C$69:$C$80,0),MATCH($I88,lookups!$F$68:$BU$68,0))) -> 1 | Z88: =IF(ISNUMBER($H88),(1+$H88)^(Z$5-$I88),INDEX(lookups!$F$69:$BU$80,MATCH($H88,lookups!$C$69:$C$80,0),MATCH(Z$5,lookups!$F$68:$BU$68,0))/INDEX(lookups!$F$69:$BU$80,MATCH($H88,lookups!$C$69:$C$80,0),MATCH($I88,lookups!$F$68:$BU$68,0))) -> 1 | AA88: =IF(ISNUMBER($H88),(1+$H88)^(AA$5-$I88),INDEX(lookups!$F$69:$BU$80,MATCH($H88,lookups!$C$69:$C$80,0),MATCH(AA$5,lookups!$F$68:$BU$68,0))/INDEX(lookups!$F$69:$BU$80,MATCH($H88,lookups!$C$69:$C$80,0),MATCH($I88,lookups!$F$68:$BU$68,0))) -> 1 | AB88: =IF(ISNUMBER($H88),(1+$H88)^(AB$5-$I88),INDEX(lookups!$F$69:$BU$80,MATCH($H88,lookups!$C$69:$C$80,0),MATCH(AB$5,lookups!$F$68:$BU$68,0))/INDEX(lookups!$F$69:$BU$80,MATCH($H88,lookups!$C$69:$C$80,0),MATCH($I88,lookups!$F$68:$BU$68,0))) -> 1 | AC88: =IF(ISNUMBER($H88),(1+$H88)^(AC$5-$I88),INDEX(lookups!$F$69:$BU$80,MATCH($H88,lookups!$C$69:$C$80,0),MATCH(AC$5,lookups!$F$68:$BU$68,0))/INDEX(lookups!$F$69:$BU$80,MATCH($H88,lookups!$C$69:$C$80,0),MATCH($I88,lookups!$F$68:$BU$68,0))) -> 1 | AD88: =IF(ISNUMBER($H88),(1+$H88)^(AD$5-$I88),INDEX(lookups!$F$69:$BU$80,MATCH($H88,lookups!$C$69:$C$80,0),MATCH(AD$5,lookups!$F$68:$BU$68,0))/INDEX(lookups!$F$69:$BU$80,MATCH($H88,lookups!$C$69:$C$80,0),MATCH($I88,lookups!$F$68:$BU$68,0))) -> 1 | AE88: =IF(ISNUMBER($H88),(1+$H88)^(AE$5-$I88),INDEX(lookups!$F$69:$BU$80,MATCH($H88,lookups!$C$69:$C$80,0),MATCH(AE$5,lookups!$F$68:$BU$68,0))/INDEX(lookups!$F$69:$BU$80,MATCH($H88,lookups!$C$69:$C$80,0),MATCH($I88,lookups!$F$68:$BU$68,0))) -> 1 | AF88: =IF(ISNUMBER($H88),(1+$H88)^(AF$5-$I88),INDEX(lookups!$F$69:$BU$80,MATCH($H88,lookups!$C$69:$C$80,0),MATCH(AF$5,lookups!$F$68:$BU$68,0))/INDEX(lookups!$F$69:$BU$80,MATCH($H88,lookups!$C$69:$C$80,0),MATCH($I88,lookups!$F$68:$BU$68,0))) -> 1 | AG88: =IF(ISNUMBER($H88),(1+$H88)^(AG$5-$I88),INDEX(lookups!$F$69:$BU$80,MATCH($H88,lookups!$C$69:$C$80,0),MATCH(AG$5,lookups!$F$68:$BU$68,0))/INDEX(lookups!$F$69:$BU$80,MATCH($H88,lookups!$C$69:$C$80,0),MATCH($I88,lookups!$F$68:$BU$68,0))) -> 1 | AH88: =IF(ISNUMBER($H88),(1+$H88)^(AH$5-$I88),INDEX(lookups!$F$69:$BU$80,MATCH($H88,lookups!$C$69:$C$80,0),MATCH(AH$5,lookups!$F$68:$BU$68,0))/INDEX(lookups!$F$69:$BU$80,MATCH($H88,lookups!$C$69:$C$80,0),MATCH($I88,lookups!$F$68:$BU$68,0))) -> 1 | AI88: =IF(ISNUMBER($H88),(1+$H88)^(AI$5-$I88),INDEX(lookups!$F$69:$BU$80,MATCH($H88,lookups!$C$69:$C$80,0),MATCH(AI$5,lookups!$F$68:$BU$68,0))/INDEX(lookups!$F$69:$BU$80,MATCH($H88,lookups!$C$69:$C$80,0),MATCH($I88,lookups!$F$68:$BU$68,0))) -> 1 | AJ88: =IF(ISNUMBER($H88),(1+$H88)^(AJ$5-$I88),INDEX(lookups!$F$69:$BU$80,MATCH($H88,lookups!$C$69:$C$80,0),MATCH(AJ$5,lookups!$F$68:$BU$68,0))/INDEX(lookups!$F$69:$BU$80,MATCH($H88,lookups!$C$69:$C$80,0),MATCH($I88,lookups!$F$68:$BU$68,0))) -> 1 | AK88: =IF(ISNUMBER($H88),(1+$H88)^(AK$5-$I88),INDEX(lookups!$F$69:$BU$80,MATCH($H88,lookups!$C$69:$C$80,0),MATCH(AK$5,lookups!$F$68:$BU$68,0))/INDEX(lookups!$F$69:$BU$80,MATCH($H88,lookups!$C$69:$C$80,0),MATCH($I88,lookups!$F$68:$BU$68,0))) -> 1 | AL88: =IF(ISNUMBER($H88),(1+$H88)^(AL$5-$I88),INDEX(lookups!$F$69:$BU$80,MATCH($H88,lookups!$C$69:$C$80,0),MATCH(AL$5,lookups!$F$68:$BU$68,0))/INDEX(lookups!$F$69:$BU$80,MATCH($H88,lookups!$C$69:$C$80,0),MATCH($I88,lookups!$F$68:$BU$68,0))) -> 1 | AM88: =IF(ISNUMBER($H88),(1+$H88)^(AM$5-$I88),INDEX(lookups!$F$69:$BU$80,MATCH($H88,lookups!$C$69:$C$80,0),MATCH(AM$5,lookups!$F$68:$BU$68,0))/INDEX(lookups!$F$69:$BU$80,MATCH($H88,lookups!$C$69:$C$80,0),MATCH($I88,lookups!$F$68:$BU$68,0))) -> 1 | AN88: =IF(ISNUMBER($H88),(1+$H88)^(AN$5-$I88),INDEX(lookups!$F$69:$BU$80,MATCH($H88,lookups!$C$69:$C$80,0),MATCH(AN$5,lookups!$F$68:$BU$68,0))/INDEX(lookups!$F$69:$BU$80,MATCH($H88,lookups!$C$69:$C$80,0),MATCH($I88,lookups!$F$68:$BU$68,0))) -> 1 | AO88: =IF(ISNUMBER($H88),(1+$H88)^(AO$5-$I88),INDEX(lookups!$F$69:$BU$80,MATCH($H88,lookups!$C$69:$C$80,0),MATCH(AO$5,lookups!$F$68:$BU$68,0))/INDEX(lookups!$F$69:$BU$80,MATCH($H88,lookups!$C$69:$C$80,0),MATCH($I88,lookups!$F$68:$BU$68,0))) -> 1 | AP88: =IF(ISNUMBER($H88),(1+$H88)^(AP$5-$I88),INDEX(lookups!$F$69:$BU$80,MATCH($H88,lookups!$C$69:$C$80,0),MATCH(AP$5,lookups!$F$68:$BU$68,0))/INDEX(lookups!$F$69:$BU$80,MATCH($H88,lookups!$C$69:$C$80,0),MATCH($I88,lookups!$F$68:$BU$68,0))) -> 1 | AQ88: =IF(ISNUMBER($H88),(1+$H88)^(AQ$5-$I88),INDEX(lookups!$F$69:$BU$80,MATCH($H88,lookups!$C$69:$C$80,0),MATCH(AQ$5,lookups!$F$68:$BU$68,0))/INDEX(lookups!$F$69:$BU$80,MATCH($H88,lookups!$C$69:$C$80,0),MATCH($I88,lookups!$F$68:$BU$68,0))) -> 1 | AR88: =IF(ISNUMBER($H88),(1+$H88)^(AR$5-$I88),INDEX(lookups!$F$69:$BU$80,MATCH($H88,lookups!$C$69:$C$80,0),MATCH(AR$5,lookups!$F$68:$BU$68,0))/INDEX(lookups!$F$69:$BU$80,MATCH($H88,lookups!$C$69:$C$80,0),MATCH($I88,lookups!$F$68:$BU$68,0))) -> 1 | AS88: =IF(ISNUMBER($H88),(1+$H88)^(AS$5-$I88),INDEX(lookups!$F$69:$BU$80,MATCH($H88,lookups!$C$69:$C$80,0),MATCH(AS$5,lookups!$F$68:$BU$68,0))/INDEX(lookups!$F$69:$BU$80,MATCH($H88,lookups!$C$69:$C$80,0),MATCH($I88,lookups!$F$68:$BU$68,0))) -> 1 | AT88: =IF(ISNUMBER($H88),(1+$H88)^(AT$5-$I88),INDEX(lookups!$F$69:$BU$80,MATCH($H88,lookups!$C$69:$C$80,0),MATCH(AT$5,lookups!$F$68:$BU$68,0))/INDEX(lookups!$F$69:$BU$80,MATCH($H88,lookups!$C$69:$C$80,0),MATCH($I88,lookups!$F$68:$BU$68,0))) -> 1 | AU88: =IF(ISNUMBER($H88),(1+$H88)^(AU$5-$I88),INDEX(lookups!$F$69:$BU$80,MATCH($H88,lookups!$C$69:$C$80,0),MATCH(AU$5,lookups!$F$68:$BU$68,0))/INDEX(lookups!$F$69:$BU$80,MATCH($H88,lookups!$C$69:$C$80,0),MATCH($I88,lookups!$F$68:$BU$68,0))) -> 1 | AV88: =IF(ISNUMBER($H88),(1+$H88)^(AV$5-$I88),INDEX(lookups!$F$69:$BU$80,MATCH($H88,lookups!$C$69:$C$80,0),MATCH(AV$5,lookups!$F$68:$BU$68,0))/INDEX(lookups!$F$69:$BU$80,MATCH($H88,lookups!$C$69:$C$80,0),MATCH($I88,lookups!$F$68:$BU$68,0))) -> 1 | AW88: =IF(ISNUMBER($H88),(1+$H88)^(AW$5-$I88),INDEX(lookups!$F$69:$BU$80,MATCH($H88,lookups!$C$69:$C$80,0),MATCH(AW$5,lookups!$F$68:$BU$68,0))/INDEX(lookups!$F$69:$BU$80,MATCH($H88,lookups!$C$69:$C$80,0),MATCH($I88,lookups!$F$68:$BU$68,0))) -> 1 | AX88: =IF(ISNUMBER($H88),(1+$H88)^(AX$5-$I88),INDEX(lookups!$F$69:$BU$80,MATCH($H88,lookups!$C$69:$C$80,0),MATCH(AX$5,lookups!$F$68:$BU$68,0))/INDEX(lookups!$F$69:$BU$80,MATCH($H88,lookups!$C$69:$C$80,0),MATCH($I88,lookups!$F$68:$BU$68,0))) -> 1 | AY88: =IF(ISNUMBER($H88),(1+$H88)^(AY$5-$I88),INDEX(lookups!$F$69:$BU$80,MATCH($H88,lookups!$C$69:$C$80,0),MATCH(AY$5,lookups!$F$68:$BU$68,0))/INDEX(lookups!$F$69:$BU$80,MATCH($H88,lookups!$C$69:$C$80,0),MATCH($I88,lookups!$F$68:$BU$68,0))) -> 1 | AZ88: =IF(ISNUMBER($H88),(1+$H88)^(AZ$5-$I88),INDEX(lookups!$F$69:$BU$80,MATCH($H88,lookups!$C$69:$C$80,0),MATCH(AZ$5,lookups!$F$68:$BU$68,0))/INDEX(lookups!$F$69:$BU$80,MATCH($H88,lookups!$C$69:$C$80,0),MATCH($I88,lookups!$F$68:$BU$68,0))) -> 1 | BA88: =IF(ISNUMBER($H88),(1+$H88)^(BA$5-$I88),INDEX(lookups!$F$69:$BU$80,MATCH($H88,lookups!$C$69:$C$80,0),MATCH(BA$5,lookups!$F$68:$BU$68,0))/INDEX(lookups!$F$69:$BU$80,MATCH($H88,lookups!$C$69:$C$80,0),MATCH($I88,lookups!$F$68:$BU$68,0))) -> 1 | BB88: =IF(ISNUMBER($H88),(1+$H88)^(BB$5-$I88),INDEX(lookups!$F$69:$BU$80,MATCH($H88,lookups!$C$69:$C$80,0),MATCH(BB$5,lookups!$F$68:$BU$68,0))/INDEX(lookups!$F$69:$BU$80,MATCH($H88,lookups!$C$69:$C$80,0),MATCH($I88,lookups!$F$68:$BU$68,0))) -> 1 | BC88: =IF(ISNUMBER($H88),(1+$H88)^(BC$5-$I88),INDEX(lookups!$F$69:$BU$80,MATCH($H88,lookups!$C$69:$C$80,0),MATCH(BC$5,lookups!$F$68:$BU$68,0))/INDEX(lookups!$F$69:$BU$80,MATCH($H88,lookups!$C$69:$C$80,0),MATCH($I88,lookups!$F$68:$BU$68,0))) -> 1 | BD88: =IF(ISNUMBER($H88),(1+$H88)^(BD$5-$I88),INDEX(lookups!$F$69:$BU$80,MATCH($H88,lookups!$C$69:$C$80,0),MATCH(BD$5,lookups!$F$68:$BU$68,0))/INDEX(lookups!$F$69:$BU$80,MATCH($H88,lookups!$C$69:$C$80,0),MATCH($I88,lookups!$F$68:$BU$68,0))) -> 1 | BE88: =IF(ISNUMBER($H88),(1+$H88)^(BE$5-$I88),INDEX(lookups!$F$69:$BU$80,MATCH($H88,lookups!$C$69:$C$80,0),MATCH(BE$5,lookups!$F$68:$BU$68,0))/INDEX(lookups!$F$69:$BU$80,MATCH($H88,lookups!$C$69:$C$80,0),MATCH($I88,lookups!$F$68:$BU$68,0))) -> 1 | BF88: =IF(ISNUMBER($H88),(1+$H88)^(BF$5-$I88),INDEX(lookups!$F$69:$BU$80,MATCH($H88,lookups!$C$69:$C$80,0),MATCH(BF$5,lookups!$F$68:$BU$68,0))/INDEX(lookups!$F$69:$BU$80,MATCH($H88,lookups!$C$69:$C$80,0),MATCH($I88,lookups!$F$68:$BU$68,0))) -> 1 | BG88: =IF(ISNUMBER($H88),(1+$H88)^(BG$5-$I88),INDEX(lookups!$F$69:$BU$80,MATCH($H88,lookups!$C$69:$C$80,0),MATCH(BG$5,lookups!$F$68:$BU$68,0))/INDEX(lookups!$F$69:$BU$80,MATCH($H88,lookups!$C$69:$C$80,0),MATCH($I88,lookups!$F$68:$BU$68,0))) -> 1 | BH88: =IF(ISNUMBER($H88),(1+$H88)^(BH$5-$I88),INDEX(lookups!$F$69:$BU$80,MATCH($H88,lookups!$C$69:$C$80,0),MATCH(BH$5,lookups!$F$68:$BU$68,0))/INDEX(lookups!$F$69:$BU$80,MATCH($H88,lookups!$C$69:$C$80,0),MATCH($I88,lookups!$F$68:$BU$68,0))) -> 1 | BI88: =IF(ISNUMBER($H88),(1+$H88)^(BI$5-$I88),INDEX(lookups!$F$69:$BU$80,MATCH($H88,lookups!$C$69:$C$80,0),MATCH(BI$5,lookups!$F$68:$BU$68,0))/INDEX(lookups!$F$69:$BU$80,MATCH($H88,lookups!$C$69:$C$80,0),MATCH($I88,lookups!$F$68:$BU$68,0))) -> 1 | BJ88: =IF(ISNUMBER($H88),(1+$H88)^(BJ$5-$I88),INDEX(lookups!$F$69:$BU$80,MATCH($H88,lookups!$C$69:$C$80,0),MATCH(BJ$5,lookups!$F$68:$BU$68,0))/INDEX(lookups!$F$69:$BU$80,MATCH($H88,lookups!$C$69:$C$80,0),MATCH($I88,lookups!$F$68:$BU$68,0))) -> 1 | BK88: =IF(ISNUMBER($H88),(1+$H88)^(BK$5-$I88),INDEX(lookups!$F$69:$BU$80,MATCH($H88,lookups!$C$69:$C$80,0),MATCH(BK$5,lookups!$F$68:$BU$68,0))/INDEX(lookups!$F$69:$BU$80,MATCH($H88,lookups!$C$69:$C$80,0),MATCH($I88,lookups!$F$68:$BU$68,0))) -> 1 | BL88: =IF(ISNUMBER($H88),(1+$H88)^(BL$5-$I88),INDEX(lookups!$F$69:$BU$80,MATCH($H88,lookups!$C$69:$C$80,0),MATCH(BL$5,lookups!$F$68:$BU$68,0))/INDEX(lookups!$F$69:$BU$80,MATCH($H88,lookups!$C$69:$C$80,0),MATCH($I88,lookups!$F$68:$BU$68,0))) -> 1 | BM88: =IF(ISNUMBER($H88),(1+$H88)^(BM$5-$I88),INDEX(lookups!$F$69:$BU$80,MATCH($H88,lookups!$C$69:$C$80,0),MATCH(BM$5,lookups!$F$68:$BU$68,0))/INDEX(lookups!$F$69:$BU$80,MATCH($H88,lookups!$C$69:$C$80,0),MATCH($I88,lookups!$F$68:$BU$68,0))) -> 1
C89: =C88+1 -> 2 | D89: =INDEX(D$59:D$83,$C89,1) -> item 2 | E89: Capital | F89: 4 | H89: =Input!L9 -> 0 | I89: =Assumptions!$D$13 -> 2017 | O89: =IF(ISNUMBER($H89),(1+$H89)^(O$5-$I89),INDEX(lookups!$F$69:$BU$80,MATCH($H89,lookups!$C$69:$C$80,0),MATCH(O$5,lookups!$F$68:$BU$68,0))/INDEX(lookups!$F$69:$BU$80,MATCH($H89,lookups!$C$69:$C$80,0),MATCH($I89,lookups!$F$68:$BU$68,0))) -> 1 | P89: =IF(ISNUMBER($H89),(1+$H89)^(P$5-$I89),INDEX(lookups!$F$69:$BU$80,MATCH($H89,lookups!$C$69:$C$80,0),MATCH(P$5,lookups!$F$68:$BU$68,0))/INDEX(lookups!$F$69:$BU$80,MATCH($H89,lookups!$C$69:$C$80,0),MATCH($I89,lookups!$F$68:$BU$68,0))) -> 1 | Q89: =IF(ISNUMBER($H89),(1+$H89)^(Q$5-$I89),INDEX(lookups!$F$69:$BU$80,MATCH($H89,lookups!$C$69:$C$80,0),MATCH(Q$5,lookups!$F$68:$BU$68,0))/INDEX(lookups!$F$69:$BU$80,MATCH($H89,lookups!$C$69:$C$80,0),MATCH($I89,lookups!$F$68:$BU$68,0))) -> 1 | R89: =IF(ISNUMBER($H89),(1+$H89)^(R$5-$I89),INDEX(lookups!$F$69:$BU$80,MATCH($H89,lookups!$C$69:$C$80,0),MATCH(R$5,lookups!$F$68:$BU$68,0))/INDEX(lookups!$F$69:$BU$80,MATCH($H89,lookups!$C$69:$C$80,0),MATCH($I89,lookups!$F$68:$BU$68,0))) -> 1 | S89: =IF(ISNUMBER($H89),(1+$H89)^(S$5-$I89),INDEX(lookups!$F$69:$BU$80,MATCH($H89,lookups!$C$69:$C$80,0),MATCH(S$5,lookups!$F$68:$BU$68,0))/INDEX(lookups!$F$69:$BU$80,MATCH($H89,lookups!$C$69:$C$80,0),MATCH($I89,lookups!$F$68:$BU$68,0))) -> 1 | T89: =IF(ISNUMBER($H89),(1+$H89)^(T$5-$I89),INDEX(lookups!$F$69:$BU$80,MATCH($H89,lookups!$C$69:$C$80,0),MATCH(T$5,lookups!$F$68:$BU$68,0))/INDEX(lookups!$F$69:$BU$80,MATCH($H89,lookups!$C$69:$C$80,0),MATCH($I89,lookups!$F$68:$BU$68,0))) -> 1 | U89: =IF(ISNUMBER($H89),(1+$H89)^(U$5-$I89),INDEX(lookups!$F$69:$BU$80,MATCH($H89,lookups!$C$69:$C$80,0),MATCH(U$5,lookups!$F$68:$BU$68,0))/INDEX(lookups!$F$69:$BU$80,MATCH($H89,lookups!$C$69:$C$80,0),MATCH($I89,lookups!$F$68:$BU$68,0))) -> 1 | V89: =IF(ISNUMBER($H89),(1+$H89)^(V$5-$I89),INDEX(lookups!$F$69:$BU$80,MATCH($H89,lookups!$C$69:$C$80,0),MATCH(V$5,lookups!$F$68:$BU$68,0))/INDEX(lookups!$F$69:$BU$80,MATCH($H89,lookups!$C$69:$C$80,0),MATCH($I89,lookups!$F$68:$BU$68,0))) -> 1 | W89: =IF(ISNUMBER($H89),(1+$H89)^(W$5-$I89),INDEX(lookups!$F$69:$BU$80,MATCH($H89,lookups!$C$69:$C$80,0),MATCH(W$5,lookups!$F$68:$BU$68,0))/INDEX(lookups!$F$69:$BU$80,MATCH($H89,lookups!$C$69:$C$80,0),MATCH($I89,lookups!$F$68:$BU$68,0))) -> 1 | X89: =IF(ISNUMBER($H89),(1+$H89)^(X$5-$I89),INDEX(lookups!$F$69:$BU$80,MATCH($H89,lookups!$C$69:$C$80,0),MATCH(X$5,lookups!$F$68:$BU$68,0))/INDEX(lookups!$F$69:$BU$80,MATCH($H89,lookups!$C$69:$C$80,0),MATCH($I89,lookups!$F$68:$BU$68,0))) -> 1 | Y89: =IF(ISNUMBER($H89),(1+$H89)^(Y$5-$I89),INDEX(lookups!$F$69:$BU$80,MATCH($H89,lookups!$C$69:$C$80,0),MATCH(Y$5,lookups!$F$68:$BU$68,0))/INDEX(lookups!$F$69:$BU$80,MATCH($H89,lookups!$C$69:$C$80,0),MATCH($I89,lookups!$F$68:$BU$68,0))) -> 1 | Z89: =IF(ISNUMBER($H89),(1+$H89)^(Z$5-$I89),INDEX(lookups!$F$69:$BU$80,MATCH($H89,lookups!$C$69:$C$80,0),MATCH(Z$5,lookups!$F$68:$BU$68,0))/INDEX(lookups!$F$69:$BU$80,MATCH($H89,lookups!$C$69:$C$80,0),MATCH($I89,lookups!$F$68:$BU$68,0))) -> 1 | AA89: =IF(ISNUMBER($H89),(1+$H89)^(AA$5-$I89),INDEX(lookups!$F$69:$BU$80,MATCH($H89,lookups!$C$69:$C$80,0),MATCH(AA$5,lookups!$F$68:$BU$68,0))/INDEX(lookups!$F$69:$BU$80,MATCH($H89,lookups!$C$69:$C$80,0),MATCH($I89,lookups!$F$68:$BU$68,0))) -> 1 | AB89: =IF(ISNUMBER($H89),(1+$H89)^(AB$5-$I89),INDEX(lookups!$F$69:$BU$80,MATCH($H89,lookups!$C$69:$C$80,0),MATCH(AB$5,lookups!$F$68:$BU$68,0))/INDEX(lookups!$F$69:$BU$80,MATCH($H89,lookups!$C$69:$C$80,0),MATCH($I89,lookups!$F$68:$BU$68,0))) -> 1 | AC89: =IF(ISNUMBER($H89),(1+$H89)^(AC$5-$I89),INDEX(lookups!$F$69:$BU$80,MATCH($H89,lookups!$C$69:$C$80,0),MATCH(AC$5,lookups!$F$68:$BU$68,0))/INDEX(lookups!$F$69:$BU$80,MATCH($H89,lookups!$C$69:$C$80,0),MATCH($I89,lookups!$F$68:$BU$68,0))) -> 1 | AD89: =IF(ISNUMBER($H89),(1+$H89)^(AD$5-$I89),INDEX(lookups!$F$69:$BU$80,MATCH($H89,lookups!$C$69:$C$80,0),MATCH(AD$5,lookups!$F$68:$BU$68,0))/INDEX(lookups!$F$69:$BU$80,MATCH($H89,lookups!$C$69:$C$80,0),MATCH($I89,lookups!$F$68:$BU$68,0))) -> 1 | AE89: =IF(ISNUMBER($H89),(1+$H89)^(AE$5-$I89),INDEX(lookups!$F$69:$BU$80,MATCH($H89,lookups!$C$69:$C$80,0),MATCH(AE$5,lookups!$F$68:$BU$68,0))/INDEX(lookups!$F$69:$BU$80,MATCH($H89,lookups!$C$69:$C$80,0),MATCH($I89,lookups!$F$68:$BU$68,0))) -> 1 | AF89: =IF(ISNUMBER($H89),(1+$H89)^(AF$5-$I89),INDEX(lookups!$F$69:$BU$80,MATCH($H89,lookups!$C$69:$C$80,0),MATCH(AF$5,lookups!$F$68:$BU$68,0))/INDEX(lookups!$F$69:$BU$80,MATCH($H89,lookups!$C$69:$C$80,0),MATCH($I89,lookups!$F$68:$BU$68,0))) -> 1 | AG89: =IF(ISNUMBER($H89),(1+$H89)^(AG$5-$I89),INDEX(lookups!$F$69:$BU$80,MATCH($H89,lookups!$C$69:$C$80,0),MATCH(AG$5,lookups!$F$68:$BU$68,0))/INDEX(lookups!$F$69:$BU$80,MATCH($H89,lookups!$C$69:$C$80,0),MATCH($I89,lookups!$F$68:$BU$68,0))) -> 1 | AH89: =IF(ISNUMBER($H89),(1+$H89)^(AH$5-$I89),INDEX(lookups!$F$69:$BU$80,MATCH($H89,lookups!$C$69:$C$80,0),MATCH(AH$5,lookups!$F$68:$BU$68,0))/INDEX(lookups!$F$69:$BU$80,MATCH($H89,lookups!$C$69:$C$80,0),MATCH($I89,lookups!$F$68:$BU$68,0))) -> 1 | AI89: =IF(ISNUMBER($H89),(1+$H89)^(AI$5-$I89),INDEX(lookups!$F$69:$BU$80,MATCH($H89,lookups!$C$69:$C$80,0),MATCH(AI$5,lookups!$F$68:$BU$68,0))/INDEX(lookups!$F$69:$BU$80,MATCH($H89,lookups!$C$69:$C$80,0),MATCH($I89,lookups!$F$68:$BU$68,0))) -> 1 | AJ89: =IF(ISNUMBER($H89),(1+$H89)^(AJ$5-$I89),INDEX(lookups!$F$69:$BU$80,MATCH($H89,lookups!$C$69:$C$80,0),MATCH(AJ$5,lookups!$F$68:$BU$68,0))/INDEX(lookups!$F$69:$BU$80,MATCH($H89,lookups!$C$69:$C$80,0),MATCH($I89,lookups!$F$68:$BU$68,0))) -> 1 | AK89: =IF(ISNUMBER($H89),(1+$H89)^(AK$5-$I89),INDEX(lookups!$F$69:$BU$80,MATCH($H89,lookups!$C$69:$C$80,0),MATCH(AK$5,lookups!$F$68:$BU$68,0))/INDEX(lookups!$F$69:$BU$80,MATCH($H89,lookups!$C$69:$C$80,0),MATCH($I89,lookups!$F$68:$BU$68,0))) -> 1 | AL89: =IF(ISNUMBER($H89),(1+$H89)^(AL$5-$I89),INDEX(lookups!$F$69:$BU$80,MATCH($H89,lookups!$C$69:$C$80,0),MATCH(AL$5,lookups!$F$68:$BU$68,0))/INDEX(lookups!$F$69:$BU$80,MATCH($H89,lookups!$C$69:$C$80,0),MATCH($I89,lookups!$F$68:$BU$68,0))) -> 1 | AM89: =IF(ISNUMBER($H89),(1+$H89)^(AM$5-$I89),INDEX(lookups!$F$69:$BU$80,MATCH($H89,lookups!$C$69:$C$80,0),MATCH(AM$5,lookups!$F$68:$BU$68,0))/INDEX(lookups!$F$69:$BU$80,MATCH($H89,lookups!$C$69:$C$80,0),MATCH($I89,lookups!$F$68:$BU$68,0))) -> 1 | AN89: =IF(ISNUMBER($H89),(1+$H89)^(AN$5-$I89),INDEX(lookups!$F$69:$BU$80,MATCH($H89,lookups!$C$69:$C$80,0),MATCH(AN$5,lookups!$F$68:$BU$68,0))/INDEX(lookups!$F$69:$BU$80,MATCH($H89,lookups!$C$69:$C$80,0),MATCH($I89,lookups!$F$68:$BU$68,0))) -> 1 | AO89: =IF(ISNUMBER($H89),(1+$H89)^(AO$5-$I89),INDEX(lookups!$F$69:$BU$80,MATCH($H89,lookups!$C$69:$C$80,0),MATCH(AO$5,lookups!$F$68:$BU$68,0))/INDEX(lookups!$F$69:$BU$80,MATCH($H89,lookups!$C$69:$C$80,0),MATCH($I89,lookups!$F$68:$BU$68,0))) -> 1 | AP89: =IF(ISNUMBER($H89),(1+$H89)^(AP$5-$I89),INDEX(lookups!$F$69:$BU$80,MATCH($H89,lookups!$C$69:$C$80,0),MATCH(AP$5,lookups!$F$68:$BU$68,0))/INDEX(lookups!$F$69:$BU$80,MATCH($H89,lookups!$C$69:$C$80,0),MATCH($I89,lookups!$F$68:$BU$68,0))) -> 1 | AQ89: =IF(ISNUMBER($H89),(1+$H89)^(AQ$5-$I89),INDEX(lookups!$F$69:$BU$80,MATCH($H89,lookups!$C$69:$C$80,0),MATCH(AQ$5,lookups!$F$68:$BU$68,0))/INDEX(lookups!$F$69:$BU$80,MATCH($H89,lookups!$C$69:$C$80,0),MATCH($I89,lookups!$F$68:$BU$68,0))) -> 1 | AR89: =IF(ISNUMBER($H89),(1+$H89)^(AR$5-$I89),INDEX(lookups!$F$69:$BU$80,MATCH($H89,lookups!$C$69:$C$80,0),MATCH(AR$5,lookups!$F$68:$BU$68,0))/INDEX(lookups!$F$69:$BU$80,MATCH($H89,lookups!$C$69:$C$80,0),MATCH($I89,lookups!$F$68:$BU$68,0))) -> 1 | AS89: =IF(ISNUMBER($H89),(1+$H89)^(AS$5-$I89),INDEX(lookups!$F$69:$BU$80,MATCH($H89,lookups!$C$69:$C$80,0),MATCH(AS$5,lookups!$F$68:$BU$68,0))/INDEX(lookups!$F$69:$BU$80,MATCH($H89,lookups!$C$69:$C$80,0),MATCH($I89,lookups!$F$68:$BU$68,0))) -> 1 | AT89: =IF(ISNUMBER($H89),(1+$H89)^(AT$5-$I89),INDEX(lookups!$F$69:$BU$80,MATCH($H89,lookups!$C$69:$C$80,0),MATCH(AT$5,lookups!$F$68:$BU$68,0))/INDEX(lookups!$F$69:$BU$80,MATCH($H89,lookups!$C$69:$C$80,0),MATCH($I89,lookups!$F$68:$BU$68,0))) -> 1 | AU89: =IF(ISNUMBER($H89),(1+$H89)^(AU$5-$I89),INDEX(lookups!$F$69:$BU$80,MATCH($H89,lookups!$C$69:$C$80,0),MATCH(AU$5,lookups!$F$68:$BU$68,0))/INDEX(lookups!$F$69:$BU$80,MATCH($H89,lookups!$C$69:$C$80,0),MATCH($I89,lookups!$F$68:$BU$68,0))) -> 1 | AV89: =IF(ISNUMBER($H89),(1+$H89)^(AV$5-$I89),INDEX(lookups!$F$69:$BU$80,MATCH($H89,lookups!$C$69:$C$80,0),MATCH(AV$5,lookups!$F$68:$BU$68,0))/INDEX(lookups!$F$69:$BU$80,MATCH($H89,lookups!$C$69:$C$80,0),MATCH($I89,lookups!$F$68:$BU$68,0))) -> 1 | AW89: =IF(ISNUMBER($H89),(1+$H89)^(AW$5-$I89),INDEX(lookups!$F$69:$BU$80,MATCH($H89,lookups!$C$69:$C$80,0),MATCH(AW$5,lookups!$F$68:$BU$68,0))/INDEX(lookups!$F$69:$BU$80,MATCH($H89,lookups!$C$69:$C$80,0),MATCH($I89,lookups!$F$68:$BU$68,0))) -> 1 | AX89: =IF(ISNUMBER($H89),(1+$H89)^(AX$5-$I89),INDEX(lookups!$F$69:$BU$80,MATCH($H89,lookups!$C$69:$C$80,0),MATCH(AX$5,lookups!$F$68:$BU$68,0))/INDEX(lookups!$F$69:$BU$80,MATCH($H89,lookups!$C$69:$C$80,0),MATCH($I89,lookups!$F$68:$BU$68,0))) -> 1 | AY89: =IF(ISNUMBER($H89),(1+$H89)^(AY$5-$I89),INDEX(lookups!$F$69:$BU$80,MATCH($H89,lookups!$C$69:$C$80,0),MATCH(AY$5,lookups!$F$68:$BU$68,0))/INDEX(lookups!$F$69:$BU$80,MATCH($H89,lookups!$C$69:$C$80,0),MATCH($I89,lookups!$F$68:$BU$68,0))) -> 1 | AZ89: =IF(ISNUMBER($H89),(1+$H89)^(AZ$5-$I89),INDEX(lookups!$F$69:$BU$80,MATCH($H89,lookups!$C$69:$C$80,0),MATCH(AZ$5,lookups!$F$68:$BU$68,0))/INDEX(lookups!$F$69:$BU$80,MATCH($H89,lookups!$C$69:$C$80,0),MATCH($I89,lookups!$F$68:$BU$68,0))) -> 1 | BA89: =IF(ISNUMBER($H89),(1+$H89)^(BA$5-$I89),INDEX(lookups!$F$69:$BU$80,MATCH($H89,lookups!$C$69:$C$80,0),MATCH(BA$5,lookups!$F$68:$BU$68,0))/INDEX(lookups!$F$69:$BU$80,MATCH($H89,lookups!$C$69:$C$80,0),MATCH($I89,lookups!$F$68:$BU$68,0))) -> 1 | BB89: =IF(ISNUMBER($H89),(1+$H89)^(BB$5-$I89),INDEX(lookups!$F$69:$BU$80,MATCH($H89,lookups!$C$69:$C$80,0),MATCH(BB$5,lookups!$F$68:$BU$68,0))/INDEX(lookups!$F$69:$BU$80,MATCH($H89,lookups!$C$69:$C$80,0),MATCH($I89,lookups!$F$68:$BU$68,0))) -> 1 | BC89: =IF(ISNUMBER($H89),(1+$H89)^(BC$5-$I89),INDEX(lookups!$F$69:$BU$80,MATCH($H89,lookups!$C$69:$C$80,0),MATCH(BC$5,lookups!$F$68:$BU$68,0))/INDEX(lookups!$F$69:$BU$80,MATCH($H89,lookups!$C$69:$C$80,0),MATCH($I89,lookups!$F$68:$BU$68,0))) -> 1 | BD89: =IF(ISNUMBER($H89),(1+$H89)^(BD$5-$I89),INDEX(lookups!$F$69:$BU$80,MATCH($H89,lookups!$C$69:$C$80,0),MATCH(BD$5,lookups!$F$68:$BU$68,0))/INDEX(lookups!$F$69:$BU$80,MATCH($H89,lookups!$C$69:$C$80,0),MATCH($I89,lookups!$F$68:$BU$68,0))) -> 1 | BE89: =IF(ISNUMBER($H89),(1+$H89)^(BE$5-$I89),INDEX(lookups!$F$69:$BU$80,MATCH($H89,lookups!$C$69:$C$80,0),MATCH(BE$5,lookups!$F$68:$BU$68,0))/INDEX(lookups!$F$69:$BU$80,MATCH($H89,lookups!$C$69:$C$80,0),MATCH($I89,lookups!$F$68:$BU$68,0))) -> 1 | BF89: =IF(ISNUMBER($H89),(1+$H89)^(BF$5-$I89),INDEX(lookups!$F$69:$BU$80,MATCH($H89,lookups!$C$69:$C$80,0),MATCH(BF$5,lookups!$F$68:$BU$68,0))/INDEX(lookups!$F$69:$BU$80,MATCH($H89,lookups!$C$69:$C$80,0),MATCH($I89,lookups!$F$68:$BU$68,0))) -> 1 | BG89: =IF(ISNUMBER($H89),(1+$H89)^(BG$5-$I89),INDEX(lookups!$F$69:$BU$80,MATCH($H89,lookups!$C$69:$C$80,0),MATCH(BG$5,lookups!$F$68:$BU$68,0))/INDEX(lookups!$F$69:$BU$80,MATCH($H89,lookups!$C$69:$C$80,0),MATCH($I89,lookups!$F$68:$BU$68,0))) -> 1 | BH89: =IF(ISNUMBER($H89),(1+$H89)^(BH$5-$I89),INDEX(lookups!$F$69:$BU$80,MATCH($H89,lookups!$C$69:$C$80,0),MATCH(BH$5,lookups!$F$68:$BU$68,0))/INDEX(lookups!$F$69:$BU$80,MATCH($H89,lookups!$C$69:$C$80,0),MATCH($I89,lookups!$F$68:$BU$68,0))) -> 1 | BI89: =IF(ISNUMBER($H89),(1+$H89)^(BI$5-$I89),INDEX(lookups!$F$69:$BU$80,MATCH($H89,lookups!$C$69:$C$80,0),MATCH(BI$5,lookups!$F$68:$BU$68,0))/INDEX(lookups!$F$69:$BU$80,MATCH($H89,lookups!$C$69:$C$80,0),MATCH($I89,lookups!$F$68:$BU$68,0))) -> 1 | BJ89: =IF(ISNUMBER($H89),(1+$H89)^(BJ$5-$I89),INDEX(lookups!$F$69:$BU$80,MATCH($H89,lookups!$C$69:$C$80,0),MATCH(BJ$5,lookups!$F$68:$BU$68,0))/INDEX(lookups!$F$69:$BU$80,MATCH($H89,lookups!$C$69:$C$80,0),MATCH($I89,lookups!$F$68:$BU$68,0))) -> 1 | BK89: =IF(ISNUMBER($H89),(1+$H89)^(BK$5-$I89),INDEX(lookups!$F$69:$BU$80,MATCH($H89,lookups!$C$69:$C$80,0),MATCH(BK$5,lookups!$F$68:$BU$68,0))/INDEX(lookups!$F$69:$BU$80,MATCH($H89,lookups!$C$69:$C$80,0),MATCH($I89,lookups!$F$68:$BU$68,0))) -> 1 | BL89: =IF(ISNUMBER($H89),(1+$H89)^(BL$5-$I89),INDEX(lookups!$F$69:$BU$80,MATCH($H89,lookups!$C$69:$C$80,0),MATCH(BL$5,lookups!$F$68:$BU$68,0))/INDEX(lookups!$F$69:$BU$80,MATCH($H89,lookups!$C$69:$C$80,0),MATCH($I89,lookups!$F$68:$BU$68,0))) -> 1 | BM89: =IF(ISNUMBER($H89),(1+$H89)^(BM$5-$I89),INDEX(lookups!$F$69:$BU$80,MATCH($H89,lookups!$C$69:$C$80,0),MATCH(BM$5,lookups!$F$68:$BU$68,0))/INDEX(lookups!$F$69:$BU$80,MATCH($H89,lookups!$C$69:$C$80,0),MATCH($I89,lookups!$F$68:$BU$68,0))) -> 1
C90: 3 | D90: item 3 | E90: Capital | F90: 4 | H90: =Input!L10 -> 0 | I90: =Assumptions!$D$13 -> 2017 | O90: =IF(ISNUMBER($H90),(1+$H90)^(O$5-$I90),INDEX(lookups!$F$69:$BU$80,MATCH($H90,lookups!$C$69:$C$80,0),MATCH(O$5,lookups!$F$68:$BU$68,0))/INDEX(lookups!$F$69:$BU$80,MATCH($H90,lookups!$C$69:$C$80,0),MATCH($I90,lookups!$F$68:$BU$68,0))) -> 1 | P90: =IF(ISNUMBER($H90),(1+$H90)^(P$5-$I90),INDEX(lookups!$F$69:$BU$80,MATCH($H90,lookups!$C$69:$C$80,0),MATCH(P$5,lookups!$F$68:$BU$68,0))/INDEX(lookups!$F$69:$BU$80,MATCH($H90,lookups!$C$69:$C$80,0),MATCH($I90,lookups!$F$68:$BU$68,0))) -> 1 | Q90: =IF(ISNUMBER($H90),(1+$H90)^(Q$5-$I90),INDEX(lookups!$F$69:$BU$80,MATCH($H90,lookups!$C$69:$C$80,0),MATCH(Q$5,lookups!$F$68:$BU$68,0))/INDEX(lookups!$F$69:$BU$80,MATCH($H90,lookups!$C$69:$C$80,0),MATCH($I90,lookups!$F$68:$BU$68,0))) -> 1 | R90: =IF(ISNUMBER($H90),(1+$H90)^(R$5-$I90),INDEX(lookups!$F$69:$BU$80,MATCH($H90,lookups!$C$69:$C$80,0),MATCH(R$5,lookups!$F$68:$BU$68,0))/INDEX(lookups!$F$69:$BU$80,MATCH($H90,lookups!$C$69:$C$80,0),MATCH($I90,lookups!$F$68:$BU$68,0))) -> 1 | S90: =IF(ISNUMBER($H90),(1+$H90)^(S$5-$I90),INDEX(lookups!$F$69:$BU$80,MATCH($H90,lookups!$C$69:$C$80,0),MATCH(S$5,lookups!$F$68:$BU$68,0))/INDEX(lookups!$F$69:$BU$80,MATCH($H90,lookups!$C$69:$C$80,0),MATCH($I90,lookups!$F$68:$BU$68,0))) -> 1 | T90: =IF(ISNUMBER($H90),(1+$H90)^(T$5-$I90),INDEX(lookups!$F$69:$BU$80,MATCH($H90,lookups!$C$69:$C$80,0),MATCH(T$5,lookups!$F$68:$BU$68,0))/INDEX(lookups!$F$69:$BU$80,MATCH($H90,lookups!$C$69:$C$80,0),MATCH($I90,lookups!$F$68:$BU$68,0))) -> 1 | U90: =IF(ISNUMBER($H90),(1+$H90)^(U$5-$I90),INDEX(lookups!$F$69:$BU$80,MATCH($H90,lookups!$C$69:$C$80,0),MATCH(U$5,lookups!$F$68:$BU$68,0))/INDEX(lookups!$F$69:$BU$80,MATCH($H90,lookups!$C$69:$C$80,0),MATCH($I90,lookups!$F$68:$BU$68,0))) -> 1 | V90: =IF(ISNUMBER($H90),(1+$H90)^(V$5-$I90),INDEX(lookups!$F$69:$BU$80,MATCH($H90,lookups!$C$69:$C$80,0),MATCH(V$5,lookups!$F$68:$BU$68,0))/INDEX(lookups!$F$69:$BU$80,MATCH($H90,lookups!$C$69:$C$80,0),MATCH($I90,lookups!$F$68:$BU$68,0))) -> 1 | W90: =IF(ISNUMBER($H90),(1+$H90)^(W$5-$I90),INDEX(lookups!$F$69:$BU$80,MATCH($H90,lookups!$C$69:$C$80,0),MATCH(W$5,lookups!$F$68:$BU$68,0))/INDEX(lookups!$F$69:$BU$80,MATCH($H90,lookups!$C$69:$C$80,0),MATCH($I90,lookups!$F$68:$BU$68,0))) -> 1 | X90: =IF(ISNUMBER($H90),(1+$H90)^(X$5-$I90),INDEX(lookups!$F$69:$BU$80,MATCH($H90,lookups!$C$69:$C$80,0),MATCH(X$5,lookups!$F$68:$BU$68,0))/INDEX(lookups!$F$69:$BU$80,MATCH($H90,lookups!$C$69:$C$80,0),MATCH($I90,lookups!$F$68:$BU$68,0))) -> 1 | Y90: =IF(ISNUMBER($H90),(1+$H90)^(Y$5-$I90),INDEX(lookups!$F$69:$BU$80,MATCH($H90,lookups!$C$69:$C$80,0),MATCH(Y$5,lookups!$F$68:$BU$68,0))/INDEX(lookups!$F$69:$BU$80,MATCH($H90,lookups!$C$69:$C$80,0),MATCH($I90,lookups!$F$68:$BU$68,0))) -> 1 | Z90: =IF(ISNUMBER($H90),(1+$H90)^(Z$5-$I90),INDEX(lookups!$F$69:$BU$80,MATCH($H90,lookups!$C$69:$C$80,0),MATCH(Z$5,lookups!$F$68:$BU$68,0))/INDEX(lookups!$F$69:$BU$80,MATCH($H90,lookups!$C$69:$C$80,0),MATCH($I90,lookups!$F$68:$BU$68,0))) -> 1 | AA90: =IF(ISNUMBER($H90),(1+$H90)^(AA$5-$I90),INDEX(lookups!$F$69:$BU$80,MATCH($H90,lookups!$C$69:$C$80,0),MATCH(AA$5,lookups!$F$68:$BU$68,0))/INDEX(lookups!$F$69:$BU$80,MATCH($H90,lookups!$C$69:$C$80,0),MATCH($I90,lookups!$F$68:$BU$68,0))) -> 1 | AB90: =IF(ISNUMBER($H90),(1+$H90)^(AB$5-$I90),INDEX(lookups!$F$69:$BU$80,MATCH($H90,lookups!$C$69:$C$80,0),MATCH(AB$5,lookups!$F$68:$BU$68,0))/INDEX(lookups!$F$69:$BU$80,MATCH($H90,lookups!$C$69:$C$80,0),MATCH($I90,lookups!$F$68:$BU$68,0))) -> 1 | AC90: =IF(ISNUMBER($H90),(1+$H90)^(AC$5-$I90),INDEX(lookups!$F$69:$BU$80,MATCH($H90,lookups!$C$69:$C$80,0),MATCH(AC$5,lookups!$F$68:$BU$68,0))/INDEX(lookups!$F$69:$BU$80,MATCH($H90,lookups!$C$69:$C$80,0),MATCH($I90,lookups!$F$68:$BU$68,0))) -> 1 | AD90: =IF(ISNUMBER($H90),(1+$H90)^(AD$5-$I90),INDEX(lookups!$F$69:$BU$80,MATCH($H90,lookups!$C$69:$C$80,0),MATCH(AD$5,lookups!$F$68:$BU$68,0))/INDEX(lookups!$F$69:$BU$80,MATCH($H90,lookups!$C$69:$C$80,0),MATCH($I90,lookups!$F$68:$BU$68,0))) -> 1 | AE90: =IF(ISNUMBER($H90),(1+$H90)^(AE$5-$I90),INDEX(lookups!$F$69:$BU$80,MATCH($H90,lookups!$C$69:$C$80,0),MATCH(AE$5,lookups!$F$68:$BU$68,0))/INDEX(lookups!$F$69:$BU$80,MATCH($H90,lookups!$C$69:$C$80,0),MATCH($I90,lookups!$F$68:$BU$68,0))) -> 1 | AF90: =IF(ISNUMBER($H90),(1+$H90)^(AF$5-$I90),INDEX(lookups!$F$69:$BU$80,MATCH($H90,lookups!$C$69:$C$80,0),MATCH(AF$5,lookups!$F$68:$BU$68,0))/INDEX(lookups!$F$69:$BU$80,MATCH($H90,lookups!$C$69:$C$80,0),MATCH($I90,lookups!$F$68:$BU$68,0))) -> 1 | AG90: =IF(ISNUMBER($H90),(1+$H90)^(AG$5-$I90),INDEX(lookups!$F$69:$BU$80,MATCH($H90,lookups!$C$69:$C$80,0),MATCH(AG$5,lookups!$F$68:$BU$68,0))/INDEX(lookups!$F$69:$BU$80,MATCH($H90,lookups!$C$69:$C$80,0),MATCH($I90,lookups!$F$68:$BU$68,0))) -> 1 | AH90: =IF(ISNUMBER($H90),(1+$H90)^(AH$5-$I90),INDEX(lookups!$F$69:$BU$80,MATCH($H90,lookups!$C$69:$C$80,0),MATCH(AH$5,lookups!$F$68:$BU$68,0))/INDEX(lookups!$F$69:$BU$80,MATCH($H90,lookups!$C$69:$C$80,0),MATCH($I90,lookups!$F$68:$BU$68,0))) -> 1 | AI90: =IF(ISNUMBER($H90),(1+$H90)^(AI$5-$I90),INDEX(lookups!$F$69:$BU$80,MATCH($H90,lookups!$C$69:$C$80,0),MATCH(AI$5,lookups!$F$68:$BU$68,0))/INDEX(lookups!$F$69:$BU$80,MATCH($H90,lookups!$C$69:$C$80,0),MATCH($I90,lookups!$F$68:$BU$68,0))) -> 1 | AJ90: =IF(ISNUMBER($H90),(1+$H90)^(AJ$5-$I90),INDEX(lookups!$F$69:$BU$80,MATCH($H90,lookups!$C$69:$C$80,0),MATCH(AJ$5,lookups!$F$68:$BU$68,0))/INDEX(lookups!$F$69:$BU$80,MATCH($H90,lookups!$C$69:$C$80,0),MATCH($I90,lookups!$F$68:$BU$68,0))) -> 1 | AK90: =IF(ISNUMBER($H90),(1+$H90)^(AK$5-$I90),INDEX(lookups!$F$69:$BU$80,MATCH($H90,lookups!$C$69:$C$80,0),MATCH(AK$5,lookups!$F$68:$BU$68,0))/INDEX(lookups!$F$69:$BU$80,MATCH($H90,lookups!$C$69:$C$80,0),MATCH($I90,lookups!$F$68:$BU$68,0))) -> 1 | AL90: =IF(ISNUMBER($H90),(1+$H90)^(AL$5-$I90),INDEX(lookups!$F$69:$BU$80,MATCH($H90,lookups!$C$69:$C$80,0),MATCH(AL$5,lookups!$F$68:$BU$68,0))/INDEX(lookups!$F$69:$BU$80,MATCH($H90,lookups!$C$69:$C$80,0),MATCH($I90,lookups!$F$68:$BU$68,0))) -> 1 | AM90: =IF(ISNUMBER($H90),(1+$H90)^(AM$5-$I90),INDEX(lookups!$F$69:$BU$80,MATCH($H90,lookups!$C$69:$C$80,0),MATCH(AM$5,lookups!$F$68:$BU$68,0))/INDEX(lookups!$F$69:$BU$80,MATCH($H90,lookups!$C$69:$C$80,0),MATCH($I90,lookups!$F$68:$BU$68,0))) -> 1 | AN90: =IF(ISNUMBER($H90),(1+$H90)^(AN$5-$I90),INDEX(lookups!$F$69:$BU$80,MATCH($H90,lookups!$C$69:$C$80,0),MATCH(AN$5,lookups!$F$68:$BU$68,0))/INDEX(lookups!$F$69:$BU$80,MATCH($H90,lookups!$C$69:$C$80,0),MATCH($I90,lookups!$F$68:$BU$68,0))) -> 1 | AO90: =IF(ISNUMBER($H90),(1+$H90)^(AO$5-$I90),INDEX(lookups!$F$69:$BU$80,MATCH($H90,lookups!$C$69:$C$80,0),MATCH(AO$5,lookups!$F$68:$BU$68,0))/INDEX(lookups!$F$69:$BU$80,MATCH($H90,lookups!$C$69:$C$80,0),MATCH($I90,lookups!$F$68:$BU$68,0))) -> 1 | AP90: =IF(ISNUMBER($H90),(1+$H90)^(AP$5-$I90),INDEX(lookups!$F$69:$BU$80,MATCH($H90,lookups!$C$69:$C$80,0),MATCH(AP$5,lookups!$F$68:$BU$68,0))/INDEX(lookups!$F$69:$BU$80,MATCH($H90,lookups!$C$69:$C$80,0),MATCH($I90,lookups!$F$68:$BU$68,0))) -> 1 | AQ90: =IF(ISNUMBER($H90),(1+$H90)^(AQ$5-$I90),INDEX(lookups!$F$69:$BU$80,MATCH($H90,lookups!$C$69:$C$80,0),MATCH(AQ$5,lookups!$F$68:$BU$68,0))/INDEX(lookups!$F$69:$BU$80,MATCH($H90,lookups!$C$69:$C$80,0),MATCH($I90,lookups!$F$68:$BU$68,0))) -> 1 | AR90: =IF(ISNUMBER($H90),(1+$H90)^(AR$5-$I90),INDEX(lookups!$F$69:$BU$80,MATCH($H90,lookups!$C$69:$C$80,0),MATCH(AR$5,lookups!$F$68:$BU$68,0))/INDEX(lookups!$F$69:$BU$80,MATCH($H90,lookups!$C$69:$C$80,0),MATCH($I90,lookups!$F$68:$BU$68,0))) -> 1 | AS90: =IF(ISNUMBER($H90),(1+$H90)^(AS$5-$I90),INDEX(lookups!$F$69:$BU$80,MATCH($H90,lookups!$C$69:$C$80,0),MATCH(AS$5,lookups!$F$68:$BU$68,0))/INDEX(lookups!$F$69:$BU$80,MATCH($H90,lookups!$C$69:$C$80,0),MATCH($I90,lookups!$F$68:$BU$68,0))) -> 1 | AT90: =IF(ISNUMBER($H90),(1+$H90)^(AT$5-$I90),INDEX(lookups!$F$69:$BU$80,MATCH($H90,lookups!$C$69:$C$80,0),MATCH(AT$5,lookups!$F$68:$BU$68,0))/INDEX(lookups!$F$69:$BU$80,MATCH($H90,lookups!$C$69:$C$80,0),MATCH($I90,lookups!$F$68:$BU$68,0))) -> 1 | AU90: =IF(ISNUMBER($H90),(1+$H90)^(AU$5-$I90),INDEX(lookups!$F$69:$BU$80,MATCH($H90,lookups!$C$69:$C$80,0),MATCH(AU$5,lookups!$F$68:$BU$68,0))/INDEX(lookups!$F$69:$BU$80,MATCH($H90,lookups!$C$69:$C$80,0),MATCH($I90,lookups!$F$68:$BU$68,0))) -> 1 | AV90: =IF(ISNUMBER($H90),(1+$H90)^(AV$5-$I90),INDEX(lookups!$F$69:$BU$80,MATCH($H90,lookups!$C$69:$C$80,0),MATCH(AV$5,lookups!$F$68:$BU$68,0))/INDEX(lookups!$F$69:$BU$80,MATCH($H90,lookups!$C$69:$C$80,0),MATCH($I90,lookups!$F$68:$BU$68,0))) -> 1 | AW90: =IF(ISNUMBER($H90),(1+$H90)^(AW$5-$I90),INDEX(lookups!$F$69:$BU$80,MATCH($H90,lookups!$C$69:$C$80,0),MATCH(AW$5,lookups!$F$68:$BU$68,0))/INDEX(lookups!$F$69:$BU$80,MATCH($H90,lookups!$C$69:$C$80,0),MATCH($I90,lookups!$F$68:$BU$68,0))) -> 1 | AX90: =IF(ISNUMBER($H90),(1+$H90)^(AX$5-$I90),INDEX(lookups!$F$69:$BU$80,MATCH($H90,lookups!$C$69:$C$80,0),MATCH(AX$5,lookups!$F$68:$BU$68,0))/INDEX(lookups!$F$69:$BU$80,MATCH($H90,lookups!$C$69:$C$80,0),MATCH($I90,lookups!$F$68:$BU$68,0))) -> 1 | AY90: =IF(ISNUMBER($H90),(1+$H90)^(AY$5-$I90),INDEX(lookups!$F$69:$BU$80,MATCH($H90,lookups!$C$69:$C$80,0),MATCH(AY$5,lookups!$F$68:$BU$68,0))/INDEX(lookups!$F$69:$BU$80,MATCH($H90,lookups!$C$69:$C$80,0),MATCH($I90,lookups!$F$68:$BU$68,0))) -> 1 | AZ90: =IF(ISNUMBER($H90),(1+$H90)^(AZ$5-$I90),INDEX(lookups!$F$69:$BU$80,MATCH($H90,lookups!$C$69:$C$80,0),MATCH(AZ$5,lookups!$F$68:$BU$68,0))/INDEX(lookups!$F$69:$BU$80,MATCH($H90,lookups!$C$69:$C$80,0),MATCH($I90,lookups!$F$68:$BU$68,0))) -> 1 | BA90: =IF(ISNUMBER($H90),(1+$H90)^(BA$5-$I90),INDEX(lookups!$F$69:$BU$80,MATCH($H90,lookups!$C$69:$C$80,0),MATCH(BA$5,lookups!$F$68:$BU$68,0))/INDEX(lookups!$F$69:$BU$80,MATCH($H90,lookups!$C$69:$C$80,0),MATCH($I90,lookups!$F$68:$BU$68,0))) -> 1 | BB90: =IF(ISNUMBER($H90),(1+$H90)^(BB$5-$I90),INDEX(lookups!$F$69:$BU$80,MATCH($H90,lookups!$C$69:$C$80,0),MATCH(BB$5,lookups!$F$68:$BU$68,0))/INDEX(lookups!$F$69:$BU$80,MATCH($H90,lookups!$C$69:$C$80,0),MATCH($I90,lookups!$F$68:$BU$68,0))) -> 1 | BC90: =IF(ISNUMBER($H90),(1+$H90)^(BC$5-$I90),INDEX(lookups!$F$69:$BU$80,MATCH($H90,lookups!$C$69:$C$80,0),MATCH(BC$5,lookups!$F$68:$BU$68,0))/INDEX(lookups!$F$69:$BU$80,MATCH($H90,lookups!$C$69:$C$80,0),MATCH($I90,lookups!$F$68:$BU$68,0))) -> 1 | BD90: =IF(ISNUMBER($H90),(1+$H90)^(BD$5-$I90),INDEX(lookups!$F$69:$BU$80,MATCH($H90,lookups!$C$69:$C$80,0),MATCH(BD$5,lookups!$F$68:$BU$68,0))/INDEX(lookups!$F$69:$BU$80,MATCH($H90,lookups!$C$69:$C$80,0),MATCH($I90,lookups!$F$68:$BU$68,0))) -> 1 | BE90: =IF(ISNUMBER($H90),(1+$H90)^(BE$5-$I90),INDEX(lookups!$F$69:$BU$80,MATCH($H90,lookups!$C$69:$C$80,0),MATCH(BE$5,lookups!$F$68:$BU$68,0))/INDEX(lookups!$F$69:$BU$80,MATCH($H90,lookups!$C$69:$C$80,0),MATCH($I90,lookups!$F$68:$BU$68,0))) -> 1 | BF90: =IF(ISNUMBER($H90),(1+$H90)^(BF$5-$I90),INDEX(lookups!$F$69:$BU$80,MATCH($H90,lookups!$C$69:$C$80,0),MATCH(BF$5,lookups!$F$68:$BU$68,0))/INDEX(lookups!$F$69:$BU$80,MATCH($H90,lookups!$C$69:$C$80,0),MATCH($I90,lookups!$F$68:$BU$68,0))) -> 1 | BG90: =IF(ISNUMBER($H90),(1+$H90)^(BG$5-$I90),INDEX(lookups!$F$69:$BU$80,MATCH($H90,lookups!$C$69:$C$80,0),MATCH(BG$5,lookups!$F$68:$BU$68,0))/INDEX(lookups!$F$69:$BU$80,MATCH($H90,lookups!$C$69:$C$80,0),MATCH($I90,lookups!$F$68:$BU$68,0))) -> 1 | BH90: =IF(ISNUMBER($H90),(1+$H90)^(BH$5-$I90),INDEX(lookups!$F$69:$BU$80,MATCH($H90,lookups!$C$69:$C$80,0),MATCH(BH$5,lookups!$F$68:$BU$68,0))/INDEX(lookups!$F$69:$BU$80,MATCH($H90,lookups!$C$69:$C$80,0),MATCH($I90,lookups!$F$68:$BU$68,0))) -> 1 | BI90: =IF(ISNUMBER($H90),(1+$H90)^(BI$5-$I90),INDEX(lookups!$F$69:$BU$80,MATCH($H90,lookups!$C$69:$C$80,0),MATCH(BI$5,lookups!$F$68:$BU$68,0))/INDEX(lookups!$F$69:$BU$80,MATCH($H90,lookups!$C$69:$C$80,0),MATCH($I90,lookups!$F$68:$BU$68,0))) -> 1 | BJ90: =IF(ISNUMBER($H90),(1+$H90)^(BJ$5-$I90),INDEX(lookups!$F$69:$BU$80,MATCH($H90,lookups!$C$69:$C$80,0),MATCH(BJ$5,lookups!$F$68:$BU$68,0))/INDEX(lookups!$F$69:$BU$80,MATCH($H90,lookups!$C$69:$C$80,0),MATCH($I90,lookups!$F$68:$BU$68,0))) -> 1 | BK90: =IF(ISNUMBER($H90),(1+$H90)^(BK$5-$I90),INDEX(lookups!$F$69:$BU$80,MATCH($H90,lookups!$C$69:$C$80,0),MATCH(BK$5,lookups!$F$68:$BU$68,0))/INDEX(lookups!$F$69:$BU$80,MATCH($H90,lookups!$C$69:$C$80,0),MATCH($I90,lookups!$F$68:$BU$68,0))) -> 1 | BL90: =IF(ISNUMBER($H90),(1+$H90)^(BL$5-$I90),INDEX(lookups!$F$69:$BU$80,MATCH($H90,lookups!$C$69:$C$80,0),MATCH(BL$5,lookups!$F$68:$BU$68,0))/INDEX(lookups!$F$69:$BU$80,MATCH($H90,lookups!$C$69:$C$80,0),MATCH($I90,lookups!$F$68:$BU$68,0))) -> 1 | BM90: =IF(ISNUMBER($H90),(1+$H90)^(BM$5-$I90),INDEX(lookups!$F$69:$BU$80,MATCH($H90,lookups!$C$69:$C$80,0),MATCH(BM$5,lookups!$F$68:$BU$68,0))/INDEX(lookups!$F$69:$BU$80,MATCH($H90,lookups!$C$69:$C$80,0),MATCH($I90,lookups!$F$68:$BU$68,0))) -> 1
C91: 4 | D91: item 4 | E91: Capital | F91: 4 | H91: =Input!L11 -> 0 | I91: =Assumptions!$D$13 -> 2017 | O91: =IF(ISNUMBER($H91),(1+$H91)^(O$5-$I91),INDEX(lookups!$F$69:$BU$80,MATCH($H91,lookups!$C$69:$C$80,0),MATCH(O$5,lookups!$F$68:$BU$68,0))/INDEX(lookups!$F$69:$BU$80,MATCH($H91,lookups!$C$69:$C$80,0),MATCH($I91,lookups!$F$68:$BU$68,0))) -> 1 | P91: =IF(ISNUMBER($H91),(1+$H91)^(P$5-$I91),INDEX(lookups!$F$69:$BU$80,MATCH($H91,lookups!$C$69:$C$80,0),MATCH(P$5,lookups!$F$68:$BU$68,0))/INDEX(lookups!$F$69:$BU$80,MATCH($H91,lookups!$C$69:$C$80,0),MATCH($I91,lookups!$F$68:$BU$68,0))) -> 1 | Q91: =IF(ISNUMBER($H91),(1+$H91)^(Q$5-$I91),INDEX(lookups!$F$69:$BU$80,MATCH($H91,lookups!$C$69:$C$80,0),MATCH(Q$5,lookups!$F$68:$BU$68,0))/INDEX(lookups!$F$69:$BU$80,MATCH($H91,lookups!$C$69:$C$80,0),MATCH($I91,lookups!$F$68:$BU$68,0))) -> 1 | R91: =IF(ISNUMBER($H91),(1+$H91)^(R$5-$I91),INDEX(lookups!$F$69:$BU$80,MATCH($H91,lookups!$C$69:$C$80,0),MATCH(R$5,lookups!$F$68:$BU$68,0))/INDEX(lookups!$F$69:$BU$80,MATCH($H91,lookups!$C$69:$C$80,0),MATCH($I91,lookups!$F$68:$BU$68,0))) -> 1 | S91: =IF(ISNUMBER($H91),(1+$H91)^(S$5-$I91),INDEX(lookups!$F$69:$BU$80,MATCH($H91,lookups!$C$69:$C$80,0),MATCH(S$5,lookups!$F$68:$BU$68,0))/INDEX(lookups!$F$69:$BU$80,MATCH($H91,lookups!$C$69:$C$80,0),MATCH($I91,lookups!$F$68:$BU$68,0))) -> 1 | T91: =IF(ISNUMBER($H91),(1+$H91)^(T$5-$I91),INDEX(lookups!$F$69:$BU$80,MATCH($H91,lookups!$C$69:$C$80,0),MATCH(T$5,lookups!$F$68:$BU$68,0))/INDEX(lookups!$F$69:$BU$80,MATCH($H91,lookups!$C$69:$C$80,0),MATCH($I91,lookups!$F$68:$BU$68,0))) -> 1 | U91: =IF(ISNUMBER($H91),(1+$H91)^(U$5-$I91),INDEX(lookups!$F$69:$BU$80,MATCH($H91,lookups!$C$69:$C$80,0),MATCH(U$5,lookups!$F$68:$BU$68,0))/INDEX(lookups!$F$69:$BU$80,MATCH($H91,lookups!$C$69:$C$80,0),MATCH($I91,lookups!$F$68:$BU$68,0))) -> 1 | V91: =IF(ISNUMBER($H91),(1+$H91)^(V$5-$I91),INDEX(lookups!$F$69:$BU$80,MATCH($H91,lookups!$C$69:$C$80,0),MATCH(V$5,lookups!$F$68:$BU$68,0))/INDEX(lookups!$F$69:$BU$80,MATCH($H91,lookups!$C$69:$C$80,0),MATCH($I91,lookups!$F$68:$BU$68,0))) -> 1 | W91: =IF(ISNUMBER($H91),(1+$H91)^(W$5-$I91),INDEX(lookups!$F$69:$BU$80,MATCH($H91,lookups!$C$69:$C$80,0),MATCH(W$5,lookups!$F$68:$BU$68,0))/INDEX(lookups!$F$69:$BU$80,MATCH($H91,lookups!$C$69:$C$80,0),MATCH($I91,lookups!$F$68:$BU$68,0))) -> 1 | X91: =IF(ISNUMBER($H91),(1+$H91)^(X$5-$I91),INDEX(lookups!$F$69:$BU$80,MATCH($H91,lookups!$C$69:$C$80,0),MATCH(X$5,lookups!$F$68:$BU$68,0))/INDEX(lookups!$F$69:$BU$80,MATCH($H91,lookups!$C$69:$C$80,0),MATCH($I91,lookups!$F$68:$BU$68,0))) -> 1 | Y91: =IF(ISNUMBER($H91),(1+$H91)^(Y$5-$I91),INDEX(lookups!$F$69:$BU$80,MATCH($H91,lookups!$C$69:$C$80,0),MATCH(Y$5,lookups!$F$68:$BU$68,0))/INDEX(lookups!$F$69:$BU$80,MATCH($H91,lookups!$C$69:$C$80,0),MATCH($I91,lookups!$F$68:$BU$68,0))) -> 1 | Z91: =IF(ISNUMBER($H91),(1+$H91)^(Z$5-$I91),INDEX(lookups!$F$69:$BU$80,MATCH($H91,lookups!$C$69:$C$80,0),MATCH(Z$5,lookups!$F$68:$BU$68,0))/INDEX(lookups!$F$69:$BU$80,MATCH($H91,lookups!$C$69:$C$80,0),MATCH($I91,lookups!$F$68:$BU$68,0))) -> 1 | AA91: =IF(ISNUMBER($H91),(1+$H91)^(AA$5-$I91),INDEX(lookups!$F$69:$BU$80,MATCH($H91,lookups!$C$69:$C$80,0),MATCH(AA$5,lookups!$F$68:$BU$68,0))/INDEX(lookups!$F$69:$BU$80,MATCH($H91,lookups!$C$69:$C$80,0),MATCH($I91,lookups!$F$68:$BU$68,0))) -> 1 | AB91: =IF(ISNUMBER($H91),(1+$H91)^(AB$5-$I91),INDEX(lookups!$F$69:$BU$80,MATCH($H91,lookups!$C$69:$C$80,0),MATCH(AB$5,lookups!$F$68:$BU$68,0))/INDEX(lookups!$F$69:$BU$80,MATCH($H91,lookups!$C$69:$C$80,0),MATCH($I91,lookups!$F$68:$BU$68,0))) -> 1 | AC91: =IF(ISNUMBER($H91),(1+$H91)^(AC$5-$I91),INDEX(lookups!$F$69:$BU$80,MATCH($H91,lookups!$C$69:$C$80,0),MATCH(AC$5,lookups!$F$68:$BU$68,0))/INDEX(lookups!$F$69:$BU$80,MATCH($H91,lookups!$C$69:$C$80,0),MATCH($I91,lookups!$F$68:$BU$68,0))) -> 1 | AD91: =IF(ISNUMBER($H91),(1+$H91)^(AD$5-$I91),INDEX(lookups!$F$69:$BU$80,MATCH($H91,lookups!$C$69:$C$80,0),MATCH(AD$5,lookups!$F$68:$BU$68,0))/INDEX(lookups!$F$69:$BU$80,MATCH($H91,lookups!$C$69:$C$80,0),MATCH($I91,lookups!$F$68:$BU$68,0))) -> 1 | AE91: =IF(ISNUMBER($H91),(1+$H91)^(AE$5-$I91),INDEX(lookups!$F$69:$BU$80,MATCH($H91,lookups!$C$69:$C$80,0),MATCH(AE$5,lookups!$F$68:$BU$68,0))/INDEX(lookups!$F$69:$BU$80,MATCH($H91,lookups!$C$69:$C$80,0),MATCH($I91,lookups!$F$68:$BU$68,0))) -> 1 | AF91: =IF(ISNUMBER($H91),(1+$H91)^(AF$5-$I91),INDEX(lookups!$F$69:$BU$80,MATCH($H91,lookups!$C$69:$C$80,0),MATCH(AF$5,lookups!$F$68:$BU$68,0))/INDEX(lookups!$F$69:$BU$80,MATCH($H91,lookups!$C$69:$C$80,0),MATCH($I91,lookups!$F$68:$BU$68,0))) -> 1 | AG91: =IF(ISNUMBER($H91),(1+$H91)^(AG$5-$I91),INDEX(lookups!$F$69:$BU$80,MATCH($H91,lookups!$C$69:$C$80,0),MATCH(AG$5,lookups!$F$68:$BU$68,0))/INDEX(lookups!$F$69:$BU$80,MATCH($H91,lookups!$C$69:$C$80,0),MATCH($I91,lookups!$F$68:$BU$68,0))) -> 1 | AH91: =IF(ISNUMBER($H91),(1+$H91)^(AH$5-$I91),INDEX(lookups!$F$69:$BU$80,MATCH($H91,lookups!$C$69:$C$80,0),MATCH(AH$5,lookups!$F$68:$BU$68,0))/INDEX(lookups!$F$69:$BU$80,MATCH($H91,lookups!$C$69:$C$80,0),MATCH($I91,lookups!$F$68:$BU$68,0))) -> 1 | AI91: =IF(ISNUMBER($H91),(1+$H91)^(AI$5-$I91),INDEX(lookups!$F$69:$BU$80,MATCH($H91,lookups!$C$69:$C$80,0),MATCH(AI$5,lookups!$F$68:$BU$68,0))/INDEX(lookups!$F$69:$BU$80,MATCH($H91,lookups!$C$69:$C$80,0),MATCH($I91,lookups!$F$68:$BU$68,0))) -> 1 | AJ91: =IF(ISNUMBER($H91),(1+$H91)^(AJ$5-$I91),INDEX(lookups!$F$69:$BU$80,MATCH($H91,lookups!$C$69:$C$80,0),MATCH(AJ$5,lookups!$F$68:$BU$68,0))/INDEX(lookups!$F$69:$BU$80,MATCH($H91,lookups!$C$69:$C$80,0),MATCH($I91,lookups!$F$68:$BU$68,0))) -> 1 | AK91: =IF(ISNUMBER($H91),(1+$H91)^(AK$5-$I91),INDEX(lookups!$F$69:$BU$80,MATCH($H91,lookups!$C$69:$C$80,0),MATCH(AK$5,lookups!$F$68:$BU$68,0))/INDEX(lookups!$F$69:$BU$80,MATCH($H91,lookups!$C$69:$C$80,0),MATCH($I91,lookups!$F$68:$BU$68,0))) -> 1 | AL91: =IF(ISNUMBER($H91),(1+$H91)^(AL$5-$I91),INDEX(lookups!$F$69:$BU$80,MATCH($H91,lookups!$C$69:$C$80,0),MATCH(AL$5,lookups!$F$68:$BU$68,0))/INDEX(lookups!$F$69:$BU$80,MATCH($H91,lookups!$C$69:$C$80,0),MATCH($I91,lookups!$F$68:$BU$68,0))) -> 1 | AM91: =IF(ISNUMBER($H91),(1+$H91)^(AM$5-$I91),INDEX(lookups!$F$69:$BU$80,MATCH($H91,lookups!$C$69:$C$80,0),MATCH(AM$5,lookups!$F$68:$BU$68,0))/INDEX(lookups!$F$69:$BU$80,MATCH($H91,lookups!$C$69:$C$80,0),MATCH($I91,lookups!$F$68:$BU$68,0))) -> 1 | AN91: =IF(ISNUMBER($H91),(1+$H91)^(AN$5-$I91),INDEX(lookups!$F$69:$BU$80,MATCH($H91,lookups!$C$69:$C$80,0),MATCH(AN$5,lookups!$F$68:$BU$68,0))/INDEX(lookups!$F$69:$BU$80,MATCH($H91,lookups!$C$69:$C$80,0),MATCH($I91,lookups!$F$68:$BU$68,0))) -> 1 | AO91: =IF(ISNUMBER($H91),(1+$H91)^(AO$5-$I91),INDEX(lookups!$F$69:$BU$80,MATCH($H91,lookups!$C$69:$C$80,0),MATCH(AO$5,lookups!$F$68:$BU$68,0))/INDEX(lookups!$F$69:$BU$80,MATCH($H91,lookups!$C$69:$C$80,0),MATCH($I91,lookups!$F$68:$BU$68,0))) -> 1 | AP91: =IF(ISNUMBER($H91),(1+$H91)^(AP$5-$I91),INDEX(lookups!$F$69:$BU$80,MATCH($H91,lookups!$C$69:$C$80,0),MATCH(AP$5,lookups!$F$68:$BU$68,0))/INDEX(lookups!$F$69:$BU$80,MATCH($H91,lookups!$C$69:$C$80,0),MATCH($I91,lookups!$F$68:$BU$68,0))) -> 1 | AQ91: =IF(ISNUMBER($H91),(1+$H91)^(AQ$5-$I91),INDEX(lookups!$F$69:$BU$80,MATCH($H91,lookups!$C$69:$C$80,0),MATCH(AQ$5,lookups!$F$68:$BU$68,0))/INDEX(lookups!$F$69:$BU$80,MATCH($H91,lookups!$C$69:$C$80,0),MATCH($I91,lookups!$F$68:$BU$68,0))) -> 1 | AR91: =IF(ISNUMBER($H91),(1+$H91)^(AR$5-$I91),INDEX(lookups!$F$69:$BU$80,MATCH($H91,lookups!$C$69:$C$80,0),MATCH(AR$5,lookups!$F$68:$BU$68,0))/INDEX(lookups!$F$69:$BU$80,MATCH($H91,lookups!$C$69:$C$80,0),MATCH($I91,lookups!$F$68:$BU$68,0))) -> 1 | AS91: =IF(ISNUMBER($H91),(1+$H91)^(AS$5-$I91),INDEX(lookups!$F$69:$BU$80,MATCH($H91,lookups!$C$69:$C$80,0),MATCH(AS$5,lookups!$F$68:$BU$68,0))/INDEX(lookups!$F$69:$BU$80,MATCH($H91,lookups!$C$69:$C$80,0),MATCH($I91,lookups!$F$68:$BU$68,0))) -> 1 | AT91: =IF(ISNUMBER($H91),(1+$H91)^(AT$5-$I91),INDEX(lookups!$F$69:$BU$80,MATCH($H91,lookups!$C$69:$C$80,0),MATCH(AT$5,lookups!$F$68:$BU$68,0))/INDEX(lookups!$F$69:$BU$80,MATCH($H91,lookups!$C$69:$C$80,0),MATCH($I91,lookups!$F$68:$BU$68,0))) -> 1 | AU91: =IF(ISNUMBER($H91),(1+$H91)^(AU$5-$I91),INDEX(lookups!$F$69:$BU$80,MATCH($H91,lookups!$C$69:$C$80,0),MATCH(AU$5,lookups!$F$68:$BU$68,0))/INDEX(lookups!$F$69:$BU$80,MATCH($H91,lookups!$C$69:$C$80,0),MATCH($I91,lookups!$F$68:$BU$68,0))) -> 1 | AV91: =IF(ISNUMBER($H91),(1+$H91)^(AV$5-$I91),INDEX(lookups!$F$69:$BU$80,MATCH($H91,lookups!$C$69:$C$80,0),MATCH(AV$5,lookups!$F$68:$BU$68,0))/INDEX(lookups!$F$69:$BU$80,MATCH($H91,lookups!$C$69:$C$80,0),MATCH($I91,lookups!$F$68:$BU$68,0))) -> 1 | AW91: =IF(ISNUMBER($H91),(1+$H91)^(AW$5-$I91),INDEX(lookups!$F$69:$BU$80,MATCH($H91,lookups!$C$69:$C$80,0),MATCH(AW$5,lookups!$F$68:$BU$68,0))/INDEX(lookups!$F$69:$BU$80,MATCH($H91,lookups!$C$69:$C$80,0),MATCH($I91,lookups!$F$68:$BU$68,0))) -> 1 | AX91: =IF(ISNUMBER($H91),(1+$H91)^(AX$5-$I91),INDEX(lookups!$F$69:$BU$80,MATCH($H91,lookups!$C$69:$C$80,0),MATCH(AX$5,lookups!$F$68:$BU$68,0))/INDEX(lookups!$F$69:$BU$80,MATCH($H91,lookups!$C$69:$C$80,0),MATCH($I91,lookups!$F$68:$BU$68,0))) -> 1 | AY91: =IF(ISNUMBER($H91),(1+$H91)^(AY$5-$I91),INDEX(lookups!$F$69:$BU$80,MATCH($H91,lookups!$C$69:$C$80,0),MATCH(AY$5,lookups!$F$68:$BU$68,0))/INDEX(lookups!$F$69:$BU$80,MATCH($H91,lookups!$C$69:$C$80,0),MATCH($I91,lookups!$F$68:$BU$68,0))) -> 1 | AZ91: =IF(ISNUMBER($H91),(1+$H91)^(AZ$5-$I91),INDEX(lookups!$F$69:$BU$80,MATCH($H91,lookups!$C$69:$C$80,0),MATCH(AZ$5,lookups!$F$68:$BU$68,0))/INDEX(lookups!$F$69:$BU$80,MATCH($H91,lookups!$C$69:$C$80,0),MATCH($I91,lookups!$F$68:$BU$68,0))) -> 1 | BA91: =IF(ISNUMBER($H91),(1+$H91)^(BA$5-$I91),INDEX(lookups!$F$69:$BU$80,MATCH($H91,lookups!$C$69:$C$80,0),MATCH(BA$5,lookups!$F$68:$BU$68,0))/INDEX(lookups!$F$69:$BU$80,MATCH($H91,lookups!$C$69:$C$80,0),MATCH($I91,lookups!$F$68:$BU$68,0))) -> 1 | BB91: =IF(ISNUMBER($H91),(1+$H91)^(BB$5-$I91),INDEX(lookups!$F$69:$BU$80,MATCH($H91,lookups!$C$69:$C$80,0),MATCH(BB$5,lookups!$F$68:$BU$68,0))/INDEX(lookups!$F$69:$BU$80,MATCH($H91,lookups!$C$69:$C$80,0),MATCH($I91,lookups!$F$68:$BU$68,0))) -> 1 | BC91: =IF(ISNUMBER($H91),(1+$H91)^(BC$5-$I91),INDEX(lookups!$F$69:$BU$80,MATCH($H91,lookups!$C$69:$C$80,0),MATCH(BC$5,lookups!$F$68:$BU$68,0))/INDEX(lookups!$F$69:$BU$80,MATCH($H91,lookups!$C$69:$C$80,0),MATCH($I91,lookups!$F$68:$BU$68,0))) -> 1 | BD91: =IF(ISNUMBER($H91),(1+$H91)^(BD$5-$I91),INDEX(lookups!$F$69:$BU$80,MATCH($H91,lookups!$C$69:$C$80,0),MATCH(BD$5,lookups!$F$68:$BU$68,0))/INDEX(lookups!$F$69:$BU$80,MATCH($H91,lookups!$C$69:$C$80,0),MATCH($I91,lookups!$F$68:$BU$68,0))) -> 1 | BE91: =IF(ISNUMBER($H91),(1+$H91)^(BE$5-$I91),INDEX(lookups!$F$69:$BU$80,MATCH($H91,lookups!$C$69:$C$80,0),MATCH(BE$5,lookups!$F$68:$BU$68,0))/INDEX(lookups!$F$69:$BU$80,MATCH($H91,lookups!$C$69:$C$80,0),MATCH($I91,lookups!$F$68:$BU$68,0))) -> 1 | BF91: =IF(ISNUMBER($H91),(1+$H91)^(BF$5-$I91),INDEX(lookups!$F$69:$BU$80,MATCH($H91,lookups!$C$69:$C$80,0),MATCH(BF$5,lookups!$F$68:$BU$68,0))/INDEX(lookups!$F$69:$BU$80,MATCH($H91,lookups!$C$69:$C$80,0),MATCH($I91,lookups!$F$68:$BU$68,0))) -> 1 | BG91: =IF(ISNUMBER($H91),(1+$H91)^(BG$5-$I91),INDEX(lookups!$F$69:$BU$80,MATCH($H91,lookups!$C$69:$C$80,0),MATCH(BG$5,lookups!$F$68:$BU$68,0))/INDEX(lookups!$F$69:$BU$80,MATCH($H91,lookups!$C$69:$C$80,0),MATCH($I91,lookups!$F$68:$BU$68,0))) -> 1 | BH91: =IF(ISNUMBER($H91),(1+$H91)^(BH$5-$I91),INDEX(lookups!$F$69:$BU$80,MATCH($H91,lookups!$C$69:$C$80,0),MATCH(BH$5,lookups!$F$68:$BU$68,0))/INDEX(lookups!$F$69:$BU$80,MATCH($H91,lookups!$C$69:$C$80,0),MATCH($I91,lookups!$F$68:$BU$68,0))) -> 1 | BI91: =IF(ISNUMBER($H91),(1+$H91)^(BI$5-$I91),INDEX(lookups!$F$69:$BU$80,MATCH($H91,lookups!$C$69:$C$80,0),MATCH(BI$5,lookups!$F$68:$BU$68,0))/INDEX(lookups!$F$69:$BU$80,MATCH($H91,lookups!$C$69:$C$80,0),MATCH($I91,lookups!$F$68:$BU$68,0))) -> 1 | BJ91: =IF(ISNUMBER($H91),(1+$H91)^(BJ$5-$I91),INDEX(lookups!$F$69:$BU$80,MATCH($H91,lookups!$C$69:$C$80,0),MATCH(BJ$5,lookups!$F$68:$BU$68,0))/INDEX(lookups!$F$69:$BU$80,MATCH($H91,lookups!$C$69:$C$80,0),MATCH($I91,lookups!$F$68:$BU$68,0))) -> 1 | BK91: =IF(ISNUMBER($H91),(1+$H91)^(BK$5-$I91),INDEX(lookups!$F$69:$BU$80,MATCH($H91,lookups!$C$69:$C$80,0),MATCH(BK$5,lookups!$F$68:$BU$68,0))/INDEX(lookups!$F$69:$BU$80,MATCH($H91,lookups!$C$69:$C$80,0),MATCH($I91,lookups!$F$68:$BU$68,0))) -> 1 | BL91: =IF(ISNUMBER($H91),(1+$H91)^(BL$5-$I91),INDEX(lookups!$F$69:$BU$80,MATCH($H91,lookups!$C$69:$C$80,0),MATCH(BL$5,lookups!$F$68:$BU$68,0))/INDEX(lookups!$F$69:$BU$80,MATCH($H91,lookups!$C$69:$C$80,0),MATCH($I91,lookups!$F$68:$BU$68,0))) -> 1 | BM91: =IF(ISNUMBER($H91),(1+$H91)^(BM$5-$I91),INDEX(lookups!$F$69:$BU$80,MATCH($H91,lookups!$C$69:$C$80,0),MATCH(BM$5,lookups!$F$68:$BU$68,0))/INDEX(lookups!$F$69:$BU$80,MATCH($H91,lookups!$C$69:$C$80,0),MATCH($I91,lookups!$F$68:$BU$68,0))) -> 1
C92: 5 | D92: item 5 | E92: Capital | F92: 4 | H92: =Input!L12 -> 0 | I92: =Assumptions!$D$13 -> 2017 | O92: =IF(ISNUMBER($H92),(1+$H92)^(O$5-$I92),INDEX(lookups!$F$69:$BU$80,MATCH($H92,lookups!$C$69:$C$80,0),MATCH(O$5,lookups!$F$68:$BU$68,0))/INDEX(lookups!$F$69:$BU$80,MATCH($H92,lookups!$C$69:$C$80,0),MATCH($I92,lookups!$F$68:$BU$68,0))) -> 1 | P92: =IF(ISNUMBER($H92),(1+$H92)^(P$5-$I92),INDEX(lookups!$F$69:$BU$80,MATCH($H92,lookups!$C$69:$C$80,0),MATCH(P$5,lookups!$F$68:$BU$68,0))/INDEX(lookups!$F$69:$BU$80,MATCH($H92,lookups!$C$69:$C$80,0),MATCH($I92,lookups!$F$68:$BU$68,0))) -> 1 | Q92: =IF(ISNUMBER($H92),(1+$H92)^(Q$5-$I92),INDEX(lookups!$F$69:$BU$80,MATCH($H92,lookups!$C$69:$C$80,0),MATCH(Q$5,lookups!$F$68:$BU$68,0))/INDEX(lookups!$F$69:$BU$80,MATCH($H92,lookups!$C$69:$C$80,0),MATCH($I92,lookups!$F$68:$BU$68,0))) -> 1 | R92: =IF(ISNUMBER($H92),(1+$H92)^(R$5-$I92),INDEX(lookups!$F$69:$BU$80,MATCH($H92,lookups!$C$69:$C$80,0),MATCH(R$5,lookups!$F$68:$BU$68,0))/INDEX(lookups!$F$69:$BU$80,MATCH($H92,lookups!$C$69:$C$80,0),MATCH($I92,lookups!$F$68:$BU$68,0))) -> 1 | S92: =IF(ISNUMBER($H92),(1+$H92)^(S$5-$I92),INDEX(lookups!$F$69:$BU$80,MATCH($H92,lookups!$C$69:$C$80,0),MATCH(S$5,lookups!$F$68:$BU$68,0))/INDEX(lookups!$F$69:$BU$80,MATCH($H92,lookups!$C$69:$C$80,0),MATCH($I92,lookups!$F$68:$BU$68,0))) -> 1 | T92: =IF(ISNUMBER($H92),(1+$H92)^(T$5-$I92),INDEX(lookups!$F$69:$BU$80,MATCH($H92,lookups!$C$69:$C$80,0),MATCH(T$5,lookups!$F$68:$BU$68,0))/INDEX(lookups!$F$69:$BU$80,MATCH($H92,lookups!$C$69:$C$80,0),MATCH($I92,lookups!$F$68:$BU$68,0))) -> 1 | U92: =IF(ISNUMBER($H92),(1+$H92)^(U$5-$I92),INDEX(lookups!$F$69:$BU$80,MATCH($H92,lookups!$C$69:$C$80,0),MATCH(U$5,lookups!$F$68:$BU$68,0))/INDEX(lookups!$F$69:$BU$80,MATCH($H92,lookups!$C$69:$C$80,0),MATCH($I92,lookups!$F$68:$BU$68,0))) -> 1 | V92: =IF(ISNUMBER($H92),(1+$H92)^(V$5-$I92),INDEX(lookups!$F$69:$BU$80,MATCH($H92,lookups!$C$69:$C$80,0),MATCH(V$5,lookups!$F$68:$BU$68,0))/INDEX(lookups!$F$69:$BU$80,MATCH($H92,lookups!$C$69:$C$80,0),MATCH($I92,lookups!$F$68:$BU$68,0))) -> 1 | W92: =IF(ISNUMBER($H92),(1+$H92)^(W$5-$I92),INDEX(lookups!$F$69:$BU$80,MATCH($H92,lookups!$C$69:$C$80,0),MATCH(W$5,lookups!$F$68:$BU$68,0))/INDEX(lookups!$F$69:$BU$80,MATCH($H92,lookups!$C$69:$C$80,0),MATCH($I92,lookups!$F$68:$BU$68,0))) -> 1 | X92: =IF(ISNUMBER($H92),(1+$H92)^(X$5-$I92),INDEX(lookups!$F$69:$BU$80,MATCH($H92,lookups!$C$69:$C$80,0),MATCH(X$5,lookups!$F$68:$BU$68,0))/INDEX(lookups!$F$69:$BU$80,MATCH($H92,lookups!$C$69:$C$80,0),MATCH($I92,lookups!$F$68:$BU$68,0))) -> 1 | Y92: =IF(ISNUMBER($H92),(1+$H92)^(Y$5-$I92),INDEX(lookups!$F$69:$BU$80,MATCH($H92,lookups!$C$69:$C$80,0),MATCH(Y$5,lookups!$F$68:$BU$68,0))/INDEX(lookups!$F$69:$BU$80,MATCH($H92,lookups!$C$69:$C$80,0),MATCH($I92,lookups!$F$68:$BU$68,0))) -> 1 | Z92: =IF(ISNUMBER($H92),(1+$H92)^(Z$5-$I92),INDEX(lookups!$F$69:$BU$80,MATCH($H92,lookups!$C$69:$C$80,0),MATCH(Z$5,lookups!$F$68:$BU$68,0))/INDEX(lookups!$F$69:$BU$80,MATCH($H92,lookups!$C$69:$C$80,0),MATCH($I92,lookups!$F$68:$BU$68,0))) -> 1 | AA92: =IF(ISNUMBER($H92),(1+$H92)^(AA$5-$I92),INDEX(lookups!$F$69:$BU$80,MATCH($H92,lookups!$C$69:$C$80,0),MATCH(AA$5,lookups!$F$68:$BU$68,0))/INDEX(lookups!$F$69:$BU$80,MATCH($H92,lookups!$C$69:$C$80,0),MATCH($I92,lookups!$F$68:$BU$68,0))) -> 1 | AB92: =IF(ISNUMBER($H92),(1+$H92)^(AB$5-$I92),INDEX(lookups!$F$69:$BU$80,MATCH($H92,lookups!$C$69:$C$80,0),MATCH(AB$5,lookups!$F$68:$BU$68,0))/INDEX(lookups!$F$69:$BU$80,MATCH($H92,lookups!$C$69:$C$80,0),MATCH($I92,lookups!$F$68:$BU$68,0))) -> 1 | AC92: =IF(ISNUMBER($H92),(1+$H92)^(AC$5-$I92),INDEX(lookups!$F$69:$BU$80,MATCH($H92,lookups!$C$69:$C$80,0),MATCH(AC$5,lookups!$F$68:$BU$68,0))/INDEX(lookups!$F$69:$BU$80,MATCH($H92,lookups!$C$69:$C$80,0),MATCH($I92,lookups!$F$68:$BU$68,0))) -> 1 | AD92: =IF(ISNUMBER($H92),(1+$H92)^(AD$5-$I92),INDEX(lookups!$F$69:$BU$80,MATCH($H92,lookups!$C$69:$C$80,0),MATCH(AD$5,lookups!$F$68:$BU$68,0))/INDEX(lookups!$F$69:$BU$80,MATCH($H92,lookups!$C$69:$C$80,0),MATCH($I92,lookups!$F$68:$BU$68,0))) -> 1 | AE92: =IF(ISNUMBER($H92),(1+$H92)^(AE$5-$I92),INDEX(lookups!$F$69:$BU$80,MATCH($H92,lookups!$C$69:$C$80,0),MATCH(AE$5,lookups!$F$68:$BU$68,0))/INDEX(lookups!$F$69:$BU$80,MATCH($H92,lookups!$C$69:$C$80,0),MATCH($I92,lookups!$F$68:$BU$68,0))) -> 1 | AF92: =IF(ISNUMBER($H92),(1+$H92)^(AF$5-$I92),INDEX(lookups!$F$69:$BU$80,MATCH($H92,lookups!$C$69:$C$80,0),MATCH(AF$5,lookups!$F$68:$BU$68,0))/INDEX(lookups!$F$69:$BU$80,MATCH($H92,lookups!$C$69:$C$80,0),MATCH($I92,lookups!$F$68:$BU$68,0))) -> 1 | AG92: =IF(ISNUMBER($H92),(1+$H92)^(AG$5-$I92),INDEX(lookups!$F$69:$BU$80,MATCH($H92,lookups!$C$69:$C$80,0),MATCH(AG$5,lookups!$F$68:$BU$68,0))/INDEX(lookups!$F$69:$BU$80,MATCH($H92,lookups!$C$69:$C$80,0),MATCH($I92,lookups!$F$68:$BU$68,0))) -> 1 | AH92: =IF(ISNUMBER($H92),(1+$H92)^(AH$5-$I92),INDEX(lookups!$F$69:$BU$80,MATCH($H92,lookups!$C$69:$C$80,0),MATCH(AH$5,lookups!$F$68:$BU$68,0))/INDEX(lookups!$F$69:$BU$80,MATCH($H92,lookups!$C$69:$C$80,0),MATCH($I92,lookups!$F$68:$BU$68,0))) -> 1 | AI92: =IF(ISNUMBER($H92),(1+$H92)^(AI$5-$I92),INDEX(lookups!$F$69:$BU$80,MATCH($H92,lookups!$C$69:$C$80,0),MATCH(AI$5,lookups!$F$68:$BU$68,0))/INDEX(lookups!$F$69:$BU$80,MATCH($H92,lookups!$C$69:$C$80,0),MATCH($I92,lookups!$F$68:$BU$68,0))) -> 1 | AJ92: =IF(ISNUMBER($H92),(1+$H92)^(AJ$5-$I92),INDEX(lookups!$F$69:$BU$80,MATCH($H92,lookups!$C$69:$C$80,0),MATCH(AJ$5,lookups!$F$68:$BU$68,0))/INDEX(lookups!$F$69:$BU$80,MATCH($H92,lookups!$C$69:$C$80,0),MATCH($I92,lookups!$F$68:$BU$68,0))) -> 1 | AK92: =IF(ISNUMBER($H92),(1+$H92)^(AK$5-$I92),INDEX(lookups!$F$69:$BU$80,MATCH($H92,lookups!$C$69:$C$80,0),MATCH(AK$5,lookups!$F$68:$BU$68,0))/INDEX(lookups!$F$69:$BU$80,MATCH($H92,lookups!$C$69:$C$80,0),MATCH($I92,lookups!$F$68:$BU$68,0))) -> 1 | AL92: =IF(ISNUMBER($H92),(1+$H92)^(AL$5-$I92),INDEX(lookups!$F$69:$BU$80,MATCH($H92,lookups!$C$69:$C$80,0),MATCH(AL$5,lookups!$F$68:$BU$68,0))/INDEX(lookups!$F$69:$BU$80,MATCH($H92,lookups!$C$69:$C$80,0),MATCH($I92,lookups!$F$68:$BU$68,0))) -> 1 | AM92: =IF(ISNUMBER($H92),(1+$H92)^(AM$5-$I92),INDEX(lookups!$F$69:$BU$80,MATCH($H92,lookups!$C$69:$C$80,0),MATCH(AM$5,lookups!$F$68:$BU$68,0))/INDEX(lookups!$F$69:$BU$80,MATCH($H92,lookups!$C$69:$C$80,0),MATCH($I92,lookups!$F$68:$BU$68,0))) -> 1 | AN92: =IF(ISNUMBER($H92),(1+$H92)^(AN$5-$I92),INDEX(lookups!$F$69:$BU$80,MATCH($H92,lookups!$C$69:$C$80,0),MATCH(AN$5,lookups!$F$68:$BU$68,0))/INDEX(lookups!$F$69:$BU$80,MATCH($H92,lookups!$C$69:$C$80,0),MATCH($I92,lookups!$F$68:$BU$68,0))) -> 1 | AO92: =IF(ISNUMBER($H92),(1+$H92)^(AO$5-$I92),INDEX(lookups!$F$69:$BU$80,MATCH($H92,lookups!$C$69:$C$80,0),MATCH(AO$5,lookups!$F$68:$BU$68,0))/INDEX(lookups!$F$69:$BU$80,MATCH($H92,lookups!$C$69:$C$80,0),MATCH($I92,lookups!$F$68:$BU$68,0))) -> 1 | AP92: =IF(ISNUMBER($H92),(1+$H92)^(AP$5-$I92),INDEX(lookups!$F$69:$BU$80,MATCH($H92,lookups!$C$69:$C$80,0),MATCH(AP$5,lookups!$F$68:$BU$68,0))/INDEX(lookups!$F$69:$BU$80,MATCH($H92,lookups!$C$69:$C$80,0),MATCH($I92,lookups!$F$68:$BU$68,0))) -> 1 | AQ92: =IF(ISNUMBER($H92),(1+$H92)^(AQ$5-$I92),INDEX(lookups!$F$69:$BU$80,MATCH($H92,lookups!$C$69:$C$80,0),MATCH(AQ$5,lookups!$F$68:$BU$68,0))/INDEX(lookups!$F$69:$BU$80,MATCH($H92,lookups!$C$69:$C$80,0),MATCH($I92,lookups!$F$68:$BU$68,0))) -> 1 | AR92: =IF(ISNUMBER($H92),(1+$H92)^(AR$5-$I92),INDEX(lookups!$F$69:$BU$80,MATCH($H92,lookups!$C$69:$C$80,0),MATCH(AR$5,lookups!$F$68:$BU$68,0))/INDEX(lookups!$F$69:$BU$80,MATCH($H92,lookups!$C$69:$C$80,0),MATCH($I92,lookups!$F$68:$BU$68,0))) -> 1 | AS92: =IF(ISNUMBER($H92),(1+$H92)^(AS$5-$I92),INDEX(lookups!$F$69:$BU$80,MATCH($H92,lookups!$C$69:$C$80,0),MATCH(AS$5,lookups!$F$68:$BU$68,0))/INDEX(lookups!$F$69:$BU$80,MATCH($H92,lookups!$C$69:$C$80,0),MATCH($I92,lookups!$F$68:$BU$68,0))) -> 1 | AT92: =IF(ISNUMBER($H92),(1+$H92)^(AT$5-$I92),INDEX(lookups!$F$69:$BU$80,MATCH($H92,lookups!$C$69:$C$80,0),MATCH(AT$5,lookups!$F$68:$BU$68,0))/INDEX(lookups!$F$69:$BU$80,MATCH($H92,lookups!$C$69:$C$80,0),MATCH($I92,lookups!$F$68:$BU$68,0))) -> 1 | AU92: =IF(ISNUMBER($H92),(1+$H92)^(AU$5-$I92),INDEX(lookups!$F$69:$BU$80,MATCH($H92,lookups!$C$69:$C$80,0),MATCH(AU$5,lookups!$F$68:$BU$68,0))/INDEX(lookups!$F$69:$BU$80,MATCH($H92,lookups!$C$69:$C$80,0),MATCH($I92,lookups!$F$68:$BU$68,0))) -> 1 | AV92: =IF(ISNUMBER($H92),(1+$H92)^(AV$5-$I92),INDEX(lookups!$F$69:$BU$80,MATCH($H92,lookups!$C$69:$C$80,0),MATCH(AV$5,lookups!$F$68:$BU$68,0))/INDEX(lookups!$F$69:$BU$80,MATCH($H92,lookups!$C$69:$C$80,0),MATCH($I92,lookups!$F$68:$BU$68,0))) -> 1 | AW92: =IF(ISNUMBER($H92),(1+$H92)^(AW$5-$I92),INDEX(lookups!$F$69:$BU$80,MATCH($H92,lookups!$C$69:$C$80,0),MATCH(AW$5,lookups!$F$68:$BU$68,0))/INDEX(lookups!$F$69:$BU$80,MATCH($H92,lookups!$C$69:$C$80,0),MATCH($I92,lookups!$F$68:$BU$68,0))) -> 1 | AX92: =IF(ISNUMBER($H92),(1+$H92)^(AX$5-$I92),INDEX(lookups!$F$69:$BU$80,MATCH($H92,lookups!$C$69:$C$80,0),MATCH(AX$5,lookups!$F$68:$BU$68,0))/INDEX(lookups!$F$69:$BU$80,MATCH($H92,lookups!$C$69:$C$80,0),MATCH($I92,lookups!$F$68:$BU$68,0))) -> 1 | AY92: =IF(ISNUMBER($H92),(1+$H92)^(AY$5-$I92),INDEX(lookups!$F$69:$BU$80,MATCH($H92,lookups!$C$69:$C$80,0),MATCH(AY$5,lookups!$F$68:$BU$68,0))/INDEX(lookups!$F$69:$BU$80,MATCH($H92,lookups!$C$69:$C$80,0),MATCH($I92,lookups!$F$68:$BU$68,0))) -> 1 | AZ92: =IF(ISNUMBER($H92),(1+$H92)^(AZ$5-$I92),INDEX(lookups!$F$69:$BU$80,MATCH($H92,lookups!$C$69:$C$80,0),MATCH(AZ$5,lookups!$F$68:$BU$68,0))/INDEX(lookups!$F$69:$BU$80,MATCH($H92,lookups!$C$69:$C$80,0),MATCH($I92,lookups!$F$68:$BU$68,0))) -> 1 | BA92: =IF(ISNUMBER($H92),(1+$H92)^(BA$5-$I92),INDEX(lookups!$F$69:$BU$80,MATCH($H92,lookups!$C$69:$C$80,0),MATCH(BA$5,lookups!$F$68:$BU$68,0))/INDEX(lookups!$F$69:$BU$80,MATCH($H92,lookups!$C$69:$C$80,0),MATCH($I92,lookups!$F$68:$BU$68,0))) -> 1 | BB92: =IF(ISNUMBER($H92),(1+$H92)^(BB$5-$I92),INDEX(lookups!$F$69:$BU$80,MATCH($H92,lookups!$C$69:$C$80,0),MATCH(BB$5,lookups!$F$68:$BU$68,0))/INDEX(lookups!$F$69:$BU$80,MATCH($H92,lookups!$C$69:$C$80,0),MATCH($I92,lookups!$F$68:$BU$68,0))) -> 1 | BC92: =IF(ISNUMBER($H92),(1+$H92)^(BC$5-$I92),INDEX(lookups!$F$69:$BU$80,MATCH($H92,lookups!$C$69:$C$80,0),MATCH(BC$5,lookups!$F$68:$BU$68,0))/INDEX(lookups!$F$69:$BU$80,MATCH($H92,lookups!$C$69:$C$80,0),MATCH($I92,lookups!$F$68:$BU$68,0))) -> 1 | BD92: =IF(ISNUMBER($H92),(1+$H92)^(BD$5-$I92),INDEX(lookups!$F$69:$BU$80,MATCH($H92,lookups!$C$69:$C$80,0),MATCH(BD$5,lookups!$F$68:$BU$68,0))/INDEX(lookups!$F$69:$BU$80,MATCH($H92,lookups!$C$69:$C$80,0),MATCH($I92,lookups!$F$68:$BU$68,0))) -> 1 | BE92: =IF(ISNUMBER($H92),(1+$H92)^(BE$5-$I92),INDEX(lookups!$F$69:$BU$80,MATCH($H92,lookups!$C$69:$C$80,0),MATCH(BE$5,lookups!$F$68:$BU$68,0))/INDEX(lookups!$F$69:$BU$80,MATCH($H92,lookups!$C$69:$C$80,0),MATCH($I92,lookups!$F$68:$BU$68,0))) -> 1 | BF92: =IF(ISNUMBER($H92),(1+$H92)^(BF$5-$I92),INDEX(lookups!$F$69:$BU$80,MATCH($H92,lookups!$C$69:$C$80,0),MATCH(BF$5,lookups!$F$68:$BU$68,0))/INDEX(lookups!$F$69:$BU$80,MATCH($H92,lookups!$C$69:$C$80,0),MATCH($I92,lookups!$F$68:$BU$68,0))) -> 1 | BG92: =IF(ISNUMBER($H92),(1+$H92)^(BG$5-$I92),INDEX(lookups!$F$69:$BU$80,MATCH($H92,lookups!$C$69:$C$80,0),MATCH(BG$5,lookups!$F$68:$BU$68,0))/INDEX(lookups!$F$69:$BU$80,MATCH($H92,lookups!$C$69:$C$80,0),MATCH($I92,lookups!$F$68:$BU$68,0))) -> 1 | BH92: =IF(ISNUMBER($H92),(1+$H92)^(BH$5-$I92),INDEX(lookups!$F$69:$BU$80,MATCH($H92,lookups!$C$69:$C$80,0),MATCH(BH$5,lookups!$F$68:$BU$68,0))/INDEX(lookups!$F$69:$BU$80,MATCH($H92,lookups!$C$69:$C$80,0),MATCH($I92,lookups!$F$68:$BU$68,0))) -> 1 | BI92: =IF(ISNUMBER($H92),(1+$H92)^(BI$5-$I92),INDEX(lookups!$F$69:$BU$80,MATCH($H92,lookups!$C$69:$C$80,0),MATCH(BI$5,lookups!$F$68:$BU$68,0))/INDEX(lookups!$F$69:$BU$80,MATCH($H92,lookups!$C$69:$C$80,0),MATCH($I92,lookups!$F$68:$BU$68,0))) -> 1 | BJ92: =IF(ISNUMBER($H92),(1+$H92)^(BJ$5-$I92),INDEX(lookups!$F$69:$BU$80,MATCH($H92,lookups!$C$69:$C$80,0),MATCH(BJ$5,lookups!$F$68:$BU$68,0))/INDEX(lookups!$F$69:$BU$80,MATCH($H92,lookups!$C$69:$C$80,0),MATCH($I92,lookups!$F$68:$BU$68,0))) -> 1 | BK92: =IF(ISNUMBER($H92),(1+$H92)^(BK$5-$I92),INDEX(lookups!$F$69:$BU$80,MATCH($H92,lookups!$C$69:$C$80,0),MATCH(BK$5,lookups!$F$68:$BU$68,0))/INDEX(lookups!$F$69:$BU$80,MATCH($H92,lookups!$C$69:$C$80,0),MATCH($I92,lookups!$F$68:$BU$68,0))) -> 1 | BL92: =IF(ISNUMBER($H92),(1+$H92)^(BL$5-$I92),INDEX(lookups!$F$69:$BU$80,MATCH($H92,lookups!$C$69:$C$80,0),MATCH(BL$5,lookups!$F$68:$BU$68,0))/INDEX(lookups!$F$69:$BU$80,MATCH($H92,lookups!$C$69:$C$80,0),MATCH($I92,lookups!$F$68:$BU$68,0))) -> 1 | BM92: =IF(ISNUMBER($H92),(1+$H92)^(BM$5-$I92),INDEX(lookups!$F$69:$BU$80,MATCH($H92,lookups!$C$69:$C$80,0),MATCH(BM$5,lookups!$F$68:$BU$68,0))/INDEX(lookups!$F$69:$BU$80,MATCH($H92,lookups!$C$69:$C$80,0),MATCH($I92,lookups!$F$68:$BU$68,0))) -> 1
C93: 6 | D93: item 6 | E93: Capital | F93: 4 | H93: =Input!L13 -> 0 | I93: =Assumptions!$D$13 -> 2017 | O93: =IF(ISNUMBER($H93),(1+$H93)^(O$5-$I93),INDEX(lookups!$F$69:$BU$80,MATCH($H93,lookups!$C$69:$C$80,0),MATCH(O$5,lookups!$F$68:$BU$68,0))/INDEX(lookups!$F$69:$BU$80,MATCH($H93,lookups!$C$69:$C$80,0),MATCH($I93,lookups!$F$68:$BU$68,0))) -> 1 | P93: =IF(ISNUMBER($H93),(1+$H93)^(P$5-$I93),INDEX(lookups!$F$69:$BU$80,MATCH($H93,lookups!$C$69:$C$80,0),MATCH(P$5,lookups!$F$68:$BU$68,0))/INDEX(lookups!$F$69:$BU$80,MATCH($H93,lookups!$C$69:$C$80,0),MATCH($I93,lookups!$F$68:$BU$68,0))) -> 1 | Q93: =IF(ISNUMBER($H93),(1+$H93)^(Q$5-$I93),INDEX(lookups!$F$69:$BU$80,MATCH($H93,lookups!$C$69:$C$80,0),MATCH(Q$5,lookups!$F$68:$BU$68,0))/INDEX(lookups!$F$69:$BU$80,MATCH($H93,lookups!$C$69:$C$80,0),MATCH($I93,lookups!$F$68:$BU$68,0))) -> 1 | R93: =IF(ISNUMBER($H93),(1+$H93)^(R$5-$I93),INDEX(lookups!$F$69:$BU$80,MATCH($H93,lookups!$C$69:$C$80,0),MATCH(R$5,lookups!$F$68:$BU$68,0))/INDEX(lookups!$F$69:$BU$80,MATCH($H93,lookups!$C$69:$C$80,0),MATCH($I93,lookups!$F$68:$BU$68,0))) -> 1 | S93: =IF(ISNUMBER($H93),(1+$H93)^(S$5-$I93),INDEX(lookups!$F$69:$BU$80,MATCH($H93,lookups!$C$69:$C$80,0),MATCH(S$5,lookups!$F$68:$BU$68,0))/INDEX(lookups!$F$69:$BU$80,MATCH($H93,lookups!$C$69:$C$80,0),MATCH($I93,lookups!$F$68:$BU$68,0))) -> 1 | T93: =IF(ISNUMBER($H93),(1+$H93)^(T$5-$I93),INDEX(lookups!$F$69:$BU$80,MATCH($H93,lookups!$C$69:$C$80,0),MATCH(T$5,lookups!$F$68:$BU$68,0))/INDEX(lookups!$F$69:$BU$80,MATCH($H93,lookups!$C$69:$C$80,0),MATCH($I93,lookups!$F$68:$BU$68,0))) -> 1 | U93: =IF(ISNUMBER($H93),(1+$H93)^(U$5-$I93),INDEX(lookups!$F$69:$BU$80,MATCH($H93,lookups!$C$69:$C$80,0),MATCH(U$5,lookups!$F$68:$BU$68,0))/INDEX(lookups!$F$69:$BU$80,MATCH($H93,lookups!$C$69:$C$80,0),MATCH($I93,lookups!$F$68:$BU$68,0))) -> 1 | V93: =IF(ISNUMBER($H93),(1+$H93)^(V$5-$I93),INDEX(lookups!$F$69:$BU$80,MATCH($H93,lookups!$C$69:$C$80,0),MATCH(V$5,lookups!$F$68:$BU$68,0))/INDEX(lookups!$F$69:$BU$80,MATCH($H93,lookups!$C$69:$C$80,0),MATCH($I93,lookups!$F$68:$BU$68,0))) -> 1 | W93: =IF(ISNUMBER($H93),(1+$H93)^(W$5-$I93),INDEX(lookups!$F$69:$BU$80,MATCH($H93,lookups!$C$69:$C$80,0),MATCH(W$5,lookups!$F$68:$BU$68,0))/INDEX(lookups!$F$69:$BU$80,MATCH($H93,lookups!$C$69:$C$80,0),MATCH($I93,lookups!$F$68:$BU$68,0))) -> 1 | X93: =IF(ISNUMBER($H93),(1+$H93)^(X$5-$I93),INDEX(lookups!$F$69:$BU$80,MATCH($H93,lookups!$C$69:$C$80,0),MATCH(X$5,lookups!$F$68:$BU$68,0))/INDEX(lookups!$F$69:$BU$80,MATCH($H93,lookups!$C$69:$C$80,0),MATCH($I93,lookups!$F$68:$BU$68,0))) -> 1 | Y93: =IF(ISNUMBER($H93),(1+$H93)^(Y$5-$I93),INDEX(lookups!$F$69:$BU$80,MATCH($H93,lookups!$C$69:$C$80,0),MATCH(Y$5,lookups!$F$68:$BU$68,0))/INDEX(lookups!$F$69:$BU$80,MATCH($H93,lookups!$C$69:$C$80,0),MATCH($I93,lookups!$F$68:$BU$68,0))) -> 1 | Z93: =IF(ISNUMBER($H93),(1+$H93)^(Z$5-$I93),INDEX(lookups!$F$69:$BU$80,MATCH($H93,lookups!$C$69:$C$80,0),MATCH(Z$5,lookups!$F$68:$BU$68,0))/INDEX(lookups!$F$69:$BU$80,MATCH($H93,lookups!$C$69:$C$80,0),MATCH($I93,lookups!$F$68:$BU$68,0))) -> 1 | AA93: =IF(ISNUMBER($H93),(1+$H93)^(AA$5-$I93),INDEX(lookups!$F$69:$BU$80,MATCH($H93,lookups!$C$69:$C$80,0),MATCH(AA$5,lookups!$F$68:$BU$68,0))/INDEX(lookups!$F$69:$BU$80,MATCH($H93,lookups!$C$69:$C$80,0),MATCH($I93,lookups!$F$68:$BU$68,0))) -> 1 | AB93: =IF(ISNUMBER($H93),(1+$H93)^(AB$5-$I93),INDEX(lookups!$F$69:$BU$80,MATCH($H93,lookups!$C$69:$C$80,0),MATCH(AB$5,lookups!$F$68:$BU$68,0))/INDEX(lookups!$F$69:$BU$80,MATCH($H93,lookups!$C$69:$C$80,0),MATCH($I93,lookups!$F$68:$BU$68,0))) -> 1 | AC93: =IF(ISNUMBER($H93),(1+$H93)^(AC$5-$I93),INDEX(lookups!$F$69:$BU$80,MATCH($H93,lookups!$C$69:$C$80,0),MATCH(AC$5,lookups!$F$68:$BU$68,0))/INDEX(lookups!$F$69:$BU$80,MATCH($H93,lookups!$C$69:$C$80,0),MATCH($I93,lookups!$F$68:$BU$68,0))) -> 1 | AD93: =IF(ISNUMBER($H93),(1+$H93)^(AD$5-$I93),INDEX(lookups!$F$69:$BU$80,MATCH($H93,lookups!$C$69:$C$80,0),MATCH(AD$5,lookups!$F$68:$BU$68,0))/INDEX(lookups!$F$69:$BU$80,MATCH($H93,lookups!$C$69:$C$80,0),MATCH($I93,lookups!$F$68:$BU$68,0))) -> 1 | AE93: =IF(ISNUMBER($H93),(1+$H93)^(AE$5-$I93),INDEX(lookups!$F$69:$BU$80,MATCH($H93,lookups!$C$69:$C$80,0),MATCH(AE$5,lookups!$F$68:$BU$68,0))/INDEX(lookups!$F$69:$BU$80,MATCH($H93,lookups!$C$69:$C$80,0),MATCH($I93,lookups!$F$68:$BU$68,0))) -> 1 | AF93: =IF(ISNUMBER($H93),(1+$H93)^(AF$5-$I93),INDEX(lookups!$F$69:$BU$80,MATCH($H93,lookups!$C$69:$C$80,0),MATCH(AF$5,lookups!$F$68:$BU$68,0))/INDEX(lookups!$F$69:$BU$80,MATCH($H93,lookups!$C$69:$C$80,0),MATCH($I93,lookups!$F$68:$BU$68,0))) -> 1 | AG93: =IF(ISNUMBER($H93),(1+$H93)^(AG$5-$I93),INDEX(lookups!$F$69:$BU$80,MATCH($H93,lookups!$C$69:$C$80,0),MATCH(AG$5,lookups!$F$68:$BU$68,0))/INDEX(lookups!$F$69:$BU$80,MATCH($H93,lookups!$C$69:$C$80,0),MATCH($I93,lookups!$F$68:$BU$68,0))) -> 1 | AH93: =IF(ISNUMBER($H93),(1+$H93)^(AH$5-$I93),INDEX(lookups!$F$69:$BU$80,MATCH($H93,lookups!$C$69:$C$80,0),MATCH(AH$5,lookups!$F$68:$BU$68,0))/INDEX(lookups!$F$69:$BU$80,MATCH($H93,lookups!$C$69:$C$80,0),MATCH($I93,lookups!$F$68:$BU$68,0))) -> 1 | AI93: =IF(ISNUMBER($H93),(1+$H93)^(AI$5-$I93),INDEX(lookups!$F$69:$BU$80,MATCH($H93,lookups!$C$69:$C$80,0),MATCH(AI$5,lookups!$F$68:$BU$68,0))/INDEX(lookups!$F$69:$BU$80,MATCH($H93,lookups!$C$69:$C$80,0),MATCH($I93,lookups!$F$68:$BU$68,0))) -> 1 | AJ93: =IF(ISNUMBER($H93),(1+$H93)^(AJ$5-$I93),INDEX(lookups!$F$69:$BU$80,MATCH($H93,lookups!$C$69:$C$80,0),MATCH(AJ$5,lookups!$F$68:$BU$68,0))/INDEX(lookups!$F$69:$BU$80,MATCH($H93,lookups!$C$69:$C$80,0),MATCH($I93,lookups!$F$68:$BU$68,0))) -> 1 | AK93: =IF(ISNUMBER($H93),(1+$H93)^(AK$5-$I93),INDEX(lookups!$F$69:$BU$80,MATCH($H93,lookups!$C$69:$C$80,0),MATCH(AK$5,lookups!$F$68:$BU$68,0))/INDEX(lookups!$F$69:$BU$80,MATCH($H93,lookups!$C$69:$C$80,0),MATCH($I93,lookups!$F$68:$BU$68,0))) -> 1 | AL93: =IF(ISNUMBER($H93),(1+$H93)^(AL$5-$I93),INDEX(lookups!$F$69:$BU$80,MATCH($H93,lookups!$C$69:$C$80,0),MATCH(AL$5,lookups!$F$68:$BU$68,0))/INDEX(lookups!$F$69:$BU$80,MATCH($H93,lookups!$C$69:$C$80,0),MATCH($I93,lookups!$F$68:$BU$68,0))) -> 1 | AM93: =IF(ISNUMBER($H93),(1+$H93)^(AM$5-$I93),INDEX(lookups!$F$69:$BU$80,MATCH($H93,lookups!$C$69:$C$80,0),MATCH(AM$5,lookups!$F$68:$BU$68,0))/INDEX(lookups!$F$69:$BU$80,MATCH($H93,lookups!$C$69:$C$80,0),MATCH($I93,lookups!$F$68:$BU$68,0))) -> 1 | AN93: =IF(ISNUMBER($H93),(1+$H93)^(AN$5-$I93),INDEX(lookups!$F$69:$BU$80,MATCH($H93,lookups!$C$69:$C$80,0),MATCH(AN$5,lookups!$F$68:$BU$68,0))/INDEX(lookups!$F$69:$BU$80,MATCH($H93,lookups!$C$69:$C$80,0),MATCH($I93,lookups!$F$68:$BU$68,0))) -> 1 | AO93: =IF(ISNUMBER($H93),(1+$H93)^(AO$5-$I93),INDEX(lookups!$F$69:$BU$80,MATCH($H93,lookups!$C$69:$C$80,0),MATCH(AO$5,lookups!$F$68:$BU$68,0))/INDEX(lookups!$F$69:$BU$80,MATCH($H93,lookups!$C$69:$C$80,0),MATCH($I93,lookups!$F$68:$BU$68,0))) -> 1 | AP93: =IF(ISNUMBER($H93),(1+$H93)^(AP$5-$I93),INDEX(lookups!$F$69:$BU$80,MATCH($H93,lookups!$C$69:$C$80,0),MATCH(AP$5,lookups!$F$68:$BU$68,0))/INDEX(lookups!$F$69:$BU$80,MATCH($H93,lookups!$C$69:$C$80,0),MATCH($I93,lookups!$F$68:$BU$68,0))) -> 1 | AQ93: =IF(ISNUMBER($H93),(1+$H93)^(AQ$5-$I93),INDEX(lookups!$F$69:$BU$80,MATCH($H93,lookups!$C$69:$C$80,0),MATCH(AQ$5,lookups!$F$68:$BU$68,0))/INDEX(lookups!$F$69:$BU$80,MATCH($H93,lookups!$C$69:$C$80,0),MATCH($I93,lookups!$F$68:$BU$68,0))) -> 1 | AR93: =IF(ISNUMBER($H93),(1+$H93)^(AR$5-$I93),INDEX(lookups!$F$69:$BU$80,MATCH($H93,lookups!$C$69:$C$80,0),MATCH(AR$5,lookups!$F$68:$BU$68,0))/INDEX(lookups!$F$69:$BU$80,MATCH($H93,lookups!$C$69:$C$80,0),MATCH($I93,lookups!$F$68:$BU$68,0))) -> 1 | AS93: =IF(ISNUMBER($H93),(1+$H93)^(AS$5-$I93),INDEX(lookups!$F$69:$BU$80,MATCH($H93,lookups!$C$69:$C$80,0),MATCH(AS$5,lookups!$F$68:$BU$68,0))/INDEX(lookups!$F$69:$BU$80,MATCH($H93,lookups!$C$69:$C$80,0),MATCH($I93,lookups!$F$68:$BU$68,0))) -> 1 | AT93: =IF(ISNUMBER($H93),(1+$H93)^(AT$5-$I93),INDEX(lookups!$F$69:$BU$80,MATCH($H93,lookups!$C$69:$C$80,0),MATCH(AT$5,lookups!$F$68:$BU$68,0))/INDEX(lookups!$F$69:$BU$80,MATCH($H93,lookups!$C$69:$C$80,0),MATCH($I93,lookups!$F$68:$BU$68,0))) -> 1 | AU93: =IF(ISNUMBER($H93),(1+$H93)^(AU$5-$I93),INDEX(lookups!$F$69:$BU$80,MATCH($H93,lookups!$C$69:$C$80,0),MATCH(AU$5,lookups!$F$68:$BU$68,0))/INDEX(lookups!$F$69:$BU$80,MATCH($H93,lookups!$C$69:$C$80,0),MATCH($I93,lookups!$F$68:$BU$68,0))) -> 1 | AV93: =IF(ISNUMBER($H93),(1+$H93)^(AV$5-$I93),INDEX(lookups!$F$69:$BU$80,MATCH($H93,lookups!$C$69:$C$80,0),MATCH(AV$5,lookups!$F$68:$BU$68,0))/INDEX(lookups!$F$69:$BU$80,MATCH($H93,lookups!$C$69:$C$80,0),MATCH($I93,lookups!$F$68:$BU$68,0))) -> 1 | AW93: =IF(ISNUMBER($H93),(1+$H93)^(AW$5-$I93),INDEX(lookups!$F$69:$BU$80,MATCH($H93,lookups!$C$69:$C$80,0),MATCH(AW$5,lookups!$F$68:$BU$68,0))/INDEX(lookups!$F$69:$BU$80,MATCH($H93,lookups!$C$69:$C$80,0),MATCH($I93,lookups!$F$68:$BU$68,0))) -> 1 | AX93: =IF(ISNUMBER($H93),(1+$H93)^(AX$5-$I93),INDEX(lookups!$F$69:$BU$80,MATCH($H93,lookups!$C$69:$C$80,0),MATCH(AX$5,lookups!$F$68:$BU$68,0))/INDEX(lookups!$F$69:$BU$80,MATCH($H93,lookups!$C$69:$C$80,0),MATCH($I93,lookups!$F$68:$BU$68,0))) -> 1 | AY93: =IF(ISNUMBER($H93),(1+$H93)^(AY$5-$I93),INDEX(lookups!$F$69:$BU$80,MATCH($H93,lookups!$C$69:$C$80,0),MATCH(AY$5,lookups!$F$68:$BU$68,0))/INDEX(lookups!$F$69:$BU$80,MATCH($H93,lookups!$C$69:$C$80,0),MATCH($I93,lookups!$F$68:$BU$68,0))) -> 1 | AZ93: =IF(ISNUMBER($H93),(1+$H93)^(AZ$5-$I93),INDEX(lookups!$F$69:$BU$80,MATCH($H93,lookups!$C$69:$C$80,0),MATCH(AZ$5,lookups!$F$68:$BU$68,0))/INDEX(lookups!$F$69:$BU$80,MATCH($H93,lookups!$C$69:$C$80,0),MATCH($I93,lookups!$F$68:$BU$68,0))) -> 1 | BA93: =IF(ISNUMBER($H93),(1+$H93)^(BA$5-$I93),INDEX(lookups!$F$69:$BU$80,MATCH($H93,lookups!$C$69:$C$80,0),MATCH(BA$5,lookups!$F$68:$BU$68,0))/INDEX(lookups!$F$69:$BU$80,MATCH($H93,lookups!$C$69:$C$80,0),MATCH($I93,lookups!$F$68:$BU$68,0))) -> 1 | BB93: =IF(ISNUMBER($H93),(1+$H93)^(BB$5-$I93),INDEX(lookups!$F$69:$BU$80,MATCH($H93,lookups!$C$69:$C$80,0),MATCH(BB$5,lookups!$F$68:$BU$68,0))/INDEX(lookups!$F$69:$BU$80,MATCH($H93,lookups!$C$69:$C$80,0),MATCH($I93,lookups!$F$68:$BU$68,0))) -> 1 | BC93: =IF(ISNUMBER($H93),(1+$H93)^(BC$5-$I93),INDEX(lookups!$F$69:$BU$80,MATCH($H93,lookups!$C$69:$C$80,0),MATCH(BC$5,lookups!$F$68:$BU$68,0))/INDEX(lookups!$F$69:$BU$80,MATCH($H93,lookups!$C$69:$C$80,0),MATCH($I93,lookups!$F$68:$BU$68,0))) -> 1 | BD93: =IF(ISNUMBER($H93),(1+$H93)^(BD$5-$I93),INDEX(lookups!$F$69:$BU$80,MATCH($H93,lookups!$C$69:$C$80,0),MATCH(BD$5,lookups!$F$68:$BU$68,0))/INDEX(lookups!$F$69:$BU$80,MATCH($H93,lookups!$C$69:$C$80,0),MATCH($I93,lookups!$F$68:$BU$68,0))) -> 1 | BE93: =IF(ISNUMBER($H93),(1+$H93)^(BE$5-$I93),INDEX(lookups!$F$69:$BU$80,MATCH($H93,lookups!$C$69:$C$80,0),MATCH(BE$5,lookups!$F$68:$BU$68,0))/INDEX(lookups!$F$69:$BU$80,MATCH($H93,lookups!$C$69:$C$80,0),MATCH($I93,lookups!$F$68:$BU$68,0))) -> 1 | BF93: =IF(ISNUMBER($H93),(1+$H93)^(BF$5-$I93),INDEX(lookups!$F$69:$BU$80,MATCH($H93,lookups!$C$69:$C$80,0),MATCH(BF$5,lookups!$F$68:$BU$68,0))/INDEX(lookups!$F$69:$BU$80,MATCH($H93,lookups!$C$69:$C$80,0),MATCH($I93,lookups!$F$68:$BU$68,0))) -> 1 | BG93: =IF(ISNUMBER($H93),(1+$H93)^(BG$5-$I93),INDEX(lookups!$F$69:$BU$80,MATCH($H93,lookups!$C$69:$C$80,0),MATCH(BG$5,lookups!$F$68:$BU$68,0))/INDEX(lookups!$F$69:$BU$80,MATCH($H93,lookups!$C$69:$C$80,0),MATCH($I93,lookups!$F$68:$BU$68,0))) -> 1 | BH93: =IF(ISNUMBER($H93),(1+$H93)^(BH$5-$I93),INDEX(lookups!$F$69:$BU$80,MATCH($H93,lookups!$C$69:$C$80,0),MATCH(BH$5,lookups!$F$68:$BU$68,0))/INDEX(lookups!$F$69:$BU$80,MATCH($H93,lookups!$C$69:$C$80,0),MATCH($I93,lookups!$F$68:$BU$68,0))) -> 1 | BI93: =IF(ISNUMBER($H93),(1+$H93)^(BI$5-$I93),INDEX(lookups!$F$69:$BU$80,MATCH($H93,lookups!$C$69:$C$80,0),MATCH(BI$5,lookups!$F$68:$BU$68,0))/INDEX(lookups!$F$69:$BU$80,MATCH($H93,lookups!$C$69:$C$80,0),MATCH($I93,lookups!$F$68:$BU$68,0))) -> 1 | BJ93: =IF(ISNUMBER($H93),(1+$H93)^(BJ$5-$I93),INDEX(lookups!$F$69:$BU$80,MATCH($H93,lookups!$C$69:$C$80,0),MATCH(BJ$5,lookups!$F$68:$BU$68,0))/INDEX(lookups!$F$69:$BU$80,MATCH($H93,lookups!$C$69:$C$80,0),MATCH($I93,lookups!$F$68:$BU$68,0))) -> 1 | BK93: =IF(ISNUMBER($H93),(1+$H93)^(BK$5-$I93),INDEX(lookups!$F$69:$BU$80,MATCH($H93,lookups!$C$69:$C$80,0),MATCH(BK$5,lookups!$F$68:$BU$68,0))/INDEX(lookups!$F$69:$BU$80,MATCH($H93,lookups!$C$69:$C$80,0),MATCH($I93,lookups!$F$68:$BU$68,0))) -> 1 | BL93: =IF(ISNUMBER($H93),(1+$H93)^(BL$5-$I93),INDEX(lookups!$F$69:$BU$80,MATCH($H93,lookups!$C$69:$C$80,0),MATCH(BL$5,lookups!$F$68:$BU$68,0))/INDEX(lookups!$F$69:$BU$80,MATCH($H93,lookups!$C$69:$C$80,0),MATCH($I93,lookups!$F$68:$BU$68,0))) -> 1 | BM93: =IF(ISNUMBER($H93),(1+$H93)^(BM$5-$I93),INDEX(lookups!$F$69:$BU$80,MATCH($H93,lookups!$C$69:$C$80,0),MATCH(BM$5,lookups!$F$68:$BU$68,0))/INDEX(lookups!$F$69:$BU$80,MATCH($H93,lookups!$C$69:$C$80,0),MATCH($I93,lookups!$F$68:$BU$68,0))) -> 1
C94: 7 | D94: item 7 | E94: Capital | F94: 4 | H94: =Input!L14 -> 0 | I94: =Assumptions!$D$13 -> 2017 | O94: =IF(ISNUMBER($H94),(1+$H94)^(O$5-$I94),INDEX(lookups!$F$69:$BU$80,MATCH($H94,lookups!$C$69:$C$80,0),MATCH(O$5,lookups!$F$68:$BU$68,0))/INDEX(lookups!$F$69:$BU$80,MATCH($H94,lookups!$C$69:$C$80,0),MATCH($I94,lookups!$F$68:$BU$68,0))) -> 1 | P94: =IF(ISNUMBER($H94),(1+$H94)^(P$5-$I94),INDEX(lookups!$F$69:$BU$80,MATCH($H94,lookups!$C$69:$C$80,0),MATCH(P$5,lookups!$F$68:$BU$68,0))/INDEX(lookups!$F$69:$BU$80,MATCH($H94,lookups!$C$69:$C$80,0),MATCH($I94,lookups!$F$68:$BU$68,0))) -> 1 | Q94: =IF(ISNUMBER($H94),(1+$H94)^(Q$5-$I94),INDEX(lookups!$F$69:$BU$80,MATCH($H94,lookups!$C$69:$C$80,0),MATCH(Q$5,lookups!$F$68:$BU$68,0))/INDEX(lookups!$F$69:$BU$80,MATCH($H94,lookups!$C$69:$C$80,0),MATCH($I94,lookups!$F$68:$BU$68,0))) -> 1 | R94: =IF(ISNUMBER($H94),(1+$H94)^(R$5-$I94),INDEX(lookups!$F$69:$BU$80,MATCH($H94,lookups!$C$69:$C$80,0),MATCH(R$5,lookups!$F$68:$BU$68,0))/INDEX(lookups!$F$69:$BU$80,MATCH($H94,lookups!$C$69:$C$80,0),MATCH($I94,lookups!$F$68:$BU$68,0))) -> 1 | S94: =IF(ISNUMBER($H94),(1+$H94)^(S$5-$I94),INDEX(lookups!$F$69:$BU$80,MATCH($H94,lookups!$C$69:$C$80,0),MATCH(S$5,lookups!$F$68:$BU$68,0))/INDEX(lookups!$F$69:$BU$80,MATCH($H94,lookups!$C$69:$C$80,0),MATCH($I94,lookups!$F$68:$BU$68,0))) -> 1 | T94: =IF(ISNUMBER($H94),(1+$H94)^(T$5-$I94),INDEX(lookups!$F$69:$BU$80,MATCH($H94,lookups!$C$69:$C$80,0),MATCH(T$5,lookups!$F$68:$BU$68,0))/INDEX(lookups!$F$69:$BU$80,MATCH($H94,lookups!$C$69:$C$80,0),MATCH($I94,lookups!$F$68:$BU$68,0))) -> 1 | U94: =IF(ISNUMBER($H94),(1+$H94)^(U$5-$I94),INDEX(lookups!$F$69:$BU$80,MATCH($H94,lookups!$C$69:$C$80,0),MATCH(U$5,lookups!$F$68:$BU$68,0))/INDEX(lookups!$F$69:$BU$80,MATCH($H94,lookups!$C$69:$C$80,0),MATCH($I94,lookups!$F$68:$BU$68,0))) -> 1 | V94: =IF(ISNUMBER($H94),(1+$H94)^(V$5-$I94),INDEX(lookups!$F$69:$BU$80,MATCH($H94,lookups!$C$69:$C$80,0),MATCH(V$5,lookups!$F$68:$BU$68,0))/INDEX(lookups!$F$69:$BU$80,MATCH($H94,lookups!$C$69:$C$80,0),MATCH($I94,lookups!$F$68:$BU$68,0))) -> 1 | W94: =IF(ISNUMBER($H94),(1+$H94)^(W$5-$I94),INDEX(lookups!$F$69:$BU$80,MATCH($H94,lookups!$C$69:$C$80,0),MATCH(W$5,lookups!$F$68:$BU$68,0))/INDEX(lookups!$F$69:$BU$80,MATCH($H94,lookups!$C$69:$C$80,0),MATCH($I94,lookups!$F$68:$BU$68,0))) -> 1 | X94: =IF(ISNUMBER($H94),(1+$H94)^(X$5-$I94),INDEX(lookups!$F$69:$BU$80,MATCH($H94,lookups!$C$69:$C$80,0),MATCH(X$5,lookups!$F$68:$BU$68,0))/INDEX(lookups!$F$69:$BU$80,MATCH($H94,lookups!$C$69:$C$80,0),MATCH($I94,lookups!$F$68:$BU$68,0))) -> 1 | Y94: =IF(ISNUMBER($H94),(1+$H94)^(Y$5-$I94),INDEX(lookups!$F$69:$BU$80,MATCH($H94,lookups!$C$69:$C$80,0),MATCH(Y$5,lookups!$F$68:$BU$68,0))/INDEX(lookups!$F$69:$BU$80,MATCH($H94,lookups!$C$69:$C$80,0),MATCH($I94,lookups!$F$68:$BU$68,0))) -> 1 | Z94: =IF(ISNUMBER($H94),(1+$H94)^(Z$5-$I94),INDEX(lookups!$F$69:$BU$80,MATCH($H94,lookups!$C$69:$C$80,0),MATCH(Z$5,lookups!$F$68:$BU$68,0))/INDEX(lookups!$F$69:$BU$80,MATCH($H94,lookups!$C$69:$C$80,0),MATCH($I94,lookups!$F$68:$BU$68,0))) -> 1 | AA94: =IF(ISNUMBER($H94),(1+$H94)^(AA$5-$I94),INDEX(lookups!$F$69:$BU$80,MATCH($H94,lookups!$C$69:$C$80,0),MATCH(AA$5,lookups!$F$68:$BU$68,0))/INDEX(lookups!$F$69:$BU$80,MATCH($H94,lookups!$C$69:$C$80,0),MATCH($I94,lookups!$F$68:$BU$68,0))) -> 1 | AB94: =IF(ISNUMBER($H94),(1+$H94)^(AB$5-$I94),INDEX(lookups!$F$69:$BU$80,MATCH($H94,lookups!$C$69:$C$80,0),MATCH(AB$5,lookups!$F$68:$BU$68,0))/INDEX(lookups!$F$69:$BU$80,MATCH($H94,lookups!$C$69:$C$80,0),MATCH($I94,lookups!$F$68:$BU$68,0))) -> 1 | AC94: =IF(ISNUMBER($H94),(1+$H94)^(AC$5-$I94),INDEX(lookups!$F$69:$BU$80,MATCH($H94,lookups!$C$69:$C$80,0),MATCH(AC$5,lookups!$F$68:$BU$68,0))/INDEX(lookups!$F$69:$BU$80,MATCH($H94,lookups!$C$69:$C$80,0),MATCH($I94,lookups!$F$68:$BU$68,0))) -> 1 | AD94: =IF(ISNUMBER($H94),(1+$H94)^(AD$5-$I94),INDEX(lookups!$F$69:$BU$80,MATCH($H94,lookups!$C$69:$C$80,0),MATCH(AD$5,lookups!$F$68:$BU$68,0))/INDEX(lookups!$F$69:$BU$80,MATCH($H94,lookups!$C$69:$C$80,0),MATCH($I94,lookups!$F$68:$BU$68,0))) -> 1 | AE94: =IF(ISNUMBER($H94),(1+$H94)^(AE$5-$I94),INDEX(lookups!$F$69:$BU$80,MATCH($H94,lookups!$C$69:$C$80,0),MATCH(AE$5,lookups!$F$68:$BU$68,0))/INDEX(lookups!$F$69:$BU$80,MATCH($H94,lookups!$C$69:$C$80,0),MATCH($I94,lookups!$F$68:$BU$68,0))) -> 1 | AF94: =IF(ISNUMBER($H94),(1+$H94)^(AF$5-$I94),INDEX(lookups!$F$69:$BU$80,MATCH($H94,lookups!$C$69:$C$80,0),MATCH(AF$5,lookups!$F$68:$BU$68,0))/INDEX(lookups!$F$69:$BU$80,MATCH($H94,lookups!$C$69:$C$80,0),MATCH($I94,lookups!$F$68:$BU$68,0))) -> 1 | AG94: =IF(ISNUMBER($H94),(1+$H94)^(AG$5-$I94),INDEX(lookups!$F$69:$BU$80,MATCH($H94,lookups!$C$69:$C$80,0),MATCH(AG$5,lookups!$F$68:$BU$68,0))/INDEX(lookups!$F$69:$BU$80,MATCH($H94,lookups!$C$69:$C$80,0),MATCH($I94,lookups!$F$68:$BU$68,0))) -> 1 | AH94: =IF(ISNUMBER($H94),(1+$H94)^(AH$5-$I94),INDEX(lookups!$F$69:$BU$80,MATCH($H94,lookups!$C$69:$C$80,0),MATCH(AH$5,lookups!$F$68:$BU$68,0))/INDEX(lookups!$F$69:$BU$80,MATCH($H94,lookups!$C$69:$C$80,0),MATCH($I94,lookups!$F$68:$BU$68,0))) -> 1 | AI94: =IF(ISNUMBER($H94),(1+$H94)^(AI$5-$I94),INDEX(lookups!$F$69:$BU$80,MATCH($H94,lookups!$C$69:$C$80,0),MATCH(AI$5,lookups!$F$68:$BU$68,0))/INDEX(lookups!$F$69:$BU$80,MATCH($H94,lookups!$C$69:$C$80,0),MATCH($I94,lookups!$F$68:$BU$68,0))) -> 1 | AJ94: =IF(ISNUMBER($H94),(1+$H94)^(AJ$5-$I94),INDEX(lookups!$F$69:$BU$80,MATCH($H94,lookups!$C$69:$C$80,0),MATCH(AJ$5,lookups!$F$68:$BU$68,0))/INDEX(lookups!$F$69:$BU$80,MATCH($H94,lookups!$C$69:$C$80,0),MATCH($I94,lookups!$F$68:$BU$68,0))) -> 1 | AK94: =IF(ISNUMBER($H94),(1+$H94)^(AK$5-$I94),INDEX(lookups!$F$69:$BU$80,MATCH($H94,lookups!$C$69:$C$80,0),MATCH(AK$5,lookups!$F$68:$BU$68,0))/INDEX(lookups!$F$69:$BU$80,MATCH($H94,lookups!$C$69:$C$80,0),MATCH($I94,lookups!$F$68:$BU$68,0))) -> 1 | AL94: =IF(ISNUMBER($H94),(1+$H94)^(AL$5-$I94),INDEX(lookups!$F$69:$BU$80,MATCH($H94,lookups!$C$69:$C$80,0),MATCH(AL$5,lookups!$F$68:$BU$68,0))/INDEX(lookups!$F$69:$BU$80,MATCH($H94,lookups!$C$69:$C$80,0),MATCH($I94,lookups!$F$68:$BU$68,0))) -> 1 | AM94: =IF(ISNUMBER($H94),(1+$H94)^(AM$5-$I94),INDEX(lookups!$F$69:$BU$80,MATCH($H94,lookups!$C$69:$C$80,0),MATCH(AM$5,lookups!$F$68:$BU$68,0))/INDEX(lookups!$F$69:$BU$80,MATCH($H94,lookups!$C$69:$C$80,0),MATCH($I94,lookups!$F$68:$BU$68,0))) -> 1 | AN94: =IF(ISNUMBER($H94),(1+$H94)^(AN$5-$I94),INDEX(lookups!$F$69:$BU$80,MATCH($H94,lookups!$C$69:$C$80,0),MATCH(AN$5,lookups!$F$68:$BU$68,0))/INDEX(lookups!$F$69:$BU$80,MATCH($H94,lookups!$C$69:$C$80,0),MATCH($I94,lookups!$F$68:$BU$68,0))) -> 1 | AO94: =IF(ISNUMBER($H94),(1+$H94)^(AO$5-$I94),INDEX(lookups!$F$69:$BU$80,MATCH($H94,lookups!$C$69:$C$80,0),MATCH(AO$5,lookups!$F$68:$BU$68,0))/INDEX(lookups!$F$69:$BU$80,MATCH($H94,lookups!$C$69:$C$80,0),MATCH($I94,lookups!$F$68:$BU$68,0))) -> 1 | AP94: =IF(ISNUMBER($H94),(1+$H94)^(AP$5-$I94),INDEX(lookups!$F$69:$BU$80,MATCH($H94,lookups!$C$69:$C$80,0),MATCH(AP$5,lookups!$F$68:$BU$68,0))/INDEX(lookups!$F$69:$BU$80,MATCH($H94,lookups!$C$69:$C$80,0),MATCH($I94,lookups!$F$68:$BU$68,0))) -> 1 | AQ94: =IF(ISNUMBER($H94),(1+$H94)^(AQ$5-$I94),INDEX(lookups!$F$69:$BU$80,MATCH($H94,lookups!$C$69:$C$80,0),MATCH(AQ$5,lookups!$F$68:$BU$68,0))/INDEX(lookups!$F$69:$BU$80,MATCH($H94,lookups!$C$69:$C$80,0),MATCH($I94,lookups!$F$68:$BU$68,0))) -> 1 | AR94: =IF(ISNUMBER($H94),(1+$H94)^(AR$5-$I94),INDEX(lookups!$F$69:$BU$80,MATCH($H94,lookups!$C$69:$C$80,0),MATCH(AR$5,lookups!$F$68:$BU$68,0))/INDEX(lookups!$F$69:$BU$80,MATCH($H94,lookups!$C$69:$C$80,0),MATCH($I94,lookups!$F$68:$BU$68,0))) -> 1 | AS94: =IF(ISNUMBER($H94),(1+$H94)^(AS$5-$I94),INDEX(lookups!$F$69:$BU$80,MATCH($H94,lookups!$C$69:$C$80,0),MATCH(AS$5,lookups!$F$68:$BU$68,0))/INDEX(lookups!$F$69:$BU$80,MATCH($H94,lookups!$C$69:$C$80,0),MATCH($I94,lookups!$F$68:$BU$68,0))) -> 1 | AT94: =IF(ISNUMBER($H94),(1+$H94)^(AT$5-$I94),INDEX(lookups!$F$69:$BU$80,MATCH($H94,lookups!$C$69:$C$80,0),MATCH(AT$5,lookups!$F$68:$BU$68,0))/INDEX(lookups!$F$69:$BU$80,MATCH($H94,lookups!$C$69:$C$80,0),MATCH($I94,lookups!$F$68:$BU$68,0))) -> 1 | AU94: =IF(ISNUMBER($H94),(1+$H94)^(AU$5-$I94),INDEX(lookups!$F$69:$BU$80,MATCH($H94,lookups!$C$69:$C$80,0),MATCH(AU$5,lookups!$F$68:$BU$68,0))/INDEX(lookups!$F$69:$BU$80,MATCH($H94,lookups!$C$69:$C$80,0),MATCH($I94,lookups!$F$68:$BU$68,0))) -> 1 | AV94: =IF(ISNUMBER($H94),(1+$H94)^(AV$5-$I94),INDEX(lookups!$F$69:$BU$80,MATCH($H94,lookups!$C$69:$C$80,0),MATCH(AV$5,lookups!$F$68:$BU$68,0))/INDEX(lookups!$F$69:$BU$80,MATCH($H94,lookups!$C$69:$C$80,0),MATCH($I94,lookups!$F$68:$BU$68,0))) -> 1 | AW94: =IF(ISNUMBER($H94),(1+$H94)^(AW$5-$I94),INDEX(lookups!$F$69:$BU$80,MATCH($H94,lookups!$C$69:$C$80,0),MATCH(AW$5,lookups!$F$68:$BU$68,0))/INDEX(lookups!$F$69:$BU$80,MATCH($H94,lookups!$C$69:$C$80,0),MATCH($I94,lookups!$F$68:$BU$68,0))) -> 1 | AX94: =IF(ISNUMBER($H94),(1+$H94)^(AX$5-$I94),INDEX(lookups!$F$69:$BU$80,MATCH($H94,lookups!$C$69:$C$80,0),MATCH(AX$5,lookups!$F$68:$BU$68,0))/INDEX(lookups!$F$69:$BU$80,MATCH($H94,lookups!$C$69:$C$80,0),MATCH($I94,lookups!$F$68:$BU$68,0))) -> 1 | AY94: =IF(ISNUMBER($H94),(1+$H94)^(AY$5-$I94),INDEX(lookups!$F$69:$BU$80,MATCH($H94,lookups!$C$69:$C$80,0),MATCH(AY$5,lookups!$F$68:$BU$68,0))/INDEX(lookups!$F$69:$BU$80,MATCH($H94,lookups!$C$69:$C$80,0),MATCH($I94,lookups!$F$68:$BU$68,0))) -> 1 | AZ94: =IF(ISNUMBER($H94),(1+$H94)^(AZ$5-$I94),INDEX(lookups!$F$69:$BU$80,MATCH($H94,lookups!$C$69:$C$80,0),MATCH(AZ$5,lookups!$F$68:$BU$68,0))/INDEX(lookups!$F$69:$BU$80,MATCH($H94,lookups!$C$69:$C$80,0),MATCH($I94,lookups!$F$68:$BU$68,0))) -> 1 | BA94: =IF(ISNUMBER($H94),(1+$H94)^(BA$5-$I94),INDEX(lookups!$F$69:$BU$80,MATCH($H94,lookups!$C$69:$C$80,0),MATCH(BA$5,lookups!$F$68:$BU$68,0))/INDEX(lookups!$F$69:$BU$80,MATCH($H94,lookups!$C$69:$C$80,0),MATCH($I94,lookups!$F$68:$BU$68,0))) -> 1 | BB94: =IF(ISNUMBER($H94),(1+$H94)^(BB$5-$I94),INDEX(lookups!$F$69:$BU$80,MATCH($H94,lookups!$C$69:$C$80,0),MATCH(BB$5,lookups!$F$68:$BU$68,0))/INDEX(lookups!$F$69:$BU$80,MATCH($H94,lookups!$C$69:$C$80,0),MATCH($I94,lookups!$F$68:$BU$68,0))) -> 1 | BC94: =IF(ISNUMBER($H94),(1+$H94)^(BC$5-$I94),INDEX(lookups!$F$69:$BU$80,MATCH($H94,lookups!$C$69:$C$80,0),MATCH(BC$5,lookups!$F$68:$BU$68,0))/INDEX(lookups!$F$69:$BU$80,MATCH($H94,lookups!$C$69:$C$80,0),MATCH($I94,lookups!$F$68:$BU$68,0))) -> 1 | BD94: =IF(ISNUMBER($H94),(1+$H94)^(BD$5-$I94),INDEX(lookups!$F$69:$BU$80,MATCH($H94,lookups!$C$69:$C$80,0),MATCH(BD$5,lookups!$F$68:$BU$68,0))/INDEX(lookups!$F$69:$BU$80,MATCH($H94,lookups!$C$69:$C$80,0),MATCH($I94,lookups!$F$68:$BU$68,0))) -> 1 | BE94: =IF(ISNUMBER($H94),(1+$H94)^(BE$5-$I94),INDEX(lookups!$F$69:$BU$80,MATCH($H94,lookups!$C$69:$C$80,0),MATCH(BE$5,lookups!$F$68:$BU$68,0))/INDEX(lookups!$F$69:$BU$80,MATCH($H94,lookups!$C$69:$C$80,0),MATCH($I94,lookups!$F$68:$BU$68,0))) -> 1 | BF94: =IF(ISNUMBER($H94),(1+$H94)^(BF$5-$I94),INDEX(lookups!$F$69:$BU$80,MATCH($H94,lookups!$C$69:$C$80,0),MATCH(BF$5,lookups!$F$68:$BU$68,0))/INDEX(lookups!$F$69:$BU$80,MATCH($H94,lookups!$C$69:$C$80,0),MATCH($I94,lookups!$F$68:$BU$68,0))) -> 1 | BG94: =IF(ISNUMBER($H94),(1+$H94)^(BG$5-$I94),INDEX(lookups!$F$69:$BU$80,MATCH($H94,lookups!$C$69:$C$80,0),MATCH(BG$5,lookups!$F$68:$BU$68,0))/INDEX(lookups!$F$69:$BU$80,MATCH($H94,lookups!$C$69:$C$80,0),MATCH($I94,lookups!$F$68:$BU$68,0))) -> 1 | BH94: =IF(ISNUMBER($H94),(1+$H94)^(BH$5-$I94),INDEX(lookups!$F$69:$BU$80,MATCH($H94,lookups!$C$69:$C$80,0),MATCH(BH$5,lookups!$F$68:$BU$68,0))/INDEX(lookups!$F$69:$BU$80,MATCH($H94,lookups!$C$69:$C$80,0),MATCH($I94,lookups!$F$68:$BU$68,0))) -> 1 | BI94: =IF(ISNUMBER($H94),(1+$H94)^(BI$5-$I94),INDEX(lookups!$F$69:$BU$80,MATCH($H94,lookups!$C$69:$C$80,0),MATCH(BI$5,lookups!$F$68:$BU$68,0))/INDEX(lookups!$F$69:$BU$80,MATCH($H94,lookups!$C$69:$C$80,0),MATCH($I94,lookups!$F$68:$BU$68,0))) -> 1 | BJ94: =IF(ISNUMBER($H94),(1+$H94)^(BJ$5-$I94),INDEX(lookups!$F$69:$BU$80,MATCH($H94,lookups!$C$69:$C$80,0),MATCH(BJ$5,lookups!$F$68:$BU$68,0))/INDEX(lookups!$F$69:$BU$80,MATCH($H94,lookups!$C$69:$C$80,0),MATCH($I94,lookups!$F$68:$BU$68,0))) -> 1 | BK94: =IF(ISNUMBER($H94),(1+$H94)^(BK$5-$I94),INDEX(lookups!$F$69:$BU$80,MATCH($H94,lookups!$C$69:$C$80,0),MATCH(BK$5,lookups!$F$68:$BU$68,0))/INDEX(lookups!$F$69:$BU$80,MATCH($H94,lookups!$C$69:$C$80,0),MATCH($I94,lookups!$F$68:$BU$68,0))) -> 1 | BL94: =IF(ISNUMBER($H94),(1+$H94)^(BL$5-$I94),INDEX(lookups!$F$69:$BU$80,MATCH($H94,lookups!$C$69:$C$80,0),MATCH(BL$5,lookups!$F$68:$BU$68,0))/INDEX(lookups!$F$69:$BU$80,MATCH($H94,lookups!$C$69:$C$80,0),MATCH($I94,lookups!$F$68:$BU$68,0))) -> 1 | BM94: =IF(ISNUMBER($H94),(1+$H94)^(BM$5-$I94),INDEX(lookups!$F$69:$BU$80,MATCH($H94,lookups!$C$69:$C$80,0),MATCH(BM$5,lookups!$F$68:$BU$68,0))/INDEX(lookups!$F$69:$BU$80,MATCH($H94,lookups!$C$69:$C$80,0),MATCH($I94,lookups!$F$68:$BU$68,0))) -> 1
C95: 8 | D95: item 8 | E95: Capital | F95: 4 | H95: =Input!L15 -> 0 | I95: =Assumptions!$D$13 -> 2017 | O95: =IF(ISNUMBER($H95),(1+$H95)^(O$5-$I95),INDEX(lookups!$F$69:$BU$80,MATCH($H95,lookups!$C$69:$C$80,0),MATCH(O$5,lookups!$F$68:$BU$68,0))/INDEX(lookups!$F$69:$BU$80,MATCH($H95,lookups!$C$69:$C$80,0),MATCH($I95,lookups!$F$68:$BU$68,0))) -> 1 | P95: =IF(ISNUMBER($H95),(1+$H95)^(P$5-$I95),INDEX(lookups!$F$69:$BU$80,MATCH($H95,lookups!$C$69:$C$80,0),MATCH(P$5,lookups!$F$68:$BU$68,0))/INDEX(lookups!$F$69:$BU$80,MATCH($H95,lookups!$C$69:$C$80,0),MATCH($I95,lookups!$F$68:$BU$68,0))) -> 1 | Q95: =IF(ISNUMBER($H95),(1+$H95)^(Q$5-$I95),INDEX(lookups!$F$69:$BU$80,MATCH($H95,lookups!$C$69:$C$80,0),MATCH(Q$5,lookups!$F$68:$BU$68,0))/INDEX(lookups!$F$69:$BU$80,MATCH($H95,lookups!$C$69:$C$80,0),MATCH($I95,lookups!$F$68:$BU$68,0))) -> 1 | R95: =IF(ISNUMBER($H95),(1+$H95)^(R$5-$I95),INDEX(lookups!$F$69:$BU$80,MATCH($H95,lookups!$C$69:$C$80,0),MATCH(R$5,lookups!$F$68:$BU$68,0))/INDEX(lookups!$F$69:$BU$80,MATCH($H95,lookups!$C$69:$C$80,0),MATCH($I95,lookups!$F$68:$BU$68,0))) -> 1 | S95: =IF(ISNUMBER($H95),(1+$H95)^(S$5-$I95),INDEX(lookups!$F$69:$BU$80,MATCH($H95,lookups!$C$69:$C$80,0),MATCH(S$5,lookups!$F$68:$BU$68,0))/INDEX(lookups!$F$69:$BU$80,MATCH($H95,lookups!$C$69:$C$80,0),MATCH($I95,lookups!$F$68:$BU$68,0))) -> 1 | T95: =IF(ISNUMBER($H95),(1+$H95)^(T$5-$I95),INDEX(lookups!$F$69:$BU$80,MATCH($H95,lookups!$C$69:$C$80,0),MATCH(T$5,lookups!$F$68:$BU$68,0))/INDEX(lookups!$F$69:$BU$80,MATCH($H95,lookups!$C$69:$C$80,0),MATCH($I95,lookups!$F$68:$BU$68,0))) -> 1 | U95: =IF(ISNUMBER($H95),(1+$H95)^(U$5-$I95),INDEX(lookups!$F$69:$BU$80,MATCH($H95,lookups!$C$69:$C$80,0),MATCH(U$5,lookups!$F$68:$BU$68,0))/INDEX(lookups!$F$69:$BU$80,MATCH($H95,lookups!$C$69:$C$80,0),MATCH($I95,lookups!$F$68:$BU$68,0))) -> 1 | V95: =IF(ISNUMBER($H95),(1+$H95)^(V$5-$I95),INDEX(lookups!$F$69:$BU$80,MATCH($H95,lookups!$C$69:$C$80,0),MATCH(V$5,lookups!$F$68:$BU$68,0))/INDEX(lookups!$F$69:$BU$80,MATCH($H95,lookups!$C$69:$C$80,0),MATCH($I95,lookups!$F$68:$BU$68,0))) -> 1 | W95: =IF(ISNUMBER($H95),(1+$H95)^(W$5-$I95),INDEX(lookups!$F$69:$BU$80,MATCH($H95,lookups!$C$69:$C$80,0),MATCH(W$5,lookups!$F$68:$BU$68,0))/INDEX(lookups!$F$69:$BU$80,MATCH($H95,lookups!$C$69:$C$80,0),MATCH($I95,lookups!$F$68:$BU$68,0))) -> 1 | X95: =IF(ISNUMBER($H95),(1+$H95)^(X$5-$I95),INDEX(lookups!$F$69:$BU$80,MATCH($H95,lookups!$C$69:$C$80,0),MATCH(X$5,lookups!$F$68:$BU$68,0))/INDEX(lookups!$F$69:$BU$80,MATCH($H95,lookups!$C$69:$C$80,0),MATCH($I95,lookups!$F$68:$BU$68,0))) -> 1 | Y95: =IF(ISNUMBER($H95),(1+$H95)^(Y$5-$I95),INDEX(lookups!$F$69:$BU$80,MATCH($H95,lookups!$C$69:$C$80,0),MATCH(Y$5,lookups!$F$68:$BU$68,0))/INDEX(lookups!$F$69:$BU$80,MATCH($H95,lookups!$C$69:$C$80,0),MATCH($I95,lookups!$F$68:$BU$68,0))) -> 1 | Z95: =IF(ISNUMBER($H95),(1+$H95)^(Z$5-$I95),INDEX(lookups!$F$69:$BU$80,MATCH($H95,lookups!$C$69:$C$80,0),MATCH(Z$5,lookups!$F$68:$BU$68,0))/INDEX(lookups!$F$69:$BU$80,MATCH($H95,lookups!$C$69:$C$80,0),MATCH($I95,lookups!$F$68:$BU$68,0))) -> 1 | AA95: =IF(ISNUMBER($H95),(1+$H95)^(AA$5-$I95),INDEX(lookups!$F$69:$BU$80,MATCH($H95,lookups!$C$69:$C$80,0),MATCH(AA$5,lookups!$F$68:$BU$68,0))/INDEX(lookups!$F$69:$BU$80,MATCH($H95,lookups!$C$69:$C$80,0),MATCH($I95,lookups!$F$68:$BU$68,0))) -> 1 | AB95: =IF(ISNUMBER($H95),(1+$H95)^(AB$5-$I95),INDEX(lookups!$F$69:$BU$80,MATCH($H95,lookups!$C$69:$C$80,0),MATCH(AB$5,lookups!$F$68:$BU$68,0))/INDEX(lookups!$F$69:$BU$80,MATCH($H95,lookups!$C$69:$C$80,0),MATCH($I95,lookups!$F$68:$BU$68,0))) -> 1 | AC95: =IF(ISNUMBER($H95),(1+$H95)^(AC$5-$I95),INDEX(lookups!$F$69:$BU$80,MATCH($H95,lookups!$C$69:$C$80,0),MATCH(AC$5,lookups!$F$68:$BU$68,0))/INDEX(lookups!$F$69:$BU$80,MATCH($H95,lookups!$C$69:$C$80,0),MATCH($I95,lookups!$F$68:$BU$68,0))) -> 1 | AD95: =IF(ISNUMBER($H95),(1+$H95)^(AD$5-$I95),INDEX(lookups!$F$69:$BU$80,MATCH($H95,lookups!$C$69:$C$80,0),MATCH(AD$5,lookups!$F$68:$BU$68,0))/INDEX(lookups!$F$69:$BU$80,MATCH($H95,lookups!$C$69:$C$80,0),MATCH($I95,lookups!$F$68:$BU$68,0))) -> 1 | AE95: =IF(ISNUMBER($H95),(1+$H95)^(AE$5-$I95),INDEX(lookups!$F$69:$BU$80,MATCH($H95,lookups!$C$69:$C$80,0),MATCH(AE$5,lookups!$F$68:$BU$68,0))/INDEX(lookups!$F$69:$BU$80,MATCH($H95,lookups!$C$69:$C$80,0),MATCH($I95,lookups!$F$68:$BU$68,0))) -> 1 | AF95: =IF(ISNUMBER($H95),(1+$H95)^(AF$5-$I95),INDEX(lookups!$F$69:$BU$80,MATCH($H95,lookups!$C$69:$C$80,0),MATCH(AF$5,lookups!$F$68:$BU$68,0))/INDEX(lookups!$F$69:$BU$80,MATCH($H95,lookups!$C$69:$C$80,0),MATCH($I95,lookups!$F$68:$BU$68,0))) -> 1 | AG95: =IF(ISNUMBER($H95),(1+$H95)^(AG$5-$I95),INDEX(lookups!$F$69:$BU$80,MATCH($H95,lookups!$C$69:$C$80,0),MATCH(AG$5,lookups!$F$68:$BU$68,0))/INDEX(lookups!$F$69:$BU$80,MATCH($H95,lookups!$C$69:$C$80,0),MATCH($I95,lookups!$F$68:$BU$68,0))) -> 1 | AH95: =IF(ISNUMBER($H95),(1+$H95)^(AH$5-$I95),INDEX(lookups!$F$69:$BU$80,MATCH($H95,lookups!$C$69:$C$80,0),MATCH(AH$5,lookups!$F$68:$BU$68,0))/INDEX(lookups!$F$69:$BU$80,MATCH($H95,lookups!$C$69:$C$80,0),MATCH($I95,lookups!$F$68:$BU$68,0))) -> 1 | AI95: =IF(ISNUMBER($H95),(1+$H95)^(AI$5-$I95),INDEX(lookups!$F$69:$BU$80,MATCH($H95,lookups!$C$69:$C$80,0),MATCH(AI$5,lookups!$F$68:$BU$68,0))/INDEX(lookups!$F$69:$BU$80,MATCH($H95,lookups!$C$69:$C$80,0),MATCH($I95,lookups!$F$68:$BU$68,0))) -> 1 | AJ95: =IF(ISNUMBER($H95),(1+$H95)^(AJ$5-$I95),INDEX(lookups!$F$69:$BU$80,MATCH($H95,lookups!$C$69:$C$80,0),MATCH(AJ$5,lookups!$F$68:$BU$68,0))/INDEX(lookups!$F$69:$BU$80,MATCH($H95,lookups!$C$69:$C$80,0),MATCH($I95,lookups!$F$68:$BU$68,0))) -> 1 | AK95: =IF(ISNUMBER($H95),(1+$H95)^(AK$5-$I95),INDEX(lookups!$F$69:$BU$80,MATCH($H95,lookups!$C$69:$C$80,0),MATCH(AK$5,lookups!$F$68:$BU$68,0))/INDEX(lookups!$F$69:$BU$80,MATCH($H95,lookups!$C$69:$C$80,0),MATCH($I95,lookups!$F$68:$BU$68,0))) -> 1 | AL95: =IF(ISNUMBER($H95),(1+$H95)^(AL$5-$I95),INDEX(lookups!$F$69:$BU$80,MATCH($H95,lookups!$C$69:$C$80,0),MATCH(AL$5,lookups!$F$68:$BU$68,0))/INDEX(lookups!$F$69:$BU$80,MATCH($H95,lookups!$C$69:$C$80,0),MATCH($I95,lookups!$F$68:$BU$68,0))) -> 1 | AM95: =IF(ISNUMBER($H95),(1+$H95)^(AM$5-$I95),INDEX(lookups!$F$69:$BU$80,MATCH($H95,lookups!$C$69:$C$80,0),MATCH(AM$5,lookups!$F$68:$BU$68,0))/INDEX(lookups!$F$69:$BU$80,MATCH($H95,lookups!$C$69:$C$80,0),MATCH($I95,lookups!$F$68:$BU$68,0))) -> 1 | AN95: =IF(ISNUMBER($H95),(1+$H95)^(AN$5-$I95),INDEX(lookups!$F$69:$BU$80,MATCH($H95,lookups!$C$69:$C$80,0),MATCH(AN$5,lookups!$F$68:$BU$68,0))/INDEX(lookups!$F$69:$BU$80,MATCH($H95,lookups!$C$69:$C$80,0),MATCH($I95,lookups!$F$68:$BU$68,0))) -> 1 | AO95: =IF(ISNUMBER($H95),(1+$H95)^(AO$5-$I95),INDEX(lookups!$F$69:$BU$80,MATCH($H95,lookups!$C$69:$C$80,0),MATCH(AO$5,lookups!$F$68:$BU$68,0))/INDEX(lookups!$F$69:$BU$80,MATCH($H95,lookups!$C$69:$C$80,0),MATCH($I95,lookups!$F$68:$BU$68,0))) -> 1 | AP95: =IF(ISNUMBER($H95),(1+$H95)^(AP$5-$I95),INDEX(lookups!$F$69:$BU$80,MATCH($H95,lookups!$C$69:$C$80,0),MATCH(AP$5,lookups!$F$68:$BU$68,0))/INDEX(lookups!$F$69:$BU$80,MATCH($H95,lookups!$C$69:$C$80,0),MATCH($I95,lookups!$F$68:$BU$68,0))) -> 1 | AQ95: =IF(ISNUMBER($H95),(1+$H95)^(AQ$5-$I95),INDEX(lookups!$F$69:$BU$80,MATCH($H95,lookups!$C$69:$C$80,0),MATCH(AQ$5,lookups!$F$68:$BU$68,0))/INDEX(lookups!$F$69:$BU$80,MATCH($H95,lookups!$C$69:$C$80,0),MATCH($I95,lookups!$F$68:$BU$68,0))) -> 1 | AR95: =IF(ISNUMBER($H95),(1+$H95)^(AR$5-$I95),INDEX(lookups!$F$69:$BU$80,MATCH($H95,lookups!$C$69:$C$80,0),MATCH(AR$5,lookups!$F$68:$BU$68,0))/INDEX(lookups!$F$69:$BU$80,MATCH($H95,lookups!$C$69:$C$80,0),MATCH($I95,lookups!$F$68:$BU$68,0))) -> 1 | AS95: =IF(ISNUMBER($H95),(1+$H95)^(AS$5-$I95),INDEX(lookups!$F$69:$BU$80,MATCH($H95,lookups!$C$69:$C$80,0),MATCH(AS$5,lookups!$F$68:$BU$68,0))/INDEX(lookups!$F$69:$BU$80,MATCH($H95,lookups!$C$69:$C$80,0),MATCH($I95,lookups!$F$68:$BU$68,0))) -> 1 | AT95: =IF(ISNUMBER($H95),(1+$H95)^(AT$5-$I95),INDEX(lookups!$F$69:$BU$80,MATCH($H95,lookups!$C$69:$C$80,0),MATCH(AT$5,lookups!$F$68:$BU$68,0))/INDEX(lookups!$F$69:$BU$80,MATCH($H95,lookups!$C$69:$C$80,0),MATCH($I95,lookups!$F$68:$BU$68,0))) -> 1 | AU95: =IF(ISNUMBER($H95),(1+$H95)^(AU$5-$I95),INDEX(lookups!$F$69:$BU$80,MATCH($H95,lookups!$C$69:$C$80,0),MATCH(AU$5,lookups!$F$68:$BU$68,0))/INDEX(lookups!$F$69:$BU$80,MATCH($H95,lookups!$C$69:$C$80,0),MATCH($I95,lookups!$F$68:$BU$68,0))) -> 1 | AV95: =IF(ISNUMBER($H95),(1+$H95)^(AV$5-$I95),INDEX(lookups!$F$69:$BU$80,MATCH($H95,lookups!$C$69:$C$80,0),MATCH(AV$5,lookups!$F$68:$BU$68,0))/INDEX(lookups!$F$69:$BU$80,MATCH($H95,lookups!$C$69:$C$80,0),MATCH($I95,lookups!$F$68:$BU$68,0))) -> 1 | AW95: =IF(ISNUMBER($H95),(1+$H95)^(AW$5-$I95),INDEX(lookups!$F$69:$BU$80,MATCH($H95,lookups!$C$69:$C$80,0),MATCH(AW$5,lookups!$F$68:$BU$68,0))/INDEX(lookups!$F$69:$BU$80,MATCH($H95,lookups!$C$69:$C$80,0),MATCH($I95,lookups!$F$68:$BU$68,0))) -> 1 | AX95: =IF(ISNUMBER($H95),(1+$H95)^(AX$5-$I95),INDEX(lookups!$F$69:$BU$80,MATCH($H95,lookups!$C$69:$C$80,0),MATCH(AX$5,lookups!$F$68:$BU$68,0))/INDEX(lookups!$F$69:$BU$80,MATCH($H95,lookups!$C$69:$C$80,0),MATCH($I95,lookups!$F$68:$BU$68,0))) -> 1 | AY95: =IF(ISNUMBER($H95),(1+$H95)^(AY$5-$I95),INDEX(lookups!$F$69:$BU$80,MATCH($H95,lookups!$C$69:$C$80,0),MATCH(AY$5,lookups!$F$68:$BU$68,0))/INDEX(lookups!$F$69:$BU$80,MATCH($H95,lookups!$C$69:$C$80,0),MATCH($I95,lookups!$F$68:$BU$68,0))) -> 1 | AZ95: =IF(ISNUMBER($H95),(1+$H95)^(AZ$5-$I95),INDEX(lookups!$F$69:$BU$80,MATCH($H95,lookups!$C$69:$C$80,0),MATCH(AZ$5,lookups!$F$68:$BU$68,0))/INDEX(lookups!$F$69:$BU$80,MATCH($H95,lookups!$C$69:$C$80,0),MATCH($I95,lookups!$F$68:$BU$68,0))) -> 1 | BA95: =IF(ISNUMBER($H95),(1+$H95)^(BA$5-$I95),INDEX(lookups!$F$69:$BU$80,MATCH($H95,lookups!$C$69:$C$80,0),MATCH(BA$5,lookups!$F$68:$BU$68,0))/INDEX(lookups!$F$69:$BU$80,MATCH($H95,lookups!$C$69:$C$80,0),MATCH($I95,lookups!$F$68:$BU$68,0))) -> 1 | BB95: =IF(ISNUMBER($H95),(1+$H95)^(BB$5-$I95),INDEX(lookups!$F$69:$BU$80,MATCH($H95,lookups!$C$69:$C$80,0),MATCH(BB$5,lookups!$F$68:$BU$68,0))/INDEX(lookups!$F$69:$BU$80,MATCH($H95,lookups!$C$69:$C$80,0),MATCH($I95,lookups!$F$68:$BU$68,0))) -> 1 | BC95: =IF(ISNUMBER($H95),(1+$H95)^(BC$5-$I95),INDEX(lookups!$F$69:$BU$80,MATCH($H95,lookups!$C$69:$C$80,0),MATCH(BC$5,lookups!$F$68:$BU$68,0))/INDEX(lookups!$F$69:$BU$80,MATCH($H95,lookups!$C$69:$C$80,0),MATCH($I95,lookups!$F$68:$BU$68,0))) -> 1 | BD95: =IF(ISNUMBER($H95),(1+$H95)^(BD$5-$I95),INDEX(lookups!$F$69:$BU$80,MATCH($H95,lookups!$C$69:$C$80,0),MATCH(BD$5,lookups!$F$68:$BU$68,0))/INDEX(lookups!$F$69:$BU$80,MATCH($H95,lookups!$C$69:$C$80,0),MATCH($I95,lookups!$F$68:$BU$68,0))) -> 1 | BE95: =IF(ISNUMBER($H95),(1+$H95)^(BE$5-$I95),INDEX(lookups!$F$69:$BU$80,MATCH($H95,lookups!$C$69:$C$80,0),MATCH(BE$5,lookups!$F$68:$BU$68,0))/INDEX(lookups!$F$69:$BU$80,MATCH($H95,lookups!$C$69:$C$80,0),MATCH($I95,lookups!$F$68:$BU$68,0))) -> 1 | BF95: =IF(ISNUMBER($H95),(1+$H95)^(BF$5-$I95),INDEX(lookups!$F$69:$BU$80,MATCH($H95,lookups!$C$69:$C$80,0),MATCH(BF$5,lookups!$F$68:$BU$68,0))/INDEX(lookups!$F$69:$BU$80,MATCH($H95,lookups!$C$69:$C$80,0),MATCH($I95,lookups!$F$68:$BU$68,0))) -> 1 | BG95: =IF(ISNUMBER($H95),(1+$H95)^(BG$5-$I95),INDEX(lookups!$F$69:$BU$80,MATCH($H95,lookups!$C$69:$C$80,0),MATCH(BG$5,lookups!$F$68:$BU$68,0))/INDEX(lookups!$F$69:$BU$80,MATCH($H95,lookups!$C$69:$C$80,0),MATCH($I95,lookups!$F$68:$BU$68,0))) -> 1 | BH95: =IF(ISNUMBER($H95),(1+$H95)^(BH$5-$I95),INDEX(lookups!$F$69:$BU$80,MATCH($H95,lookups!$C$69:$C$80,0),MATCH(BH$5,lookups!$F$68:$BU$68,0))/INDEX(lookups!$F$69:$BU$80,MATCH($H95,lookups!$C$69:$C$80,0),MATCH($I95,lookups!$F$68:$BU$68,0))) -> 1 | BI95: =IF(ISNUMBER($H95),(1+$H95)^(BI$5-$I95),INDEX(lookups!$F$69:$BU$80,MATCH($H95,lookups!$C$69:$C$80,0),MATCH(BI$5,lookups!$F$68:$BU$68,0))/INDEX(lookups!$F$69:$BU$80,MATCH($H95,lookups!$C$69:$C$80,0),MATCH($I95,lookups!$F$68:$BU$68,0))) -> 1 | BJ95: =IF(ISNUMBER($H95),(1+$H95)^(BJ$5-$I95),INDEX(lookups!$F$69:$BU$80,MATCH($H95,lookups!$C$69:$C$80,0),MATCH(BJ$5,lookups!$F$68:$BU$68,0))/INDEX(lookups!$F$69:$BU$80,MATCH($H95,lookups!$C$69:$C$80,0),MATCH($I95,lookups!$F$68:$BU$68,0))) -> 1 | BK95: =IF(ISNUMBER($H95),(1+$H95)^(BK$5-$I95),INDEX(lookups!$F$69:$BU$80,MATCH($H95,lookups!$C$69:$C$80,0),MATCH(BK$5,lookups!$F$68:$BU$68,0))/INDEX(lookups!$F$69:$BU$80,MATCH($H95,lookups!$C$69:$C$80,0),MATCH($I95,lookups!$F$68:$BU$68,0))) -> 1 | BL95: =IF(ISNUMBER($H95),(1+$H95)^(BL$5-$I95),INDEX(lookups!$F$69:$BU$80,MATCH($H95,lookups!$C$69:$C$80,0),MATCH(BL$5,lookups!$F$68:$BU$68,0))/INDEX(lookups!$F$69:$BU$80,MATCH($H95,lookups!$C$69:$C$80,0),MATCH($I95,lookups!$F$68:$BU$68,0))) -> 1 | BM95: =IF(ISNUMBER($H95),(1+$H95)^(BM$5-$I95),INDEX(lookups!$F$69:$BU$80,MATCH($H95,lookups!$C$69:$C$80,0),MATCH(BM$5,lookups!$F$68:$BU$68,0))/INDEX(lookups!$F$69:$BU$80,MATCH($H95,lookups!$C$69:$C$80,0),MATCH($I95,lookups!$F$68:$BU$68,0))) -> 1
C96: 9 | D96: item 9 | E96: Capital | F96: 4 | H96: =Input!L16 -> 0 | I96: =Assumptions!$D$13 -> 2017 | O96: =IF(ISNUMBER($H96),(1+$H96)^(O$5-$I96),INDEX(lookups!$F$69:$BU$80,MATCH($H96,lookups!$C$69:$C$80,0),MATCH(O$5,lookups!$F$68:$BU$68,0))/INDEX(lookups!$F$69:$BU$80,MATCH($H96,lookups!$C$69:$C$80,0),MATCH($I96,lookups!$F$68:$BU$68,0))) -> 1 | P96: =IF(ISNUMBER($H96),(1+$H96)^(P$5-$I96),INDEX(lookups!$F$69:$BU$80,MATCH($H96,lookups!$C$69:$C$80,0),MATCH(P$5,lookups!$F$68:$BU$68,0))/INDEX(lookups!$F$69:$BU$80,MATCH($H96,lookups!$C$69:$C$80,0),MATCH($I96,lookups!$F$68:$BU$68,0))) -> 1 | Q96: =IF(ISNUMBER($H96),(1+$H96)^(Q$5-$I96),INDEX(lookups!$F$69:$BU$80,MATCH($H96,lookups!$C$69:$C$80,0),MATCH(Q$5,lookups!$F$68:$BU$68,0))/INDEX(lookups!$F$69:$BU$80,MATCH($H96,lookups!$C$69:$C$80,0),MATCH($I96,lookups!$F$68:$BU$68,0))) -> 1 | R96: =IF(ISNUMBER($H96),(1+$H96)^(R$5-$I96),INDEX(lookups!$F$69:$BU$80,MATCH($H96,lookups!$C$69:$C$80,0),MATCH(R$5,lookups!$F$68:$BU$68,0))/INDEX(lookups!$F$69:$BU$80,MATCH($H96,lookups!$C$69:$C$80,0),MATCH($I96,lookups!$F$68:$BU$68,0))) -> 1 | S96: =IF(ISNUMBER($H96),(1+$H96)^(S$5-$I96),INDEX(lookups!$F$69:$BU$80,MATCH($H96,lookups!$C$69:$C$80,0),MATCH(S$5,lookups!$F$68:$BU$68,0))/INDEX(lookups!$F$69:$BU$80,MATCH($H96,lookups!$C$69:$C$80,0),MATCH($I96,lookups!$F$68:$BU$68,0))) -> 1 | T96: =IF(ISNUMBER($H96),(1+$H96)^(T$5-$I96),INDEX(lookups!$F$69:$BU$80,MATCH($H96,lookups!$C$69:$C$80,0),MATCH(T$5,lookups!$F$68:$BU$68,0))/INDEX(lookups!$F$69:$BU$80,MATCH($H96,lookups!$C$69:$C$80,0),MATCH($I96,lookups!$F$68:$BU$68,0))) -> 1 | U96: =IF(ISNUMBER($H96),(1+$H96)^(U$5-$I96),INDEX(lookups!$F$69:$BU$80,MATCH($H96,lookups!$C$69:$C$80,0),MATCH(U$5,lookups!$F$68:$BU$68,0))/INDEX(lookups!$F$69:$BU$80,MATCH($H96,lookups!$C$69:$C$80,0),MATCH($I96,lookups!$F$68:$BU$68,0))) -> 1 | V96: =IF(ISNUMBER($H96),(1+$H96)^(V$5-$I96),INDEX(lookups!$F$69:$BU$80,MATCH($H96,lookups!$C$69:$C$80,0),MATCH(V$5,lookups!$F$68:$BU$68,0))/INDEX(lookups!$F$69:$BU$80,MATCH($H96,lookups!$C$69:$C$80,0),MATCH($I96,lookups!$F$68:$BU$68,0))) -> 1 | W96: =IF(ISNUMBER($H96),(1+$H96)^(W$5-$I96),INDEX(lookups!$F$69:$BU$80,MATCH($H96,lookups!$C$69:$C$80,0),MATCH(W$5,lookups!$F$68:$BU$68,0))/INDEX(lookups!$F$69:$BU$80,MATCH($H96,lookups!$C$69:$C$80,0),MATCH($I96,lookups!$F$68:$BU$68,0))) -> 1 | X96: =IF(ISNUMBER($H96),(1+$H96)^(X$5-$I96),INDEX(lookups!$F$69:$BU$80,MATCH($H96,lookups!$C$69:$C$80,0),MATCH(X$5,lookups!$F$68:$BU$68,0))/INDEX(lookups!$F$69:$BU$80,MATCH($H96,lookups!$C$69:$C$80,0),MATCH($I96,lookups!$F$68:$BU$68,0))) -> 1 | Y96: =IF(ISNUMBER($H96),(1+$H96)^(Y$5-$I96),INDEX(lookups!$F$69:$BU$80,MATCH($H96,lookups!$C$69:$C$80,0),MATCH(Y$5,lookups!$F$68:$BU$68,0))/INDEX(lookups!$F$69:$BU$80,MATCH($H96,lookups!$C$69:$C$80,0),MATCH($I96,lookups!$F$68:$BU$68,0))) -> 1 | Z96: =IF(ISNUMBER($H96),(1+$H96)^(Z$5-$I96),INDEX(lookups!$F$69:$BU$80,MATCH($H96,lookups!$C$69:$C$80,0),MATCH(Z$5,lookups!$F$68:$BU$68,0))/INDEX(lookups!$F$69:$BU$80,MATCH($H96,lookups!$C$69:$C$80,0),MATCH($I96,lookups!$F$68:$BU$68,0))) -> 1 | AA96: =IF(ISNUMBER($H96),(1+$H96)^(AA$5-$I96),INDEX(lookups!$F$69:$BU$80,MATCH($H96,lookups!$C$69:$C$80,0),MATCH(AA$5,lookups!$F$68:$BU$68,0))/INDEX(lookups!$F$69:$BU$80,MATCH($H96,lookups!$C$69:$C$80,0),MATCH($I96,lookups!$F$68:$BU$68,0))) -> 1 | AB96: =IF(ISNUMBER($H96),(1+$H96)^(AB$5-$I96),INDEX(lookups!$F$69:$BU$80,MATCH($H96,lookups!$C$69:$C$80,0),MATCH(AB$5,lookups!$F$68:$BU$68,0))/INDEX(lookups!$F$69:$BU$80,MATCH($H96,lookups!$C$69:$C$80,0),MATCH($I96,lookups!$F$68:$BU$68,0))) -> 1 | AC96: =IF(ISNUMBER($H96),(1+$H96)^(AC$5-$I96),INDEX(lookups!$F$69:$BU$80,MATCH($H96,lookups!$C$69:$C$80,0),MATCH(AC$5,lookups!$F$68:$BU$68,0))/INDEX(lookups!$F$69:$BU$80,MATCH($H96,lookups!$C$69:$C$80,0),MATCH($I96,lookups!$F$68:$BU$68,0))) -> 1 | AD96: =IF(ISNUMBER($H96),(1+$H96)^(AD$5-$I96),INDEX(lookups!$F$69:$BU$80,MATCH($H96,lookups!$C$69:$C$80,0),MATCH(AD$5,lookups!$F$68:$BU$68,0))/INDEX(lookups!$F$69:$BU$80,MATCH($H96,lookups!$C$69:$C$80,0),MATCH($I96,lookups!$F$68:$BU$68,0))) -> 1 | AE96: =IF(ISNUMBER($H96),(1+$H96)^(AE$5-$I96),INDEX(lookups!$F$69:$BU$80,MATCH($H96,lookups!$C$69:$C$80,0),MATCH(AE$5,lookups!$F$68:$BU$68,0))/INDEX(lookups!$F$69:$BU$80,MATCH($H96,lookups!$C$69:$C$80,0),MATCH($I96,lookups!$F$68:$BU$68,0))) -> 1 | AF96: =IF(ISNUMBER($H96),(1+$H96)^(AF$5-$I96),INDEX(lookups!$F$69:$BU$80,MATCH($H96,lookups!$C$69:$C$80,0),MATCH(AF$5,lookups!$F$68:$BU$68,0))/INDEX(lookups!$F$69:$BU$80,MATCH($H96,lookups!$C$69:$C$80,0),MATCH($I96,lookups!$F$68:$BU$68,0))) -> 1 | AG96: =IF(ISNUMBER($H96),(1+$H96)^(AG$5-$I96),INDEX(lookups!$F$69:$BU$80,MATCH($H96,lookups!$C$69:$C$80,0),MATCH(AG$5,lookups!$F$68:$BU$68,0))/INDEX(lookups!$F$69:$BU$80,MATCH($H96,lookups!$C$69:$C$80,0),MATCH($I96,lookups!$F$68:$BU$68,0))) -> 1 | AH96: =IF(ISNUMBER($H96),(1+$H96)^(AH$5-$I96),INDEX(lookups!$F$69:$BU$80,MATCH($H96,lookups!$C$69:$C$80,0),MATCH(AH$5,lookups!$F$68:$BU$68,0))/INDEX(lookups!$F$69:$BU$80,MATCH($H96,lookups!$C$69:$C$80,0),MATCH($I96,lookups!$F$68:$BU$68,0))) -> 1 | AI96: =IF(ISNUMBER($H96),(1+$H96)^(AI$5-$I96),INDEX(lookups!$F$69:$BU$80,MATCH($H96,lookups!$C$69:$C$80,0),MATCH(AI$5,lookups!$F$68:$BU$68,0))/INDEX(lookups!$F$69:$BU$80,MATCH($H96,lookups!$C$69:$C$80,0),MATCH($I96,lookups!$F$68:$BU$68,0))) -> 1 | AJ96: =IF(ISNUMBER($H96),(1+$H96)^(AJ$5-$I96),INDEX(lookups!$F$69:$BU$80,MATCH($H96,lookups!$C$69:$C$80,0),MATCH(AJ$5,lookups!$F$68:$BU$68,0))/INDEX(lookups!$F$69:$BU$80,MATCH($H96,lookups!$C$69:$C$80,0),MATCH($I96,lookups!$F$68:$BU$68,0))) -> 1 | AK96: =IF(ISNUMBER($H96),(1+$H96)^(AK$5-$I96),INDEX(lookups!$F$69:$BU$80,MATCH($H96,lookups!$C$69:$C$80,0),MATCH(AK$5,lookups!$F$68:$BU$68,0))/INDEX(lookups!$F$69:$BU$80,MATCH($H96,lookups!$C$69:$C$80,0),MATCH($I96,lookups!$F$68:$BU$68,0))) -> 1 | AL96: =IF(ISNUMBER($H96),(1+$H96)^(AL$5-$I96),INDEX(lookups!$F$69:$BU$80,MATCH($H96,lookups!$C$69:$C$80,0),MATCH(AL$5,lookups!$F$68:$BU$68,0))/INDEX(lookups!$F$69:$BU$80,MATCH($H96,lookups!$C$69:$C$80,0),MATCH($I96,lookups!$F$68:$BU$68,0))) -> 1 | AM96: =IF(ISNUMBER($H96),(1+$H96)^(AM$5-$I96),INDEX(lookups!$F$69:$BU$80,MATCH($H96,lookups!$C$69:$C$80,0),MATCH(AM$5,lookups!$F$68:$BU$68,0))/INDEX(lookups!$F$69:$BU$80,MATCH($H96,lookups!$C$69:$C$80,0),MATCH($I96,lookups!$F$68:$BU$68,0))) -> 1 | AN96: =IF(ISNUMBER($H96),(1+$H96)^(AN$5-$I96),INDEX(lookups!$F$69:$BU$80,MATCH($H96,lookups!$C$69:$C$80,0),MATCH(AN$5,lookups!$F$68:$BU$68,0))/INDEX(lookups!$F$69:$BU$80,MATCH($H96,lookups!$C$69:$C$80,0),MATCH($I96,lookups!$F$68:$BU$68,0))) -> 1 | AO96: =IF(ISNUMBER($H96),(1+$H96)^(AO$5-$I96),INDEX(lookups!$F$69:$BU$80,MATCH($H96,lookups!$C$69:$C$80,0),MATCH(AO$5,lookups!$F$68:$BU$68,0))/INDEX(lookups!$F$69:$BU$80,MATCH($H96,lookups!$C$69:$C$80,0),MATCH($I96,lookups!$F$68:$BU$68,0))) -> 1 | AP96: =IF(ISNUMBER($H96),(1+$H96)^(AP$5-$I96),INDEX(lookups!$F$69:$BU$80,MATCH($H96,lookups!$C$69:$C$80,0),MATCH(AP$5,lookups!$F$68:$BU$68,0))/INDEX(lookups!$F$69:$BU$80,MATCH($H96,lookups!$C$69:$C$80,0),MATCH($I96,lookups!$F$68:$BU$68,0))) -> 1 | AQ96: =IF(ISNUMBER($H96),(1+$H96)^(AQ$5-$I96),INDEX(lookups!$F$69:$BU$80,MATCH($H96,lookups!$C$69:$C$80,0),MATCH(AQ$5,lookups!$F$68:$BU$68,0))/INDEX(lookups!$F$69:$BU$80,MATCH($H96,lookups!$C$69:$C$80,0),MATCH($I96,lookups!$F$68:$BU$68,0))) -> 1 | AR96: =IF(ISNUMBER($H96),(1+$H96)^(AR$5-$I96),INDEX(lookups!$F$69:$BU$80,MATCH($H96,lookups!$C$69:$C$80,0),MATCH(AR$5,lookups!$F$68:$BU$68,0))/INDEX(lookups!$F$69:$BU$80,MATCH($H96,lookups!$C$69:$C$80,0),MATCH($I96,lookups!$F$68:$BU$68,0))) -> 1 | AS96: =IF(ISNUMBER($H96),(1+$H96)^(AS$5-$I96),INDEX(lookups!$F$69:$BU$80,MATCH($H96,lookups!$C$69:$C$80,0),MATCH(AS$5,lookups!$F$68:$BU$68,0))/INDEX(lookups!$F$69:$BU$80,MATCH($H96,lookups!$C$69:$C$80,0),MATCH($I96,lookups!$F$68:$BU$68,0))) -> 1 | AT96: =IF(ISNUMBER($H96),(1+$H96)^(AT$5-$I96),INDEX(lookups!$F$69:$BU$80,MATCH($H96,lookups!$C$69:$C$80,0),MATCH(AT$5,lookups!$F$68:$BU$68,0))/INDEX(lookups!$F$69:$BU$80,MATCH($H96,lookups!$C$69:$C$80,0),MATCH($I96,lookups!$F$68:$BU$68,0))) -> 1 | AU96: =IF(ISNUMBER($H96),(1+$H96)^(AU$5-$I96),INDEX(lookups!$F$69:$BU$80,MATCH($H96,lookups!$C$69:$C$80,0),MATCH(AU$5,lookups!$F$68:$BU$68,0))/INDEX(lookups!$F$69:$BU$80,MATCH($H96,lookups!$C$69:$C$80,0),MATCH($I96,lookups!$F$68:$BU$68,0))) -> 1 | AV96: =IF(ISNUMBER($H96),(1+$H96)^(AV$5-$I96),INDEX(lookups!$F$69:$BU$80,MATCH($H96,lookups!$C$69:$C$80,0),MATCH(AV$5,lookups!$F$68:$BU$68,0))/INDEX(lookups!$F$69:$BU$80,MATCH($H96,lookups!$C$69:$C$80,0),MATCH($I96,lookups!$F$68:$BU$68,0))) -> 1 | AW96: =IF(ISNUMBER($H96),(1+$H96)^(AW$5-$I96),INDEX(lookups!$F$69:$BU$80,MATCH($H96,lookups!$C$69:$C$80,0),MATCH(AW$5,lookups!$F$68:$BU$68,0))/INDEX(lookups!$F$69:$BU$80,MATCH($H96,lookups!$C$69:$C$80,0),MATCH($I96,lookups!$F$68:$BU$68,0))) -> 1 | AX96: =IF(ISNUMBER($H96),(1+$H96)^(AX$5-$I96),INDEX(lookups!$F$69:$BU$80,MATCH($H96,lookups!$C$69:$C$80,0),MATCH(AX$5,lookups!$F$68:$BU$68,0))/INDEX(lookups!$F$69:$BU$80,MATCH($H96,lookups!$C$69:$C$80,0),MATCH($I96,lookups!$F$68:$BU$68,0))) -> 1 | AY96: =IF(ISNUMBER($H96),(1+$H96)^(AY$5-$I96),INDEX(lookups!$F$69:$BU$80,MATCH($H96,lookups!$C$69:$C$80,0),MATCH(AY$5,lookups!$F$68:$BU$68,0))/INDEX(lookups!$F$69:$BU$80,MATCH($H96,lookups!$C$69:$C$80,0),MATCH($I96,lookups!$F$68:$BU$68,0))) -> 1 | AZ96: =IF(ISNUMBER($H96),(1+$H96)^(AZ$5-$I96),INDEX(lookups!$F$69:$BU$80,MATCH($H96,lookups!$C$69:$C$80,0),MATCH(AZ$5,lookups!$F$68:$BU$68,0))/INDEX(lookups!$F$69:$BU$80,MATCH($H96,lookups!$C$69:$C$80,0),MATCH($I96,lookups!$F$68:$BU$68,0))) -> 1 | BA96: =IF(ISNUMBER($H96),(1+$H96)^(BA$5-$I96),INDEX(lookups!$F$69:$BU$80,MATCH($H96,lookups!$C$69:$C$80,0),MATCH(BA$5,lookups!$F$68:$BU$68,0))/INDEX(lookups!$F$69:$BU$80,MATCH($H96,lookups!$C$69:$C$80,0),MATCH($I96,lookups!$F$68:$BU$68,0))) -> 1 | BB96: =IF(ISNUMBER($H96),(1+$H96)^(BB$5-$I96),INDEX(lookups!$F$69:$BU$80,MATCH($H96,lookups!$C$69:$C$80,0),MATCH(BB$5,lookups!$F$68:$BU$68,0))/INDEX(lookups!$F$69:$BU$80,MATCH($H96,lookups!$C$69:$C$80,0),MATCH($I96,lookups!$F$68:$BU$68,0))) -> 1 | BC96: =IF(ISNUMBER($H96),(1+$H96)^(BC$5-$I96),INDEX(lookups!$F$69:$BU$80,MATCH($H96,lookups!$C$69:$C$80,0),MATCH(BC$5,lookups!$F$68:$BU$68,0))/INDEX(lookups!$F$69:$BU$80,MATCH($H96,lookups!$C$69:$C$80,0),MATCH($I96,lookups!$F$68:$BU$68,0))) -> 1 | BD96: =IF(ISNUMBER($H96),(1+$H96)^(BD$5-$I96),INDEX(lookups!$F$69:$BU$80,MATCH($H96,lookups!$C$69:$C$80,0),MATCH(BD$5,lookups!$F$68:$BU$68,0))/INDEX(lookups!$F$69:$BU$80,MATCH($H96,lookups!$C$69:$C$80,0),MATCH($I96,lookups!$F$68:$BU$68,0))) -> 1 | BE96: =IF(ISNUMBER($H96),(1+$H96)^(BE$5-$I96),INDEX(lookups!$F$69:$BU$80,MATCH($H96,lookups!$C$69:$C$80,0),MATCH(BE$5,lookups!$F$68:$BU$68,0))/INDEX(lookups!$F$69:$BU$80,MATCH($H96,lookups!$C$69:$C$80,0),MATCH($I96,lookups!$F$68:$BU$68,0))) -> 1 | BF96: =IF(ISNUMBER($H96),(1+$H96)^(BF$5-$I96),INDEX(lookups!$F$69:$BU$80,MATCH($H96,lookups!$C$69:$C$80,0),MATCH(BF$5,lookups!$F$68:$BU$68,0))/INDEX(lookups!$F$69:$BU$80,MATCH($H96,lookups!$C$69:$C$80,0),MATCH($I96,lookups!$F$68:$BU$68,0))) -> 1 | BG96: =IF(ISNUMBER($H96),(1+$H96)^(BG$5-$I96),INDEX(lookups!$F$69:$BU$80,MATCH($H96,lookups!$C$69:$C$80,0),MATCH(BG$5,lookups!$F$68:$BU$68,0))/INDEX(lookups!$F$69:$BU$80,MATCH($H96,lookups!$C$69:$C$80,0),MATCH($I96,lookups!$F$68:$BU$68,0))) -> 1 | BH96: =IF(ISNUMBER($H96),(1+$H96)^(BH$5-$I96),INDEX(lookups!$F$69:$BU$80,MATCH($H96,lookups!$C$69:$C$80,0),MATCH(BH$5,lookups!$F$68:$BU$68,0))/INDEX(lookups!$F$69:$BU$80,MATCH($H96,lookups!$C$69:$C$80,0),MATCH($I96,lookups!$F$68:$BU$68,0))) -> 1 | BI96: =IF(ISNUMBER($H96),(1+$H96)^(BI$5-$I96),INDEX(lookups!$F$69:$BU$80,MATCH($H96,lookups!$C$69:$C$80,0),MATCH(BI$5,lookups!$F$68:$BU$68,0))/INDEX(lookups!$F$69:$BU$80,MATCH($H96,lookups!$C$69:$C$80,0),MATCH($I96,lookups!$F$68:$BU$68,0))) -> 1 | BJ96: =IF(ISNUMBER($H96),(1+$H96)^(BJ$5-$I96),INDEX(lookups!$F$69:$BU$80,MATCH($H96,lookups!$C$69:$C$80,0),MATCH(BJ$5,lookups!$F$68:$BU$68,0))/INDEX(lookups!$F$69:$BU$80,MATCH($H96,lookups!$C$69:$C$80,0),MATCH($I96,lookups!$F$68:$BU$68,0))) -> 1 | BK96: =IF(ISNUMBER($H96),(1+$H96)^(BK$5-$I96),INDEX(lookups!$F$69:$BU$80,MATCH($H96,lookups!$C$69:$C$80,0),MATCH(BK$5,lookups!$F$68:$BU$68,0))/INDEX(lookups!$F$69:$BU$80,MATCH($H96,lookups!$C$69:$C$80,0),MATCH($I96,lookups!$F$68:$BU$68,0))) -> 1 | BL96: =IF(ISNUMBER($H96),(1+$H96)^(BL$5-$I96),INDEX(lookups!$F$69:$BU$80,MATCH($H96,lookups!$C$69:$C$80,0),MATCH(BL$5,lookups!$F$68:$BU$68,0))/INDEX(lookups!$F$69:$BU$80,MATCH($H96,lookups!$C$69:$C$80,0),MATCH($I96,lookups!$F$68:$BU$68,0))) -> 1 | BM96: =IF(ISNUMBER($H96),(1+$H96)^(BM$5-$I96),INDEX(lookups!$F$69:$BU$80,MATCH($H96,lookups!$C$69:$C$80,0),MATCH(BM$5,lookups!$F$68:$BU$68,0))/INDEX(lookups!$F$69:$BU$80,MATCH($H96,lookups!$C$69:$C$80,0),MATCH($I96,lookups!$F$68:$BU$68,0))) -> 1
C97: 10 | D97: item 10 | E97: Capital | F97: 4 | H97: =Input!L17 -> 0 | I97: =Assumptions!$D$13 -> 2017 | O97: =IF(ISNUMBER($H97),(1+$H97)^(O$5-$I97),INDEX(lookups!$F$69:$BU$80,MATCH($H97,lookups!$C$69:$C$80,0),MATCH(O$5,lookups!$F$68:$BU$68,0))/INDEX(lookups!$F$69:$BU$80,MATCH($H97,lookups!$C$69:$C$80,0),MATCH($I97,lookups!$F$68:$BU$68,0))) -> 1 | P97: =IF(ISNUMBER($H97),(1+$H97)^(P$5-$I97),INDEX(lookups!$F$69:$BU$80,MATCH($H97,lookups!$C$69:$C$80,0),MATCH(P$5,lookups!$F$68:$BU$68,0))/INDEX(lookups!$F$69:$BU$80,MATCH($H97,lookups!$C$69:$C$80,0),MATCH($I97,lookups!$F$68:$BU$68,0))) -> 1 | Q97: =IF(ISNUMBER($H97),(1+$H97)^(Q$5-$I97),INDEX(lookups!$F$69:$BU$80,MATCH($H97,lookups!$C$69:$C$80,0),MATCH(Q$5,lookups!$F$68:$BU$68,0))/INDEX(lookups!$F$69:$BU$80,MATCH($H97,lookups!$C$69:$C$80,0),MATCH($I97,lookups!$F$68:$BU$68,0))) -> 1 | R97: =IF(ISNUMBER($H97),(1+$H97)^(R$5-$I97),INDEX(lookups!$F$69:$BU$80,MATCH($H97,lookups!$C$69:$C$80,0),MATCH(R$5,lookups!$F$68:$BU$68,0))/INDEX(lookups!$F$69:$BU$80,MATCH($H97,lookups!$C$69:$C$80,0),MATCH($I97,lookups!$F$68:$BU$68,0))) -> 1 | S97: =IF(ISNUMBER($H97),(1+$H97)^(S$5-$I97),INDEX(lookups!$F$69:$BU$80,MATCH($H97,lookups!$C$69:$C$80,0),MATCH(S$5,lookups!$F$68:$BU$68,0))/INDEX(lookups!$F$69:$BU$80,MATCH($H97,lookups!$C$69:$C$80,0),MATCH($I97,lookups!$F$68:$BU$68,0))) -> 1 | T97: =IF(ISNUMBER($H97),(1+$H97)^(T$5-$I97),INDEX(lookups!$F$69:$BU$80,MATCH($H97,lookups!$C$69:$C$80,0),MATCH(T$5,lookups!$F$68:$BU$68,0))/INDEX(lookups!$F$69:$BU$80,MATCH($H97,lookups!$C$69:$C$80,0),MATCH($I97,lookups!$F$68:$BU$68,0))) -> 1 | U97: =IF(ISNUMBER($H97),(1+$H97)^(U$5-$I97),INDEX(lookups!$F$69:$BU$80,MATCH($H97,lookups!$C$69:$C$80,0),MATCH(U$5,lookups!$F$68:$BU$68,0))/INDEX(lookups!$F$69:$BU$80,MATCH($H97,lookups!$C$69:$C$80,0),MATCH($I97,lookups!$F$68:$BU$68,0))) -> 1 | V97: =IF(ISNUMBER($H97),(1+$H97)^(V$5-$I97),INDEX(lookups!$F$69:$BU$80,MATCH($H97,lookups!$C$69:$C$80,0),MATCH(V$5,lookups!$F$68:$BU$68,0))/INDEX(lookups!$F$69:$BU$80,MATCH($H97,lookups!$C$69:$C$80,0),MATCH($I97,lookups!$F$68:$BU$68,0))) -> 1 | W97: =IF(ISNUMBER($H97),(1+$H97)^(W$5-$I97),INDEX(lookups!$F$69:$BU$80,MATCH($H97,lookups!$C$69:$C$80,0),MATCH(W$5,lookups!$F$68:$BU$68,0))/INDEX(lookups!$F$69:$BU$80,MATCH($H97,lookups!$C$69:$C$80,0),MATCH($I97,lookups!$F$68:$BU$68,0))) -> 1 | X97: =IF(ISNUMBER($H97),(1+$H97)^(X$5-$I97),INDEX(lookups!$F$69:$BU$80,MATCH($H97,lookups!$C$69:$C$80,0),MATCH(X$5,lookups!$F$68:$BU$68,0))/INDEX(lookups!$F$69:$BU$80,MATCH($H97,lookups!$C$69:$C$80,0),MATCH($I97,lookups!$F$68:$BU$68,0))) -> 1 | Y97: =IF(ISNUMBER($H97),(1+$H97)^(Y$5-$I97),INDEX(lookups!$F$69:$BU$80,MATCH($H97,lookups!$C$69:$C$80,0),MATCH(Y$5,lookups!$F$68:$BU$68,0))/INDEX(lookups!$F$69:$BU$80,MATCH($H97,lookups!$C$69:$C$80,0),MATCH($I97,lookups!$F$68:$BU$68,0))) -> 1 | Z97: =IF(ISNUMBER($H97),(1+$H97)^(Z$5-$I97),INDEX(lookups!$F$69:$BU$80,MATCH($H97,lookups!$C$69:$C$80,0),MATCH(Z$5,lookups!$F$68:$BU$68,0))/INDEX(lookups!$F$69:$BU$80,MATCH($H97,lookups!$C$69:$C$80,0),MATCH($I97,lookups!$F$68:$BU$68,0))) -> 1 | AA97: =IF(ISNUMBER($H97),(1+$H97)^(AA$5-$I97),INDEX(lookups!$F$69:$BU$80,MATCH($H97,lookups!$C$69:$C$80,0),MATCH(AA$5,lookups!$F$68:$BU$68,0))/INDEX(lookups!$F$69:$BU$80,MATCH($H97,lookups!$C$69:$C$80,0),MATCH($I97,lookups!$F$68:$BU$68,0))) -> 1 | AB97: =IF(ISNUMBER($H97),(1+$H97)^(AB$5-$I97),INDEX(lookups!$F$69:$BU$80,MATCH($H97,lookups!$C$69:$C$80,0),MATCH(AB$5,lookups!$F$68:$BU$68,0))/INDEX(lookups!$F$69:$BU$80,MATCH($H97,lookups!$C$69:$C$80,0),MATCH($I97,lookups!$F$68:$BU$68,0))) -> 1 | AC97: =IF(ISNUMBER($H97),(1+$H97)^(AC$5-$I97),INDEX(lookups!$F$69:$BU$80,MATCH($H97,lookups!$C$69:$C$80,0),MATCH(AC$5,lookups!$F$68:$BU$68,0))/INDEX(lookups!$F$69:$BU$80,MATCH($H97,lookups!$C$69:$C$80,0),MATCH($I97,lookups!$F$68:$BU$68,0))) -> 1 | AD97: =IF(ISNUMBER($H97),(1+$H97)^(AD$5-$I97),INDEX(lookups!$F$69:$BU$80,MATCH($H97,lookups!$C$69:$C$80,0),MATCH(AD$5,lookups!$F$68:$BU$68,0))/INDEX(lookups!$F$69:$BU$80,MATCH($H97,lookups!$C$69:$C$80,0),MATCH($I97,lookups!$F$68:$BU$68,0))) -> 1 | AE97: =IF(ISNUMBER($H97),(1+$H97)^(AE$5-$I97),INDEX(lookups!$F$69:$BU$80,MATCH($H97,lookups!$C$69:$C$80,0),MATCH(AE$5,lookups!$F$68:$BU$68,0))/INDEX(lookups!$F$69:$BU$80,MATCH($H97,lookups!$C$69:$C$80,0),MATCH($I97,lookups!$F$68:$BU$68,0))) -> 1 | AF97: =IF(ISNUMBER($H97),(1+$H97)^(AF$5-$I97),INDEX(lookups!$F$69:$BU$80,MATCH($H97,lookups!$C$69:$C$80,0),MATCH(AF$5,lookups!$F$68:$BU$68,0))/INDEX(lookups!$F$69:$BU$80,MATCH($H97,lookups!$C$69:$C$80,0),MATCH($I97,lookups!$F$68:$BU$68,0))) -> 1 | AG97: =IF(ISNUMBER($H97),(1+$H97)^(AG$5-$I97),INDEX(lookups!$F$69:$BU$80,MATCH($H97,lookups!$C$69:$C$80,0),MATCH(AG$5,lookups!$F$68:$BU$68,0))/INDEX(lookups!$F$69:$BU$80,MATCH($H97,lookups!$C$69:$C$80,0),MATCH($I97,lookups!$F$68:$BU$68,0))) -> 1 | AH97: =IF(ISNUMBER($H97),(1+$H97)^(AH$5-$I97),INDEX(lookups!$F$69:$BU$80,MATCH($H97,lookups!$C$69:$C$80,0),MATCH(AH$5,lookups!$F$68:$BU$68,0))/INDEX(lookups!$F$69:$BU$80,MATCH($H97,lookups!$C$69:$C$80,0),MATCH($I97,lookups!$F$68:$BU$68,0))) -> 1 | AI97: =IF(ISNUMBER($H97),(1+$H97)^(AI$5-$I97),INDEX(lookups!$F$69:$BU$80,MATCH($H97,lookups!$C$69:$C$80,0),MATCH(AI$5,lookups!$F$68:$BU$68,0))/INDEX(lookups!$F$69:$BU$80,MATCH($H97,lookups!$C$69:$C$80,0),MATCH($I97,lookups!$F$68:$BU$68,0))) -> 1 | AJ97: =IF(ISNUMBER($H97),(1+$H97)^(AJ$5-$I97),INDEX(lookups!$F$69:$BU$80,MATCH($H97,lookups!$C$69:$C$80,0),MATCH(AJ$5,lookups!$F$68:$BU$68,0))/INDEX(lookups!$F$69:$BU$80,MATCH($H97,lookups!$C$69:$C$80,0),MATCH($I97,lookups!$F$68:$BU$68,0))) -> 1 | AK97: =IF(ISNUMBER($H97),(1+$H97)^(AK$5-$I97),INDEX(lookups!$F$69:$BU$80,MATCH($H97,lookups!$C$69:$C$80,0),MATCH(AK$5,lookups!$F$68:$BU$68,0))/INDEX(lookups!$F$69:$BU$80,MATCH($H97,lookups!$C$69:$C$80,0),MATCH($I97,lookups!$F$68:$BU$68,0))) -> 1 | AL97: =IF(ISNUMBER($H97),(1+$H97)^(AL$5-$I97),INDEX(lookups!$F$69:$BU$80,MATCH($H97,lookups!$C$69:$C$80,0),MATCH(AL$5,lookups!$F$68:$BU$68,0))/INDEX(lookups!$F$69:$BU$80,MATCH($H97,lookups!$C$69:$C$80,0),MATCH($I97,lookups!$F$68:$BU$68,0))) -> 1 | AM97: =IF(ISNUMBER($H97),(1+$H97)^(AM$5-$I97),INDEX(lookups!$F$69:$BU$80,MATCH($H97,lookups!$C$69:$C$80,0),MATCH(AM$5,lookups!$F$68:$BU$68,0))/INDEX(lookups!$F$69:$BU$80,MATCH($H97,lookups!$C$69:$C$80,0),MATCH($I97,lookups!$F$68:$BU$68,0))) -> 1 | AN97: =IF(ISNUMBER($H97),(1+$H97)^(AN$5-$I97),INDEX(lookups!$F$69:$BU$80,MATCH($H97,lookups!$C$69:$C$80,0),MATCH(AN$5,lookups!$F$68:$BU$68,0))/INDEX(lookups!$F$69:$BU$80,MATCH($H97,lookups!$C$69:$C$80,0),MATCH($I97,lookups!$F$68:$BU$68,0))) -> 1 | AO97: =IF(ISNUMBER($H97),(1+$H97)^(AO$5-$I97),INDEX(lookups!$F$69:$BU$80,MATCH($H97,lookups!$C$69:$C$80,0),MATCH(AO$5,lookups!$F$68:$BU$68,0))/INDEX(lookups!$F$69:$BU$80,MATCH($H97,lookups!$C$69:$C$80,0),MATCH($I97,lookups!$F$68:$BU$68,0))) -> 1 | AP97: =IF(ISNUMBER($H97),(1+$H97)^(AP$5-$I97),INDEX(lookups!$F$69:$BU$80,MATCH($H97,lookups!$C$69:$C$80,0),MATCH(AP$5,lookups!$F$68:$BU$68,0))/INDEX(lookups!$F$69:$BU$80,MATCH($H97,lookups!$C$69:$C$80,0),MATCH($I97,lookups!$F$68:$BU$68,0))) -> 1 | AQ97: =IF(ISNUMBER($H97),(1+$H97)^(AQ$5-$I97),INDEX(lookups!$F$69:$BU$80,MATCH($H97,lookups!$C$69:$C$80,0),MATCH(AQ$5,lookups!$F$68:$BU$68,0))/INDEX(lookups!$F$69:$BU$80,MATCH($H97,lookups!$C$69:$C$80,0),MATCH($I97,lookups!$F$68:$BU$68,0))) -> 1 | AR97: =IF(ISNUMBER($H97),(1+$H97)^(AR$5-$I97),INDEX(lookups!$F$69:$BU$80,MATCH($H97,lookups!$C$69:$C$80,0),MATCH(AR$5,lookups!$F$68:$BU$68,0))/INDEX(lookups!$F$69:$BU$80,MATCH($H97,lookups!$C$69:$C$80,0),MATCH($I97,lookups!$F$68:$BU$68,0))) -> 1 | AS97: =IF(ISNUMBER($H97),(1+$H97)^(AS$5-$I97),INDEX(lookups!$F$69:$BU$80,MATCH($H97,lookups!$C$69:$C$80,0),MATCH(AS$5,lookups!$F$68:$BU$68,0))/INDEX(lookups!$F$69:$BU$80,MATCH($H97,lookups!$C$69:$C$80,0),MATCH($I97,lookups!$F$68:$BU$68,0))) -> 1 | AT97: =IF(ISNUMBER($H97),(1+$H97)^(AT$5-$I97),INDEX(lookups!$F$69:$BU$80,MATCH($H97,lookups!$C$69:$C$80,0),MATCH(AT$5,lookups!$F$68:$BU$68,0))/INDEX(lookups!$F$69:$BU$80,MATCH($H97,lookups!$C$69:$C$80,0),MATCH($I97,lookups!$F$68:$BU$68,0))) -> 1 | AU97: =IF(ISNUMBER($H97),(1+$H97)^(AU$5-$I97),INDEX(lookups!$F$69:$BU$80,MATCH($H97,lookups!$C$69:$C$80,0),MATCH(AU$5,lookups!$F$68:$BU$68,0))/INDEX(lookups!$F$69:$BU$80,MATCH($H97,lookups!$C$69:$C$80,0),MATCH($I97,lookups!$F$68:$BU$68,0))) -> 1 | AV97: =IF(ISNUMBER($H97),(1+$H97)^(AV$5-$I97),INDEX(lookups!$F$69:$BU$80,MATCH($H97,lookups!$C$69:$C$80,0),MATCH(AV$5,lookups!$F$68:$BU$68,0))/INDEX(lookups!$F$69:$BU$80,MATCH($H97,lookups!$C$69:$C$80,0),MATCH($I97,lookups!$F$68:$BU$68,0))) -> 1 | AW97: =IF(ISNUMBER($H97),(1+$H97)^(AW$5-$I97),INDEX(lookups!$F$69:$BU$80,MATCH($H97,lookups!$C$69:$C$80,0),MATCH(AW$5,lookups!$F$68:$BU$68,0))/INDEX(lookups!$F$69:$BU$80,MATCH($H97,lookups!$C$69:$C$80,0),MATCH($I97,lookups!$F$68:$BU$68,0))) -> 1 | AX97: =IF(ISNUMBER($H97),(1+$H97)^(AX$5-$I97),INDEX(lookups!$F$69:$BU$80,MATCH($H97,lookups!$C$69:$C$80,0),MATCH(AX$5,lookups!$F$68:$BU$68,0))/INDEX(lookups!$F$69:$BU$80,MATCH($H97,lookups!$C$69:$C$80,0),MATCH($I97,lookups!$F$68:$BU$68,0))) -> 1 | AY97: =IF(ISNUMBER($H97),(1+$H97)^(AY$5-$I97),INDEX(lookups!$F$69:$BU$80,MATCH($H97,lookups!$C$69:$C$80,0),MATCH(AY$5,lookups!$F$68:$BU$68,0))/INDEX(lookups!$F$69:$BU$80,MATCH($H97,lookups!$C$69:$C$80,0),MATCH($I97,lookups!$F$68:$BU$68,0))) -> 1 | AZ97: =IF(ISNUMBER($H97),(1+$H97)^(AZ$5-$I97),INDEX(lookups!$F$69:$BU$80,MATCH($H97,lookups!$C$69:$C$80,0),MATCH(AZ$5,lookups!$F$68:$BU$68,0))/INDEX(lookups!$F$69:$BU$80,MATCH($H97,lookups!$C$69:$C$80,0),MATCH($I97,lookups!$F$68:$BU$68,0))) -> 1 | BA97: =IF(ISNUMBER($H97),(1+$H97)^(BA$5-$I97),INDEX(lookups!$F$69:$BU$80,MATCH($H97,lookups!$C$69:$C$80,0),MATCH(BA$5,lookups!$F$68:$BU$68,0))/INDEX(lookups!$F$69:$BU$80,MATCH($H97,lookups!$C$69:$C$80,0),MATCH($I97,lookups!$F$68:$BU$68,0))) -> 1 | BB97: =IF(ISNUMBER($H97),(1+$H97)^(BB$5-$I97),INDEX(lookups!$F$69:$BU$80,MATCH($H97,lookups!$C$69:$C$80,0),MATCH(BB$5,lookups!$F$68:$BU$68,0))/INDEX(lookups!$F$69:$BU$80,MATCH($H97,lookups!$C$69:$C$80,0),MATCH($I97,lookups!$F$68:$BU$68,0))) -> 1 | BC97: =IF(ISNUMBER($H97),(1+$H97)^(BC$5-$I97),INDEX(lookups!$F$69:$BU$80,MATCH($H97,lookups!$C$69:$C$80,0),MATCH(BC$5,lookups!$F$68:$BU$68,0))/INDEX(lookups!$F$69:$BU$80,MATCH($H97,lookups!$C$69:$C$80,0),MATCH($I97,lookups!$F$68:$BU$68,0))) -> 1 | BD97: =IF(ISNUMBER($H97),(1+$H97)^(BD$5-$I97),INDEX(lookups!$F$69:$BU$80,MATCH($H97,lookups!$C$69:$C$80,0),MATCH(BD$5,lookups!$F$68:$BU$68,0))/INDEX(lookups!$F$69:$BU$80,MATCH($H97,lookups!$C$69:$C$80,0),MATCH($I97,lookups!$F$68:$BU$68,0))) -> 1 | BE97: =IF(ISNUMBER($H97),(1+$H97)^(BE$5-$I97),INDEX(lookups!$F$69:$BU$80,MATCH($H97,lookups!$C$69:$C$80,0),MATCH(BE$5,lookups!$F$68:$BU$68,0))/INDEX(lookups!$F$69:$BU$80,MATCH($H97,lookups!$C$69:$C$80,0),MATCH($I97,lookups!$F$68:$BU$68,0))) -> 1 | BF97: =IF(ISNUMBER($H97),(1+$H97)^(BF$5-$I97),INDEX(lookups!$F$69:$BU$80,MATCH($H97,lookups!$C$69:$C$80,0),MATCH(BF$5,lookups!$F$68:$BU$68,0))/INDEX(lookups!$F$69:$BU$80,MATCH($H97,lookups!$C$69:$C$80,0),MATCH($I97,lookups!$F$68:$BU$68,0))) -> 1 | BG97: =IF(ISNUMBER($H97),(1+$H97)^(BG$5-$I97),INDEX(lookups!$F$69:$BU$80,MATCH($H97,lookups!$C$69:$C$80,0),MATCH(BG$5,lookups!$F$68:$BU$68,0))/INDEX(lookups!$F$69:$BU$80,MATCH($H97,lookups!$C$69:$C$80,0),MATCH($I97,lookups!$F$68:$BU$68,0))) -> 1 | BH97: =IF(ISNUMBER($H97),(1+$H97)^(BH$5-$I97),INDEX(lookups!$F$69:$BU$80,MATCH($H97,lookups!$C$69:$C$80,0),MATCH(BH$5,lookups!$F$68:$BU$68,0))/INDEX(lookups!$F$69:$BU$80,MATCH($H97,lookups!$C$69:$C$80,0),MATCH($I97,lookups!$F$68:$BU$68,0))) -> 1 | BI97: =IF(ISNUMBER($H97),(1+$H97)^(BI$5-$I97),INDEX(lookups!$F$69:$BU$80,MATCH($H97,lookups!$C$69:$C$80,0),MATCH(BI$5,lookups!$F$68:$BU$68,0))/INDEX(lookups!$F$69:$BU$80,MATCH($H97,lookups!$C$69:$C$80,0),MATCH($I97,lookups!$F$68:$BU$68,0))) -> 1 | BJ97: =IF(ISNUMBER($H97),(1+$H97)^(BJ$5-$I97),INDEX(lookups!$F$69:$BU$80,MATCH($H97,lookups!$C$69:$C$80,0),MATCH(BJ$5,lookups!$F$68:$BU$68,0))/INDEX(lookups!$F$69:$BU$80,MATCH($H97,lookups!$C$69:$C$80,0),MATCH($I97,lookups!$F$68:$BU$68,0))) -> 1 | BK97: =IF(ISNUMBER($H97),(1+$H97)^(BK$5-$I97),INDEX(lookups!$F$69:$BU$80,MATCH($H97,lookups!$C$69:$C$80,0),MATCH(BK$5,lookups!$F$68:$BU$68,0))/INDEX(lookups!$F$69:$BU$80,MATCH($H97,lookups!$C$69:$C$80,0),MATCH($I97,lookups!$F$68:$BU$68,0))) -> 1 | BL97: =IF(ISNUMBER($H97),(1+$H97)^(BL$5-$I97),INDEX(lookups!$F$69:$BU$80,MATCH($H97,lookups!$C$69:$C$80,0),MATCH(BL$5,lookups!$F$68:$BU$68,0))/INDEX(lookups!$F$69:$BU$80,MATCH($H97,lookups!$C$69:$C$80,0),MATCH($I97,lookups!$F$68:$BU$68,0))) -> 1 | BM97: =IF(ISNUMBER($H97),(1+$H97)^(BM$5-$I97),INDEX(lookups!$F$69:$BU$80,MATCH($H97,lookups!$C$69:$C$80,0),MATCH(BM$5,lookups!$F$68:$BU$68,0))/INDEX(lookups!$F$69:$BU$80,MATCH($H97,lookups!$C$69:$C$80,0),MATCH($I97,lookups!$F$68:$BU$68,0))) -> 1
C98: 11 | D98: item 11 | E98: Operating Expense | F98: 2 | H98: =Input!L18 -> 0 | I98: =Assumptions!$D$13 -> 2017 | O98: =IF(ISNUMBER($H98),(1+$H98)^(O$5-$I98),INDEX(lookups!$F$69:$BU$80,MATCH($H98,lookups!$C$69:$C$80,0),MATCH(O$5,lookups!$F$68:$BU$68,0))/INDEX(lookups!$F$69:$BU$80,MATCH($H98,lookups!$C$69:$C$80,0),MATCH($I98,lookups!$F$68:$BU$68,0))) -> 1 | P98: =IF(ISNUMBER($H98),(1+$H98)^(P$5-$I98),INDEX(lookups!$F$69:$BU$80,MATCH($H98,lookups!$C$69:$C$80,0),MATCH(P$5,lookups!$F$68:$BU$68,0))/INDEX(lookups!$F$69:$BU$80,MATCH($H98,lookups!$C$69:$C$80,0),MATCH($I98,lookups!$F$68:$BU$68,0))) -> 1 | Q98: =IF(ISNUMBER($H98),(1+$H98)^(Q$5-$I98),INDEX(lookups!$F$69:$BU$80,MATCH($H98,lookups!$C$69:$C$80,0),MATCH(Q$5,lookups!$F$68:$BU$68,0))/INDEX(lookups!$F$69:$BU$80,MATCH($H98,lookups!$C$69:$C$80,0),MATCH($I98,lookups!$F$68:$BU$68,0))) -> 1 | R98: =IF(ISNUMBER($H98),(1+$H98)^(R$5-$I98),INDEX(lookups!$F$69:$BU$80,MATCH($H98,lookups!$C$69:$C$80,0),MATCH(R$5,lookups!$F$68:$BU$68,0))/INDEX(lookups!$F$69:$BU$80,MATCH($H98,lookups!$C$69:$C$80,0),MATCH($I98,lookups!$F$68:$BU$68,0))) -> 1 | S98: =IF(ISNUMBER($H98),(1+$H98)^(S$5-$I98),INDEX(lookups!$F$69:$BU$80,MATCH($H98,lookups!$C$69:$C$80,0),MATCH(S$5,lookups!$F$68:$BU$68,0))/INDEX(lookups!$F$69:$BU$80,MATCH($H98,lookups!$C$69:$C$80,0),MATCH($I98,lookups!$F$68:$BU$68,0))) -> 1 | T98: =IF(ISNUMBER($H98),(1+$H98)^(T$5-$I98),INDEX(lookups!$F$69:$BU$80,MATCH($H98,lookups!$C$69:$C$80,0),MATCH(T$5,lookups!$F$68:$BU$68,0))/INDEX(lookups!$F$69:$BU$80,MATCH($H98,lookups!$C$69:$C$80,0),MATCH($I98,lookups!$F$68:$BU$68,0))) -> 1 | U98: =IF(ISNUMBER($H98),(1+$H98)^(U$5-$I98),INDEX(lookups!$F$69:$BU$80,MATCH($H98,lookups!$C$69:$C$80,0),MATCH(U$5,lookups!$F$68:$BU$68,0))/INDEX(lookups!$F$69:$BU$80,MATCH($H98,lookups!$C$69:$C$80,0),MATCH($I98,lookups!$F$68:$BU$68,0))) -> 1 | V98: =IF(ISNUMBER($H98),(1+$H98)^(V$5-$I98),INDEX(lookups!$F$69:$BU$80,MATCH($H98,lookups!$C$69:$C$80,0),MATCH(V$5,lookups!$F$68:$BU$68,0))/INDEX(lookups!$F$69:$BU$80,MATCH($H98,lookups!$C$69:$C$80,0),MATCH($I98,lookups!$F$68:$BU$68,0))) -> 1 | W98: =IF(ISNUMBER($H98),(1+$H98)^(W$5-$I98),INDEX(lookups!$F$69:$BU$80,MATCH($H98,lookups!$C$69:$C$80,0),MATCH(W$5,lookups!$F$68:$BU$68,0))/INDEX(lookups!$F$69:$BU$80,MATCH($H98,lookups!$C$69:$C$80,0),MATCH($I98,lookups!$F$68:$BU$68,0))) -> 1 | X98: =IF(ISNUMBER($H98),(1+$H98)^(X$5-$I98),INDEX(lookups!$F$69:$BU$80,MATCH($H98,lookups!$C$69:$C$80,0),MATCH(X$5,lookups!$F$68:$BU$68,0))/INDEX(lookups!$F$69:$BU$80,MATCH($H98,lookups!$C$69:$C$80,0),MATCH($I98,lookups!$F$68:$BU$68,0))) -> 1 | Y98: =IF(ISNUMBER($H98),(1+$H98)^(Y$5-$I98),INDEX(lookups!$F$69:$BU$80,MATCH($H98,lookups!$C$69:$C$80,0),MATCH(Y$5,lookups!$F$68:$BU$68,0))/INDEX(lookups!$F$69:$BU$80,MATCH($H98,lookups!$C$69:$C$80,0),MATCH($I98,lookups!$F$68:$BU$68,0))) -> 1 | Z98: =IF(ISNUMBER($H98),(1+$H98)^(Z$5-$I98),INDEX(lookups!$F$69:$BU$80,MATCH($H98,lookups!$C$69:$C$80,0),MATCH(Z$5,lookups!$F$68:$BU$68,0))/INDEX(lookups!$F$69:$BU$80,MATCH($H98,lookups!$C$69:$C$80,0),MATCH($I98,lookups!$F$68:$BU$68,0))) -> 1 | AA98: =IF(ISNUMBER($H98),(1+$H98)^(AA$5-$I98),INDEX(lookups!$F$69:$BU$80,MATCH($H98,lookups!$C$69:$C$80,0),MATCH(AA$5,lookups!$F$68:$BU$68,0))/INDEX(lookups!$F$69:$BU$80,MATCH($H98,lookups!$C$69:$C$80,0),MATCH($I98,lookups!$F$68:$BU$68,0))) -> 1 | AB98: =IF(ISNUMBER($H98),(1+$H98)^(AB$5-$I98),INDEX(lookups!$F$69:$BU$80,MATCH($H98,lookups!$C$69:$C$80,0),MATCH(AB$5,lookups!$F$68:$BU$68,0))/INDEX(lookups!$F$69:$BU$80,MATCH($H98,lookups!$C$69:$C$80,0),MATCH($I98,lookups!$F$68:$BU$68,0))) -> 1 | AC98: =IF(ISNUMBER($H98),(1+$H98)^(AC$5-$I98),INDEX(lookups!$F$69:$BU$80,MATCH($H98,lookups!$C$69:$C$80,0),MATCH(AC$5,lookups!$F$68:$BU$68,0))/INDEX(lookups!$F$69:$BU$80,MATCH($H98,lookups!$C$69:$C$80,0),MATCH($I98,lookups!$F$68:$BU$68,0))) -> 1 | AD98: =IF(ISNUMBER($H98),(1+$H98)^(AD$5-$I98),INDEX(lookups!$F$69:$BU$80,MATCH($H98,lookups!$C$69:$C$80,0),MATCH(AD$5,lookups!$F$68:$BU$68,0))/INDEX(lookups!$F$69:$BU$80,MATCH($H98,lookups!$C$69:$C$80,0),MATCH($I98,lookups!$F$68:$BU$68,0))) -> 1 | AE98: =IF(ISNUMBER($H98),(1+$H98)^(AE$5-$I98),INDEX(lookups!$F$69:$BU$80,MATCH($H98,lookups!$C$69:$C$80,0),MATCH(AE$5,lookups!$F$68:$BU$68,0))/INDEX(lookups!$F$69:$BU$80,MATCH($H98,lookups!$C$69:$C$80,0),MATCH($I98,lookups!$F$68:$BU$68,0))) -> 1 | AF98: =IF(ISNUMBER($H98),(1+$H98)^(AF$5-$I98),INDEX(lookups!$F$69:$BU$80,MATCH($H98,lookups!$C$69:$C$80,0),MATCH(AF$5,lookups!$F$68:$BU$68,0))/INDEX(lookups!$F$69:$BU$80,MATCH($H98,lookups!$C$69:$C$80,0),MATCH($I98,lookups!$F$68:$BU$68,0))) -> 1 | AG98: =IF(ISNUMBER($H98),(1+$H98)^(AG$5-$I98),INDEX(lookups!$F$69:$BU$80,MATCH($H98,lookups!$C$69:$C$80,0),MATCH(AG$5,lookups!$F$68:$BU$68,0))/INDEX(lookups!$F$69:$BU$80,MATCH($H98,lookups!$C$69:$C$80,0),MATCH($I98,lookups!$F$68:$BU$68,0))) -> 1 | AH98: =IF(ISNUMBER($H98),(1+$H98)^(AH$5-$I98),INDEX(lookups!$F$69:$BU$80,MATCH($H98,lookups!$C$69:$C$80,0),MATCH(AH$5,lookups!$F$68:$BU$68,0))/INDEX(lookups!$F$69:$BU$80,MATCH($H98,lookups!$C$69:$C$80,0),MATCH($I98,lookups!$F$68:$BU$68,0))) -> 1 | AI98: =IF(ISNUMBER($H98),(1+$H98)^(AI$5-$I98),INDEX(lookups!$F$69:$BU$80,MATCH($H98,lookups!$C$69:$C$80,0),MATCH(AI$5,lookups!$F$68:$BU$68,0))/INDEX(lookups!$F$69:$BU$80,MATCH($H98,lookups!$C$69:$C$80,0),MATCH($I98,lookups!$F$68:$BU$68,0))) -> 1 | AJ98: =IF(ISNUMBER($H98),(1+$H98)^(AJ$5-$I98),INDEX(lookups!$F$69:$BU$80,MATCH($H98,lookups!$C$69:$C$80,0),MATCH(AJ$5,lookups!$F$68:$BU$68,0))/INDEX(lookups!$F$69:$BU$80,MATCH($H98,lookups!$C$69:$C$80,0),MATCH($I98,lookups!$F$68:$BU$68,0))) -> 1 | AK98: =IF(ISNUMBER($H98),(1+$H98)^(AK$5-$I98),INDEX(lookups!$F$69:$BU$80,MATCH($H98,lookups!$C$69:$C$80,0),MATCH(AK$5,lookups!$F$68:$BU$68,0))/INDEX(lookups!$F$69:$BU$80,MATCH($H98,lookups!$C$69:$C$80,0),MATCH($I98,lookups!$F$68:$BU$68,0))) -> 1 | AL98: =IF(ISNUMBER($H98),(1+$H98)^(AL$5-$I98),INDEX(lookups!$F$69:$BU$80,MATCH($H98,lookups!$C$69:$C$80,0),MATCH(AL$5,lookups!$F$68:$BU$68,0))/INDEX(lookups!$F$69:$BU$80,MATCH($H98,lookups!$C$69:$C$80,0),MATCH($I98,lookups!$F$68:$BU$68,0))) -> 1 | AM98: =IF(ISNUMBER($H98),(1+$H98)^(AM$5-$I98),INDEX(lookups!$F$69:$BU$80,MATCH($H98,lookups!$C$69:$C$80,0),MATCH(AM$5,lookups!$F$68:$BU$68,0))/INDEX(lookups!$F$69:$BU$80,MATCH($H98,lookups!$C$69:$C$80,0),MATCH($I98,lookups!$F$68:$BU$68,0))) -> 1 | AN98: =IF(ISNUMBER($H98),(1+$H98)^(AN$5-$I98),INDEX(lookups!$F$69:$BU$80,MATCH($H98,lookups!$C$69:$C$80,0),MATCH(AN$5,lookups!$F$68:$BU$68,0))/INDEX(lookups!$F$69:$BU$80,MATCH($H98,lookups!$C$69:$C$80,0),MATCH($I98,lookups!$F$68:$BU$68,0))) -> 1 | AO98: =IF(ISNUMBER($H98),(1+$H98)^(AO$5-$I98),INDEX(lookups!$F$69:$BU$80,MATCH($H98,lookups!$C$69:$C$80,0),MATCH(AO$5,lookups!$F$68:$BU$68,0))/INDEX(lookups!$F$69:$BU$80,MATCH($H98,lookups!$C$69:$C$80,0),MATCH($I98,lookups!$F$68:$BU$68,0))) -> 1 | AP98: =IF(ISNUMBER($H98),(1+$H98)^(AP$5-$I98),INDEX(lookups!$F$69:$BU$80,MATCH($H98,lookups!$C$69:$C$80,0),MATCH(AP$5,lookups!$F$68:$BU$68,0))/INDEX(lookups!$F$69:$BU$80,MATCH($H98,lookups!$C$69:$C$80,0),MATCH($I98,lookups!$F$68:$BU$68,0))) -> 1 | AQ98: =IF(ISNUMBER($H98),(1+$H98)^(AQ$5-$I98),INDEX(lookups!$F$69:$BU$80,MATCH($H98,lookups!$C$69:$C$80,0),MATCH(AQ$5,lookups!$F$68:$BU$68,0))/INDEX(lookups!$F$69:$BU$80,MATCH($H98,lookups!$C$69:$C$80,0),MATCH($I98,lookups!$F$68:$BU$68,0))) -> 1 | AR98: =IF(ISNUMBER($H98),(1+$H98)^(AR$5-$I98),INDEX(lookups!$F$69:$BU$80,MATCH($H98,lookups!$C$69:$C$80,0),MATCH(AR$5,lookups!$F$68:$BU$68,0))/INDEX(lookups!$F$69:$BU$80,MATCH($H98,lookups!$C$69:$C$80,0),MATCH($I98,lookups!$F$68:$BU$68,0))) -> 1 | AS98: =IF(ISNUMBER($H98),(1+$H98)^(AS$5-$I98),INDEX(lookups!$F$69:$BU$80,MATCH($H98,lookups!$C$69:$C$80,0),MATCH(AS$5,lookups!$F$68:$BU$68,0))/INDEX(lookups!$F$69:$BU$80,MATCH($H98,lookups!$C$69:$C$80,0),MATCH($I98,lookups!$F$68:$BU$68,0))) -> 1 | AT98: =IF(ISNUMBER($H98),(1+$H98)^(AT$5-$I98),INDEX(lookups!$F$69:$BU$80,MATCH($H98,lookups!$C$69:$C$80,0),MATCH(AT$5,lookups!$F$68:$BU$68,0))/INDEX(lookups!$F$69:$BU$80,MATCH($H98,lookups!$C$69:$C$80,0),MATCH($I98,lookups!$F$68:$BU$68,0))) -> 1 | AU98: =IF(ISNUMBER($H98),(1+$H98)^(AU$5-$I98),INDEX(lookups!$F$69:$BU$80,MATCH($H98,lookups!$C$69:$C$80,0),MATCH(AU$5,lookups!$F$68:$BU$68,0))/INDEX(lookups!$F$69:$BU$80,MATCH($H98,lookups!$C$69:$C$80,0),MATCH($I98,lookups!$F$68:$BU$68,0))) -> 1 | AV98: =IF(ISNUMBER($H98),(1+$H98)^(AV$5-$I98),INDEX(lookups!$F$69:$BU$80,MATCH($H98,lookups!$C$69:$C$80,0),MATCH(AV$5,lookups!$F$68:$BU$68,0))/INDEX(lookups!$F$69:$BU$80,MATCH($H98,lookups!$C$69:$C$80,0),MATCH($I98,lookups!$F$68:$BU$68,0))) -> 1 | AW98: =IF(ISNUMBER($H98),(1+$H98)^(AW$5-$I98),INDEX(lookups!$F$69:$BU$80,MATCH($H98,lookups!$C$69:$C$80,0),MATCH(AW$5,lookups!$F$68:$BU$68,0))/INDEX(lookups!$F$69:$BU$80,MATCH($H98,lookups!$C$69:$C$80,0),MATCH($I98,lookups!$F$68:$BU$68,0))) -> 1 | AX98: =IF(ISNUMBER($H98),(1+$H98)^(AX$5-$I98),INDEX(lookups!$F$69:$BU$80,MATCH($H98,lookups!$C$69:$C$80,0),MATCH(AX$5,lookups!$F$68:$BU$68,0))/INDEX(lookups!$F$69:$BU$80,MATCH($H98,lookups!$C$69:$C$80,0),MATCH($I98,lookups!$F$68:$BU$68,0))) -> 1 | AY98: =IF(ISNUMBER($H98),(1+$H98)^(AY$5-$I98),INDEX(lookups!$F$69:$BU$80,MATCH($H98,lookups!$C$69:$C$80,0),MATCH(AY$5,lookups!$F$68:$BU$68,0))/INDEX(lookups!$F$69:$BU$80,MATCH($H98,lookups!$C$69:$C$80,0),MATCH($I98,lookups!$F$68:$BU$68,0))) -> 1 | AZ98: =IF(ISNUMBER($H98),(1+$H98)^(AZ$5-$I98),INDEX(lookups!$F$69:$BU$80,MATCH($H98,lookups!$C$69:$C$80,0),MATCH(AZ$5,lookups!$F$68:$BU$68,0))/INDEX(lookups!$F$69:$BU$80,MATCH($H98,lookups!$C$69:$C$80,0),MATCH($I98,lookups!$F$68:$BU$68,0))) -> 1 | BA98: =IF(ISNUMBER($H98),(1+$H98)^(BA$5-$I98),INDEX(lookups!$F$69:$BU$80,MATCH($H98,lookups!$C$69:$C$80,0),MATCH(BA$5,lookups!$F$68:$BU$68,0))/INDEX(lookups!$F$69:$BU$80,MATCH($H98,lookups!$C$69:$C$80,0),MATCH($I98,lookups!$F$68:$BU$68,0))) -> 1 | BB98: =IF(ISNUMBER($H98),(1+$H98)^(BB$5-$I98),INDEX(lookups!$F$69:$BU$80,MATCH($H98,lookups!$C$69:$C$80,0),MATCH(BB$5,lookups!$F$68:$BU$68,0))/INDEX(lookups!$F$69:$BU$80,MATCH($H98,lookups!$C$69:$C$80,0),MATCH($I98,lookups!$F$68:$BU$68,0))) -> 1 | BC98: =IF(ISNUMBER($H98),(1+$H98)^(BC$5-$I98),INDEX(lookups!$F$69:$BU$80,MATCH($H98,lookups!$C$69:$C$80,0),MATCH(BC$5,lookups!$F$68:$BU$68,0))/INDEX(lookups!$F$69:$BU$80,MATCH($H98,lookups!$C$69:$C$80,0),MATCH($I98,lookups!$F$68:$BU$68,0))) -> 1 | BD98: =IF(ISNUMBER($H98),(1+$H98)^(BD$5-$I98),INDEX(lookups!$F$69:$BU$80,MATCH($H98,lookups!$C$69:$C$80,0),MATCH(BD$5,lookups!$F$68:$BU$68,0))/INDEX(lookups!$F$69:$BU$80,MATCH($H98,lookups!$C$69:$C$80,0),MATCH($I98,lookups!$F$68:$BU$68,0))) -> 1 | BE98: =IF(ISNUMBER($H98),(1+$H98)^(BE$5-$I98),INDEX(lookups!$F$69:$BU$80,MATCH($H98,lookups!$C$69:$C$80,0),MATCH(BE$5,lookups!$F$68:$BU$68,0))/INDEX(lookups!$F$69:$BU$80,MATCH($H98,lookups!$C$69:$C$80,0),MATCH($I98,lookups!$F$68:$BU$68,0))) -> 1 | BF98: =IF(ISNUMBER($H98),(1+$H98)^(BF$5-$I98),INDEX(lookups!$F$69:$BU$80,MATCH($H98,lookups!$C$69:$C$80,0),MATCH(BF$5,lookups!$F$68:$BU$68,0))/INDEX(lookups!$F$69:$BU$80,MATCH($H98,lookups!$C$69:$C$80,0),MATCH($I98,lookups!$F$68:$BU$68,0))) -> 1 | BG98: =IF(ISNUMBER($H98),(1+$H98)^(BG$5-$I98),INDEX(lookups!$F$69:$BU$80,MATCH($H98,lookups!$C$69:$C$80,0),MATCH(BG$5,lookups!$F$68:$BU$68,0))/INDEX(lookups!$F$69:$BU$80,MATCH($H98,lookups!$C$69:$C$80,0),MATCH($I98,lookups!$F$68:$BU$68,0))) -> 1 | BH98: =IF(ISNUMBER($H98),(1+$H98)^(BH$5-$I98),INDEX(lookups!$F$69:$BU$80,MATCH($H98,lookups!$C$69:$C$80,0),MATCH(BH$5,lookups!$F$68:$BU$68,0))/INDEX(lookups!$F$69:$BU$80,MATCH($H98,lookups!$C$69:$C$80,0),MATCH($I98,lookups!$F$68:$BU$68,0))) -> 1 | BI98: =IF(ISNUMBER($H98),(1+$H98)^(BI$5-$I98),INDEX(lookups!$F$69:$BU$80,MATCH($H98,lookups!$C$69:$C$80,0),MATCH(BI$5,lookups!$F$68:$BU$68,0))/INDEX(lookups!$F$69:$BU$80,MATCH($H98,lookups!$C$69:$C$80,0),MATCH($I98,lookups!$F$68:$BU$68,0))) -> 1 | BJ98: =IF(ISNUMBER($H98),(1+$H98)^(BJ$5-$I98),INDEX(lookups!$F$69:$BU$80,MATCH($H98,lookups!$C$69:$C$80,0),MATCH(BJ$5,lookups!$F$68:$BU$68,0))/INDEX(lookups!$F$69:$BU$80,MATCH($H98,lookups!$C$69:$C$80,0),MATCH($I98,lookups!$F$68:$BU$68,0))) -> 1 | BK98: =IF(ISNUMBER($H98),(1+$H98)^(BK$5-$I98),INDEX(lookups!$F$69:$BU$80,MATCH($H98,lookups!$C$69:$C$80,0),MATCH(BK$5,lookups!$F$68:$BU$68,0))/INDEX(lookups!$F$69:$BU$80,MATCH($H98,lookups!$C$69:$C$80,0),MATCH($I98,lookups!$F$68:$BU$68,0))) -> 1 | BL98: =IF(ISNUMBER($H98),(1+$H98)^(BL$5-$I98),INDEX(lookups!$F$69:$BU$80,MATCH($H98,lookups!$C$69:$C$80,0),MATCH(BL$5,lookups!$F$68:$BU$68,0))/INDEX(lookups!$F$69:$BU$80,MATCH($H98,lookups!$C$69:$C$80,0),MATCH($I98,lookups!$F$68:$BU$68,0))) -> 1 | BM98: =IF(ISNUMBER($H98),(1+$H98)^(BM$5-$I98),INDEX(lookups!$F$69:$BU$80,MATCH($H98,lookups!$C$69:$C$80,0),MATCH(BM$5,lookups!$F$68:$BU$68,0))/INDEX(lookups!$F$69:$BU$80,MATCH($H98,lookups!$C$69:$C$80,0),MATCH($I98,lookups!$F$68:$BU$68,0))) -> 1
C99: 12 | D99: item 12 | E99: Operating Expense | F99: 2 | H99: =Input!L19 -> 0 | I99: =Assumptions!$D$13 -> 2017 | O99: =IF(ISNUMBER($H99),(1+$H99)^(O$5-$I99),INDEX(lookups!$F$69:$BU$80,MATCH($H99,lookups!$C$69:$C$80,0),MATCH(O$5,lookups!$F$68:$BU$68,0))/INDEX(lookups!$F$69:$BU$80,MATCH($H99,lookups!$C$69:$C$80,0),MATCH($I99,lookups!$F$68:$BU$68,0))) -> 1 | P99: =IF(ISNUMBER($H99),(1+$H99)^(P$5-$I99),INDEX(lookups!$F$69:$BU$80,MATCH($H99,lookups!$C$69:$C$80,0),MATCH(P$5,lookups!$F$68:$BU$68,0))/INDEX(lookups!$F$69:$BU$80,MATCH($H99,lookups!$C$69:$C$80,0),MATCH($I99,lookups!$F$68:$BU$68,0))) -> 1 | Q99: =IF(ISNUMBER($H99),(1+$H99)^(Q$5-$I99),INDEX(lookups!$F$69:$BU$80,MATCH($H99,lookups!$C$69:$C$80,0),MATCH(Q$5,lookups!$F$68:$BU$68,0))/INDEX(lookups!$F$69:$BU$80,MATCH($H99,lookups!$C$69:$C$80,0),MATCH($I99,lookups!$F$68:$BU$68,0))) -> 1 | R99: =IF(ISNUMBER($H99),(1+$H99)^(R$5-$I99),INDEX(lookups!$F$69:$BU$80,MATCH($H99,lookups!$C$69:$C$80,0),MATCH(R$5,lookups!$F$68:$BU$68,0))/INDEX(lookups!$F$69:$BU$80,MATCH($H99,lookups!$C$69:$C$80,0),MATCH($I99,lookups!$F$68:$BU$68,0))) -> 1 | S99: =IF(ISNUMBER($H99),(1+$H99)^(S$5-$I99),INDEX(lookups!$F$69:$BU$80,MATCH($H99,lookups!$C$69:$C$80,0),MATCH(S$5,lookups!$F$68:$BU$68,0))/INDEX(lookups!$F$69:$BU$80,MATCH($H99,lookups!$C$69:$C$80,0),MATCH($I99,lookups!$F$68:$BU$68,0))) -> 1 | T99: =IF(ISNUMBER($H99),(1+$H99)^(T$5-$I99),INDEX(lookups!$F$69:$BU$80,MATCH($H99,lookups!$C$69:$C$80,0),MATCH(T$5,lookups!$F$68:$BU$68,0))/INDEX(lookups!$F$69:$BU$80,MATCH($H99,lookups!$C$69:$C$80,0),MATCH($I99,lookups!$F$68:$BU$68,0))) -> 1 | U99: =IF(ISNUMBER($H99),(1+$H99)^(U$5-$I99),INDEX(lookups!$F$69:$BU$80,MATCH($H99,lookups!$C$69:$C$80,0),MATCH(U$5,lookups!$F$68:$BU$68,0))/INDEX(lookups!$F$69:$BU$80,MATCH($H99,lookups!$C$69:$C$80,0),MATCH($I99,lookups!$F$68:$BU$68,0))) -> 1 | V99: =IF(ISNUMBER($H99),(1+$H99)^(V$5-$I99),INDEX(lookups!$F$69:$BU$80,MATCH($H99,lookups!$C$69:$C$80,0),MATCH(V$5,lookups!$F$68:$BU$68,0))/INDEX(lookups!$F$69:$BU$80,MATCH($H99,lookups!$C$69:$C$80,0),MATCH($I99,lookups!$F$68:$BU$68,0))) -> 1 | W99: =IF(ISNUMBER($H99),(1+$H99)^(W$5-$I99),INDEX(lookups!$F$69:$BU$80,MATCH($H99,lookups!$C$69:$C$80,0),MATCH(W$5,lookups!$F$68:$BU$68,0))/INDEX(lookups!$F$69:$BU$80,MATCH($H99,lookups!$C$69:$C$80,0),MATCH($I99,lookups!$F$68:$BU$68,0))) -> 1 | X99: =IF(ISNUMBER($H99),(1+$H99)^(X$5-$I99),INDEX(lookups!$F$69:$BU$80,MATCH($H99,lookups!$C$69:$C$80,0),MATCH(X$5,lookups!$F$68:$BU$68,0))/INDEX(lookups!$F$69:$BU$80,MATCH($H99,lookups!$C$69:$C$80,0),MATCH($I99,lookups!$F$68:$BU$68,0))) -> 1 | Y99: =IF(ISNUMBER($H99),(1+$H99)^(Y$5-$I99),INDEX(lookups!$F$69:$BU$80,MATCH($H99,lookups!$C$69:$C$80,0),MATCH(Y$5,lookups!$F$68:$BU$68,0))/INDEX(lookups!$F$69:$BU$80,MATCH($H99,lookups!$C$69:$C$80,0),MATCH($I99,lookups!$F$68:$BU$68,0))) -> 1 | Z99: =IF(ISNUMBER($H99),(1+$H99)^(Z$5-$I99),INDEX(lookups!$F$69:$BU$80,MATCH($H99,lookups!$C$69:$C$80,0),MATCH(Z$5,lookups!$F$68:$BU$68,0))/INDEX(lookups!$F$69:$BU$80,MATCH($H99,lookups!$C$69:$C$80,0),MATCH($I99,lookups!$F$68:$BU$68,0))) -> 1 | AA99: =IF(ISNUMBER($H99),(1+$H99)^(AA$5-$I99),INDEX(lookups!$F$69:$BU$80,MATCH($H99,lookups!$C$69:$C$80,0),MATCH(AA$5,lookups!$F$68:$BU$68,0))/INDEX(lookups!$F$69:$BU$80,MATCH($H99,lookups!$C$69:$C$80,0),MATCH($I99,lookups!$F$68:$BU$68,0))) -> 1 | AB99: =IF(ISNUMBER($H99),(1+$H99)^(AB$5-$I99),INDEX(lookups!$F$69:$BU$80,MATCH($H99,lookups!$C$69:$C$80,0),MATCH(AB$5,lookups!$F$68:$BU$68,0))/INDEX(lookups!$F$69:$BU$80,MATCH($H99,lookups!$C$69:$C$80,0),MATCH($I99,lookups!$F$68:$BU$68,0))) -> 1 | AC99: =IF(ISNUMBER($H99),(1+$H99)^(AC$5-$I99),INDEX(lookups!$F$69:$BU$80,MATCH($H99,lookups!$C$69:$C$80,0),MATCH(AC$5,lookups!$F$68:$BU$68,0))/INDEX(lookups!$F$69:$BU$80,MATCH($H99,lookups!$C$69:$C$80,0),MATCH($I99,lookups!$F$68:$BU$68,0))) -> 1 | AD99: =IF(ISNUMBER($H99),(1+$H99)^(AD$5-$I99),INDEX(lookups!$F$69:$BU$80,MATCH($H99,lookups!$C$69:$C$80,0),MATCH(AD$5,lookups!$F$68:$BU$68,0))/INDEX(lookups!$F$69:$BU$80,MATCH($H99,lookups!$C$69:$C$80,0),MATCH($I99,lookups!$F$68:$BU$68,0))) -> 1 | AE99: =IF(ISNUMBER($H99),(1+$H99)^(AE$5-$I99),INDEX(lookups!$F$69:$BU$80,MATCH($H99,lookups!$C$69:$C$80,0),MATCH(AE$5,lookups!$F$68:$BU$68,0))/INDEX(lookups!$F$69:$BU$80,MATCH($H99,lookups!$C$69:$C$80,0),MATCH($I99,lookups!$F$68:$BU$68,0))) -> 1 | AF99: =IF(ISNUMBER($H99),(1+$H99)^(AF$5-$I99),INDEX(lookups!$F$69:$BU$80,MATCH($H99,lookups!$C$69:$C$80,0),MATCH(AF$5,lookups!$F$68:$BU$68,0))/INDEX(lookups!$F$69:$BU$80,MATCH($H99,lookups!$C$69:$C$80,0),MATCH($I99,lookups!$F$68:$BU$68,0))) -> 1 | AG99: =IF(ISNUMBER($H99),(1+$H99)^(AG$5-$I99),INDEX(lookups!$F$69:$BU$80,MATCH($H99,lookups!$C$69:$C$80,0),MATCH(AG$5,lookups!$F$68:$BU$68,0))/INDEX(lookups!$F$69:$BU$80,MATCH($H99,lookups!$C$69:$C$80,0),MATCH($I99,lookups!$F$68:$BU$68,0))) -> 1 | AH99: =IF(ISNUMBER($H99),(1+$H99)^(AH$5-$I99),INDEX(lookups!$F$69:$BU$80,MATCH($H99,lookups!$C$69:$C$80,0),MATCH(AH$5,lookups!$F$68:$BU$68,0))/INDEX(lookups!$F$69:$BU$80,MATCH($H99,lookups!$C$69:$C$80,0),MATCH($I99,lookups!$F$68:$BU$68,0))) -> 1 | AI99: =IF(ISNUMBER($H99),(1+$H99)^(AI$5-$I99),INDEX(lookups!$F$69:$BU$80,MATCH($H99,lookups!$C$69:$C$80,0),MATCH(AI$5,lookups!$F$68:$BU$68,0))/INDEX(lookups!$F$69:$BU$80,MATCH($H99,lookups!$C$69:$C$80,0),MATCH($I99,lookups!$F$68:$BU$68,0))) -> 1 | AJ99: =IF(ISNUMBER($H99),(1+$H99)^(AJ$5-$I99),INDEX(lookups!$F$69:$BU$80,MATCH($H99,lookups!$C$69:$C$80,0),MATCH(AJ$5,lookups!$F$68:$BU$68,0))/INDEX(lookups!$F$69:$BU$80,MATCH($H99,lookups!$C$69:$C$80,0),MATCH($I99,lookups!$F$68:$BU$68,0))) -> 1 | AK99: =IF(ISNUMBER($H99),(1+$H99)^(AK$5-$I99),INDEX(lookups!$F$69:$BU$80,MATCH($H99,lookups!$C$69:$C$80,0),MATCH(AK$5,lookups!$F$68:$BU$68,0))/INDEX(lookups!$F$69:$BU$80,MATCH($H99,lookups!$C$69:$C$80,0),MATCH($I99,lookups!$F$68:$BU$68,0))) -> 1 | AL99: =IF(ISNUMBER($H99),(1+$H99)^(AL$5-$I99),INDEX(lookups!$F$69:$BU$80,MATCH($H99,lookups!$C$69:$C$80,0),MATCH(AL$5,lookups!$F$68:$BU$68,0))/INDEX(lookups!$F$69:$BU$80,MATCH($H99,lookups!$C$69:$C$80,0),MATCH($I99,lookups!$F$68:$BU$68,0))) -> 1 | AM99: =IF(ISNUMBER($H99),(1+$H99)^(AM$5-$I99),INDEX(lookups!$F$69:$BU$80,MATCH($H99,lookups!$C$69:$C$80,0),MATCH(AM$5,lookups!$F$68:$BU$68,0))/INDEX(lookups!$F$69:$BU$80,MATCH($H99,lookups!$C$69:$C$80,0),MATCH($I99,lookups!$F$68:$BU$68,0))) -> 1 | AN99: =IF(ISNUMBER($H99),(1+$H99)^(AN$5-$I99),INDEX(lookups!$F$69:$BU$80,MATCH($H99,lookups!$C$69:$C$80,0),MATCH(AN$5,lookups!$F$68:$BU$68,0))/INDEX(lookups!$F$69:$BU$80,MATCH($H99,lookups!$C$69:$C$80,0),MATCH($I99,lookups!$F$68:$BU$68,0))) -> 1 | AO99: =IF(ISNUMBER($H99),(1+$H99)^(AO$5-$I99),INDEX(lookups!$F$69:$BU$80,MATCH($H99,lookups!$C$69:$C$80,0),MATCH(AO$5,lookups!$F$68:$BU$68,0))/INDEX(lookups!$F$69:$BU$80,MATCH($H99,lookups!$C$69:$C$80,0),MATCH($I99,lookups!$F$68:$BU$68,0))) -> 1 | AP99: =IF(ISNUMBER($H99),(1+$H99)^(AP$5-$I99),INDEX(lookups!$F$69:$BU$80,MATCH($H99,lookups!$C$69:$C$80,0),MATCH(AP$5,lookups!$F$68:$BU$68,0))/INDEX(lookups!$F$69:$BU$80,MATCH($H99,lookups!$C$69:$C$80,0),MATCH($I99,lookups!$F$68:$BU$68,0))) -> 1 | AQ99: =IF(ISNUMBER($H99),(1+$H99)^(AQ$5-$I99),INDEX(lookups!$F$69:$BU$80,MATCH($H99,lookups!$C$69:$C$80,0),MATCH(AQ$5,lookups!$F$68:$BU$68,0))/INDEX(lookups!$F$69:$BU$80,MATCH($H99,lookups!$C$69:$C$80,0),MATCH($I99,lookups!$F$68:$BU$68,0))) -> 1 | AR99: =IF(ISNUMBER($H99),(1+$H99)^(AR$5-$I99),INDEX(lookups!$F$69:$BU$80,MATCH($H99,lookups!$C$69:$C$80,0),MATCH(AR$5,lookups!$F$68:$BU$68,0))/INDEX(lookups!$F$69:$BU$80,MATCH($H99,lookups!$C$69:$C$80,0),MATCH($I99,lookups!$F$68:$BU$68,0))) -> 1 | AS99: =IF(ISNUMBER($H99),(1+$H99)^(AS$5-$I99),INDEX(lookups!$F$69:$BU$80,MATCH($H99,lookups!$C$69:$C$80,0),MATCH(AS$5,lookups!$F$68:$BU$68,0))/INDEX(lookups!$F$69:$BU$80,MATCH($H99,lookups!$C$69:$C$80,0),MATCH($I99,lookups!$F$68:$BU$68,0))) -> 1 | AT99: =IF(ISNUMBER($H99),(1+$H99)^(AT$5-$I99),INDEX(lookups!$F$69:$BU$80,MATCH($H99,lookups!$C$69:$C$80,0),MATCH(AT$5,lookups!$F$68:$BU$68,0))/INDEX(lookups!$F$69:$BU$80,MATCH($H99,lookups!$C$69:$C$80,0),MATCH($I99,lookups!$F$68:$BU$68,0))) -> 1 | AU99: =IF(ISNUMBER($H99),(1+$H99)^(AU$5-$I99),INDEX(lookups!$F$69:$BU$80,MATCH($H99,lookups!$C$69:$C$80,0),MATCH(AU$5,lookups!$F$68:$BU$68,0))/INDEX(lookups!$F$69:$BU$80,MATCH($H99,lookups!$C$69:$C$80,0),MATCH($I99,lookups!$F$68:$BU$68,0))) -> 1 | AV99: =IF(ISNUMBER($H99),(1+$H99)^(AV$5-$I99),INDEX(lookups!$F$69:$BU$80,MATCH($H99,lookups!$C$69:$C$80,0),MATCH(AV$5,lookups!$F$68:$BU$68,0))/INDEX(lookups!$F$69:$BU$80,MATCH($H99,lookups!$C$69:$C$80,0),MATCH($I99,lookups!$F$68:$BU$68,0))) -> 1 | AW99: =IF(ISNUMBER($H99),(1+$H99)^(AW$5-$I99),INDEX(lookups!$F$69:$BU$80,MATCH($H99,lookups!$C$69:$C$80,0),MATCH(AW$5,lookups!$F$68:$BU$68,0))/INDEX(lookups!$F$69:$BU$80,MATCH($H99,lookups!$C$69:$C$80,0),MATCH($I99,lookups!$F$68:$BU$68,0))) -> 1 | AX99: =IF(ISNUMBER($H99),(1+$H99)^(AX$5-$I99),INDEX(lookups!$F$69:$BU$80,MATCH($H99,lookups!$C$69:$C$80,0),MATCH(AX$5,lookups!$F$68:$BU$68,0))/INDEX(lookups!$F$69:$BU$80,MATCH($H99,lookups!$C$69:$C$80,0),MATCH($I99,lookups!$F$68:$BU$68,0))) -> 1 | AY99: =IF(ISNUMBER($H99),(1+$H99)^(AY$5-$I99),INDEX(lookups!$F$69:$BU$80,MATCH($H99,lookups!$C$69:$C$80,0),MATCH(AY$5,lookups!$F$68:$BU$68,0))/INDEX(lookups!$F$69:$BU$80,MATCH($H99,lookups!$C$69:$C$80,0),MATCH($I99,lookups!$F$68:$BU$68,0))) -> 1 | AZ99: =IF(ISNUMBER($H99),(1+$H99)^(AZ$5-$I99),INDEX(lookups!$F$69:$BU$80,MATCH($H99,lookups!$C$69:$C$80,0),MATCH(AZ$5,lookups!$F$68:$BU$68,0))/INDEX(lookups!$F$69:$BU$80,MATCH($H99,lookups!$C$69:$C$80,0),MATCH($I99,lookups!$F$68:$BU$68,0))) -> 1 | BA99: =IF(ISNUMBER($H99),(1+$H99)^(BA$5-$I99),INDEX(lookups!$F$69:$BU$80,MATCH($H99,lookups!$C$69:$C$80,0),MATCH(BA$5,lookups!$F$68:$BU$68,0))/INDEX(lookups!$F$69:$BU$80,MATCH($H99,lookups!$C$69:$C$80,0),MATCH($I99,lookups!$F$68:$BU$68,0))) -> 1 | BB99: =IF(ISNUMBER($H99),(1+$H99)^(BB$5-$I99),INDEX(lookups!$F$69:$BU$80,MATCH($H99,lookups!$C$69:$C$80,0),MATCH(BB$5,lookups!$F$68:$BU$68,0))/INDEX(lookups!$F$69:$BU$80,MATCH($H99,lookups!$C$69:$C$80,0),MATCH($I99,lookups!$F$68:$BU$68,0))) -> 1 | BC99: =IF(ISNUMBER($H99),(1+$H99)^(BC$5-$I99),INDEX(lookups!$F$69:$BU$80,MATCH($H99,lookups!$C$69:$C$80,0),MATCH(BC$5,lookups!$F$68:$BU$68,0))/INDEX(lookups!$F$69:$BU$80,MATCH($H99,lookups!$C$69:$C$80,0),MATCH($I99,lookups!$F$68:$BU$68,0))) -> 1 | BD99: =IF(ISNUMBER($H99),(1+$H99)^(BD$5-$I99),INDEX(lookups!$F$69:$BU$80,MATCH($H99,lookups!$C$69:$C$80,0),MATCH(BD$5,lookups!$F$68:$BU$68,0))/INDEX(lookups!$F$69:$BU$80,MATCH($H99,lookups!$C$69:$C$80,0),MATCH($I99,lookups!$F$68:$BU$68,0))) -> 1 | BE99: =IF(ISNUMBER($H99),(1+$H99)^(BE$5-$I99),INDEX(lookups!$F$69:$BU$80,MATCH($H99,lookups!$C$69:$C$80,0),MATCH(BE$5,lookups!$F$68:$BU$68,0))/INDEX(lookups!$F$69:$BU$80,MATCH($H99,lookups!$C$69:$C$80,0),MATCH($I99,lookups!$F$68:$BU$68,0))) -> 1 | BF99: =IF(ISNUMBER($H99),(1+$H99)^(BF$5-$I99),INDEX(lookups!$F$69:$BU$80,MATCH($H99,lookups!$C$69:$C$80,0),MATCH(BF$5,lookups!$F$68:$BU$68,0))/INDEX(lookups!$F$69:$BU$80,MATCH($H99,lookups!$C$69:$C$80,0),MATCH($I99,lookups!$F$68:$BU$68,0))) -> 1 | BG99: =IF(ISNUMBER($H99),(1+$H99)^(BG$5-$I99),INDEX(lookups!$F$69:$BU$80,MATCH($H99,lookups!$C$69:$C$80,0),MATCH(BG$5,lookups!$F$68:$BU$68,0))/INDEX(lookups!$F$69:$BU$80,MATCH($H99,lookups!$C$69:$C$80,0),MATCH($I99,lookups!$F$68:$BU$68,0))) -> 1 | BH99: =IF(ISNUMBER($H99),(1+$H99)^(BH$5-$I99),INDEX(lookups!$F$69:$BU$80,MATCH($H99,lookups!$C$69:$C$80,0),MATCH(BH$5,lookups!$F$68:$BU$68,0))/INDEX(lookups!$F$69:$BU$80,MATCH($H99,lookups!$C$69:$C$80,0),MATCH($I99,lookups!$F$68:$BU$68,0))) -> 1 | BI99: =IF(ISNUMBER($H99),(1+$H99)^(BI$5-$I99),INDEX(lookups!$F$69:$BU$80,MATCH($H99,lookups!$C$69:$C$80,0),MATCH(BI$5,lookups!$F$68:$BU$68,0))/INDEX(lookups!$F$69:$BU$80,MATCH($H99,lookups!$C$69:$C$80,0),MATCH($I99,lookups!$F$68:$BU$68,0))) -> 1 | BJ99: =IF(ISNUMBER($H99),(1+$H99)^(BJ$5-$I99),INDEX(lookups!$F$69:$BU$80,MATCH($H99,lookups!$C$69:$C$80,0),MATCH(BJ$5,lookups!$F$68:$BU$68,0))/INDEX(lookups!$F$69:$BU$80,MATCH($H99,lookups!$C$69:$C$80,0),MATCH($I99,lookups!$F$68:$BU$68,0))) -> 1 | BK99: =IF(ISNUMBER($H99),(1+$H99)^(BK$5-$I99),INDEX(lookups!$F$69:$BU$80,MATCH($H99,lookups!$C$69:$C$80,0),MATCH(BK$5,lookups!$F$68:$BU$68,0))/INDEX(lookups!$F$69:$BU$80,MATCH($H99,lookups!$C$69:$C$80,0),MATCH($I99,lookups!$F$68:$BU$68,0))) -> 1 | BL99: =IF(ISNUMBER($H99),(1+$H99)^(BL$5-$I99),INDEX(lookups!$F$69:$BU$80,MATCH($H99,lookups!$C$69:$C$80,0),MATCH(BL$5,lookups!$F$68:$BU$68,0))/INDEX(lookups!$F$69:$BU$80,MATCH($H99,lookups!$C$69:$C$80,0),MATCH($I99,lookups!$F$68:$BU$68,0))) -> 1 | BM99: =IF(ISNUMBER($H99),(1+$H99)^(BM$5-$I99),INDEX(lookups!$F$69:$BU$80,MATCH($H99,lookups!$C$69:$C$80,0),MATCH(BM$5,lookups!$F$68:$BU$68,0))/INDEX(lookups!$F$69:$BU$80,MATCH($H99,lookups!$C$69:$C$80,0),MATCH($I99,lookups!$F$68:$BU$68,0))) -> 1
